Workbook

Sheet Sample Report (hidden)
A2: Date
A3: Hen
A4: Program
A5: Start at 999999
A6: Sequence component 1 | B6: Time 1 | C6: Seqeunce Component 2 | D6: Time 2 | E6: Seqeunce Component 3 | F6: Time 3 | G6: Correct 0 = No 1=Yes | J6: Seqeunce | K6: Time
A7: 12 | B7: 7 | C7: 12 | D7: 42 | E7: 13 | F7: 18 | G7: if 77 new line, if 31 or 41 = yes new line on 77, | J7: =string of Seqeunce compponent 1, 2 & 3 | K7: =time 3
A8: This continues until ther is a 1 on its own to indicate start of summary data
J9: 10-19 =1
A10: Summary Data | J10: 20-29 =2
A11: Correct | B11: Incorrect | C11: Rft | D11: total | E11: Av Correct | F11: Av Incorrect | G11: Percent correct | H11: Time | J11: in this example the seqeunce would be 111
A12: 40 | B12: 33 | C12: 40 | D12: 73 | E12: 23.95 | F12: 15 | G12: 54 | H12: 806

Sheet Summary
A2: Day | B2: Date | C2: Average Response Rate | D2: Target % | E2: RF for non correct sequence | F2: U Value | K2: Block 1 | L2: Block 2 | M2: Block 3 | N2: Block 4 | O2: Block 5 | P2: Block 6
A3: 1 | B3: ='!MB30A30.010'!B2:C2 -> <date> | C3: =('!MB30A30.010'!J159/60)/'!MB30A30.010'!Q3 -> 2.583225108 | D3: ='!MB30A30.010'!N44/'!MB30A30.010'!Q3 -> 0 | E3: =SUM('!MB30A30.010'!L44:Q44)/'!MB30A30.010'!Q3 -> 79.69480519 | F3: ='!MB30A30.010'!Q40 -> 0.381651995 | J3: Average Response Rate | K3: =AVERAGE(C3:C7) -> 2.299704138 | L3: =AVERAGE(C8:C12) -> 1.768652007 | M3: =AVERAGE(C13:C17) -> 2.121772619 | N3: =AVERAGE(C18:C22) -> 1.652491415 | O3: =AVERAGE(C23:C27) -> 2.075979993 | P3: =AVERAGE(C28:C32) -> 2.104647701
A4: 2 | B4: ='!MC01A10.010'!B2:C2 -> <date> | C4: =('!MC01A10.010'!J182/60)/'!MC01A10.010'!Q3 -> 2.269412879 | D4: ='!MC01A10.010'!N44/'!MC01A10.010'!Q3 -> 0 | E4: =SUM('!MC01A10.010'!L44:Q44)/'!MC01A10.010'!Q3 -> 63.46590909 | F4: ='!MC01A10.010'!Q40 -> 0.1753105779 | J4: Target % | K4: =AVERAGE(D3:D7) -> 0 | L4: =AVERAGE(D8:D12) -> 0 | M4: =AVERAGE(D13:D17) -> 0 | N4: =AVERAGE(D18:D22) -> 0.03787878788 | O4: =AVERAGE(D23:D27) -> 0 | P4: =AVERAGE(D28:D32) -> 0
A5: 3 | B5: ='!MC02A20.010'!B2:C2 -> <date> | C5: =('!MC02A20.010'!J188/60)/'!MC02A20.010'!Q3 -> 2.19010989 | D5: ='!MC02A20.010'!N44/'!MC02A20.010'!Q3 -> 0 | E5: =SUM('!MC02A20.010'!L44:Q44)/'!MC02A20.010'!Q3 -> 61.38461538 | F5: ='!MC02A20.010'!Q40 -> 0.06180834186 | J5: CCRF | K5: =AVERAGE(E3:E7) -> 65.87219443 | L5: =AVERAGE(E8:E12) -> 61.55102642 | M5: =AVERAGE(E13:E17) -> 59.45703671 | N5: =AVERAGE(E18:E22) -> 78.36035104 | O5: =AVERAGE(E23:E27) -> 58.10348742 | P5: =AVERAGE(E28:E32) -> 58.98080874
A6: 4 | B6: ='!MC03810.010'!B2:C2 -> <date> | C6: =('!MC03810.010'!J185/60)/'!MC03810.010'!Q3 -> 2.227839851 | D6: ='!MC03810.010'!N44/'!MC03810.010'!Q3 -> 0 | E6: =SUM('!MC03810.010'!L44:Q44)/'!MC03810.010'!Q3 -> 62.40782123 | F6: ='!MC03810.010'!Q40 -> 0.07779140984 | J6: U Value | K6: =AVERAGE(F3:F7) -> 0.1499501951 | L6: =AVERAGE(F8:F12) -> 0.03831413174 | M6: =AVERAGE(F13:F17) -> 0.01967395786 | N6: =AVERAGE(F18:F22) -> 0.1253691534 | O6: =AVERAGE(F23:F27) -> 0.01725036479 | P6: =AVERAGE(F28:F32) -> 0.03813042865
A7: 5 | B7: ='!MC04A00.010'!B2:C2 -> <date> | C7: =('!MC04A00.010'!J185/60)/'!MC04A00.010'!Q3 -> 2.227932961 | D7: ='!MC04A00.010'!N44/'!MC04A00.010'!Q3 -> 0 | E7: =SUM('!MC04A00.010'!L44:Q44)/'!MC04A00.010'!Q3 -> 62.40782123 | F7: ='!MC04A00.010'!Q40 -> 0.05318865082
A8: 6 | B8: ='!MC05840.010'!B2:C2 -> <date> | C8: =('!MC05840.010'!J182/60)/'!MC05840.010'!Q3 -> 2.266003788 | D8: ='!MC05840.010'!N44/'!MC05840.010'!Q3 -> 0 | E8: =SUM('!MC05840.010'!L44:Q44)/'!MC05840.010'!Q3 -> 63.46590909 | F8: ='!MC05840.010'!Q40 -> 0.06912588978
A9: 7 | B9: ='!MC06930.010'!B2:C2 -> <date> | C9: =('!MC06930.010'!J190/60)/'!MC06930.010'!Q3 -> 2.168206522 | D9: ='!MC06930.010'!N44/'!MC06930.010'!Q3 -> 0 | E9: =SUM('!MC06930.010'!L44:Q44)/'!MC06930.010'!Q3 -> 60.7173913 | F9: ='!MC06930.010'!Q40 -> 0.03536684613 | G9: =K3 -> 2.299704138 | H9: 1.768652007 | I9: 2.121772619 | J9: 1.652491415 | K9: 2.075979993 | L9: 2.104647701 | M9: =K4 -> 0 | N9: 0 | O9: 0 | P9: 0.03787878788 | Q9: 0 | R9: 0 | S9: =K6 -> 0.1499501951 | T9: 0.03831413174 | U9: 0.01967395786 | V9: 0.1253691534 | W9: 0.01725036479 | X9: 0.03813042865
A10: 8 | B10: ='!MC07940.010'!B2:C2 -> <date> | C10: =('!MC07940.010'!J191/60)/'!MC07940.010'!Q3 -> 2.158108108 | D10: ='!MC07940.010'!N44/'!MC07940.010'!Q3 -> 0 | E10: =SUM('!MC07940.010'!L44:Q44)/'!MC07940.010'!Q3 -> 60.39459459 | F10: ='!MC07940.010'!Q40 -> 0.02284743944
A11: 9 | B11: ='!MC08950.010'!B2:C2 -> <date> | C11: =('!MC08950.010'!J183/60)/'!MC08950.010'!Q3 -> 2.25094162 | D11: ='!MC08950.010'!N44/'!MC08950.010'!Q3 -> 0 | E11: =SUM('!MC08950.010'!L44:Q44)/'!MC08950.010'!Q3 -> 63.10734463 | F11: ='!MC08950.010'!Q40 -> 0.04192484
A12: 10 | B12: ='!MC09940.010'!B2:C2 -> <date> | C12: =('!MC09940.010'!J192/60)/'!MC09940.010'!Q3 -> 0 | D12: ='!MC09940.010'!N44/'!MC09940.010'!Q3 -> 0 | E12: =SUM('!MC09940.010'!L44:Q44)/'!MC09940.010'!Q3 -> 60.06989247 | F12: ='!MC09940.010'!Q40 -> 0.02230564335
A13: 11 | B13: ='!MC10A30.010'!B2:C2 -> <date> | C13: =('!MC10A30.010'!J192/60)/'!MC10A30.010'!Q3 -> 2.140501792 | D13: ='!MC10A30.010'!N44/'!MC10A30.010'!Q3 -> 0 | E13: =SUM('!MC10A30.010'!L44:Q44)/'!MC10A30.010'!Q3 -> 60.06989247 | F13: ='!MC10A30.010'!Q40 -> 0.01776421656
A14: 12 | B14: ='!MC11930.010'!B2:C2 -> <date> | C14: =('!MC11930.010'!J189/60)/'!MC11930.010'!Q3 -> 2.185063752 | D14: ='!MC11930.010'!N44/'!MC11930.010'!Q3 -> 0 | E14: =SUM('!MC11930.010'!L44:Q44)/'!MC11930.010'!Q3 -> 61.04918033 | F14: ='!MC11930.010'!Q40 -> 0.03406493958
A15: 13 | B15: ='!MC12840.010'!B2:C2 -> <date> | C15: =('!MC12840.010'!J194/60)/'!MC12840.010'!Q3 -> 2.120212766 | D15: ='!MC12840.010'!N44/'!MC12840.010'!Q3 -> 0 | E15: =SUM('!MC12840.010'!L44:Q44)/'!MC12840.010'!Q3 -> 59.43617021 | F15: ='!MC12840.010'!Q40 -> 0.00633223705
A16: 14 | B16: ='!MC13A00.010'!B2:C2 -> <date> | C16: =('!MC13A00.010'!J195/60)/'!MC13A00.010'!Q3 -> 2.111022928 | D16: ='!MC13A00.010'!N44/'!MC13A00.010'!Q3 -> 0 | E16: =SUM('!MC13A00.010'!L44:Q44)/'!MC13A00.010'!Q3 -> 59.12169312 | F16: ='!MC13A00.010'!Q40 -> 0.02183177107
A17: 15 | B17: ='!MC14930.010'!B2:C2 -> <date> | C17: =('!MC14930.010'!J200/60)/'!MC14930.010'!Q3 -> 2.052061856 | D17: ='!MC14930.010'!N44/'!MC14930.010'!Q3 -> 0 | E17: =SUM('!MC14930.010'!L44:Q44)/'!MC14930.010'!Q3 -> 57.60824742 | F17: ='!MC14930.010'!Q40 -> 0.01837662504
A18: 16 | B18: ='!MC16850.010'!B2:C2 -> <date> | C18: =('!MC16850.010'!J197/60)/'!MC16850.010'!Q3 -> 2.073524306 | D18: ='!MC16850.010'!N44/'!MC16850.010'!Q3 -> 0 | E18: =SUM('!MC16850.010'!L44:Q44)/'!MC16850.010'!Q3 -> 58.203125 | F18: ='!MC16850.010'!Q40 -> 0.03838301222
A19: 17 | B19: ='!MC17820.010'!B2:C2 -> <date> | C19: =('!MC17820.010'!J197/60)/'!MC17820.010'!Q3 -> 2.091972077 | D19: ='!MC17820.010'!N44/'!MC17820.010'!Q3 -> 0 | E19: =SUM('!MC17820.010'!L44:Q44)/'!MC17820.010'!Q3 -> 58.5078534 | F19: ='!MC17820.010'!Q40 -> 0.02350577138
A20: 18 | B20: ='!MC18940.010'!B2:C2 -> <date> | C20: =('!MC18940.010'!J202/60)/'!MC18940.010'!Q3 -> 2.036479592 | D20: ='!MC18940.010'!N44/'!MC18940.010'!Q3 -> 0 | E20: =SUM('!MC18940.010'!L44:Q44)/'!MC18940.010'!Q3 -> 57.02040816 | F20: ='!MC18940.010'!Q40 -> 0.006066211461
A21: 19 | B21: ='!MC19940.010'!B2:C2 -> <date> | C21: =('!MC19940.010'!J200/60)/'!MC19940.010'!Q3 -> 2.0604811 | D21: ='!MC19940.010'!N44/'!MC19940.010'!Q3 -> 0 | E21: =SUM('!MC19940.010'!L44:Q44)/'!MC19940.010'!Q3 -> 57.60824742 | F21: ='!MC19940.010'!Q40 -> 0.01702012549
A22: 20 | B22: ='!MC20A20.010'!B2:C2 -> <date> | C22: =('!MC20A20.010'!J138/60)/'!MC20A20.010'!Q3 -> 0 | D22: ='!MC20A20.010'!N44/'!MC20A20.010'!Q3 -> 0.1893939394 | E22: =SUM('!MC20A20.010'!L44:Q44)/'!MC20A20.010'!Q3 -> 160.4621212 | F22: ='!MC20A20.010'!Q40 -> 0.5418706467
A23: 21 | B23: ='!MC21A00.010'!B2:C2 -> <date> | C23: =('!MC21A00.010'!J202/60)/'!MC21A00.010'!Q3 -> 2.037244898 | D23: ='!MC21A00.010'!N44/'!MC21A00.010'!Q3 -> 0 | E23: =SUM('!MC21A00.010'!L44:Q44)/'!MC21A00.010'!Q3 -> 57.02040816 | F23: ='!MC21A00.010'!Q40 -> 0.006066211461
A24: 22 | B24: ='!MC22900.010'!B2:C2 -> <date> | C24: =('!MC22900.010'!J195/60)/'!MC22900.010'!Q3 -> 2.112081129 | D24: ='!MC22900.010'!N44/'!MC22900.010'!Q3 -> 0 | E24: =SUM('!MC22900.010'!L44:Q44)/'!MC22900.010'!Q3 -> 59.12169312 | F24: ='!MC22900.010'!Q40 -> 0.0268536657
A25: 23 | B25: ='!MC23910.010'!B2:C2 -> <date> | C25: =('!MC23910.010'!J198/60)/'!MC23910.010'!Q3 -> 2.081510417 | D25: ='!MC23910.010'!N44/'!MC23910.010'!Q3 -> 0 | E25: =SUM('!MC23910.010'!L44:Q44)/'!MC23910.010'!Q3 -> 58.203125 | F25: ='!MC23910.010'!Q40 -> 0.02295790826
A26: 24 | B26: ='!MC24930.010'!B2:C2 -> <date> | C26: =('!MC24930.010'!J203/60)/'!MC24930.010'!Q3 -> 2.023265651 | D26: ='!MC24930.010'!N44/'!MC24930.010'!Q3 -> 0 | E26: =SUM('!MC24930.010'!L44:Q44)/'!MC24930.010'!Q3 -> 56.73604061 | F26: ='!MC24930.010'!Q40 -> 0
A27: 25 | B27: ='!MC27940.010'!B2:C2 -> <date> | C27: =('!MC27940.010'!J194/60)/'!MC27940.010'!Q3 -> 2.125797872 | D27: ='!MC27940.010'!N44/'!MC27940.010'!Q3 -> 0 | E27: =SUM('!MC27940.010'!L44:Q44)/'!MC27940.010'!Q3 -> 59.43617021 | F27: ='!MC27940.010'!Q40 -> 0.03037403853
A28: 26 | B28: ='!MC28910.010'!B2:C2 -> <date> | C28: =('!MC28910.010'!J197/60)/'!MC28910.010'!Q3 -> 2.072309028 | D28: ='!MC28910.010'!N44/'!MC28910.010'!Q3 -> 0 | E28: =SUM('!MC28910.010'!L44:Q44)/'!MC28910.010'!Q3 -> 58.203125 | F28: ='!MC28910.010'!Q40 -> 0.02991940421
A29: 27 | B29: ='!MC29900.010'!B2:C2 -> <date> | C29: =('!MC29900.010'!J199/60)/'!MC29900.010'!Q3 -> 2.072366149 | D29: ='!MC29900.010'!N44/'!MC29900.010'!Q3 -> 0 | E29: =SUM('!MC29900.010'!L44:Q44)/'!MC29900.010'!Q3 -> 57.9015544 | F29: ='!MC29900.010'!Q40 -> 0.01095667622
A30: 28 | B30: ='!MC30820.010'!B2:C2 -> <date> | C30: =('!MC30820.010'!J191/60)/'!MC30820.010'!Q3 -> 2.138888889 | D30: ='!MC30820.010'!N44/'!MC30820.010'!Q3 -> 0 | E30: =SUM('!MC30820.010'!L44:Q44)/'!MC30820.010'!Q3 -> 60.06989247 | F30: ='!MC30820.010'!Q40 -> 0.05449937631
A31: 29 | B31: ='!MC31900.010'!B2:C2 -> <date> | C31: =('!MC31900.010'!J193/60)/'!MC31900.010'!Q3 -> 2.135026738 | D31: ='!MC31900.010'!N44/'!MC31900.010'!Q3 -> 0 | E31: =SUM('!MC31900.010'!L44:Q44)/'!MC31900.010'!Q3 -> 59.7486631 | F31: ='!MC31900.010'!Q40 -> 0.05714625787
A32: 30

Sheet Start
F1: Use Folder 51 | H1: Auto Clean Up | J1: Correct sequence
F2: FALSE | H2: TRUE | J2: 21121
A4: Working with Folder | G4: Process All/Or Pick A number: ALL or an integer
A5: E:\Hen Data\Raw Data\102_182\phase 5 any\ | G5: ALL
A6: Filenames:
A7: !MB30A30.010 | G7: Paint Cells
A8: !MC01A10.010 | G8: FALSE
A9: !MC02A20.010
A10: !MC03810.010
A11: !MC04A00.010
A12: !MC05840.010
A13: !MC06930.010
A14: !MC07940.010
A15: !MC08950.010
A16: !MC09940.010
A17: !MC10A30.010
A18: !MC11930.010
A19: !MC12840.010
A20: !MC13A00.010
A21: !MC14930.010
A22: !MC16850.010
A23: !MC17820.010
A24: !MC18940.010
A25: !MC19940.010
A26: !MC20A20.010
A27: !MC21A00.010
A28: !MC22900.010
A29: !MC23910.010
A30: !MC24930.010
A31: !MC27940.010
A32: !MC28910.010
A33: !MC29900.010
A34: !MC30820.010
A35: !MC31900.010

Sheet !MB30A30.010
A1: Report for:!MB30A30.010
A2: Date: | B2: <date>
A3: Hen: | B3: <hen> | F3: Correct Sequence | G3: =Start!J2 -> 21121 | P3: Total Sequences in Data | Q3: =4994-COUNTBLANK(L7:L5000) -> 154 | V3: Total Sequences in Block Data | W3: =COUNTA(L7:L32) -> 26 | AA3: Total Sequences in Block Data | AB3: =COUNTA(L33:L57) -> 25 | AF3: Total Sequences in Block Data | AG3: =COUNTA(L58:L83) -> 26 | AK3: Total Sequences in Block Data | AL3: =COUNTA(L84:L109) -> 26 | AP3: Total Sequences in Block Data | AQ3: =COUNTA(L110:L134) -> 25 | AU3: Total Sequences in Block Data | AV3: =COUNTA(L135:L160) -> 26
P4: Total Sequences in Summary | Q4: =SUM(O7:O38) -> 153 | V4: Total Sequences in Block Summary | W4: =SUM(U7:U38) -> 26 | AA4: Total Sequences in Block Summary | AB4: =SUM(Z7:Z38) -> 25 | AF4: Total Sequences in Block Summary | AG4: =SUM(AE7:AE38) -> 26 | AK4: Total Sequences in Block Summary | AL4: =SUM(AJ7:AJ38) -> 26 | AP4: Total Sequences in Block Summary | AQ4: =SUM(AO7:AO38) -> 25 | AU4: Total Sequences in Block Summary | AV4: =SUM(AT7:AT38) -> 25
T5: Block 1 | Y5: Block 2 | AD5: Block 3 | AI5: Block 4 | AN5: Block 5 | AS5: Block 6
A6: Sequence Component 1 | B6: Time 1 | C6: Sequence Component 2 | D6: Time 2 | E6: Sequence Component 3 | F6: Time 3 | G6: Sequence Component 4 | H6: Time 4 | I6: Sequence Component 5 | J6: Time 5 | K6: Correct? 0=No 1=Yes | L6: Sequence | N6: Frequency | P6: Relative Frequency | Q6: Variability | T6: Frequency | V6: Relative Frequency | W6: Variability | Y6: Frequency | AA6: Relative Frequency | AB6: Variability | AD6: Frequency | AF6: Relative Frequency | AG6: Variability | AI6: Frequency | AK6: Relative Frequency | AL6: Variability | AN6: Frequency | AP6: Relative Frequency | AQ6: Variability | AS6: Frequency | AU6: Relative Frequency | AV6: Variability
A7: 12 | B7: 14 | C7: 24 | D7: 25 | E7: 24 | F7: 42 | G7: 23 | H7: 48 | I7: 24 | J7: 53 | K7: 0 | L7: 12222 | N7: 11111 | O7: =COUNTIF($L$7:$L$500,N7) -> 29 | P7: =O7/$Q$4 -> 0.1895424837 | Q7: =IF(P7=0,0,(P7*((LOG(P7))/LOG(2)))) -> -0.4547895332 | T7: =N7 -> 11111 | U7: =COUNTIF(L7:L32,T7) -> 0 | V7: =U7/(W4-U25) -> 0 | W7: =IF(V7=0,0,(V7*((LOG(V7))/LOG(2)))) -> 0 | Y7: =N7 -> 11111 | Z7: =COUNTIF(L33:L57,Y7) -> 1 | AA7: =Z7/(AB4-Z25) -> 0.04 | AB7: =IF(AA7=0,0,(AA7*((LOG(AA7))/LOG(2)))) -> -0.1857542476 | AD7: =N7 -> 11111 | AE7: =COUNTIF(L58:L83,AD7) -> 2 | AF7: =AE7/(AG4-AE25) -> 0.07692307692 | AG7: =IF(AF7=0,0,(AF7*((LOG(AF7))/LOG(2)))) -> -0.2846492091 | AI7: =N7 -> 11111 | AJ7: =COUNTIF(L84:L109,AI7) -> 10 | AK7: =AJ7/(AL4-AJ25) -> 0.3846153846 | AL7: =IF(AK7=0,0,(AK7*((LOG(AK7))/LOG(2)))) -> -0.5301967782 | AN7: =N7 -> 11111 | AO7: =COUNTIF(L110:L134,AN7) -> 5 | AP7: =AO7/(AQ4-AO25) -> 0.2 | AQ7: =IF(AP7=0,0,(AP7*((LOG(AP7))/LOG(2)))) -> -0.464385619 | AS7: =N7 -> 11111 | AT7: =COUNTIF(L135:L160,AS7) -> 11 | AU7: =AT7/(AV4-AT25) -> 0.44 | AV7: =IF(AU7=0,0,(AU7*((LOG(AU7))/LOG(2)))) -> -0.5211468113
A8: 12 | B8: 160 | C8: 24 | D8: 173 | E8: 24 | F8: 189 | G8: 14 | H8: 239 | I8: 24 | J8: 249 | K8: 0 | L8: 12212 | N8: 11112 | O8: =COUNTIF($L$7:$L$500,N8) -> 16 | P8: =O8/$Q$4 -> 0.1045751634 | Q8: =IF(P8=0,0,(P8*((LOG(P8))/LOG(2)))) -> -0.3406418659 | T8: =N8 -> 11112 | U8: =COUNTIF(L7:L32,T8) -> 0 | V8: =U8/(W4-U25) -> 0 | W8: =IF(V8=0,0,(V8*((LOG(V8))/LOG(2)))) -> 0 | Y8: =N8 -> 11112 | Z8: =COUNTIF(L33:L57,Y8) -> 1 | AA8: =Z8/(AB4-Z25) -> 0.04 | AB8: =IF(AA8=0,0,(AA8*((LOG(AA8))/LOG(2)))) -> -0.1857542476 | AD8: =N8 -> 11112 | AE8: =COUNTIF(L58:L83,AD8) -> 2 | AF8: =AE8/(AG4-AE25) -> 0.07692307692 | AG8: =IF(AF8=0,0,(AF8*((LOG(AF8))/LOG(2)))) -> -0.2846492091 | AI8: =N8 -> 11112 | AJ8: =COUNTIF(L84:L109,AI8) -> 4 | AK8: =AJ8/(AL4-AJ25) -> 0.1538461538 | AL8: =IF(AK8=0,0,(AK8*((LOG(AK8))/LOG(2)))) -> -0.4154522643 | AN8: =N8 -> 11112 | AO8: =COUNTIF(L110:L134,AN8) -> 5 | AP8: =AO8/(AQ4-AO25) -> 0.2 | AQ8: =IF(AP8=0,0,(AP8*((LOG(AP8))/LOG(2)))) -> -0.464385619 | AS8: =N8 -> 11112 | AT8: =COUNTIF(L135:L160,AS8) -> 4 | AU8: =AT8/(AV4-AT25) -> 0.16 | AV8: =IF(AU8=0,0,(AU8*((LOG(AU8))/LOG(2)))) -> -0.4230169904
A9: 12 | B9: 349 | C9: 24 | D9: 363 | E9: 24 | F9: 377 | G9: 23 | H9: 388 | I9: 13 | J9: 425 | K9: 0 | L9: 12221 | N9: 11121 | O9: =COUNTIF($L$7:$L$500,N9) -> 0 | P9: =O9/$Q$4 -> 0 | Q9: =IF(P9=0,0,(P9*((LOG(P9))/LOG(2)))) -> 0 | T9: =N9 -> 11121 | U9: =COUNTIF(L7:L32,T9) -> 0 | V9: =U9/(W4-U25) -> 0 | W9: =IF(V9=0,0,(V9*((LOG(V9))/LOG(2)))) -> 0 | Y9: =N9 -> 11121 | Z9: =COUNTIF(L33:L57,Y9) -> 0 | AA9: =Z9/(AB4-Z25) -> 0 | AB9: =IF(AA9=0,0,(AA9*((LOG(AA9))/LOG(2)))) -> 0 | AD9: =N9 -> 11121 | AE9: =COUNTIF(L58:L83,AD9) -> 0 | AF9: =AE9/(AG4-AE25) -> 0 | AG9: =IF(AF9=0,0,(AF9*((LOG(AF9))/LOG(2)))) -> 0 | AI9: =N9 -> 11121 | AJ9: =COUNTIF(L84:L109,AI9) -> 0 | AK9: =AJ9/(AL4-AJ25) -> 0 | AL9: =IF(AK9=0,0,(AK9*((LOG(AK9))/LOG(2)))) -> 0 | AN9: =N9 -> 11121 | AO9: =COUNTIF(L110:L134,AN9) -> 0 | AP9: =AO9/(AQ4-AO25) -> 0 | AQ9: =IF(AP9=0,0,(AP9*((LOG(AP9))/LOG(2)))) -> 0 | AS9: =N9 -> 11121 | AT9: =COUNTIF(L135:L160,AS9) -> 0 | AU9: =AT9/(AV4-AT25) -> 0 | AV9: =IF(AU9=0,0,(AU9*((LOG(AU9))/LOG(2)))) -> 0
A10: 12 | B10: 533 | C10: 24 | D10: 551 | E10: 24 | F10: 565 | G10: 23 | H10: 574 | I10: 13 | J10: 604 | K10: 0 | L10: 12221 | N10: 11122 | O10: =COUNTIF($L$7:$L$500,N10) -> 25 | P10: =O10/$Q$4 -> 0.1633986928 | Q10: =IF(P10=0,0,(P10*((LOG(P10))/LOG(2)))) -> -0.4270476557 | T10: =N10 -> 11122 | U10: =COUNTIF(L7:L32,T10) -> 0 | V10: =U10/(W4-U25) -> 0 | W10: =IF(V10=0,0,(V10*((LOG(V10))/LOG(2)))) -> 0 | Y10: =N10 -> 11122 | Z10: =COUNTIF(L33:L57,Y10) -> 3 | AA10: =Z10/(AB4-Z25) -> 0.12 | AB10: =IF(AA10=0,0,(AA10*((LOG(AA10))/LOG(2)))) -> -0.3670672427 | AD10: =N10 -> 11122 | AE10: =COUNTIF(L58:L83,AD10) -> 7 | AF10: =AE10/(AG4-AE25) -> 0.2692307692 | AG10: =IF(AF10=0,0,(AF10*((LOG(AF10))/LOG(2)))) -> -0.5096766759 | AI10: =N10 -> 11122 | AJ10: =COUNTIF(L84:L109,AI10) -> 6 | AK10: =AJ10/(AL4-AJ25) -> 0.2307692308 | AL10: =IF(AK10=0,0,(AK10*((LOG(AK10))/LOG(2)))) -> -0.4881870502 | AN10: =N10 -> 11122 | AO10: =COUNTIF(L110:L134,AN10) -> 5 | AP10: =AO10/(AQ4-AO25) -> 0.2 | AQ10: =IF(AP10=0,0,(AP10*((LOG(AP10))/LOG(2)))) -> -0.464385619 | AS10: =N10 -> 11122 | AT10: =COUNTIF(L135:L160,AS10) -> 4 | AU10: =AT10/(AV4-AT25) -> 0.16 | AV10: =IF(AU10=0,0,(AU10*((LOG(AU10))/LOG(2)))) -> -0.4230169904
A11: 12 | B11: 708 | C11: 24 | D11: 719 | E11: 24 | F11: 733 | G11: 14 | H11: 753 | I11: 24 | J11: 768 | K11: 1 | L11: 12212 | N11: 11211 | O11: =COUNTIF($L$7:$L$500,N11) -> 0 | P11: =O11/$Q$4 -> 0 | Q11: =IF(P11=0,0,(P11*((LOG(P11))/LOG(2)))) -> 0 | T11: =N11 -> 11211 | U11: =COUNTIF(L7:L32,T11) -> 0 | V11: =U11/(W4-U25) -> 0 | W11: =IF(V11=0,0,(V11*((LOG(V11))/LOG(2)))) -> 0 | Y11: =N11 -> 11211 | Z11: =COUNTIF(L33:L57,Y11) -> 0 | AA11: =Z11/(AB4-Z25) -> 0 | AB11: =IF(AA11=0,0,(AA11*((LOG(AA11))/LOG(2)))) -> 0 | AD11: =N11 -> 11211 | AE11: =COUNTIF(L58:L83,AD11) -> 0 | AF11: =AE11/(AG4-AE25) -> 0 | AG11: =IF(AF11=0,0,(AF11*((LOG(AF11))/LOG(2)))) -> 0 | AI11: =N11 -> 11211 | AJ11: =COUNTIF(L84:L109,AI11) -> 0 | AK11: =AJ11/(AL4-AJ25) -> 0 | AL11: =IF(AK11=0,0,(AK11*((LOG(AK11))/LOG(2)))) -> 0 | AN11: =N11 -> 11211 | AO11: =COUNTIF(L110:L134,AN11) -> 0 | AP11: =AO11/(AQ4-AO25) -> 0 | AQ11: =IF(AP11=0,0,(AP11*((LOG(AP11))/LOG(2)))) -> 0 | AS11: =N11 -> 11211 | AT11: =COUNTIF(L135:L160,AS11) -> 0 | AU11: =AT11/(AV4-AT25) -> 0 | AV11: =IF(AU11=0,0,(AU11*((LOG(AU11))/LOG(2)))) -> 0
A12: 12 | B12: 869 | C12: 24 | D12: 879 | E12: 24 | F12: 887 | G12: 14 | H12: 906 | I12: 24 | J12: 917 | K12: 0 | L12: 12212 | N12: 11212 | O12: =COUNTIF($L$7:$L$500,N12) -> 0 | P12: =O12/$Q$4 -> 0 | Q12: =IF(P12=0,0,(P12*((LOG(P12))/LOG(2)))) -> 0 | T12: =N12 -> 11212 | U12: =COUNTIF(L7:L32,T12) -> 0 | V12: =U12/(W4-U25) -> 0 | W12: =IF(V12=0,0,(V12*((LOG(V12))/LOG(2)))) -> 0 | Y12: =N12 -> 11212 | Z12: =COUNTIF(L33:L57,Y12) -> 0 | AA12: =Z12/(AB4-Z25) -> 0 | AB12: =IF(AA12=0,0,(AA12*((LOG(AA12))/LOG(2)))) -> 0 | AD12: =N12 -> 11212 | AE12: =COUNTIF(L58:L83,AD12) -> 0 | AF12: =AE12/(AG4-AE25) -> 0 | AG12: =IF(AF12=0,0,(AF12*((LOG(AF12))/LOG(2)))) -> 0 | AI12: =N12 -> 11212 | AJ12: =COUNTIF(L84:L109,AI12) -> 0 | AK12: =AJ12/(AL4-AJ25) -> 0 | AL12: =IF(AK12=0,0,(AK12*((LOG(AK12))/LOG(2)))) -> 0 | AN12: =N12 -> 11212 | AO12: =COUNTIF(L110:L134,AN12) -> 0 | AP12: =AO12/(AQ4-AO25) -> 0 | AQ12: =IF(AP12=0,0,(AP12*((LOG(AP12))/LOG(2)))) -> 0 | AS12: =N12 -> 11212 | AT12: =COUNTIF(L135:L160,AS12) -> 0 | AU12: =AT12/(AV4-AT25) -> 0 | AV12: =IF(AU12=0,0,(AU12*((LOG(AU12))/LOG(2)))) -> 0
A13: 21 | B13: 1031 | C13: 22 | D13: 1039 | E13: 24 | F13: 1075 | G13: 23 | H13: 1084 | I13: 24 | J13: 1092 | K13: 0 | L13: 22222 | N13: 11221 | O13: =COUNTIF($L$7:$L$500,N13) -> 0 | P13: =O13/$Q$4 -> 0 | Q13: =IF(P13=0,0,(P13*((LOG(P13))/LOG(2)))) -> 0 | T13: =N13 -> 11221 | U13: =COUNTIF(L7:L32,T13) -> 0 | V13: =U13/(W4-U25) -> 0 | W13: =IF(V13=0,0,(V13*((LOG(V13))/LOG(2)))) -> 0 | Y13: =N13 -> 11221 | Z13: =COUNTIF(L33:L57,Y13) -> 0 | AA13: =Z13/(AB4-Z25) -> 0 | AB13: =IF(AA13=0,0,(AA13*((LOG(AA13))/LOG(2)))) -> 0 | AD13: =N13 -> 11221 | AE13: =COUNTIF(L58:L83,AD13) -> 0 | AF13: =AE13/(AG4-AE25) -> 0 | AG13: =IF(AF13=0,0,(AF13*((LOG(AF13))/LOG(2)))) -> 0 | AI13: =N13 -> 11221 | AJ13: =COUNTIF(L84:L109,AI13) -> 0 | AK13: =AJ13/(AL4-AJ25) -> 0 | AL13: =IF(AK13=0,0,(AK13*((LOG(AK13))/LOG(2)))) -> 0 | AN13: =N13 -> 11221 | AO13: =COUNTIF(L110:L134,AN13) -> 0 | AP13: =AO13/(AQ4-AO25) -> 0 | AQ13: =IF(AP13=0,0,(AP13*((LOG(AP13))/LOG(2)))) -> 0 | AS13: =N13 -> 11221 | AT13: =COUNTIF(L135:L160,AS13) -> 0 | AU13: =AT13/(AV4-AT25) -> 0 | AV13: =IF(AU13=0,0,(AU13*((LOG(AU13))/LOG(2)))) -> 0
A14: 12 | B14: 1198 | C14: 24 | D14: 1212 | E14: 24 | F14: 1228 | G14: 14 | H14: 1255 | I14: 24 | J14: 1286 | K14: 0 | L14: 12212 | N14: 11222 | O14: =COUNTIF($L$7:$L$500,N14) -> 40 | P14: =O14/$Q$4 -> 0.2614379085 | Q14: =IF(P14=0,0,(P14*((LOG(P14))/LOG(2)))) -> -0.5060025484 | T14: =N14 -> 11222 | U14: =COUNTIF(L7:L32,T14) -> 2 | V14: =U14/(W4-U25) -> 0.07692307692 | W14: =IF(V14=0,0,(V14*((LOG(V14))/LOG(2)))) -> -0.2846492091 | Y14: =N14 -> 11222 | Z14: =COUNTIF(L33:L57,Y14) -> 7 | AA14: =Z14/(AB4-Z25) -> 0.28 | AB14: =IF(AA14=0,0,(AA14*((LOG(AA14))/LOG(2)))) -> -0.514220355 | AD14: =N14 -> 11222 | AE14: =COUNTIF(L58:L83,AD14) -> 12 | AF14: =AE14/(AG4-AE25) -> 0.4615384615 | AG14: =IF(AF14=0,0,(AF14*((LOG(AF14))/LOG(2)))) -> -0.5148356388 | AI14: =N14 -> 11222 | AJ14: =COUNTIF(L84:L109,AI14) -> 6 | AK14: =AJ14/(AL4-AJ25) -> 0.2307692308 | AL14: =IF(AK14=0,0,(AK14*((LOG(AK14))/LOG(2)))) -> -0.4881870502 | AN14: =N14 -> 11222 | AO14: =COUNTIF(L110:L134,AN14) -> 9 | AP14: =AO14/(AQ4-AO25) -> 0.36 | AQ14: =IF(AP14=0,0,(AP14*((LOG(AP14))/LOG(2)))) -> -0.5306152278 | AS14: =N14 -> 11222 | AT14: =COUNTIF(L135:L160,AS14) -> 4 | AU14: =AT14/(AV4-AT25) -> 0.16 | AV14: =IF(AU14=0,0,(AU14*((LOG(AU14))/LOG(2)))) -> -0.4230169904
A15: 12 | B15: 1389 | C15: 24 | D15: 1398 | E15: 24 | F15: 1412 | G15: 23 | H15: 1420 | I15: 13 | J15: 1437 | K15: 0 | L15: 12221 | N15: 12111 | O15: =COUNTIF($L$7:$L$500,N15) -> 1 | P15: =O15/$Q$4 -> 0.006535947712 | Q15: =IF(P15=0,0,(P15*((LOG(P15))/LOG(2)))) -> -0.04743390747 | T15: =N15 -> 12111 | U15: =COUNTIF(L7:L32,T15) -> 1 | V15: =U15/(W4-U25) -> 0.03846153846 | W15: =IF(V15=0,0,(V15*((LOG(V15))/LOG(2)))) -> -0.180786143 | Y15: =N15 -> 12111 | Z15: =COUNTIF(L33:L57,Y15) -> 0 | AA15: =Z15/(AB4-Z25) -> 0 | AB15: =IF(AA15=0,0,(AA15*((LOG(AA15))/LOG(2)))) -> 0 | AD15: =N15 -> 12111 | AE15: =COUNTIF(L58:L83,AD15) -> 0 | AF15: =AE15/(AG4-AE25) -> 0 | AG15: =IF(AF15=0,0,(AF15*((LOG(AF15))/LOG(2)))) -> 0 | AI15: =N15 -> 12111 | AJ15: =COUNTIF(L84:L109,AI15) -> 0 | AK15: =AJ15/(AL4-AJ25) -> 0 | AL15: =IF(AK15=0,0,(AK15*((LOG(AK15))/LOG(2)))) -> 0 | AN15: =N15 -> 12111 | AO15: =COUNTIF(L110:L134,AN15) -> 0 | AP15: =AO15/(AQ4-AO25) -> 0 | AQ15: =IF(AP15=0,0,(AP15*((LOG(AP15))/LOG(2)))) -> 0 | AS15: =N15 -> 12111 | AT15: =COUNTIF(L135:L160,AS15) -> 0 | AU15: =AT15/(AV4-AT25) -> 0 | AV15: =IF(AU15=0,0,(AU15*((LOG(AU15))/LOG(2)))) -> 0
A16: 12 | B16: 1538 | C16: 24 | D16: 1548 | E16: 24 | F16: 1556 | G16: 23 | H16: 1564 | I16: 24 | J16: 1578 | K16: 1 | L16: 12222 | N16: 12112 | O16: =COUNTIF($L$7:$L$500,N16) -> 1 | P16: =O16/$Q$4 -> 0.006535947712 | Q16: =IF(P16=0,0,(P16*((LOG(P16))/LOG(2)))) -> -0.04743390747 | T16: =N16 -> 12112 | U16: =COUNTIF(L7:L32,T16) -> 1 | V16: =U16/(W4-U25) -> 0.03846153846 | W16: =IF(V16=0,0,(V16*((LOG(V16))/LOG(2)))) -> -0.180786143 | Y16: =N16 -> 12112 | Z16: =COUNTIF(L33:L57,Y16) -> 0 | AA16: =Z16/(AB4-Z25) -> 0 | AB16: =IF(AA16=0,0,(AA16*((LOG(AA16))/LOG(2)))) -> 0 | AD16: =N16 -> 12112 | AE16: =COUNTIF(L58:L83,AD16) -> 0 | AF16: =AE16/(AG4-AE25) -> 0 | AG16: =IF(AF16=0,0,(AF16*((LOG(AF16))/LOG(2)))) -> 0 | AI16: =N16 -> 12112 | AJ16: =COUNTIF(L84:L109,AI16) -> 0 | AK16: =AJ16/(AL4-AJ25) -> 0 | AL16: =IF(AK16=0,0,(AK16*((LOG(AK16))/LOG(2)))) -> 0 | AN16: =N16 -> 12112 | AO16: =COUNTIF(L110:L134,AN16) -> 0 | AP16: =AO16/(AQ4-AO25) -> 0 | AQ16: =IF(AP16=0,0,(AP16*((LOG(AP16))/LOG(2)))) -> 0 | AS16: =N16 -> 12112 | AT16: =COUNTIF(L135:L160,AS16) -> 0 | AU16: =AT16/(AV4-AT25) -> 0 | AV16: =IF(AU16=0,0,(AU16*((LOG(AU16))/LOG(2)))) -> 0
A17: 21 | B17: 1683 | C17: 22 | D17: 1696 | E17: 13 | F17: 1715 | G17: 23 | H17: 1742 | I17: 13 | J17: 1771 | K17: 0 | L17: 22121 | N17: 12121 | O17: =COUNTIF($L$7:$L$500,N17) -> 0 | P17: =O17/$Q$4 -> 0 | Q17: =IF(P17=0,0,(P17*((LOG(P17))/LOG(2)))) -> 0 | T17: =N17 -> 12121 | U17: =COUNTIF(L7:L32,T17) -> 0 | V17: =U17/(W4-U25) -> 0 | W17: =IF(V17=0,0,(V17*((LOG(V17))/LOG(2)))) -> 0 | Y17: =N17 -> 12121 | Z17: =COUNTIF(L33:L57,Y17) -> 0 | AA17: =Z17/(AB4-Z25) -> 0 | AB17: =IF(AA17=0,0,(AA17*((LOG(AA17))/LOG(2)))) -> 0 | AD17: =N17 -> 12121 | AE17: =COUNTIF(L58:L83,AD17) -> 0 | AF17: =AE17/(AG4-AE25) -> 0 | AG17: =IF(AF17=0,0,(AF17*((LOG(AF17))/LOG(2)))) -> 0 | AI17: =N17 -> 12121 | AJ17: =COUNTIF(L84:L109,AI17) -> 0 | AK17: =AJ17/(AL4-AJ25) -> 0 | AL17: =IF(AK17=0,0,(AK17*((LOG(AK17))/LOG(2)))) -> 0 | AN17: =N17 -> 12121 | AO17: =COUNTIF(L110:L134,AN17) -> 0 | AP17: =AO17/(AQ4-AO25) -> 0 | AQ17: =IF(AP17=0,0,(AP17*((LOG(AP17))/LOG(2)))) -> 0 | AS17: =N17 -> 12121 | AT17: =COUNTIF(L135:L160,AS17) -> 0 | AU17: =AT17/(AV4-AT25) -> 0 | AV17: =IF(AU17=0,0,(AU17*((LOG(AU17))/LOG(2)))) -> 0
A18: 12 | B18: 1878 | C18: 24 | D18: 1891 | E18: 24 | F18: 1904 | G18: 14 | H18: 1948 | I18: 24 | J18: 1960 | K18: 0 | L18: 12212 | N18: 12122 | O18: =COUNTIF($L$7:$L$500,N18) -> 1 | P18: =O18/$Q$4 -> 0.006535947712 | Q18: =IF(P18=0,0,(P18*((LOG(P18))/LOG(2)))) -> -0.04743390747 | T18: =N18 -> 12122 | U18: =COUNTIF(L7:L32,T18) -> 1 | V18: =U18/(W4-U25) -> 0.03846153846 | W18: =IF(V18=0,0,(V18*((LOG(V18))/LOG(2)))) -> -0.180786143 | Y18: =N18 -> 12122 | Z18: =COUNTIF(L33:L57,Y18) -> 0 | AA18: =Z18/(AB4-Z25) -> 0 | AB18: =IF(AA18=0,0,(AA18*((LOG(AA18))/LOG(2)))) -> 0 | AD18: =N18 -> 12122 | AE18: =COUNTIF(L58:L83,AD18) -> 0 | AF18: =AE18/(AG4-AE25) -> 0 | AG18: =IF(AF18=0,0,(AF18*((LOG(AF18))/LOG(2)))) -> 0 | AI18: =N18 -> 12122 | AJ18: =COUNTIF(L84:L109,AI18) -> 0 | AK18: =AJ18/(AL4-AJ25) -> 0 | AL18: =IF(AK18=0,0,(AK18*((LOG(AK18))/LOG(2)))) -> 0 | AN18: =N18 -> 12122 | AO18: =COUNTIF(L110:L134,AN18) -> 0 | AP18: =AO18/(AQ4-AO25) -> 0 | AQ18: =IF(AP18=0,0,(AP18*((LOG(AP18))/LOG(2)))) -> 0 | AS18: =N18 -> 12122 | AT18: =COUNTIF(L135:L160,AS18) -> 0 | AU18: =AT18/(AV4-AT25) -> 0 | AV18: =IF(AU18=0,0,(AU18*((LOG(AU18))/LOG(2)))) -> 0
A19: 12 | B19: 2067 | C19: 24 | D19: 2081 | E19: 13 | F19: 2117 | G19: 23 | H19: 2138 | I19: 24 | J19: 2156 | K19: 0 | L19: 12122 | N19: 12211 | O19: =COUNTIF($L$7:$L$500,N19) -> 0 | P19: =O19/$Q$4 -> 0 | Q19: =IF(P19=0,0,(P19*((LOG(P19))/LOG(2)))) -> 0 | T19: =N19 -> 12211 | U19: =COUNTIF(L7:L32,T19) -> 0 | V19: =U19/(W4-U25) -> 0 | W19: =IF(V19=0,0,(V19*((LOG(V19))/LOG(2)))) -> 0 | Y19: =N19 -> 12211 | Z19: =COUNTIF(L33:L57,Y19) -> 0 | AA19: =Z19/(AB4-Z25) -> 0 | AB19: =IF(AA19=0,0,(AA19*((LOG(AA19))/LOG(2)))) -> 0 | AD19: =N19 -> 12211 | AE19: =COUNTIF(L58:L83,AD19) -> 0 | AF19: =AE19/(AG4-AE25) -> 0 | AG19: =IF(AF19=0,0,(AF19*((LOG(AF19))/LOG(2)))) -> 0 | AI19: =N19 -> 12211 | AJ19: =COUNTIF(L84:L109,AI19) -> 0 | AK19: =AJ19/(AL4-AJ25) -> 0 | AL19: =IF(AK19=0,0,(AK19*((LOG(AK19))/LOG(2)))) -> 0 | AN19: =N19 -> 12211 | AO19: =COUNTIF(L110:L134,AN19) -> 0 | AP19: =AO19/(AQ4-AO25) -> 0 | AQ19: =IF(AP19=0,0,(AP19*((LOG(AP19))/LOG(2)))) -> 0 | AS19: =N19 -> 12211 | AT19: =COUNTIF(L135:L160,AS19) -> 0 | AU19: =AT19/(AV4-AT25) -> 0 | AV19: =IF(AU19=0,0,(AU19*((LOG(AU19))/LOG(2)))) -> 0
A20: 12 | B20: 2261 | C20: 24 | D20: 2274 | E20: 24 | F20: 2289 | G20: 23 | H20: 2308 | I20: 24 | J20: 2313 | K20: 1 | L20: 12222 | N20: 12212 | O20: =COUNTIF($L$7:$L$500,N20) -> 5 | P20: =O20/$Q$4 -> 0.03267973856 | Q20: =IF(P20=0,0,(P20*((LOG(P20))/LOG(2)))) -> -0.1612895342 | T20: =N20 -> 12212 | U20: =COUNTIF(L7:L32,T20) -> 5 | V20: =U20/(W4-U25) -> 0.1923076923 | W20: =IF(V20=0,0,(V20*((LOG(V20))/LOG(2)))) -> -0.4574060814 | Y20: =N20 -> 12212 | Z20: =COUNTIF(L33:L57,Y20) -> 0 | AA20: =Z20/(AB4-Z25) -> 0 | AB20: =IF(AA20=0,0,(AA20*((LOG(AA20))/LOG(2)))) -> 0 | AD20: =N20 -> 12212 | AE20: =COUNTIF(L58:L83,AD20) -> 0 | AF20: =AE20/(AG4-AE25) -> 0 | AG20: =IF(AF20=0,0,(AF20*((LOG(AF20))/LOG(2)))) -> 0 | AI20: =N20 -> 12212 | AJ20: =COUNTIF(L84:L109,AI20) -> 0 | AK20: =AJ20/(AL4-AJ25) -> 0 | AL20: =IF(AK20=0,0,(AK20*((LOG(AK20))/LOG(2)))) -> 0 | AN20: =N20 -> 12212 | AO20: =COUNTIF(L110:L134,AN20) -> 0 | AP20: =AO20/(AQ4-AO25) -> 0 | AQ20: =IF(AP20=0,0,(AP20*((LOG(AP20))/LOG(2)))) -> 0 | AS20: =N20 -> 12212 | AT20: =COUNTIF(L135:L160,AS20) -> 0 | AU20: =AT20/(AV4-AT25) -> 0 | AV20: =IF(AU20=0,0,(AU20*((LOG(AU20))/LOG(2)))) -> 0
A21: 12 | B21: 2422 | C21: 24 | D21: 2444 | E21: 24 | F21: 2456 | G21: 23 | H21: 2464 | I21: 24 | J21: 2485 | K21: 0 | L21: 12222 | N21: 12221 | O21: =COUNTIF($L$7:$L$500,N21) -> 4 | P21: =O21/$Q$4 -> 0.02614379085 | Q21: =IF(P21=0,0,(P21*((LOG(P21))/LOG(2)))) -> -0.1374480482 | T21: =N21 -> 12221 | U21: =COUNTIF(L7:L32,T21) -> 3 | V21: =U21/(W4-U25) -> 0.1153846154 | W21: =IF(V21=0,0,(V21*((LOG(V21))/LOG(2)))) -> -0.3594781405 | Y21: =N21 -> 12221 | Z21: =COUNTIF(L33:L57,Y21) -> 1 | AA21: =Z21/(AB4-Z25) -> 0.04 | AB21: =IF(AA21=0,0,(AA21*((LOG(AA21))/LOG(2)))) -> -0.1857542476 | AD21: =N21 -> 12221 | AE21: =COUNTIF(L58:L83,AD21) -> 0 | AF21: =AE21/(AG4-AE25) -> 0 | AG21: =IF(AF21=0,0,(AF21*((LOG(AF21))/LOG(2)))) -> 0 | AI21: =N21 -> 12221 | AJ21: =COUNTIF(L84:L109,AI21) -> 0 | AK21: =AJ21/(AL4-AJ25) -> 0 | AL21: =IF(AK21=0,0,(AK21*((LOG(AK21))/LOG(2)))) -> 0 | AN21: =N21 -> 12221 | AO21: =COUNTIF(L110:L134,AN21) -> 0 | AP21: =AO21/(AQ4-AO25) -> 0 | AQ21: =IF(AP21=0,0,(AP21*((LOG(AP21))/LOG(2)))) -> 0 | AS21: =N21 -> 12221 | AT21: =COUNTIF(L135:L160,AS21) -> 0 | AU21: =AT21/(AV4-AT25) -> 0 | AV21: =IF(AU21=0,0,(AU21*((LOG(AU21))/LOG(2)))) -> 0
A22: 12 | B22: 2586 | C22: 24 | D22: 2597 | E22: 24 | F22: 2604 | G22: 23 | H22: 2613 | I22: 24 | J22: 2622 | K22: 0 | L22: 12222 | N22: 12222 | O22: =COUNTIF($L$7:$L$500,N22) -> 27 | P22: =O22/$Q$4 -> 0.1764705882 | Q22: =IF(P22=0,0,(P22*((LOG(P22))/LOG(2)))) -> -0.4416177072 | T22: =N22 -> 12222 | U22: =COUNTIF(L7:L32,T22) -> 11 | V22: =U22/(W4-U25) -> 0.4230769231 | W22: =IF(V22=0,0,(V22*((LOG(V22))/LOG(2)))) -> -0.5250418883 | Y22: =N22 -> 12222 | Z22: =COUNTIF(L33:L57,Y22) -> 11 | AA22: =Z22/(AB4-Z25) -> 0.44 | AB22: =IF(AA22=0,0,(AA22*((LOG(AA22))/LOG(2)))) -> -0.5211468113 | AD22: =N22 -> 12222 | AE22: =COUNTIF(L58:L83,AD22) -> 3 | AF22: =AE22/(AG4-AE25) -> 0.1153846154 | AG22: =IF(AF22=0,0,(AF22*((LOG(AF22))/LOG(2)))) -> -0.3594781405 | AI22: =N22 -> 12222 | AJ22: =COUNTIF(L84:L109,AI22) -> 0 | AK22: =AJ22/(AL4-AJ25) -> 0 | AL22: =IF(AK22=0,0,(AK22*((LOG(AK22))/LOG(2)))) -> 0 | AN22: =N22 -> 12222 | AO22: =COUNTIF(L110:L134,AN22) -> 1 | AP22: =AO22/(AQ4-AO25) -> 0.04 | AQ22: =IF(AP22=0,0,(AP22*((LOG(AP22))/LOG(2)))) -> -0.1857542476 | AS22: =N22 -> 12222 | AT22: =COUNTIF(L135:L160,AS22) -> 1 | AU22: =AT22/(AV4-AT25) -> 0.04 | AV22: =IF(AU22=0,0,(AU22*((LOG(AU22))/LOG(2)))) -> -0.1857542476
A23: 12 | B23: 2748 | C23: 24 | D23: 2766 | E23: 13 | F23: 2791 | G23: 14 | H23: 2799 | I23: 13 | J23: 2813 | K23: 0 | L23: 12111 | N23: 21111 | O23: =COUNTIF($L$7:$L$500,N23) -> 0 | P23: =O23/$Q$4 -> 0 | Q23: =IF(P23=0,0,(P23*((LOG(P23))/LOG(2)))) -> 0 | T23: =N23 -> 21111 | U23: =COUNTIF(L7:L32,T23) -> 0 | V23: =U23/(W4-U25) -> 0 | W23: =IF(V23=0,0,(V23*((LOG(V23))/LOG(2)))) -> 0 | Y23: =N23 -> 21111 | Z23: =COUNTIF(L33:L57,Y23) -> 0 | AA23: =Z23/(AB4-Z25) -> 0 | AB23: =IF(AA23=0,0,(AA23*((LOG(AA23))/LOG(2)))) -> 0 | AD23: =N23 -> 21111 | AE23: =COUNTIF(L58:L83,AD23) -> 0 | AF23: =AE23/(AG4-AE25) -> 0 | AG23: =IF(AF23=0,0,(AF23*((LOG(AF23))/LOG(2)))) -> 0 | AI23: =N23 -> 21111 | AJ23: =COUNTIF(L84:L109,AI23) -> 0 | AK23: =AJ23/(AL4-AJ25) -> 0 | AL23: =IF(AK23=0,0,(AK23*((LOG(AK23))/LOG(2)))) -> 0 | AN23: =N23 -> 21111 | AO23: =COUNTIF(L110:L134,AN23) -> 0 | AP23: =AO23/(AQ4-AO25) -> 0 | AQ23: =IF(AP23=0,0,(AP23*((LOG(AP23))/LOG(2)))) -> 0 | AS23: =N23 -> 21111 | AT23: =COUNTIF(L135:L160,AS23) -> 0 | AU23: =AT23/(AV4-AT25) -> 0 | AV23: =IF(AU23=0,0,(AU23*((LOG(AU23))/LOG(2)))) -> 0
A24: 12 | B24: 2913 | C24: 24 | D24: 2924 | E24: 24 | F24: 2937 | G24: 23 | H24: 2946 | I24: 24 | J24: 2953 | K24: 0 | L24: 12222 | N24: 21112 | O24: =COUNTIF($L$7:$L$500,N24) -> 0 | P24: =O24/$Q$4 -> 0 | Q24: =IF(P24=0,0,(P24*((LOG(P24))/LOG(2)))) -> 0 | T24: =N24 -> 21112 | U24: =COUNTIF(L7:L32,T24) -> 0 | V24: =U24/(W4-U25) -> 0 | W24: =IF(V24=0,0,(V24*((LOG(V24))/LOG(2)))) -> 0 | Y24: =N24 -> 21112 | Z24: =COUNTIF(L33:L57,Y24) -> 0 | AA24: =Z24/(AB4-Z25) -> 0 | AB24: =IF(AA24=0,0,(AA24*((LOG(AA24))/LOG(2)))) -> 0 | AD24: =N24 -> 21112 | AE24: =COUNTIF(L58:L83,AD24) -> 0 | AF24: =AE24/(AG4-AE25) -> 0 | AG24: =IF(AF24=0,0,(AF24*((LOG(AF24))/LOG(2)))) -> 0 | AI24: =N24 -> 21112 | AJ24: =COUNTIF(L84:L109,AI24) -> 0 | AK24: =AJ24/(AL4-AJ25) -> 0 | AL24: =IF(AK24=0,0,(AK24*((LOG(AK24))/LOG(2)))) -> 0 | AN24: =N24 -> 21112 | AO24: =COUNTIF(L110:L134,AN24) -> 0 | AP24: =AO24/(AQ4-AO25) -> 0 | AQ24: =IF(AP24=0,0,(AP24*((LOG(AP24))/LOG(2)))) -> 0 | AS24: =N24 -> 21112 | AT24: =COUNTIF(L135:L160,AS24) -> 0 | AU24: =AT24/(AV4-AT25) -> 0 | AV24: =IF(AU24=0,0,(AU24*((LOG(AU24))/LOG(2)))) -> 0
A25: 12 | B25: 3078 | C25: 24 | D25: 3092 | E25: 24 | F25: 3101 | G25: 23 | H25: 3114 | I25: 24 | J25: 3124 | K25: 0 | L25: 12222 | N25: 21121 | O25: =COUNTIF($L$7:$L$500,N25) -> 0 | P25: =O25/$Q$4 -> 0 | Q25: =IF(P25=0,0,(P25*((LOG(P25))/LOG(2)))) -> 0 | T25: =N25 -> 21121 | U25: =COUNTIF(L7:L32,T25) -> 0 | Y25: =N25 -> 21121 | Z25: =COUNTIF(L33:L57,Y25) -> 0 | AD25: =N25 -> 21121 | AE25: =COUNTIF(L58:L83,AD25) -> 0 | AI25: =N25 -> 21121 | AJ25: =COUNTIF(L84:L109,AI25) -> 0 | AN25: =N25 -> 21121 | AO25: =COUNTIF(L110:L134,AN25) -> 0 | AS25: =N25 -> 21121 | AT25: =COUNTIF(L135:L160,AS25) -> 0
A26: 12 | B26: 3227 | C26: 24 | D26: 3242 | E26: 24 | F26: 3254 | G26: 23 | H26: 3263 | I26: 24 | J26: 3272 | K26: 1 | L26: 12222 | N26: 21122 | O26: =COUNTIF($L$7:$L$500,N26) -> 0 | P26: =O26/$Q$4 -> 0 | Q26: =IF(P26=0,0,(P26*((LOG(P26))/LOG(2)))) -> 0 | T26: =N26 -> 21122 | U26: =COUNTIF(L7:L32,T26) -> 0 | V26: =U26/(W4-U25) -> 0 | W26: =IF(V26=0,0,(V26*((LOG(V26))/LOG(2)))) -> 0 | Y26: =N26 -> 21122 | Z26: =COUNTIF(L33:L57,Y26) -> 0 | AA26: =Z26/(AB4-Z25) -> 0 | AB26: =IF(AA26=0,0,(AA26*((LOG(AA26))/LOG(2)))) -> 0 | AD26: =N26 -> 21122 | AE26: =COUNTIF(L58:L83,AD26) -> 0 | AF26: =AE26/(AG4-AE25) -> 0 | AG26: =IF(AF26=0,0,(AF26*((LOG(AF26))/LOG(2)))) -> 0 | AI26: =N26 -> 21122 | AJ26: =COUNTIF(L84:L109,AI26) -> 0 | AK26: =AJ26/(AL4-AJ25) -> 0 | AL26: =IF(AK26=0,0,(AK26*((LOG(AK26))/LOG(2)))) -> 0 | AN26: =N26 -> 21122 | AO26: =COUNTIF(L110:L134,AN26) -> 0 | AP26: =AO26/(AQ4-AO25) -> 0 | AQ26: =IF(AP26=0,0,(AP26*((LOG(AP26))/LOG(2)))) -> 0 | AS26: =N26 -> 21122 | AT26: =COUNTIF(L135:L160,AS26) -> 0 | AU26: =AT26/(AV4-AT25) -> 0 | AV26: =IF(AU26=0,0,(AU26*((LOG(AU26))/LOG(2)))) -> 0
A27: 12 | B27: 3386 | C27: 24 | D27: 3401 | E27: 13 | F27: 3469 | G27: 14 | H27: 3479 | I27: 24 | J27: 3496 | K27: 0 | L27: 12112 | N27: 21211 | O27: =COUNTIF($L$7:$L$500,N27) -> 0 | P27: =O27/$Q$4 -> 0 | Q27: =IF(P27=0,0,(P27*((LOG(P27))/LOG(2)))) -> 0 | T27: =N27 -> 21211 | U27: =COUNTIF(L7:L32,T27) -> 0 | V27: =U27/(W4-U25) -> 0 | W27: =IF(V27=0,0,(V27*((LOG(V27))/LOG(2)))) -> 0 | Y27: =N27 -> 21211 | Z27: =COUNTIF(L33:L57,Y27) -> 0 | AA27: =Z27/(AB4-Z25) -> 0 | AB27: =IF(AA27=0,0,(AA27*((LOG(AA27))/LOG(2)))) -> 0 | AD27: =N27 -> 21211 | AE27: =COUNTIF(L58:L83,AD27) -> 0 | AF27: =AE27/(AG4-AE25) -> 0 | AG27: =IF(AF27=0,0,(AF27*((LOG(AF27))/LOG(2)))) -> 0 | AI27: =N27 -> 21211 | AJ27: =COUNTIF(L84:L109,AI27) -> 0 | AK27: =AJ27/(AL4-AJ25) -> 0 | AL27: =IF(AK27=0,0,(AK27*((LOG(AK27))/LOG(2)))) -> 0 | AN27: =N27 -> 21211 | AO27: =COUNTIF(L110:L134,AN27) -> 0 | AP27: =AO27/(AQ4-AO25) -> 0 | AQ27: =IF(AP27=0,0,(AP27*((LOG(AP27))/LOG(2)))) -> 0 | AS27: =N27 -> 21211 | AT27: =COUNTIF(L135:L160,AS27) -> 0 | AU27: =AT27/(AV4-AT25) -> 0 | AV27: =IF(AU27=0,0,(AU27*((LOG(AU27))/LOG(2)))) -> 0
A28: 12 | B28: 3599 | C28: 13 | D28: 3609 | E28: 24 | F28: 3629 | G28: 23 | H28: 3652 | I28: 24 | J28: 3659 | K28: 0 | L28: 11222 | N28: 21212 | O28: =COUNTIF($L$7:$L$500,N28) -> 0 | P28: =O28/$Q$4 -> 0 | Q28: =IF(P28=0,0,(P28*((LOG(P28))/LOG(2)))) -> 0 | T28: =N28 -> 21212 | U28: =COUNTIF(L7:L32,T28) -> 0 | V28: =U28/(W4-U25) -> 0 | W28: =IF(V28=0,0,(V28*((LOG(V28))/LOG(2)))) -> 0 | Y28: =N28 -> 21212 | Z28: =COUNTIF(L33:L57,Y28) -> 0 | AA28: =Z28/(AB4-Z25) -> 0 | AB28: =IF(AA28=0,0,(AA28*((LOG(AA28))/LOG(2)))) -> 0 | AD28: =N28 -> 21212 | AE28: =COUNTIF(L58:L83,AD28) -> 0 | AF28: =AE28/(AG4-AE25) -> 0 | AG28: =IF(AF28=0,0,(AF28*((LOG(AF28))/LOG(2)))) -> 0 | AI28: =N28 -> 21212 | AJ28: =COUNTIF(L84:L109,AI28) -> 0 | AK28: =AJ28/(AL4-AJ25) -> 0 | AL28: =IF(AK28=0,0,(AK28*((LOG(AK28))/LOG(2)))) -> 0 | AN28: =N28 -> 21212 | AO28: =COUNTIF(L110:L134,AN28) -> 0 | AP28: =AO28/(AQ4-AO25) -> 0 | AQ28: =IF(AP28=0,0,(AP28*((LOG(AP28))/LOG(2)))) -> 0 | AS28: =N28 -> 21212 | AT28: =COUNTIF(L135:L160,AS28) -> 0 | AU28: =AT28/(AV4-AT25) -> 0 | AV28: =IF(AU28=0,0,(AU28*((LOG(AU28))/LOG(2)))) -> 0
A29: 12 | B29: 3761 | C29: 13 | D29: 3773 | E29: 24 | F29: 3797 | G29: 23 | H29: 3807 | I29: 24 | J29: 3815 | K29: 0 | L29: 11222 | N29: 21221 | O29: =COUNTIF($L$7:$L$500,N29) -> 0 | P29: =O29/$Q$4 -> 0 | Q29: =IF(P29=0,0,(P29*((LOG(P29))/LOG(2)))) -> 0 | T29: =N29 -> 21221 | U29: =COUNTIF(L7:L32,T29) -> 0 | V29: =U29/(W4-U25) -> 0 | W29: =IF(V29=0,0,(V29*((LOG(V29))/LOG(2)))) -> 0 | Y29: =N29 -> 21221 | Z29: =COUNTIF(L33:L57,Y29) -> 0 | AA29: =Z29/(AB4-Z25) -> 0 | AB29: =IF(AA29=0,0,(AA29*((LOG(AA29))/LOG(2)))) -> 0 | AD29: =N29 -> 21221 | AE29: =COUNTIF(L58:L83,AD29) -> 0 | AF29: =AE29/(AG4-AE25) -> 0 | AG29: =IF(AF29=0,0,(AF29*((LOG(AF29))/LOG(2)))) -> 0 | AI29: =N29 -> 21221 | AJ29: =COUNTIF(L84:L109,AI29) -> 0 | AK29: =AJ29/(AL4-AJ25) -> 0 | AL29: =IF(AK29=0,0,(AK29*((LOG(AK29))/LOG(2)))) -> 0 | AN29: =N29 -> 21221 | AO29: =COUNTIF(L110:L134,AN29) -> 0 | AP29: =AO29/(AQ4-AO25) -> 0 | AQ29: =IF(AP29=0,0,(AP29*((LOG(AP29))/LOG(2)))) -> 0 | AS29: =N29 -> 21221 | AT29: =COUNTIF(L135:L160,AS29) -> 0 | AU29: =AT29/(AV4-AT25) -> 0 | AV29: =IF(AU29=0,0,(AU29*((LOG(AU29))/LOG(2)))) -> 0
A30: 12 | B30: 3916 | C30: 24 | D30: 3932 | E30: 24 | F30: 3939 | G30: 23 | H30: 3948 | I30: 24 | J30: 3956 | K30: 0 | L30: 12222 | N30: 21222 | O30: =COUNTIF($L$7:$L$500,N30) -> 0 | P30: =O30/$Q$4 -> 0 | Q30: =IF(P30=0,0,(P30*((LOG(P30))/LOG(2)))) -> 0 | T30: =N30 -> 21222 | U30: =COUNTIF(L7:L32,T30) -> 0 | V30: =U30/(W4-U25) -> 0 | W30: =IF(V30=0,0,(V30*((LOG(V30))/LOG(2)))) -> 0 | Y30: =N30 -> 21222 | Z30: =COUNTIF(L33:L57,Y30) -> 0 | AA30: =Z30/(AB4-Z25) -> 0 | AB30: =IF(AA30=0,0,(AA30*((LOG(AA30))/LOG(2)))) -> 0 | AD30: =N30 -> 21222 | AE30: =COUNTIF(L58:L83,AD30) -> 0 | AF30: =AE30/(AG4-AE25) -> 0 | AG30: =IF(AF30=0,0,(AF30*((LOG(AF30))/LOG(2)))) -> 0 | AI30: =N30 -> 21222 | AJ30: =COUNTIF(L84:L109,AI30) -> 0 | AK30: =AJ30/(AL4-AJ25) -> 0 | AL30: =IF(AK30=0,0,(AK30*((LOG(AK30))/LOG(2)))) -> 0 | AN30: =N30 -> 21222 | AO30: =COUNTIF(L110:L134,AN30) -> 0 | AP30: =AO30/(AQ4-AO25) -> 0 | AQ30: =IF(AP30=0,0,(AP30*((LOG(AP30))/LOG(2)))) -> 0 | AS30: =N30 -> 21222 | AT30: =COUNTIF(L135:L160,AS30) -> 0 | AU30: =AT30/(AV4-AT25) -> 0 | AV30: =IF(AU30=0,0,(AU30*((LOG(AU30))/LOG(2)))) -> 0
A31: 12 | B31: 4063 | C31: 24 | D31: 4079 | E31: 24 | F31: 4100 | G31: 23 | H31: 4108 | I31: 24 | J31: 4119 | K31: 0 | L31: 12222 | N31: 22111 | O31: =COUNTIF($L$7:$L$500,N31) -> 0 | P31: =O31/$Q$4 -> 0 | Q31: =IF(P31=0,0,(P31*((LOG(P31))/LOG(2)))) -> 0 | T31: =N31 -> 22111 | U31: =COUNTIF(L7:L32,T31) -> 0 | V31: =U31/(W4-U25) -> 0 | W31: =IF(V31=0,0,(V31*((LOG(V31))/LOG(2)))) -> 0 | Y31: =N31 -> 22111 | Z31: =COUNTIF(L33:L57,Y31) -> 0 | AA31: =Z31/(AB4-Z25) -> 0 | AB31: =IF(AA31=0,0,(AA31*((LOG(AA31))/LOG(2)))) -> 0 | AD31: =N31 -> 22111 | AE31: =COUNTIF(L58:L83,AD31) -> 0 | AF31: =AE31/(AG4-AE25) -> 0 | AG31: =IF(AF31=0,0,(AF31*((LOG(AF31))/LOG(2)))) -> 0 | AI31: =N31 -> 22111 | AJ31: =COUNTIF(L84:L109,AI31) -> 0 | AK31: =AJ31/(AL4-AJ25) -> 0 | AL31: =IF(AK31=0,0,(AK31*((LOG(AK31))/LOG(2)))) -> 0 | AN31: =N31 -> 22111 | AO31: =COUNTIF(L110:L134,AN31) -> 0 | AP31: =AO31/(AQ4-AO25) -> 0 | AQ31: =IF(AP31=0,0,(AP31*((LOG(AP31))/LOG(2)))) -> 0 | AS31: =N31 -> 22111 | AT31: =COUNTIF(L135:L160,AS31) -> 0 | AU31: =AT31/(AV4-AT25) -> 0 | AV31: =IF(AU31=0,0,(AU31*((LOG(AU31))/LOG(2)))) -> 0
A32: 12 | B32: 4230 | C32: 24 | D32: 4243 | E32: 24 | F32: 4261 | G32: 23 | H32: 4269 | I32: 24 | J32: 4281 | K32: 1 | L32: 12222 | N32: 22112 | O32: =COUNTIF($L$7:$L$500,N32) -> 0 | P32: =O32/$Q$4 -> 0 | Q32: =IF(P32=0,0,(P32*((LOG(P32))/LOG(2)))) -> 0 | T32: =N32 -> 22112 | U32: =COUNTIF(L7:L32,T32) -> 0 | V32: =U32/(W4-U25) -> 0 | W32: =IF(V32=0,0,(V32*((LOG(V32))/LOG(2)))) -> 0 | Y32: =N32 -> 22112 | Z32: =COUNTIF(L33:L57,Y32) -> 0 | AA32: =Z32/(AB4-Z25) -> 0 | AB32: =IF(AA32=0,0,(AA32*((LOG(AA32))/LOG(2)))) -> 0 | AD32: =N32 -> 22112 | AE32: =COUNTIF(L58:L83,AD32) -> 0 | AF32: =AE32/(AG4-AE25) -> 0 | AG32: =IF(AF32=0,0,(AF32*((LOG(AF32))/LOG(2)))) -> 0 | AI32: =N32 -> 22112 | AJ32: =COUNTIF(L84:L109,AI32) -> 0 | AK32: =AJ32/(AL4-AJ25) -> 0 | AL32: =IF(AK32=0,0,(AK32*((LOG(AK32))/LOG(2)))) -> 0 | AN32: =N32 -> 22112 | AO32: =COUNTIF(L110:L134,AN32) -> 0 | AP32: =AO32/(AQ4-AO25) -> 0 | AQ32: =IF(AP32=0,0,(AP32*((LOG(AP32))/LOG(2)))) -> 0 | AS32: =N32 -> 22112 | AT32: =COUNTIF(L135:L160,AS32) -> 0 | AU32: =AT32/(AV4-AT25) -> 0 | AV32: =IF(AU32=0,0,(AU32*((LOG(AU32))/LOG(2)))) -> 0
A33: 12 | B33: 4378 | C33: 24 | D33: 4392 | E33: 24 | F33: 4400 | G33: 23 | H33: 4404 | I33: 24 | J33: 4414 | K33: 0 | L33: 12222 | N33: 22121 | O33: =COUNTIF($L$7:$L$500,N33) -> 1 | P33: =O33/$Q$4 -> 0.006535947712 | Q33: =IF(P33=0,0,(P33*((LOG(P33))/LOG(2)))) -> -0.04743390747 | T33: =N33 -> 22121 | U33: =COUNTIF(L7:L32,T33) -> 1 | V33: =U33/(W4-U25) -> 0.03846153846 | W33: =IF(V33=0,0,(V33*((LOG(V33))/LOG(2)))) -> -0.180786143 | Y33: =N33 -> 22121 | Z33: =COUNTIF(L33:L57,Y33) -> 0 | AA33: =Z33/(AB4-Z25) -> 0 | AB33: =IF(AA33=0,0,(AA33*((LOG(AA33))/LOG(2)))) -> 0 | AD33: =N33 -> 22121 | AE33: =COUNTIF(L58:L83,AD33) -> 0 | AF33: =AE33/(AG4-AE25) -> 0 | AG33: =IF(AF33=0,0,(AF33*((LOG(AF33))/LOG(2)))) -> 0 | AI33: =N33 -> 22121 | AJ33: =COUNTIF(L84:L109,AI33) -> 0 | AK33: =AJ33/(AL4-AJ25) -> 0 | AL33: =IF(AK33=0,0,(AK33*((LOG(AK33))/LOG(2)))) -> 0 | AN33: =N33 -> 22121 | AO33: =COUNTIF(L110:L134,AN33) -> 0 | AP33: =AO33/(AQ4-AO25) -> 0 | AQ33: =IF(AP33=0,0,(AP33*((LOG(AP33))/LOG(2)))) -> 0 | AS33: =N33 -> 22121 | AT33: =COUNTIF(L135:L160,AS33) -> 0 | AU33: =AT33/(AV4-AT25) -> 0 | AV33: =IF(AU33=0,0,(AU33*((LOG(AU33))/LOG(2)))) -> 0
A34: 12 | B34: 4529 | C34: 13 | D34: 4541 | E34: 24 | F34: 4562 | G34: 23 | H34: 4567 | I34: 24 | J34: 4579 | K34: 0 | L34: 11222 | N34: 22122 | O34: =COUNTIF($L$7:$L$500,N34) -> 0 | P34: =O34/$Q$4 -> 0 | Q34: =IF(P34=0,0,(P34*((LOG(P34))/LOG(2)))) -> 0 | T34: =N34 -> 22122 | U34: =COUNTIF(L7:L32,T34) -> 0 | V34: =U34/(W4-U25) -> 0 | W34: =IF(V34=0,0,(V34*((LOG(V34))/LOG(2)))) -> 0 | Y34: =N34 -> 22122 | Z34: =COUNTIF(L33:L57,Y34) -> 0 | AA34: =Z34/(AB4-Z25) -> 0 | AB34: =IF(AA34=0,0,(AA34*((LOG(AA34))/LOG(2)))) -> 0 | AD34: =N34 -> 22122 | AE34: =COUNTIF(L58:L83,AD34) -> 0 | AF34: =AE34/(AG4-AE25) -> 0 | AG34: =IF(AF34=0,0,(AF34*((LOG(AF34))/LOG(2)))) -> 0 | AI34: =N34 -> 22122 | AJ34: =COUNTIF(L84:L109,AI34) -> 0 | AK34: =AJ34/(AL4-AJ25) -> 0 | AL34: =IF(AK34=0,0,(AK34*((LOG(AK34))/LOG(2)))) -> 0 | AN34: =N34 -> 22122 | AO34: =COUNTIF(L110:L134,AN34) -> 0 | AP34: =AO34/(AQ4-AO25) -> 0 | AQ34: =IF(AP34=0,0,(AP34*((LOG(AP34))/LOG(2)))) -> 0 | AS34: =N34 -> 22122 | AT34: =COUNTIF(L135:L160,AS34) -> 0 | AU34: =AT34/(AV4-AT25) -> 0 | AV34: =IF(AU34=0,0,(AU34*((LOG(AU34))/LOG(2)))) -> 0
A35: 12 | B35: 4687 | C35: 13 | D35: 4709 | E35: 13 | F35: 4718 | G35: 23 | H35: 4744 | I35: 24 | J35: 4761 | K35: 0 | L35: 11122 | N35: 22211 | O35: =COUNTIF($L$7:$L$500,N35) -> 0 | P35: =O35/$Q$4 -> 0 | Q35: =IF(P35=0,0,(P35*((LOG(P35))/LOG(2)))) -> 0 | T35: =N35 -> 22211 | U35: =COUNTIF(L7:L32,T35) -> 0 | V35: =U35/(W4-U25) -> 0 | W35: =IF(V35=0,0,(V35*((LOG(V35))/LOG(2)))) -> 0 | Y35: =N35 -> 22211 | Z35: =COUNTIF(L33:L57,Y35) -> 0 | AA35: =Z35/(AB4-Z25) -> 0 | AB35: =IF(AA35=0,0,(AA35*((LOG(AA35))/LOG(2)))) -> 0 | AD35: =N35 -> 22211 | AE35: =COUNTIF(L58:L83,AD35) -> 0 | AF35: =AE35/(AG4-AE25) -> 0 | AG35: =IF(AF35=0,0,(AF35*((LOG(AF35))/LOG(2)))) -> 0 | AI35: =N35 -> 22211 | AJ35: =COUNTIF(L84:L109,AI35) -> 0 | AK35: =AJ35/(AL4-AJ25) -> 0 | AL35: =IF(AK35=0,0,(AK35*((LOG(AK35))/LOG(2)))) -> 0 | AN35: =N35 -> 22211 | AO35: =COUNTIF(L110:L134,AN35) -> 0 | AP35: =AO35/(AQ4-AO25) -> 0 | AQ35: =IF(AP35=0,0,(AP35*((LOG(AP35))/LOG(2)))) -> 0 | AS35: =N35 -> 22211 | AT35: =COUNTIF(L135:L160,AS35) -> 0 | AU35: =AT35/(AV4-AT25) -> 0 | AV35: =IF(AU35=0,0,(AU35*((LOG(AU35))/LOG(2)))) -> 0
A36: 12 | B36: 4878 | C36: 24 | D36: 4896 | E36: 24 | F36: 4903 | G36: 23 | H36: 4942 | I36: 24 | J36: 4950 | K36: 0 | L36: 12222 | N36: 22212 | O36: =COUNTIF($L$7:$L$500,N36) -> 0 | P36: =O36/$Q$4 -> 0 | Q36: =IF(P36=0,0,(P36*((LOG(P36))/LOG(2)))) -> 0 | T36: =N36 -> 22212 | U36: =COUNTIF(L7:L32,T36) -> 0 | V36: =U36/(W4-U25) -> 0 | W36: =IF(V36=0,0,(V36*((LOG(V36))/LOG(2)))) -> 0 | Y36: =N36 -> 22212 | Z36: =COUNTIF(L33:L57,Y36) -> 0 | AA36: =Z36/(AB4-Z25) -> 0 | AB36: =IF(AA36=0,0,(AA36*((LOG(AA36))/LOG(2)))) -> 0 | AD36: =N36 -> 22212 | AE36: =COUNTIF(L58:L83,AD36) -> 0 | AF36: =AE36/(AG4-AE25) -> 0 | AG36: =IF(AF36=0,0,(AF36*((LOG(AF36))/LOG(2)))) -> 0 | AI36: =N36 -> 22212 | AJ36: =COUNTIF(L84:L109,AI36) -> 0 | AK36: =AJ36/(AL4-AJ25) -> 0 | AL36: =IF(AK36=0,0,(AK36*((LOG(AK36))/LOG(2)))) -> 0 | AN36: =N36 -> 22212 | AO36: =COUNTIF(L110:L134,AN36) -> 0 | AP36: =AO36/(AQ4-AO25) -> 0 | AQ36: =IF(AP36=0,0,(AP36*((LOG(AP36))/LOG(2)))) -> 0 | AS36: =N36 -> 22212 | AT36: =COUNTIF(L135:L160,AS36) -> 0 | AU36: =AT36/(AV4-AT25) -> 0 | AV36: =IF(AU36=0,0,(AU36*((LOG(AU36))/LOG(2)))) -> 0
A37: 12 | B37: 5062 | C37: 13 | D37: 5091 | E37: 13 | F37: 5100 | G37: 23 | H37: 5115 | I37: 24 | J37: 5127 | K37: 0 | L37: 11122 | N37: 22221 | O37: =COUNTIF($L$7:$L$500,N37) -> 0 | P37: =O37/$Q$4 -> 0 | Q37: =IF(P37=0,0,(P37*((LOG(P37))/LOG(2)))) -> 0 | T37: =N37 -> 22221 | U37: =COUNTIF(L7:L32,T37) -> 0 | V37: =U37/(W4-U25) -> 0 | W37: =IF(V37=0,0,(V37*((LOG(V37))/LOG(2)))) -> 0 | Y37: =N37 -> 22221 | Z37: =COUNTIF(L33:L57,Y37) -> 0 | AA37: =Z37/(AB4-Z25) -> 0 | AB37: =IF(AA37=0,0,(AA37*((LOG(AA37))/LOG(2)))) -> 0 | AD37: =N37 -> 22221 | AE37: =COUNTIF(L58:L83,AD37) -> 0 | AF37: =AE37/(AG4-AE25) -> 0 | AG37: =IF(AF37=0,0,(AF37*((LOG(AF37))/LOG(2)))) -> 0 | AI37: =N37 -> 22221 | AJ37: =COUNTIF(L84:L109,AI37) -> 0 | AK37: =AJ37/(AL4-AJ25) -> 0 | AL37: =IF(AK37=0,0,(AK37*((LOG(AK37))/LOG(2)))) -> 0 | AN37: =N37 -> 22221 | AO37: =COUNTIF(L110:L134,AN37) -> 0 | AP37: =AO37/(AQ4-AO25) -> 0 | AQ37: =IF(AP37=0,0,(AP37*((LOG(AP37))/LOG(2)))) -> 0 | AS37: =N37 -> 22221 | AT37: =COUNTIF(L135:L160,AS37) -> 0 | AU37: =AT37/(AV4-AT25) -> 0 | AV37: =IF(AU37=0,0,(AU37*((LOG(AU37))/LOG(2)))) -> 0
A38: 12 | B38: 5234 | C38: 13 | D38: 5241 | E38: 24 | F38: 5257 | G38: 23 | H38: 5263 | I38: 24 | J38: 5276 | K38: 0 | L38: 11222 | N38: 22222 | O38: =COUNTIF($L$7:$L$500,N38) -> 3 | P38: =O38/$Q$4 -> 0.01960784314 | Q38: =IF(P38=0,0,(P38*((LOG(P38))/LOG(2)))) -> -0.1112240263 | T38: =N38 -> 22222 | U38: =COUNTIF(L7:L32,T38) -> 1 | V38: =U38/(W4-U25) -> 0.03846153846 | W38: =IF(V38=0,0,(V38*((LOG(V38))/LOG(2)))) -> -0.180786143 | Y38: =N38 -> 22222 | Z38: =COUNTIF(L33:L57,Y38) -> 1 | AA38: =Z38/(AB4-Z25) -> 0.04 | AB38: =IF(AA38=0,0,(AA38*((LOG(AA38))/LOG(2)))) -> -0.1857542476 | AD38: =N38 -> 22222 | AE38: =COUNTIF(L58:L83,AD38) -> 0 | AF38: =AE38/(AG4-AE25) -> 0 | AG38: =IF(AF38=0,0,(AF38*((LOG(AF38))/LOG(2)))) -> 0 | AI38: =N38 -> 22222 | AJ38: =COUNTIF(L84:L109,AI38) -> 0 | AK38: =AJ38/(AL4-AJ25) -> 0 | AL38: =IF(AK38=0,0,(AK38*((LOG(AK38))/LOG(2)))) -> 0 | AN38: =N38 -> 22222 | AO38: =COUNTIF(L110:L134,AN38) -> 0 | AP38: =AO38/(AQ4-AO25) -> 0 | AQ38: =IF(AP38=0,0,(AP38*((LOG(AP38))/LOG(2)))) -> 0 | AS38: =N38 -> 22222 | AT38: =COUNTIF(L135:L160,AS38) -> 1 | AU38: =AT38/(AV4-AT25) -> 0.04 | AV38: =IF(AU38=0,0,(AU38*((LOG(AU38))/LOG(2)))) -> -0.1857542476
A39: 12 | B39: 5377 | C39: 13 | D39: 5382 | E39: 13 | F39: 5390 | G39: 14 | H39: 5400 | I39: 24 | J39: 5417 | K39: 1 | L39: 11112 | P39: =SUM(P7:P38) -> 1 | Q39: =-SUM(Q7:Q38) -> 2.769796549 | V39: =SUM(V7:V38) -> 1 | W39: =-SUM(W7:W38) -> 2.530506034 | AA39: =SUM(AA7:AA38) -> 1 | AB39: =-SUM(AB7:AB38) -> 2.145451399 | AF39: =SUM(AF7:AF38) -> 1 | AG39: =-SUM(AG7:AG38) -> 1.953288873 | AK39: =SUM(AK7:AK38) -> 1 | AL39: =-SUM(AL7:AL38) -> 1.922023143 | AP39: =SUM(AP7:AP38) -> 1 | AQ39: =-SUM(AQ7:AQ38) -> 2.109526332 | AU39: =SUM(AU7:AU38) -> 1 | AV39: =-SUM(AV7:AV38) -> 2.161706278
A40: 12 | B40: 5514 | C40: 24 | D40: 5546 | E40: 24 | F40: 5555 | G40: 23 | H40: 5567 | I40: 24 | J40: 5575 | K40: 0 | L40: 12222 | P40: U= | Q40: =Q39/(LOG(Q4)/LOG(2)) -> 0.381651995 | V40: U1= | W40: =W39/(LOG(W4)/LOG(2)) -> 0.5383551723 | AA40: U2= | AB40: =AB39/(LOG(AB4)/LOG(2)) -> 0.4619978121 | AF40: U3= | AG40: =AG39/(LOG(AG4)/LOG(2)) -> 0.4155544992 | AK40: U4= | AL40: =AL39/(LOG(AL4)/LOG(2)) -> 0.4089028385 | AP40: U5= | AQ40: =AQ39/(LOG(AQ4)/LOG(2)) -> 0.45426177 | AU40: U6= | AV40: =AV39/(LOG(AV4)/LOG(2)) -> 0.4654981096
A41: 12 | B41: 5681 | C41: 24 | D41: 5704 | E41: 24 | F41: 5712 | G41: 23 | H41: 5721 | I41: 24 | J41: 5727 | K41: 0 | L41: 12222
A42: 12 | B42: 5828 | C42: 13 | D42: 5837 | E42: 24 | F42: 5850 | G42: 23 | H42: 5869 | I42: 24 | J42: 5878 | K42: 0 | L42: 11222
A43: 12 | B43: 5982 | C43: 24 | D43: 6002 | E43: 24 | F43: 6017 | G43: 23 | H43: 6026 | I43: 24 | J43: 6035 | K43: 0 | L43: 12222 | N43: Total Target Seq
A44: 12 | B44: 6137 | C44: 24 | D44: 6160 | E44: 24 | F44: 6170 | G44: 23 | H44: 6178 | I44: 24 | J44: 6182 | K44: 0 | L44: 12222 | N44: =COUNTIF(L7:L160,G3) -> 0 | P44: 26 | Q44: 25 | R44: 26 | S44: 26 | T44: 25 | U44: 26
A45: 12 | B45: 6282 | C45: 13 | D45: 6287 | E45: 24 | F45: 6299 | G45: 23 | H45: 6311 | I45: 24 | J45: 6318 | K45: 0 | L45: 11222 | P45: % of reinforcement given in 6 equal intervals based on number of trials
A46: 12 | B46: 6430 | C46: 24 | D46: 6455 | E46: 24 | F46: 6465 | G46: 23 | H46: 6474 | I46: 13 | J46: 6488 | K46: 0 | L46: 12221 | P46: %_1 | Q46: %_2 | R46: %_3 | S46: %_4 | T46: %_5 | U46: %_6
A47: 12 | B47: 6628 | C47: 13 | D47: 6646 | E47: 24 | F47: 6677 | G47: 23 | H47: 6685 | I47: 24 | J47: 6693 | K47: 0 | L47: 11222 | O47: target sequence | P47: =$G$3 -> 21121 | Q47: =$G$3 -> 21121 | R47: =$G$3 -> 21121 | S47: =$G$3 -> 21121 | T47: =$G$3 -> 21121 | U47: =$G$3 -> 21121
A48: 12 | B48: 6804 | C48: 13 | D48: 6817 | E48: 24 | F48: 6836 | G48: 23 | H48: 6863 | I48: 24 | J48: 6871 | K48: 1 | L48: 11222 | O48: total reinforcement | P48: =U25 -> 0 | Q48: =Z25 -> 0 | R48: =AE25 -> 0 | S48: =AJ25 -> 0 | T48: =AO25 -> 0 | U48: =AT25 -> 0
A49: 12 | B49: 6982 | C49: 24 | D49: 6996 | E49: 24 | F49: 7001 | G49: 23 | H49: 7011 | I49: 24 | J49: 7018 | K49: 0 | L49: 12222 | O49: % target
A50: 12 | B50: 7120 | C50: 13 | D50: 7137 | E50: 13 | F50: 7169 | G50: 14 | H50: 7182 | I50: 13 | J50: 7191 | K50: 0 | L50: 11111 | O50: CCRF
A51: 21 | B51: 7318 | C51: 22 | D51: 7323 | E51: 24 | F51: 7333 | G51: 23 | H51: 7339 | I51: 24 | J51: 7347 | K51: 0 | L51: 22222 | O51: % CCRf
A52: 12 | B52: 7447 | C52: 13 | D52: 7459 | E52: 13 | F52: 7465 | G52: 23 | H52: 7478 | I52: 24 | J52: 7484 | K52: 1 | L52: 11122 | O52: average response rate | P52: =J32/P44 -> 164.6538462 | Q52: =(J57-J32)/Q44 -> 160.52 | R52: =(J83-J57)/R44 -> 153.7692308 | S52: =(J109-J83)/S44 -> 151.2692308 | T52: =(J134-J109)/T44 -> 154.4 | U52: =(J160-J134)/U44 -> -772.5
A53: 12 | B53: 7599 | C53: 24 | D53: 7631 | E53: 24 | F53: 7641 | G53: 23 | H53: 7648 | I53: 24 | J53: 7657 | K53: 0 | L53: 12222
A54: 12 | B54: 7768 | C54: 24 | D54: 7786 | E54: 24 | F54: 7799 | G54: 23 | H54: 7807 | I54: 24 | J54: 7814 | K54: 1 | L54: 12222
A55: 12 | B55: 7910 | C55: 24 | D55: 7930 | E55: 24 | F55: 7942 | G55: 23 | H55: 7951 | I55: 24 | J55: 7969 | K55: 0 | L55: 12222
A56: 12 | B56: 8074 | C56: 13 | D56: 8088 | E56: 24 | F56: 8106 | G56: 23 | H56: 8115 | I56: 24 | J56: 8123 | K56: 0 | L56: 11222
A57: 12 | B57: 8235 | C57: 24 | D57: 8269 | E57: 24 | F57: 8278 | G57: 23 | H57: 8286 | I57: 24 | J57: 8294 | K57: 0 | L57: 12222
A58: 12 | B58: 8415 | C58: 13 | D58: 8421 | E58: 24 | F58: 8434 | G58: 23 | H58: 8441 | I58: 24 | J58: 8447 | K58: 0 | L58: 11222
A59: 12 | B59: 8556 | C59: 13 | D59: 8565 | E59: 24 | F59: 8589 | G59: 23 | H59: 8597 | I59: 24 | J59: 8605 | K59: 0 | L59: 11222
A60: 12 | B60: 8711 | C60: 13 | D60: 8719 | E60: 24 | F60: 8741 | G60: 23 | H60: 8749 | I60: 24 | J60: 8759 | K60: 0 | L60: 11222
A61: 12 | B61: 8859 | C61: 13 | D61: 8870 | E61: 13 | F61: 8882 | G61: 23 | H61: 8909 | I61: 24 | J61: 8913 | K61: 0 | L61: 11122
A62: 12 | B62: 9021 | C62: 13 | D62: 9030 | E62: 24 | F62: 9053 | G62: 23 | H62: 9061 | I62: 24 | J62: 9069 | K62: 0 | L62: 11222
A63: 12 | B63: 9170 | C63: 13 | D63: 9181 | E63: 24 | F63: 9230 | G63: 23 | H63: 9239 | I63: 24 | J63: 9247 | K63: 1 | L63: 11222
A64: 12 | B64: 9357 | C64: 24 | D64: 9374 | E64: 24 | F64: 9383 | G64: 23 | H64: 9395 | I64: 24 | J64: 9402 | K64: 0 | L64: 12222
A65: 12 | B65: 9502 | C65: 13 | D65: 9518 | E65: 24 | F65: 9544 | G65: 23 | H65: 9556 | I65: 24 | J65: 9564 | K65: 0 | L65: 11222
A66: 12 | B66: 9663 | C66: 13 | D66: 9672 | E66: 13 | F66: 9681 | G66: 23 | H66: 9700 | I66: 24 | J66: 9706 | K66: 0 | L66: 11122
A67: 12 | B67: 9814 | C67: 13 | D67: 9831 | E67: 13 | F67: 9839 | G67: 23 | H67: 9853 | I67: 24 | J67: 9858 | K67: 1 | L67: 11122
A68: 12 | B68: 9957 | C68: 24 | D68: 9991 | E68: 24 | F68: 10001 | G68: 23 | H68: 10010 | I68: 24 | J68: 10019 | K68: 1 | L68: 12222
A69: 12 | B69: 10111 | C69: 13 | D69: 10136 | E69: 24 | F69: 10154 | G69: 23 | H69: 10159 | I69: 24 | J69: 10172 | K69: 0 | L69: 11222
A70: 12 | B70: 10277 | C70: 13 | D70: 10286 | E70: 13 | F70: 10328 | G70: 23 | H70: 10340 | I70: 24 | J70: 10354 | K70: 0 | L70: 11122
A71: 12 | B71: 10457 | C71: 13 | D71: 10467 | E71: 24 | F71: 10500 | G71: 23 | H71: 10510 | I71: 24 | J71: 10519 | K71: 0 | L71: 11222
A72: 12 | B72: 10621 | C72: 13 | D72: 10626 | E72: 13 | F72: 10639 | G72: 14 | H72: 10644 | I72: 24 | J72: 10658 | K72: 0 | L72: 11112
A73: 12 | B73: 10758 | C73: 13 | D73: 10767 | E73: 13 | F73: 10772 | G73: 23 | H73: 10791 | I73: 24 | J73: 10802 | K73: 1 | L73: 11122
A74: 12 | B74: 10901 | C74: 24 | D74: 10915 | E74: 24 | F74: 10922 | G74: 23 | H74: 10931 | I74: 24 | J74: 10935 | K74: 0 | L74: 12222
A75: 12 | B75: 11041 | C75: 13 | D75: 11053 | E75: 13 | F75: 11067 | G75: 23 | H75: 11085 | I75: 24 | J75: 11092 | K75: 0 | L75: 11122
A76: 12 | B76: 11195 | C76: 13 | D76: 11207 | E76: 24 | F76: 11221 | G76: 23 | H76: 11233 | I76: 24 | J76: 11243 | K76: 0 | L76: 11222
A77: 12 | B77: 11345 | C77: 13 | D77: 11354 | E77: 24 | F77: 11390 | G77: 23 | H77: 11399 | I77: 24 | J77: 11407 | K77: 0 | L77: 11222
A78: 12 | B78: 11506 | C78: 13 | D78: 11515 | E78: 24 | F78: 11536 | G78: 23 | H78: 11546 | I78: 24 | J78: 11554 | K78: 0 | L78: 11222
A79: 12 | B79: 11661 | C79: 13 | D79: 11676 | E79: 13 | F79: 11681 | G79: 14 | H79: 11690 | I79: 13 | J79: 11700 | K79: 1 | L79: 11111
A80: 12 | B80: 11798 | C80: 13 | D80: 11803 | E80: 13 | F80: 11808 | G80: 14 | H80: 11827 | I80: 24 | J80: 11858 | K80: 0 | L80: 11112
A81: 12 | B81: 11963 | C81: 13 | D81: 11968 | E81: 13 | F81: 11977 | G81: 23 | H81: 11997 | I81: 24 | J81: 12003 | K81: 0 | L81: 11122
A82: 12 | B82: 12104 | C82: 13 | D82: 12109 | E82: 24 | F82: 12127 | G82: 23 | H82: 12134 | I82: 24 | J82: 12143 | K82: 0 | L82: 11222
A83: 12 | B83: 12251 | C83: 13 | D83: 12259 | E83: 13 | F83: 12266 | G83: 14 | H83: 12284 | I83: 13 | J83: 12292 | K83: 1 | L83: 11111
A84: 12 | B84: 12391 | C84: 13 | D84: 12396 | E84: 13 | F84: 12402 | G84: 23 | H84: 12423 | I84: 24 | J84: 12432 | K84: 1 | L84: 11122
A85: 12 | B85: 12531 | C85: 13 | D85: 12551 | E85: 13 | F85: 12568 | G85: 14 | H85: 12572 | I85: 13 | J85: 12577 | K85: 0 | L85: 11111
A86: 12 | B86: 12676 | C86: 13 | D86: 12682 | E86: 13 | F86: 12691 | G86: 14 | H86: 12699 | I86: 13 | J86: 12705 | K86: 0 | L86: 11111
A87: 12 | B87: 12807 | C87: 13 | D87: 12815 | E87: 13 | F87: 12825 | G87: 23 | H87: 12879 | I87: 24 | J87: 12888 | K87: 1 | L87: 11122
A88: 12 | B88: 12991 | C88: 13 | D88: 13000 | E88: 24 | F88: 13019 | G88: 23 | H88: 13025 | I88: 24 | J88: 13032 | K88: 0 | L88: 11222
A89: 12 | B89: 13132 | C89: 13 | D89: 13141 | E89: 13 | F89: 13169 | G89: 23 | H89: 13197 | I89: 24 | J89: 13207 | K89: 1 | L89: 11122
A90: 12 | B90: 13303 | C90: 13 | D90: 13312 | E90: 24 | F90: 13336 | G90: 23 | H90: 13344 | I90: 24 | J90: 13353 | K90: 0 | L90: 11222
A91: 12 | B91: 13453 | C91: 13 | D91: 13463 | E91: 13 | F91: 13467 | G91: 23 | H91: 13484 | I91: 24 | J91: 13498 | K91: 0 | L91: 11122
A92: 12 | B92: 13602 | C92: 13 | D92: 13611 | E92: 13 | F92: 13617 | G92: 14 | H92: 13622 | I92: 13 | J92: 13627 | K92: 1 | L92: 11111
A93: 12 | B93: 13721 | C93: 13 | D93: 13735 | E93: 24 | F93: 13759 | G93: 23 | H93: 13771 | I93: 24 | J93: 13779 | K93: 1 | L93: 11222
A94: 12 | B94: 13877 | C94: 13 | D94: 13886 | E94: 13 | F94: 13898 | G94: 14 | H94: 13904 | I94: 24 | J94: 13926 | K94: 0 | L94: 11112
A95: 12 | B95: 14035 | C95: 13 | D95: 14047 | E95: 13 | F95: 14052 | G95: 14 | H95: 14066 | I95: 13 | J95: 14079 | K95: 0 | L95: 11111
A96: 12 | B96: 14180 | C96: 13 | D96: 14185 | E96: 13 | F96: 14194 | G96: 14 | H96: 14220 | I96: 24 | J96: 14239 | K96: 1 | L96: 11112
A97: 12 | B97: 14339 | C97: 13 | D97: 14348 | E97: 13 | F97: 14353 | G97: 14 | H97: 14366 | I97: 13 | J97: 14374 | K97: 0 | L97: 11111
A98: 12 | B98: 14475 | C98: 13 | D98: 14485 | E98: 13 | F98: 14490 | G98: 23 | H98: 14525 | I98: 24 | J98: 14531 | K98: 0 | L98: 11122
A99: 12 | B99: 14635 | C99: 13 | D99: 14640 | E99: 13 | F99: 14646 | G99: 14 | H99: 14659 | I99: 13 | J99: 14667 | K99: 0 | L99: 11111
A100: 12 | B100: 14796 | C100: 13 | D100: 14805 | E100: 24 | F100: 14825 | G100: 23 | H100: 14830 | I100: 24 | J100: 14834 | K100: 0 | L100: 11222
A101: 12 | B101: 14937 | C101: 13 | D101: 14942 | E101: 13 | F101: 14946 | G101: 14 | H101: 14951 | I101: 24 | J101: 14986 | K101: 0 | L101: 11112
A102: 12 | B102: 15096 | C102: 13 | D102: 15110 | E102: 13 | F102: 15123 | G102: 14 | H102: 15128 | I102: 13 | J102: 15137 | K102: 0 | L102: 11111
A103: 12 | B103: 15249 | C103: 13 | D103: 15254 | E103: 13 | F103: 15261 | G103: 14 | H103: 15271 | I103: 13 | J103: 15276 | K103: 0 | L103: 11111
A104: 12 | B104: 15376 | C104: 13 | D104: 15386 | E104: 13 | F104: 15392 | G104: 14 | H104: 15397 | I104: 24 | J104: 15421 | K104: 1 | L104: 11112
A105: 12 | B105: 15516 | C105: 13 | D105: 15521 | E105: 13 | F105: 15534 | G105: 23 | H105: 15597 | I105: 24 | J105: 15604 | K105: 0 | L105: 11122
A106: 12 | B106: 15716 | C106: 13 | D106: 15730 | E106: 13 | F106: 15740 | G106: 14 | H106: 15745 | I106: 13 | J106: 15750 | K106: 0 | L106: 11111
A107: 12 | B107: 15850 | C107: 13 | D107: 15859 | E107: 13 | F107: 15865 | G107: 14 | H107: 15869 | I107: 13 | J107: 15880 | K107: 0 | L107: 11111
A108: 12 | B108: 15982 | C108: 13 | D108: 16001 | E108: 24 | F108: 16026 | G108: 23 | H108: 16034 | I108: 24 | J108: 16044 | K108: 1 | L108: 11222
A109: 12 | B109: 16147 | C109: 13 | D109: 16157 | E109: 24 | F109: 16172 | G109: 23 | H109: 16216 | I109: 24 | J109: 16225 | K109: 0 | L109: 11222
A110: 12 | B110: 16329 | C110: 13 | D110: 16334 | E110: 24 | F110: 16357 | G110: 23 | H110: 16368 | I110: 24 | J110: 16375 | K110: 0 | L110: 11222
A111: 12 | B111: 16482 | C111: 13 | D111: 16492 | E111: 13 | F111: 16497 | G111: 23 | H111: 16512 | I111: 24 | J111: 16524 | K111: 0 | L111: 11122
A112: 12 | B112: 16632 | C112: 13 | D112: 16642 | E112: 13 | F112: 16653 | G112: 14 | H112: 16665 | I112: 24 | J112: 16693 | K112: 0 | L112: 11112
A113: 12 | B113: 16796 | C113: 13 | D113: 16802 | E113: 13 | F113: 16806 | G113: 14 | H113: 16816 | I113: 13 | J113: 16821 | K113: 0 | L113: 11111
A114: 12 | B114: 16922 | C114: 13 | D114: 16927 | E114: 13 | F114: 16936 | G114: 14 | H114: 16941 | I114: 13 | J114: 16947 | K114: 0 | L114: 11111
A115: 12 | B115: 17052 | C115: 13 | D115: 17057 | E115: 13 | F115: 17061 | G115: 14 | H115: 17077 | I115: 13 | J115: 17082 | K115: 0 | L115: 11111
A116: 12 | B116: 17182 | C116: 24 | D116: 17222 | E116: 24 | F116: 17231 | G116: 23 | H116: 17239 | I116: 24 | J116: 17248 | K116: 0 | L116: 12222
A117: 12 | B117: 17369 | C117: 13 | D117: 17375 | E117: 13 | F117: 17384 | G117: 14 | H117: 17396 | I117: 24 | J117: 17418 | K117: 1 | L117: 11112
A118: 12 | B118: 17523 | C118: 13 | D118: 17542 | E118: 24 | F118: 17558 | G118: 23 | H118: 17586 | I118: 24 | J118: 17602 | K118: 1 | L118: 11222
A119: 12 | B119: 17704 | C119: 13 | D119: 17722 | E119: 13 | F119: 17727 | G119: 14 | H119: 17733 | I119: 24 | J119: 17753 | K119: 1 | L119: 11112
A120: 12 | B120: 17874 | C120: 13 | D120: 17882 | E120: 24 | F120: 17911 | G120: 23 | H120: 17917 | I120: 24 | J120: 17925 | K120: 0 | L120: 11222
A121: 12 | B121: 18031 | C121: 13 | D121: 18041 | E121: 24 | F121: 18087 | G121: 23 | H121: 18100 | I121: 24 | J121: 18108 | K121: 1 | L121: 11222
A122: 12 | B122: 18215 | C122: 13 | D122: 18220 | E122: 13 | F122: 18224 | G122: 23 | H122: 18240 | I122: 24 | J122: 18251 | K122: 0 | L122: 11122
A123: 12 | B123: 18351 | C123: 13 | D123: 18355 | E123: 13 | F123: 18360 | G123: 14 | H123: 18369 | I123: 13 | J123: 18374 | K123: 0 | L123: 11111
A124: 12 | B124: 18491 | C124: 13 | D124: 18497 | E124: 13 | F124: 18502 | G124: 23 | H124: 18528 | I124: 24 | J124: 18532 | K124: 0 | L124: 11122
A125: 12 | B125: 18642 | C125: 13 | D125: 18669 | E125: 24 | F125: 18687 | G125: 23 | H125: 18695 | I125: 24 | J125: 18699 | K125: 1 | L125: 11222
A126: 12 | B126: 18800 | C126: 13 | D126: 18819 | E126: 24 | F126: 18840 | G126: 23 | H126: 18863 | I126: 24 | J126: 18872 | K126: 1 | L126: 11222
A127: 12 | B127: 18969 | C127: 13 | D127: 18976 | E127: 24 | F127: 18990 | G127: 23 | H127: 19001 | I127: 24 | J127: 19009 | K127: 0 | L127: 11222
A128: 12 | B128: 19118 | C128: 13 | D128: 19127 | E128: 13 | F128: 19135 | G128: 14 | H128: 19146 | I128: 24 | J128: 19160 | K128: 0 | L128: 11112
A129: 12 | B129: 19269 | C129: 13 | D129: 19283 | E129: 24 | F129: 19313 | G129: 23 | H129: 19328 | I129: 24 | J129: 19337 | K129: 1 | L129: 11222
A130: 12 | B130: 19441 | C130: 13 | D130: 19446 | E130: 24 | F130: 19461 | G130: 23 | H130: 19469 | I130: 24 | J130: 19480 | K130: 0 | L130: 11222
A131: 12 | B131: 19581 | C131: 13 | D131: 19590 | E131: 13 | F131: 19602 | G131: 23 | H131: 19625 | I131: 24 | J131: 19633 | K131: 0 | L131: 11122
A132: 12 | B132: 19731 | C132: 13 | D132: 19736 | E132: 13 | F132: 19741 | G132: 14 | H132: 19749 | I132: 13 | J132: 19754 | K132: 0 | L132: 11111
A133: 12 | B133: 19853 | C133: 13 | D133: 19858 | E133: 13 | F133: 19862 | G133: 14 | H133: 19875 | I133: 24 | J133: 19904 | K133: 1 | L133: 11112
A134: 12 | B134: 20013 | C134: 13 | D134: 20022 | E134: 13 | F134: 20032 | G134: 23 | H134: 20067 | I134: 24 | J134: 20085 | K134: 0 | L134: 11122
A135: 12 | B135: 20185 | C135: 13 | D135: 20189 | E135: 13 | F135: 20193 | G135: 14 | H135: 20201 | I135: 24 | J135: 20223 | K135: 0 | L135: 11112
A136: 12 | B136: 20322 | C136: 13 | D136: 20330 | E136: 13 | F136: 20335 | G136: 23 | H136: 20363 | I136: 24 | J136: 20368 | K136: 0 | L136: 11122
A137: 12 | B137: 20468 | C137: 13 | D137: 20473 | E137: 13 | F137: 20478 | G137: 14 | H137: 20488 | I137: 13 | J137: 20494 | K137: 0 | L137: 11111
A138: 12 | B138: 20598 | C138: 13 | D138: 20609 | E138: 13 | F138: 20618 | G138: 14 | H138: 20622 | I138: 24 | J138: 20636 | K138: 1 | L138: 11112
A139: 12 | B139: 20736 | C139: 13 | D139: 20745 | E139: 24 | F139: 20768 | G139: 23 | H139: 20776 | I139: 24 | J139: 20786 | K139: 0 | L139: 11222
A140: 12 | B140: 20891 | C140: 13 | D140: 20899 | E140: 13 | F140: 20910 | G140: 14 | H140: 20915 | I140: 13 | J140: 20919 | K140: 0 | L140: 11111
A141: 12 | B141: 21025 | C141: 13 | D141: 21037 | E141: 13 | F141: 21046 | G141: 14 | H141: 21060 | I141: 24 | J141: 21085 | K141: 0 | L141: 11112
A142: 12 | B142: 21184 | C142: 13 | D142: 21189 | E142: 13 | F142: 21194 | G142: 14 | H142: 21203 | I142: 24 | J142: 21227 | K142: 0 | L142: 11112
A143: 12 | B143: 21333 | C143: 13 | D143: 21338 | E143: 13 | F143: 21343 | G143: 14 | H143: 21354 | I143: 13 | J143: 21366 | K143: 1 | L143: 11111
A144: 21 | B144: 21606 | C144: 22 | D144: 21615 | E144: 24 | F144: 21625 | G144: 23 | H144: 21633 | I144: 24 | J144: 21641 | K144: 0 | L144: 22222
A145: 12 | B145: 21743 | C145: 24 | D145: 21782 | E145: 24 | F145: 21810 | G145: 23 | H145: 21817 | I145: 24 | J145: 21825 | K145: 0 | L145: 12222
A146: 12 | B146: 21933 | C146: 13 | D146: 21950 | E146: 24 | F146: 21977 | G146: 23 | H146: 21986 | I146: 24 | J146: 21998 | K146: 0 | L146: 11222
A147: 12 | B147: 22104 | C147: 13 | D147: 22118 | E147: 24 | F147: 22138 | G147: 23 | H147: 22143 | I147: 24 | J147: 22156 | K147: 1 | L147: 11222
A148: 12 | B148: 22260 | C148: 13 | D148: 22270 | E148: 13 | F148: 22283 | G148: 14 | H148: 22296 | I148: 13 | J148: 22303 | K148: 0 | L148: 11111
A149: 12 | B149: 22405 | C149: 13 | D149: 22411 | E149: 13 | F149: 22421 | G149: 14 | H149: 22431 | I149: 13 | J149: 22443 | K149: 0 | L149: 11111
A150: 12 | B150: 22550 | C150: 13 | D150: 22560 | E150: 13 | F150: 22572 | G150: 23 | H150: 22615 | I150: 24 | J150: 22622 | K150: 0 | L150: 11122
A151: 12 | B151: 22721 | C151: 13 | D151: 22726 | E151: 13 | F151: 22730 | G151: 14 | H151: 22735 | I151: 13 | J151: 22746 | K151: 0 | L151: 11111
A152: 12 | B152: 22848 | C152: 13 | D152: 22853 | E152: 13 | F152: 22858 | G152: 14 | H152: 22864 | I152: 13 | J152: 22874 | K152: 1 | L152: 11111
A153: 12 | B153: 22991 | C153: 13 | D153: 23004 | E153: 24 | F153: 23029 | G153: 23 | H153: 23040 | I153: 24 | J153: 23052 | K153: 0 | L153: 11222
A154: 12 | B154: 23157 | C154: 13 | D154: 23165 | E154: 13 | F154: 23170 | G154: 14 | H154: 23176 | I154: 13 | J154: 23186 | K154: 0 | L154: 11111
A155: 12 | B155: 23288 | C155: 13 | D155: 23298 | E155: 13 | F155: 23314 | G155: 23 | H155: 23340 | I155: 24 | J155: 23347 | K155: 0 | L155: 11122
A156: 12 | B156: 23451 | C156: 13 | D156: 23455 | E156: 13 | F156: 23461 | G156: 14 | H156: 23465 | I156: 13 | J156: 23470 | K156: 0 | L156: 11111
A157: 12 | B157: 23570 | C157: 13 | D157: 23575 | E157: 13 | F157: 23584 | G157: 14 | H157: 23588 | I157: 13 | J157: 23600 | K157: 0 | L157: 11111
A158: 12 | B158: 23700 | C158: 13 | D158: 23708 | E158: 13 | F158: 23712 | G158: 23 | H158: 23728 | I158: 24 | J158: 23736 | K158: 0 | L158: 11122
A159: 12 | B159: 23836 | C159: 13 | D159: 23841 | E159: 13 | F159: 23846 | G159: 14 | H159: 23861 | I159: 13 | J159: 23869 | K159: 1 | L159: 11111
A160: 12 | B160: 23972 | C160: 13 | D160: 23982 | L160: 11

Sheet !MC01A10.010
A1: Report for:!MC01A10.010
A2: Date: | B2: <date>
A3: Hen: | B3: <hen> | F3: Correct Sequence | G3: =Start!J2 -> 21121 | P3: Total Sequences in Data | Q3: =4994-COUNTBLANK(L7:L5000) -> 176 | V3: Total Sequences in Block Data | W3: =COUNTA(L7:L35) -> 29 | AA3: Total Sequences in Block Data | AB3: =COUNTA(L36:L65) -> 30 | AF3: Total Sequences in Block Data | AG3: =COUNTA(L66:L94) -> 29 | AK3: Total Sequences in Block Data | AL3: =COUNTA(L95:L123) -> 29 | AP3: Total Sequences in Block Data | AQ3: =COUNTA(L124:L153) -> 30 | AU3: Total Sequences in Block Data | AV3: =COUNTA(L154:L182) -> 29
P4: Total Sequences in Summary | Q4: =SUM(O7:O38) -> 176 | V4: Total Sequences in Block Summary | W4: =SUM(U7:U38) -> 29 | AA4: Total Sequences in Block Summary | AB4: =SUM(Z7:Z38) -> 30 | AF4: Total Sequences in Block Summary | AG4: =SUM(AE7:AE38) -> 29 | AK4: Total Sequences in Block Summary | AL4: =SUM(AJ7:AJ38) -> 29 | AP4: Total Sequences in Block Summary | AQ4: =SUM(AO7:AO38) -> 30 | AU4: Total Sequences in Block Summary | AV4: =SUM(AT7:AT38) -> 29
T5: Block 1 | Y5: Block 2 | AD5: Block 3 | AI5: Block 4 | AN5: Block 5 | AS5: Block 6
A6: Sequence Component 1 | B6: Time 1 | C6: Sequence Component 2 | D6: Time 2 | E6: Sequence Component 3 | F6: Time 3 | G6: Sequence Component 4 | H6: Time 4 | I6: Sequence Component 5 | J6: Time 5 | K6: Correct? 0=No 1=Yes | L6: Sequence | N6: Frequency | P6: Relative Frequency | Q6: Variability | T6: Frequency | V6: Relative Frequency | W6: Variability | Y6: Frequency | AA6: Relative Frequency | AB6: Variability | AD6: Frequency | AF6: Relative Frequency | AG6: Variability | AI6: Frequency | AK6: Relative Frequency | AL6: Variability | AN6: Frequency | AP6: Relative Frequency | AQ6: Variability | AS6: Frequency | AU6: Relative Frequency | AV6: Variability
A7: 12 | B7: 15 | C7: 24 | D7: 47 | E7: 24 | F7: 68 | G7: 23 | H7: 74 | I7: 24 | J7: 84 | K7: 0 | L7: 12222 | N7: 11111 | O7: =COUNTIF($L$7:$L$500,N7) -> 131 | P7: =O7/$Q$4 -> 0.7443181818 | Q7: =IF(P7=0,0,(P7*((LOG(P7))/LOG(2)))) -> -0.3170859593 | T7: =N7 -> 11111 | U7: =COUNTIF(L7:L35,T7) -> 7 | V7: =U7/(W4-U25) -> 0.2413793103 | W7: =IF(V7=0,0,(V7*((LOG(V7))/LOG(2)))) -> -0.4949787073 | Y7: =N7 -> 11111 | Z7: =COUNTIF(L36:L65,Y7) -> 21 | AA7: =Z7/(AB4-Z25) -> 0.7 | AB7: =IF(AA7=0,0,(AA7*((LOG(AA7))/LOG(2)))) -> -0.360201221 | AD7: =N7 -> 11111 | AE7: =COUNTIF(L66:L94,AD7) -> 22 | AF7: =AE7/(AG4-AE25) -> 0.7586206897 | AG7: =IF(AF7=0,0,(AF7*((LOG(AF7))/LOG(2)))) -> -0.3023478029 | AI7: =N7 -> 11111 | AJ7: =COUNTIF(L95:L123,AI7) -> 25 | AK7: =AJ7/(AL4-AJ25) -> 0.8620689655 | AL7: =IF(AK7=0,0,(AK7*((LOG(AK7))/LOG(2)))) -> -0.1845903494 | AN7: =N7 -> 11111 | AO7: =COUNTIF(L124:L153,AN7) -> 28 | AP7: =AO7/(AQ4-AO25) -> 0.9333333333 | AQ7: =IF(AP7=0,0,(AP7*((LOG(AP7))/LOG(2)))) -> -0.09289996198 | AS7: =N7 -> 11111 | AT7: =COUNTIF(L154:L182,AS7) -> 28 | AU7: =AT7/(AV4-AT25) -> 0.9655172414 | AV7: =IF(AU7=0,0,(AU7*((LOG(AU7))/LOG(2)))) -> -0.04888034641
A8: 12 | B8: 190 | C8: 13 | D8: 201 | E8: 24 | F8: 211 | G8: 23 | H8: 225 | I8: 24 | J8: 230 | K8: 0 | L8: 11222 | N8: 11112 | O8: =COUNTIF($L$7:$L$500,N8) -> 16 | P8: =O8/$Q$4 -> 0.09090909091 | Q8: =IF(P8=0,0,(P8*((LOG(P8))/LOG(2)))) -> -0.3144937835 | T8: =N8 -> 11112 | U8: =COUNTIF(L7:L35,T8) -> 5 | V8: =U8/(W4-U25) -> 0.1724137931 | W8: =IF(V8=0,0,(V8*((LOG(V8))/LOG(2)))) -> -0.4372505 | Y8: =N8 -> 11112 | Z8: =COUNTIF(L36:L65,Y8) -> 5 | AA8: =Z8/(AB4-Z25) -> 0.1666666667 | AB8: =IF(AA8=0,0,(AA8*((LOG(AA8))/LOG(2)))) -> -0.4308270835 | AD8: =N8 -> 11112 | AE8: =COUNTIF(L66:L94,AD8) -> 4 | AF8: =AE8/(AG4-AE25) -> 0.1379310345 | AG8: =IF(AF8=0,0,(AF8*((LOG(AF8))/LOG(2)))) -> -0.3942042752 | AI8: =N8 -> 11112 | AJ8: =COUNTIF(L95:L123,AI8) -> 1 | AK8: =AJ8/(AL4-AJ25) -> 0.03448275862 | AL8: =IF(AK8=0,0,(AK8*((LOG(AK8))/LOG(2)))) -> -0.167516586 | AN8: =N8 -> 11112 | AO8: =COUNTIF(L124:L153,AN8) -> 1 | AP8: =AO8/(AQ4-AO25) -> 0.03333333333 | AQ8: =IF(AP8=0,0,(AP8*((LOG(AP8))/LOG(2)))) -> -0.1635630199 | AS8: =N8 -> 11112 | AT8: =COUNTIF(L154:L182,AS8) -> 0 | AU8: =AT8/(AV4-AT25) -> 0 | AV8: =IF(AU8=0,0,(AU8*((LOG(AU8))/LOG(2)))) -> 0
A9: 21 | B9: 369 | C9: 22 | D9: 384 | E9: 24 | F9: 388 | G9: 23 | H9: 394 | I9: 24 | J9: 404 | K9: 0 | L9: 22222 | N9: 11121 | O9: =COUNTIF($L$7:$L$500,N9) -> 0 | P9: =O9/$Q$4 -> 0 | Q9: =IF(P9=0,0,(P9*((LOG(P9))/LOG(2)))) -> 0 | T9: =N9 -> 11121 | U9: =COUNTIF(L7:L35,T9) -> 0 | V9: =U9/(W4-U25) -> 0 | W9: =IF(V9=0,0,(V9*((LOG(V9))/LOG(2)))) -> 0 | Y9: =N9 -> 11121 | Z9: =COUNTIF(L36:L65,Y9) -> 0 | AA9: =Z9/(AB4-Z25) -> 0 | AB9: =IF(AA9=0,0,(AA9*((LOG(AA9))/LOG(2)))) -> 0 | AD9: =N9 -> 11121 | AE9: =COUNTIF(L66:L94,AD9) -> 0 | AF9: =AE9/(AG4-AE25) -> 0 | AG9: =IF(AF9=0,0,(AF9*((LOG(AF9))/LOG(2)))) -> 0 | AI9: =N9 -> 11121 | AJ9: =COUNTIF(L95:L123,AI9) -> 0 | AK9: =AJ9/(AL4-AJ25) -> 0 | AL9: =IF(AK9=0,0,(AK9*((LOG(AK9))/LOG(2)))) -> 0 | AN9: =N9 -> 11121 | AO9: =COUNTIF(L124:L153,AN9) -> 0 | AP9: =AO9/(AQ4-AO25) -> 0 | AQ9: =IF(AP9=0,0,(AP9*((LOG(AP9))/LOG(2)))) -> 0 | AS9: =N9 -> 11121 | AT9: =COUNTIF(L154:L182,AS9) -> 0 | AU9: =AT9/(AV4-AT25) -> 0 | AV9: =IF(AU9=0,0,(AU9*((LOG(AU9))/LOG(2)))) -> 0
A10: 12 | B10: 508 | C10: 13 | D10: 528 | E10: 13 | F10: 535 | G10: 23 | H10: 549 | I10: 24 | J10: 561 | K10: 0 | L10: 11122 | N10: 11122 | O10: =COUNTIF($L$7:$L$500,N10) -> 18 | P10: =O10/$Q$4 -> 0.1022727273 | Q10: =IF(P10=0,0,(P10*((LOG(P10))/LOG(2)))) -> -0.3364268131 | T10: =N10 -> 11122 | U10: =COUNTIF(L7:L35,T10) -> 9 | V10: =U10/(W4-U25) -> 0.3103448276 | W10: =IF(V10=0,0,(V10*((LOG(V10))/LOG(2)))) -> -0.5238794463 | Y10: =N10 -> 11122 | Z10: =COUNTIF(L36:L65,Y10) -> 2 | AA10: =Z10/(AB4-Z25) -> 0.06666666667 | AB10: =IF(AA10=0,0,(AA10*((LOG(AA10))/LOG(2)))) -> -0.260459373 | AD10: =N10 -> 11122 | AE10: =COUNTIF(L66:L94,AD10) -> 2 | AF10: =AE10/(AG4-AE25) -> 0.06896551724 | AG10: =IF(AF10=0,0,(AF10*((LOG(AF10))/LOG(2)))) -> -0.2660676548 | AI10: =N10 -> 11122 | AJ10: =COUNTIF(L95:L123,AI10) -> 3 | AK10: =AJ10/(AL4-AJ25) -> 0.1034482759 | AL10: =IF(AK10=0,0,(AK10*((LOG(AK10))/LOG(2)))) -> -0.3385881201 | AN10: =N10 -> 11122 | AO10: =COUNTIF(L124:L153,AN10) -> 1 | AP10: =AO10/(AQ4-AO25) -> 0.03333333333 | AQ10: =IF(AP10=0,0,(AP10*((LOG(AP10))/LOG(2)))) -> -0.1635630199 | AS10: =N10 -> 11122 | AT10: =COUNTIF(L154:L182,AS10) -> 1 | AU10: =AT10/(AV4-AT25) -> 0.03448275862 | AV10: =IF(AU10=0,0,(AU10*((LOG(AU10))/LOG(2)))) -> -0.167516586
A11: 12 | B11: 663 | C11: 13 | D11: 673 | E11: 13 | F11: 680 | G11: 23 | H11: 703 | I11: 24 | J11: 717 | K11: 1 | L11: 11122 | N11: 11211 | O11: =COUNTIF($L$7:$L$500,N11) -> 0 | P11: =O11/$Q$4 -> 0 | Q11: =IF(P11=0,0,(P11*((LOG(P11))/LOG(2)))) -> 0 | T11: =N11 -> 11211 | U11: =COUNTIF(L7:L35,T11) -> 0 | V11: =U11/(W4-U25) -> 0 | W11: =IF(V11=0,0,(V11*((LOG(V11))/LOG(2)))) -> 0 | Y11: =N11 -> 11211 | Z11: =COUNTIF(L36:L65,Y11) -> 0 | AA11: =Z11/(AB4-Z25) -> 0 | AB11: =IF(AA11=0,0,(AA11*((LOG(AA11))/LOG(2)))) -> 0 | AD11: =N11 -> 11211 | AE11: =COUNTIF(L66:L94,AD11) -> 0 | AF11: =AE11/(AG4-AE25) -> 0 | AG11: =IF(AF11=0,0,(AF11*((LOG(AF11))/LOG(2)))) -> 0 | AI11: =N11 -> 11211 | AJ11: =COUNTIF(L95:L123,AI11) -> 0 | AK11: =AJ11/(AL4-AJ25) -> 0 | AL11: =IF(AK11=0,0,(AK11*((LOG(AK11))/LOG(2)))) -> 0 | AN11: =N11 -> 11211 | AO11: =COUNTIF(L124:L153,AN11) -> 0 | AP11: =AO11/(AQ4-AO25) -> 0 | AQ11: =IF(AP11=0,0,(AP11*((LOG(AP11))/LOG(2)))) -> 0 | AS11: =N11 -> 11211 | AT11: =COUNTIF(L154:L182,AS11) -> 0 | AU11: =AT11/(AV4-AT25) -> 0 | AV11: =IF(AU11=0,0,(AU11*((LOG(AU11))/LOG(2)))) -> 0
A12: 12 | B12: 818 | C12: 24 | D12: 844 | E12: 24 | F12: 852 | G12: 23 | H12: 863 | I12: 24 | J12: 872 | K12: 0 | L12: 12222 | N12: 11212 | O12: =COUNTIF($L$7:$L$500,N12) -> 0 | P12: =O12/$Q$4 -> 0 | Q12: =IF(P12=0,0,(P12*((LOG(P12))/LOG(2)))) -> 0 | T12: =N12 -> 11212 | U12: =COUNTIF(L7:L35,T12) -> 0 | V12: =U12/(W4-U25) -> 0 | W12: =IF(V12=0,0,(V12*((LOG(V12))/LOG(2)))) -> 0 | Y12: =N12 -> 11212 | Z12: =COUNTIF(L36:L65,Y12) -> 0 | AA12: =Z12/(AB4-Z25) -> 0 | AB12: =IF(AA12=0,0,(AA12*((LOG(AA12))/LOG(2)))) -> 0 | AD12: =N12 -> 11212 | AE12: =COUNTIF(L66:L94,AD12) -> 0 | AF12: =AE12/(AG4-AE25) -> 0 | AG12: =IF(AF12=0,0,(AF12*((LOG(AF12))/LOG(2)))) -> 0 | AI12: =N12 -> 11212 | AJ12: =COUNTIF(L95:L123,AI12) -> 0 | AK12: =AJ12/(AL4-AJ25) -> 0 | AL12: =IF(AK12=0,0,(AK12*((LOG(AK12))/LOG(2)))) -> 0 | AN12: =N12 -> 11212 | AO12: =COUNTIF(L124:L153,AN12) -> 0 | AP12: =AO12/(AQ4-AO25) -> 0 | AQ12: =IF(AP12=0,0,(AP12*((LOG(AP12))/LOG(2)))) -> 0 | AS12: =N12 -> 11212 | AT12: =COUNTIF(L154:L182,AS12) -> 0 | AU12: =AT12/(AV4-AT25) -> 0 | AV12: =IF(AU12=0,0,(AU12*((LOG(AU12))/LOG(2)))) -> 0
A13: 12 | B13: 977 | C13: 13 | D13: 983 | E13: 24 | F13: 1003 | G13: 23 | H13: 1019 | I13: 24 | J13: 1023 | K13: 0 | L13: 11222 | N13: 11221 | O13: =COUNTIF($L$7:$L$500,N13) -> 0 | P13: =O13/$Q$4 -> 0 | Q13: =IF(P13=0,0,(P13*((LOG(P13))/LOG(2)))) -> 0 | T13: =N13 -> 11221 | U13: =COUNTIF(L7:L35,T13) -> 0 | V13: =U13/(W4-U25) -> 0 | W13: =IF(V13=0,0,(V13*((LOG(V13))/LOG(2)))) -> 0 | Y13: =N13 -> 11221 | Z13: =COUNTIF(L36:L65,Y13) -> 0 | AA13: =Z13/(AB4-Z25) -> 0 | AB13: =IF(AA13=0,0,(AA13*((LOG(AA13))/LOG(2)))) -> 0 | AD13: =N13 -> 11221 | AE13: =COUNTIF(L66:L94,AD13) -> 0 | AF13: =AE13/(AG4-AE25) -> 0 | AG13: =IF(AF13=0,0,(AF13*((LOG(AF13))/LOG(2)))) -> 0 | AI13: =N13 -> 11221 | AJ13: =COUNTIF(L95:L123,AI13) -> 0 | AK13: =AJ13/(AL4-AJ25) -> 0 | AL13: =IF(AK13=0,0,(AK13*((LOG(AK13))/LOG(2)))) -> 0 | AN13: =N13 -> 11221 | AO13: =COUNTIF(L124:L153,AN13) -> 0 | AP13: =AO13/(AQ4-AO25) -> 0 | AQ13: =IF(AP13=0,0,(AP13*((LOG(AP13))/LOG(2)))) -> 0 | AS13: =N13 -> 11221 | AT13: =COUNTIF(L154:L182,AS13) -> 0 | AU13: =AT13/(AV4-AT25) -> 0 | AV13: =IF(AU13=0,0,(AU13*((LOG(AU13))/LOG(2)))) -> 0
A14: 12 | B14: 1125 | C14: 13 | D14: 1135 | E14: 24 | F14: 1161 | G14: 23 | H14: 1169 | I14: 24 | J14: 1183 | K14: 0 | L14: 11222 | N14: 11222 | O14: =COUNTIF($L$7:$L$500,N14) -> 6 | P14: =O14/$Q$4 -> 0.03409090909 | Q14: =IF(P14=0,0,(P14*((LOG(P14))/LOG(2)))) -> -0.1661750836 | T14: =N14 -> 11222 | U14: =COUNTIF(L7:L35,T14) -> 4 | V14: =U14/(W4-U25) -> 0.1379310345 | W14: =IF(V14=0,0,(V14*((LOG(V14))/LOG(2)))) -> -0.3942042752 | Y14: =N14 -> 11222 | Z14: =COUNTIF(L36:L65,Y14) -> 1 | AA14: =Z14/(AB4-Z25) -> 0.03333333333 | AB14: =IF(AA14=0,0,(AA14*((LOG(AA14))/LOG(2)))) -> -0.1635630199 | AD14: =N14 -> 11222 | AE14: =COUNTIF(L66:L94,AD14) -> 1 | AF14: =AE14/(AG4-AE25) -> 0.03448275862 | AG14: =IF(AF14=0,0,(AF14*((LOG(AF14))/LOG(2)))) -> -0.167516586 | AI14: =N14 -> 11222 | AJ14: =COUNTIF(L95:L123,AI14) -> 0 | AK14: =AJ14/(AL4-AJ25) -> 0 | AL14: =IF(AK14=0,0,(AK14*((LOG(AK14))/LOG(2)))) -> 0 | AN14: =N14 -> 11222 | AO14: =COUNTIF(L124:L153,AN14) -> 0 | AP14: =AO14/(AQ4-AO25) -> 0 | AQ14: =IF(AP14=0,0,(AP14*((LOG(AP14))/LOG(2)))) -> 0 | AS14: =N14 -> 11222 | AT14: =COUNTIF(L154:L182,AS14) -> 0 | AU14: =AT14/(AV4-AT25) -> 0 | AV14: =IF(AU14=0,0,(AU14*((LOG(AU14))/LOG(2)))) -> 0
A15: 12 | B15: 1284 | C15: 13 | D15: 1294 | E15: 24 | F15: 1309 | G15: 23 | H15: 1324 | I15: 24 | J15: 1332 | K15: 0 | L15: 11222 | N15: 12111 | O15: =COUNTIF($L$7:$L$500,N15) -> 0 | P15: =O15/$Q$4 -> 0 | Q15: =IF(P15=0,0,(P15*((LOG(P15))/LOG(2)))) -> 0 | T15: =N15 -> 12111 | U15: =COUNTIF(L7:L35,T15) -> 0 | V15: =U15/(W4-U25) -> 0 | W15: =IF(V15=0,0,(V15*((LOG(V15))/LOG(2)))) -> 0 | Y15: =N15 -> 12111 | Z15: =COUNTIF(L36:L65,Y15) -> 0 | AA15: =Z15/(AB4-Z25) -> 0 | AB15: =IF(AA15=0,0,(AA15*((LOG(AA15))/LOG(2)))) -> 0 | AD15: =N15 -> 12111 | AE15: =COUNTIF(L66:L94,AD15) -> 0 | AF15: =AE15/(AG4-AE25) -> 0 | AG15: =IF(AF15=0,0,(AF15*((LOG(AF15))/LOG(2)))) -> 0 | AI15: =N15 -> 12111 | AJ15: =COUNTIF(L95:L123,AI15) -> 0 | AK15: =AJ15/(AL4-AJ25) -> 0 | AL15: =IF(AK15=0,0,(AK15*((LOG(AK15))/LOG(2)))) -> 0 | AN15: =N15 -> 12111 | AO15: =COUNTIF(L124:L153,AN15) -> 0 | AP15: =AO15/(AQ4-AO25) -> 0 | AQ15: =IF(AP15=0,0,(AP15*((LOG(AP15))/LOG(2)))) -> 0 | AS15: =N15 -> 12111 | AT15: =COUNTIF(L154:L182,AS15) -> 0 | AU15: =AT15/(AV4-AT25) -> 0 | AV15: =IF(AU15=0,0,(AU15*((LOG(AU15))/LOG(2)))) -> 0
A16: 12 | B16: 1440 | C16: 13 | D16: 1449 | E16: 13 | F16: 1455 | G16: 14 | H16: 1462 | I16: 13 | J16: 1470 | K16: 0 | L16: 11111 | N16: 12112 | O16: =COUNTIF($L$7:$L$500,N16) -> 0 | P16: =O16/$Q$4 -> 0 | Q16: =IF(P16=0,0,(P16*((LOG(P16))/LOG(2)))) -> 0 | T16: =N16 -> 12112 | U16: =COUNTIF(L7:L35,T16) -> 0 | V16: =U16/(W4-U25) -> 0 | W16: =IF(V16=0,0,(V16*((LOG(V16))/LOG(2)))) -> 0 | Y16: =N16 -> 12112 | Z16: =COUNTIF(L36:L65,Y16) -> 0 | AA16: =Z16/(AB4-Z25) -> 0 | AB16: =IF(AA16=0,0,(AA16*((LOG(AA16))/LOG(2)))) -> 0 | AD16: =N16 -> 12112 | AE16: =COUNTIF(L66:L94,AD16) -> 0 | AF16: =AE16/(AG4-AE25) -> 0 | AG16: =IF(AF16=0,0,(AF16*((LOG(AF16))/LOG(2)))) -> 0 | AI16: =N16 -> 12112 | AJ16: =COUNTIF(L95:L123,AI16) -> 0 | AK16: =AJ16/(AL4-AJ25) -> 0 | AL16: =IF(AK16=0,0,(AK16*((LOG(AK16))/LOG(2)))) -> 0 | AN16: =N16 -> 12112 | AO16: =COUNTIF(L124:L153,AN16) -> 0 | AP16: =AO16/(AQ4-AO25) -> 0 | AQ16: =IF(AP16=0,0,(AP16*((LOG(AP16))/LOG(2)))) -> 0 | AS16: =N16 -> 12112 | AT16: =COUNTIF(L154:L182,AS16) -> 0 | AU16: =AT16/(AV4-AT25) -> 0 | AV16: =IF(AU16=0,0,(AU16*((LOG(AU16))/LOG(2)))) -> 0
A17: 12 | B17: 1577 | C17: 13 | D17: 1583 | E17: 13 | F17: 1593 | G17: 14 | H17: 1598 | I17: 13 | J17: 1606 | K17: 0 | L17: 11111 | N17: 12121 | O17: =COUNTIF($L$7:$L$500,N17) -> 0 | P17: =O17/$Q$4 -> 0 | Q17: =IF(P17=0,0,(P17*((LOG(P17))/LOG(2)))) -> 0 | T17: =N17 -> 12121 | U17: =COUNTIF(L7:L35,T17) -> 0 | V17: =U17/(W4-U25) -> 0 | W17: =IF(V17=0,0,(V17*((LOG(V17))/LOG(2)))) -> 0 | Y17: =N17 -> 12121 | Z17: =COUNTIF(L36:L65,Y17) -> 0 | AA17: =Z17/(AB4-Z25) -> 0 | AB17: =IF(AA17=0,0,(AA17*((LOG(AA17))/LOG(2)))) -> 0 | AD17: =N17 -> 12121 | AE17: =COUNTIF(L66:L94,AD17) -> 0 | AF17: =AE17/(AG4-AE25) -> 0 | AG17: =IF(AF17=0,0,(AF17*((LOG(AF17))/LOG(2)))) -> 0 | AI17: =N17 -> 12121 | AJ17: =COUNTIF(L95:L123,AI17) -> 0 | AK17: =AJ17/(AL4-AJ25) -> 0 | AL17: =IF(AK17=0,0,(AK17*((LOG(AK17))/LOG(2)))) -> 0 | AN17: =N17 -> 12121 | AO17: =COUNTIF(L124:L153,AN17) -> 0 | AP17: =AO17/(AQ4-AO25) -> 0 | AQ17: =IF(AP17=0,0,(AP17*((LOG(AP17))/LOG(2)))) -> 0 | AS17: =N17 -> 12121 | AT17: =COUNTIF(L154:L182,AS17) -> 0 | AU17: =AT17/(AV4-AT25) -> 0 | AV17: =IF(AU17=0,0,(AU17*((LOG(AU17))/LOG(2)))) -> 0
A18: 12 | B18: 1710 | C18: 13 | D18: 1715 | E18: 13 | F18: 1722 | G18: 23 | H18: 1736 | I18: 24 | J18: 1746 | K18: 1 | L18: 11122 | N18: 12122 | O18: =COUNTIF($L$7:$L$500,N18) -> 0 | P18: =O18/$Q$4 -> 0 | Q18: =IF(P18=0,0,(P18*((LOG(P18))/LOG(2)))) -> 0 | T18: =N18 -> 12122 | U18: =COUNTIF(L7:L35,T18) -> 0 | V18: =U18/(W4-U25) -> 0 | W18: =IF(V18=0,0,(V18*((LOG(V18))/LOG(2)))) -> 0 | Y18: =N18 -> 12122 | Z18: =COUNTIF(L36:L65,Y18) -> 0 | AA18: =Z18/(AB4-Z25) -> 0 | AB18: =IF(AA18=0,0,(AA18*((LOG(AA18))/LOG(2)))) -> 0 | AD18: =N18 -> 12122 | AE18: =COUNTIF(L66:L94,AD18) -> 0 | AF18: =AE18/(AG4-AE25) -> 0 | AG18: =IF(AF18=0,0,(AF18*((LOG(AF18))/LOG(2)))) -> 0 | AI18: =N18 -> 12122 | AJ18: =COUNTIF(L95:L123,AI18) -> 0 | AK18: =AJ18/(AL4-AJ25) -> 0 | AL18: =IF(AK18=0,0,(AK18*((LOG(AK18))/LOG(2)))) -> 0 | AN18: =N18 -> 12122 | AO18: =COUNTIF(L124:L153,AN18) -> 0 | AP18: =AO18/(AQ4-AO25) -> 0 | AQ18: =IF(AP18=0,0,(AP18*((LOG(AP18))/LOG(2)))) -> 0 | AS18: =N18 -> 12122 | AT18: =COUNTIF(L154:L182,AS18) -> 0 | AU18: =AT18/(AV4-AT25) -> 0 | AV18: =IF(AU18=0,0,(AU18*((LOG(AU18))/LOG(2)))) -> 0
A19: 12 | B19: 1864 | C19: 24 | D19: 1890 | E19: 24 | F19: 1922 | G19: 23 | H19: 1928 | I19: 24 | J19: 1970 | K19: 0 | L19: 12222 | N19: 12211 | O19: =COUNTIF($L$7:$L$500,N19) -> 0 | P19: =O19/$Q$4 -> 0 | Q19: =IF(P19=0,0,(P19*((LOG(P19))/LOG(2)))) -> 0 | T19: =N19 -> 12211 | U19: =COUNTIF(L7:L35,T19) -> 0 | V19: =U19/(W4-U25) -> 0 | W19: =IF(V19=0,0,(V19*((LOG(V19))/LOG(2)))) -> 0 | Y19: =N19 -> 12211 | Z19: =COUNTIF(L36:L65,Y19) -> 0 | AA19: =Z19/(AB4-Z25) -> 0 | AB19: =IF(AA19=0,0,(AA19*((LOG(AA19))/LOG(2)))) -> 0 | AD19: =N19 -> 12211 | AE19: =COUNTIF(L66:L94,AD19) -> 0 | AF19: =AE19/(AG4-AE25) -> 0 | AG19: =IF(AF19=0,0,(AF19*((LOG(AF19))/LOG(2)))) -> 0 | AI19: =N19 -> 12211 | AJ19: =COUNTIF(L95:L123,AI19) -> 0 | AK19: =AJ19/(AL4-AJ25) -> 0 | AL19: =IF(AK19=0,0,(AK19*((LOG(AK19))/LOG(2)))) -> 0 | AN19: =N19 -> 12211 | AO19: =COUNTIF(L124:L153,AN19) -> 0 | AP19: =AO19/(AQ4-AO25) -> 0 | AQ19: =IF(AP19=0,0,(AP19*((LOG(AP19))/LOG(2)))) -> 0 | AS19: =N19 -> 12211 | AT19: =COUNTIF(L154:L182,AS19) -> 0 | AU19: =AT19/(AV4-AT25) -> 0 | AV19: =IF(AU19=0,0,(AU19*((LOG(AU19))/LOG(2)))) -> 0
A20: 12 | B20: 2074 | C20: 13 | D20: 2079 | E20: 13 | F20: 2084 | G20: 14 | H20: 2090 | I20: 13 | J20: 2095 | K20: 0 | L20: 11111 | N20: 12212 | O20: =COUNTIF($L$7:$L$500,N20) -> 0 | P20: =O20/$Q$4 -> 0 | Q20: =IF(P20=0,0,(P20*((LOG(P20))/LOG(2)))) -> 0 | T20: =N20 -> 12212 | U20: =COUNTIF(L7:L35,T20) -> 0 | V20: =U20/(W4-U25) -> 0 | W20: =IF(V20=0,0,(V20*((LOG(V20))/LOG(2)))) -> 0 | Y20: =N20 -> 12212 | Z20: =COUNTIF(L36:L65,Y20) -> 0 | AA20: =Z20/(AB4-Z25) -> 0 | AB20: =IF(AA20=0,0,(AA20*((LOG(AA20))/LOG(2)))) -> 0 | AD20: =N20 -> 12212 | AE20: =COUNTIF(L66:L94,AD20) -> 0 | AF20: =AE20/(AG4-AE25) -> 0 | AG20: =IF(AF20=0,0,(AF20*((LOG(AF20))/LOG(2)))) -> 0 | AI20: =N20 -> 12212 | AJ20: =COUNTIF(L95:L123,AI20) -> 0 | AK20: =AJ20/(AL4-AJ25) -> 0 | AL20: =IF(AK20=0,0,(AK20*((LOG(AK20))/LOG(2)))) -> 0 | AN20: =N20 -> 12212 | AO20: =COUNTIF(L124:L153,AN20) -> 0 | AP20: =AO20/(AQ4-AO25) -> 0 | AQ20: =IF(AP20=0,0,(AP20*((LOG(AP20))/LOG(2)))) -> 0 | AS20: =N20 -> 12212 | AT20: =COUNTIF(L154:L182,AS20) -> 0 | AU20: =AT20/(AV4-AT25) -> 0 | AV20: =IF(AU20=0,0,(AU20*((LOG(AU20))/LOG(2)))) -> 0
A21: 12 | B21: 2195 | C21: 13 | D21: 2200 | E21: 13 | F21: 2205 | G21: 14 | H21: 2210 | I21: 24 | J21: 2229 | K21: 1 | L21: 11112 | N21: 12221 | O21: =COUNTIF($L$7:$L$500,N21) -> 0 | P21: =O21/$Q$4 -> 0 | Q21: =IF(P21=0,0,(P21*((LOG(P21))/LOG(2)))) -> 0 | T21: =N21 -> 12221 | U21: =COUNTIF(L7:L35,T21) -> 0 | V21: =U21/(W4-U25) -> 0 | W21: =IF(V21=0,0,(V21*((LOG(V21))/LOG(2)))) -> 0 | Y21: =N21 -> 12221 | Z21: =COUNTIF(L36:L65,Y21) -> 0 | AA21: =Z21/(AB4-Z25) -> 0 | AB21: =IF(AA21=0,0,(AA21*((LOG(AA21))/LOG(2)))) -> 0 | AD21: =N21 -> 12221 | AE21: =COUNTIF(L66:L94,AD21) -> 0 | AF21: =AE21/(AG4-AE25) -> 0 | AG21: =IF(AF21=0,0,(AF21*((LOG(AF21))/LOG(2)))) -> 0 | AI21: =N21 -> 12221 | AJ21: =COUNTIF(L95:L123,AI21) -> 0 | AK21: =AJ21/(AL4-AJ25) -> 0 | AL21: =IF(AK21=0,0,(AK21*((LOG(AK21))/LOG(2)))) -> 0 | AN21: =N21 -> 12221 | AO21: =COUNTIF(L124:L153,AN21) -> 0 | AP21: =AO21/(AQ4-AO25) -> 0 | AQ21: =IF(AP21=0,0,(AP21*((LOG(AP21))/LOG(2)))) -> 0 | AS21: =N21 -> 12221 | AT21: =COUNTIF(L154:L182,AS21) -> 0 | AU21: =AT21/(AV4-AT25) -> 0 | AV21: =IF(AU21=0,0,(AU21*((LOG(AU21))/LOG(2)))) -> 0
A22: 12 | B22: 2344 | C22: 13 | D22: 2349 | E22: 13 | F22: 2354 | G22: 23 | H22: 2384 | I22: 24 | J22: 2395 | K22: 0 | L22: 11122 | N22: 12222 | O22: =COUNTIF($L$7:$L$500,N22) -> 3 | P22: =O22/$Q$4 -> 0.01704545455 | Q22: =IF(P22=0,0,(P22*((LOG(P22))/LOG(2)))) -> -0.1001329963 | T22: =N22 -> 12222 | U22: =COUNTIF(L7:L35,T22) -> 3 | V22: =U22/(W4-U25) -> 0.1034482759 | W22: =IF(V22=0,0,(V22*((LOG(V22))/LOG(2)))) -> -0.3385881201 | Y22: =N22 -> 12222 | Z22: =COUNTIF(L36:L65,Y22) -> 0 | AA22: =Z22/(AB4-Z25) -> 0 | AB22: =IF(AA22=0,0,(AA22*((LOG(AA22))/LOG(2)))) -> 0 | AD22: =N22 -> 12222 | AE22: =COUNTIF(L66:L94,AD22) -> 0 | AF22: =AE22/(AG4-AE25) -> 0 | AG22: =IF(AF22=0,0,(AF22*((LOG(AF22))/LOG(2)))) -> 0 | AI22: =N22 -> 12222 | AJ22: =COUNTIF(L95:L123,AI22) -> 0 | AK22: =AJ22/(AL4-AJ25) -> 0 | AL22: =IF(AK22=0,0,(AK22*((LOG(AK22))/LOG(2)))) -> 0 | AN22: =N22 -> 12222 | AO22: =COUNTIF(L124:L153,AN22) -> 0 | AP22: =AO22/(AQ4-AO25) -> 0 | AQ22: =IF(AP22=0,0,(AP22*((LOG(AP22))/LOG(2)))) -> 0 | AS22: =N22 -> 12222 | AT22: =COUNTIF(L154:L182,AS22) -> 0 | AU22: =AT22/(AV4-AT25) -> 0 | AV22: =IF(AU22=0,0,(AU22*((LOG(AU22))/LOG(2)))) -> 0
A23: 12 | B23: 2497 | C23: 13 | D23: 2501 | E23: 13 | F23: 2511 | G23: 23 | H23: 2523 | I23: 24 | J23: 2540 | K23: 0 | L23: 11122 | N23: 21111 | O23: =COUNTIF($L$7:$L$500,N23) -> 0 | P23: =O23/$Q$4 -> 0 | Q23: =IF(P23=0,0,(P23*((LOG(P23))/LOG(2)))) -> 0 | T23: =N23 -> 21111 | U23: =COUNTIF(L7:L35,T23) -> 0 | V23: =U23/(W4-U25) -> 0 | W23: =IF(V23=0,0,(V23*((LOG(V23))/LOG(2)))) -> 0 | Y23: =N23 -> 21111 | Z23: =COUNTIF(L36:L65,Y23) -> 0 | AA23: =Z23/(AB4-Z25) -> 0 | AB23: =IF(AA23=0,0,(AA23*((LOG(AA23))/LOG(2)))) -> 0 | AD23: =N23 -> 21111 | AE23: =COUNTIF(L66:L94,AD23) -> 0 | AF23: =AE23/(AG4-AE25) -> 0 | AG23: =IF(AF23=0,0,(AF23*((LOG(AF23))/LOG(2)))) -> 0 | AI23: =N23 -> 21111 | AJ23: =COUNTIF(L95:L123,AI23) -> 0 | AK23: =AJ23/(AL4-AJ25) -> 0 | AL23: =IF(AK23=0,0,(AK23*((LOG(AK23))/LOG(2)))) -> 0 | AN23: =N23 -> 21111 | AO23: =COUNTIF(L124:L153,AN23) -> 0 | AP23: =AO23/(AQ4-AO25) -> 0 | AQ23: =IF(AP23=0,0,(AP23*((LOG(AP23))/LOG(2)))) -> 0 | AS23: =N23 -> 21111 | AT23: =COUNTIF(L154:L182,AS23) -> 0 | AU23: =AT23/(AV4-AT25) -> 0 | AV23: =IF(AU23=0,0,(AU23*((LOG(AU23))/LOG(2)))) -> 0
A24: 12 | B24: 2648 | C24: 13 | D24: 2654 | E24: 13 | F24: 2662 | G24: 14 | H24: 2668 | I24: 13 | J24: 2673 | K24: 0 | L24: 11111 | N24: 21112 | O24: =COUNTIF($L$7:$L$500,N24) -> 0 | P24: =O24/$Q$4 -> 0 | Q24: =IF(P24=0,0,(P24*((LOG(P24))/LOG(2)))) -> 0 | T24: =N24 -> 21112 | U24: =COUNTIF(L7:L35,T24) -> 0 | V24: =U24/(W4-U25) -> 0 | W24: =IF(V24=0,0,(V24*((LOG(V24))/LOG(2)))) -> 0 | Y24: =N24 -> 21112 | Z24: =COUNTIF(L36:L65,Y24) -> 0 | AA24: =Z24/(AB4-Z25) -> 0 | AB24: =IF(AA24=0,0,(AA24*((LOG(AA24))/LOG(2)))) -> 0 | AD24: =N24 -> 21112 | AE24: =COUNTIF(L66:L94,AD24) -> 0 | AF24: =AE24/(AG4-AE25) -> 0 | AG24: =IF(AF24=0,0,(AF24*((LOG(AF24))/LOG(2)))) -> 0 | AI24: =N24 -> 21112 | AJ24: =COUNTIF(L95:L123,AI24) -> 0 | AK24: =AJ24/(AL4-AJ25) -> 0 | AL24: =IF(AK24=0,0,(AK24*((LOG(AK24))/LOG(2)))) -> 0 | AN24: =N24 -> 21112 | AO24: =COUNTIF(L124:L153,AN24) -> 0 | AP24: =AO24/(AQ4-AO25) -> 0 | AQ24: =IF(AP24=0,0,(AP24*((LOG(AP24))/LOG(2)))) -> 0 | AS24: =N24 -> 21112 | AT24: =COUNTIF(L154:L182,AS24) -> 0 | AU24: =AT24/(AV4-AT25) -> 0 | AV24: =IF(AU24=0,0,(AU24*((LOG(AU24))/LOG(2)))) -> 0
A25: 12 | B25: 2781 | C25: 13 | D25: 2786 | E25: 13 | F25: 2793 | G25: 14 | H25: 2800 | I25: 13 | J25: 2806 | K25: 1 | L25: 11111 | N25: 21121 | O25: =COUNTIF($L$7:$L$500,N25) -> 0 | P25: =O25/$Q$4 -> 0 | Q25: =IF(P25=0,0,(P25*((LOG(P25))/LOG(2)))) -> 0 | T25: =N25 -> 21121 | U25: =COUNTIF(L7:L35,T25) -> 0 | Y25: =N25 -> 21121 | Z25: =COUNTIF(L36:L65,Y25) -> 0 | AD25: =N25 -> 21121 | AE25: =COUNTIF(L66:L94,AD25) -> 0 | AI25: =N25 -> 21121 | AJ25: =COUNTIF(L95:L123,AI25) -> 0 | AN25: =N25 -> 21121 | AO25: =COUNTIF(L124:L153,AN25) -> 0 | AS25: =N25 -> 21121 | AT25: =COUNTIF(L154:L182,AS25) -> 0
A26: 12 | B26: 2904 | C26: 13 | D26: 2929 | E26: 13 | F26: 2939 | G26: 23 | H26: 2955 | I26: 24 | J26: 2969 | K26: 0 | L26: 11122 | N26: 21122 | O26: =COUNTIF($L$7:$L$500,N26) -> 0 | P26: =O26/$Q$4 -> 0 | Q26: =IF(P26=0,0,(P26*((LOG(P26))/LOG(2)))) -> 0 | T26: =N26 -> 21122 | U26: =COUNTIF(L7:L35,T26) -> 0 | V26: =U26/(W4-U25) -> 0 | W26: =IF(V26=0,0,(V26*((LOG(V26))/LOG(2)))) -> 0 | Y26: =N26 -> 21122 | Z26: =COUNTIF(L36:L65,Y26) -> 0 | AA26: =Z26/(AB4-Z25) -> 0 | AB26: =IF(AA26=0,0,(AA26*((LOG(AA26))/LOG(2)))) -> 0 | AD26: =N26 -> 21122 | AE26: =COUNTIF(L66:L94,AD26) -> 0 | AF26: =AE26/(AG4-AE25) -> 0 | AG26: =IF(AF26=0,0,(AF26*((LOG(AF26))/LOG(2)))) -> 0 | AI26: =N26 -> 21122 | AJ26: =COUNTIF(L95:L123,AI26) -> 0 | AK26: =AJ26/(AL4-AJ25) -> 0 | AL26: =IF(AK26=0,0,(AK26*((LOG(AK26))/LOG(2)))) -> 0 | AN26: =N26 -> 21122 | AO26: =COUNTIF(L124:L153,AN26) -> 0 | AP26: =AO26/(AQ4-AO25) -> 0 | AQ26: =IF(AP26=0,0,(AP26*((LOG(AP26))/LOG(2)))) -> 0 | AS26: =N26 -> 21122 | AT26: =COUNTIF(L154:L182,AS26) -> 0 | AU26: =AT26/(AV4-AT25) -> 0 | AV26: =IF(AU26=0,0,(AU26*((LOG(AU26))/LOG(2)))) -> 0
A27: 12 | B27: 3071 | C27: 13 | D27: 3076 | E27: 13 | F27: 3081 | G27: 23 | H27: 3096 | I27: 24 | J27: 3101 | K27: 0 | L27: 11122 | N27: 21211 | O27: =COUNTIF($L$7:$L$500,N27) -> 0 | P27: =O27/$Q$4 -> 0 | Q27: =IF(P27=0,0,(P27*((LOG(P27))/LOG(2)))) -> 0 | T27: =N27 -> 21211 | U27: =COUNTIF(L7:L35,T27) -> 0 | V27: =U27/(W4-U25) -> 0 | W27: =IF(V27=0,0,(V27*((LOG(V27))/LOG(2)))) -> 0 | Y27: =N27 -> 21211 | Z27: =COUNTIF(L36:L65,Y27) -> 0 | AA27: =Z27/(AB4-Z25) -> 0 | AB27: =IF(AA27=0,0,(AA27*((LOG(AA27))/LOG(2)))) -> 0 | AD27: =N27 -> 21211 | AE27: =COUNTIF(L66:L94,AD27) -> 0 | AF27: =AE27/(AG4-AE25) -> 0 | AG27: =IF(AF27=0,0,(AF27*((LOG(AF27))/LOG(2)))) -> 0 | AI27: =N27 -> 21211 | AJ27: =COUNTIF(L95:L123,AI27) -> 0 | AK27: =AJ27/(AL4-AJ25) -> 0 | AL27: =IF(AK27=0,0,(AK27*((LOG(AK27))/LOG(2)))) -> 0 | AN27: =N27 -> 21211 | AO27: =COUNTIF(L124:L153,AN27) -> 0 | AP27: =AO27/(AQ4-AO25) -> 0 | AQ27: =IF(AP27=0,0,(AP27*((LOG(AP27))/LOG(2)))) -> 0 | AS27: =N27 -> 21211 | AT27: =COUNTIF(L154:L182,AS27) -> 0 | AU27: =AT27/(AV4-AT25) -> 0 | AV27: =IF(AU27=0,0,(AU27*((LOG(AU27))/LOG(2)))) -> 0
A28: 12 | B28: 3203 | C28: 13 | D28: 3208 | E28: 13 | F28: 3213 | G28: 14 | H28: 3219 | I28: 24 | J28: 3235 | K28: 1 | L28: 11112 | N28: 21212 | O28: =COUNTIF($L$7:$L$500,N28) -> 0 | P28: =O28/$Q$4 -> 0 | Q28: =IF(P28=0,0,(P28*((LOG(P28))/LOG(2)))) -> 0 | T28: =N28 -> 21212 | U28: =COUNTIF(L7:L35,T28) -> 0 | V28: =U28/(W4-U25) -> 0 | W28: =IF(V28=0,0,(V28*((LOG(V28))/LOG(2)))) -> 0 | Y28: =N28 -> 21212 | Z28: =COUNTIF(L36:L65,Y28) -> 0 | AA28: =Z28/(AB4-Z25) -> 0 | AB28: =IF(AA28=0,0,(AA28*((LOG(AA28))/LOG(2)))) -> 0 | AD28: =N28 -> 21212 | AE28: =COUNTIF(L66:L94,AD28) -> 0 | AF28: =AE28/(AG4-AE25) -> 0 | AG28: =IF(AF28=0,0,(AF28*((LOG(AF28))/LOG(2)))) -> 0 | AI28: =N28 -> 21212 | AJ28: =COUNTIF(L95:L123,AI28) -> 0 | AK28: =AJ28/(AL4-AJ25) -> 0 | AL28: =IF(AK28=0,0,(AK28*((LOG(AK28))/LOG(2)))) -> 0 | AN28: =N28 -> 21212 | AO28: =COUNTIF(L124:L153,AN28) -> 0 | AP28: =AO28/(AQ4-AO25) -> 0 | AQ28: =IF(AP28=0,0,(AP28*((LOG(AP28))/LOG(2)))) -> 0 | AS28: =N28 -> 21212 | AT28: =COUNTIF(L154:L182,AS28) -> 0 | AU28: =AT28/(AV4-AT25) -> 0 | AV28: =IF(AU28=0,0,(AU28*((LOG(AU28))/LOG(2)))) -> 0
A29: 12 | B29: 3331 | C29: 13 | D29: 3336 | E29: 13 | F29: 3341 | G29: 23 | H29: 3371 | I29: 24 | J29: 3389 | K29: 0 | L29: 11122 | N29: 21221 | O29: =COUNTIF($L$7:$L$500,N29) -> 0 | P29: =O29/$Q$4 -> 0 | Q29: =IF(P29=0,0,(P29*((LOG(P29))/LOG(2)))) -> 0 | T29: =N29 -> 21221 | U29: =COUNTIF(L7:L35,T29) -> 0 | V29: =U29/(W4-U25) -> 0 | W29: =IF(V29=0,0,(V29*((LOG(V29))/LOG(2)))) -> 0 | Y29: =N29 -> 21221 | Z29: =COUNTIF(L36:L65,Y29) -> 0 | AA29: =Z29/(AB4-Z25) -> 0 | AB29: =IF(AA29=0,0,(AA29*((LOG(AA29))/LOG(2)))) -> 0 | AD29: =N29 -> 21221 | AE29: =COUNTIF(L66:L94,AD29) -> 0 | AF29: =AE29/(AG4-AE25) -> 0 | AG29: =IF(AF29=0,0,(AF29*((LOG(AF29))/LOG(2)))) -> 0 | AI29: =N29 -> 21221 | AJ29: =COUNTIF(L95:L123,AI29) -> 0 | AK29: =AJ29/(AL4-AJ25) -> 0 | AL29: =IF(AK29=0,0,(AK29*((LOG(AK29))/LOG(2)))) -> 0 | AN29: =N29 -> 21221 | AO29: =COUNTIF(L124:L153,AN29) -> 0 | AP29: =AO29/(AQ4-AO25) -> 0 | AQ29: =IF(AP29=0,0,(AP29*((LOG(AP29))/LOG(2)))) -> 0 | AS29: =N29 -> 21221 | AT29: =COUNTIF(L154:L182,AS29) -> 0 | AU29: =AT29/(AV4-AT25) -> 0 | AV29: =IF(AU29=0,0,(AU29*((LOG(AU29))/LOG(2)))) -> 0
A30: 12 | B30: 3498 | C30: 13 | D30: 3504 | E30: 13 | F30: 3523 | G30: 14 | H30: 3532 | I30: 13 | J30: 3541 | K30: 0 | L30: 11111 | N30: 21222 | O30: =COUNTIF($L$7:$L$500,N30) -> 0 | P30: =O30/$Q$4 -> 0 | Q30: =IF(P30=0,0,(P30*((LOG(P30))/LOG(2)))) -> 0 | T30: =N30 -> 21222 | U30: =COUNTIF(L7:L35,T30) -> 0 | V30: =U30/(W4-U25) -> 0 | W30: =IF(V30=0,0,(V30*((LOG(V30))/LOG(2)))) -> 0 | Y30: =N30 -> 21222 | Z30: =COUNTIF(L36:L65,Y30) -> 0 | AA30: =Z30/(AB4-Z25) -> 0 | AB30: =IF(AA30=0,0,(AA30*((LOG(AA30))/LOG(2)))) -> 0 | AD30: =N30 -> 21222 | AE30: =COUNTIF(L66:L94,AD30) -> 0 | AF30: =AE30/(AG4-AE25) -> 0 | AG30: =IF(AF30=0,0,(AF30*((LOG(AF30))/LOG(2)))) -> 0 | AI30: =N30 -> 21222 | AJ30: =COUNTIF(L95:L123,AI30) -> 0 | AK30: =AJ30/(AL4-AJ25) -> 0 | AL30: =IF(AK30=0,0,(AK30*((LOG(AK30))/LOG(2)))) -> 0 | AN30: =N30 -> 21222 | AO30: =COUNTIF(L124:L153,AN30) -> 0 | AP30: =AO30/(AQ4-AO25) -> 0 | AQ30: =IF(AP30=0,0,(AP30*((LOG(AP30))/LOG(2)))) -> 0 | AS30: =N30 -> 21222 | AT30: =COUNTIF(L154:L182,AS30) -> 0 | AU30: =AT30/(AV4-AT25) -> 0 | AV30: =IF(AU30=0,0,(AU30*((LOG(AU30))/LOG(2)))) -> 0
A31: 12 | B31: 3644 | C31: 13 | D31: 3649 | E31: 13 | F31: 3659 | G31: 14 | H31: 3673 | I31: 24 | J31: 3693 | K31: 0 | L31: 11112 | N31: 22111 | O31: =COUNTIF($L$7:$L$500,N31) -> 0 | P31: =O31/$Q$4 -> 0 | Q31: =IF(P31=0,0,(P31*((LOG(P31))/LOG(2)))) -> 0 | T31: =N31 -> 22111 | U31: =COUNTIF(L7:L35,T31) -> 0 | V31: =U31/(W4-U25) -> 0 | W31: =IF(V31=0,0,(V31*((LOG(V31))/LOG(2)))) -> 0 | Y31: =N31 -> 22111 | Z31: =COUNTIF(L36:L65,Y31) -> 0 | AA31: =Z31/(AB4-Z25) -> 0 | AB31: =IF(AA31=0,0,(AA31*((LOG(AA31))/LOG(2)))) -> 0 | AD31: =N31 -> 22111 | AE31: =COUNTIF(L66:L94,AD31) -> 0 | AF31: =AE31/(AG4-AE25) -> 0 | AG31: =IF(AF31=0,0,(AF31*((LOG(AF31))/LOG(2)))) -> 0 | AI31: =N31 -> 22111 | AJ31: =COUNTIF(L95:L123,AI31) -> 0 | AK31: =AJ31/(AL4-AJ25) -> 0 | AL31: =IF(AK31=0,0,(AK31*((LOG(AK31))/LOG(2)))) -> 0 | AN31: =N31 -> 22111 | AO31: =COUNTIF(L124:L153,AN31) -> 0 | AP31: =AO31/(AQ4-AO25) -> 0 | AQ31: =IF(AP31=0,0,(AP31*((LOG(AP31))/LOG(2)))) -> 0 | AS31: =N31 -> 22111 | AT31: =COUNTIF(L154:L182,AS31) -> 0 | AU31: =AT31/(AV4-AT25) -> 0 | AV31: =IF(AU31=0,0,(AU31*((LOG(AU31))/LOG(2)))) -> 0
A32: 12 | B32: 3793 | C32: 13 | D32: 3798 | E32: 13 | F32: 3803 | G32: 14 | H32: 3809 | I32: 24 | J32: 3834 | K32: 0 | L32: 11112 | N32: 22112 | O32: =COUNTIF($L$7:$L$500,N32) -> 0 | P32: =O32/$Q$4 -> 0 | Q32: =IF(P32=0,0,(P32*((LOG(P32))/LOG(2)))) -> 0 | T32: =N32 -> 22112 | U32: =COUNTIF(L7:L35,T32) -> 0 | V32: =U32/(W4-U25) -> 0 | W32: =IF(V32=0,0,(V32*((LOG(V32))/LOG(2)))) -> 0 | Y32: =N32 -> 22112 | Z32: =COUNTIF(L36:L65,Y32) -> 0 | AA32: =Z32/(AB4-Z25) -> 0 | AB32: =IF(AA32=0,0,(AA32*((LOG(AA32))/LOG(2)))) -> 0 | AD32: =N32 -> 22112 | AE32: =COUNTIF(L66:L94,AD32) -> 0 | AF32: =AE32/(AG4-AE25) -> 0 | AG32: =IF(AF32=0,0,(AF32*((LOG(AF32))/LOG(2)))) -> 0 | AI32: =N32 -> 22112 | AJ32: =COUNTIF(L95:L123,AI32) -> 0 | AK32: =AJ32/(AL4-AJ25) -> 0 | AL32: =IF(AK32=0,0,(AK32*((LOG(AK32))/LOG(2)))) -> 0 | AN32: =N32 -> 22112 | AO32: =COUNTIF(L124:L153,AN32) -> 0 | AP32: =AO32/(AQ4-AO25) -> 0 | AQ32: =IF(AP32=0,0,(AP32*((LOG(AP32))/LOG(2)))) -> 0 | AS32: =N32 -> 22112 | AT32: =COUNTIF(L154:L182,AS32) -> 0 | AU32: =AT32/(AV4-AT25) -> 0 | AV32: =IF(AU32=0,0,(AU32*((LOG(AU32))/LOG(2)))) -> 0
A33: 12 | B33: 3938 | C33: 13 | D33: 3943 | E33: 13 | F33: 3948 | G33: 23 | H33: 3972 | I33: 24 | J33: 3977 | K33: 0 | L33: 11122 | N33: 22121 | O33: =COUNTIF($L$7:$L$500,N33) -> 0 | P33: =O33/$Q$4 -> 0 | Q33: =IF(P33=0,0,(P33*((LOG(P33))/LOG(2)))) -> 0 | T33: =N33 -> 22121 | U33: =COUNTIF(L7:L35,T33) -> 0 | V33: =U33/(W4-U25) -> 0 | W33: =IF(V33=0,0,(V33*((LOG(V33))/LOG(2)))) -> 0 | Y33: =N33 -> 22121 | Z33: =COUNTIF(L36:L65,Y33) -> 0 | AA33: =Z33/(AB4-Z25) -> 0 | AB33: =IF(AA33=0,0,(AA33*((LOG(AA33))/LOG(2)))) -> 0 | AD33: =N33 -> 22121 | AE33: =COUNTIF(L66:L94,AD33) -> 0 | AF33: =AE33/(AG4-AE25) -> 0 | AG33: =IF(AF33=0,0,(AF33*((LOG(AF33))/LOG(2)))) -> 0 | AI33: =N33 -> 22121 | AJ33: =COUNTIF(L95:L123,AI33) -> 0 | AK33: =AJ33/(AL4-AJ25) -> 0 | AL33: =IF(AK33=0,0,(AK33*((LOG(AK33))/LOG(2)))) -> 0 | AN33: =N33 -> 22121 | AO33: =COUNTIF(L124:L153,AN33) -> 0 | AP33: =AO33/(AQ4-AO25) -> 0 | AQ33: =IF(AP33=0,0,(AP33*((LOG(AP33))/LOG(2)))) -> 0 | AS33: =N33 -> 22121 | AT33: =COUNTIF(L154:L182,AS33) -> 0 | AU33: =AT33/(AV4-AT25) -> 0 | AV33: =IF(AU33=0,0,(AU33*((LOG(AU33))/LOG(2)))) -> 0
A34: 12 | B34: 4077 | C34: 13 | D34: 4082 | E34: 13 | F34: 4087 | G34: 14 | H34: 4092 | I34: 24 | J34: 4107 | K34: 0 | L34: 11112 | N34: 22122 | O34: =COUNTIF($L$7:$L$500,N34) -> 0 | P34: =O34/$Q$4 -> 0 | Q34: =IF(P34=0,0,(P34*((LOG(P34))/LOG(2)))) -> 0 | T34: =N34 -> 22122 | U34: =COUNTIF(L7:L35,T34) -> 0 | V34: =U34/(W4-U25) -> 0 | W34: =IF(V34=0,0,(V34*((LOG(V34))/LOG(2)))) -> 0 | Y34: =N34 -> 22122 | Z34: =COUNTIF(L36:L65,Y34) -> 0 | AA34: =Z34/(AB4-Z25) -> 0 | AB34: =IF(AA34=0,0,(AA34*((LOG(AA34))/LOG(2)))) -> 0 | AD34: =N34 -> 22122 | AE34: =COUNTIF(L66:L94,AD34) -> 0 | AF34: =AE34/(AG4-AE25) -> 0 | AG34: =IF(AF34=0,0,(AF34*((LOG(AF34))/LOG(2)))) -> 0 | AI34: =N34 -> 22122 | AJ34: =COUNTIF(L95:L123,AI34) -> 0 | AK34: =AJ34/(AL4-AJ25) -> 0 | AL34: =IF(AK34=0,0,(AK34*((LOG(AK34))/LOG(2)))) -> 0 | AN34: =N34 -> 22122 | AO34: =COUNTIF(L124:L153,AN34) -> 0 | AP34: =AO34/(AQ4-AO25) -> 0 | AQ34: =IF(AP34=0,0,(AP34*((LOG(AP34))/LOG(2)))) -> 0 | AS34: =N34 -> 22122 | AT34: =COUNTIF(L154:L182,AS34) -> 0 | AU34: =AT34/(AV4-AT25) -> 0 | AV34: =IF(AU34=0,0,(AU34*((LOG(AU34))/LOG(2)))) -> 0
A35: 12 | B35: 4208 | C35: 13 | D35: 4212 | E35: 13 | F35: 4218 | G35: 14 | H35: 4224 | I35: 13 | J35: 4229 | K35: 1 | L35: 11111 | N35: 22211 | O35: =COUNTIF($L$7:$L$500,N35) -> 0 | P35: =O35/$Q$4 -> 0 | Q35: =IF(P35=0,0,(P35*((LOG(P35))/LOG(2)))) -> 0 | T35: =N35 -> 22211 | U35: =COUNTIF(L7:L35,T35) -> 0 | V35: =U35/(W4-U25) -> 0 | W35: =IF(V35=0,0,(V35*((LOG(V35))/LOG(2)))) -> 0 | Y35: =N35 -> 22211 | Z35: =COUNTIF(L36:L65,Y35) -> 0 | AA35: =Z35/(AB4-Z25) -> 0 | AB35: =IF(AA35=0,0,(AA35*((LOG(AA35))/LOG(2)))) -> 0 | AD35: =N35 -> 22211 | AE35: =COUNTIF(L66:L94,AD35) -> 0 | AF35: =AE35/(AG4-AE25) -> 0 | AG35: =IF(AF35=0,0,(AF35*((LOG(AF35))/LOG(2)))) -> 0 | AI35: =N35 -> 22211 | AJ35: =COUNTIF(L95:L123,AI35) -> 0 | AK35: =AJ35/(AL4-AJ25) -> 0 | AL35: =IF(AK35=0,0,(AK35*((LOG(AK35))/LOG(2)))) -> 0 | AN35: =N35 -> 22211 | AO35: =COUNTIF(L124:L153,AN35) -> 0 | AP35: =AO35/(AQ4-AO25) -> 0 | AQ35: =IF(AP35=0,0,(AP35*((LOG(AP35))/LOG(2)))) -> 0 | AS35: =N35 -> 22211 | AT35: =COUNTIF(L154:L182,AS35) -> 0 | AU35: =AT35/(AV4-AT25) -> 0 | AV35: =IF(AU35=0,0,(AU35*((LOG(AU35))/LOG(2)))) -> 0
A36: 12 | B36: 4323 | C36: 13 | D36: 4327 | E36: 13 | F36: 4332 | G36: 14 | H36: 4337 | I36: 13 | J36: 4341 | K36: 0 | L36: 11111 | N36: 22212 | O36: =COUNTIF($L$7:$L$500,N36) -> 0 | P36: =O36/$Q$4 -> 0 | Q36: =IF(P36=0,0,(P36*((LOG(P36))/LOG(2)))) -> 0 | T36: =N36 -> 22212 | U36: =COUNTIF(L7:L35,T36) -> 0 | V36: =U36/(W4-U25) -> 0 | W36: =IF(V36=0,0,(V36*((LOG(V36))/LOG(2)))) -> 0 | Y36: =N36 -> 22212 | Z36: =COUNTIF(L36:L65,Y36) -> 0 | AA36: =Z36/(AB4-Z25) -> 0 | AB36: =IF(AA36=0,0,(AA36*((LOG(AA36))/LOG(2)))) -> 0 | AD36: =N36 -> 22212 | AE36: =COUNTIF(L66:L94,AD36) -> 0 | AF36: =AE36/(AG4-AE25) -> 0 | AG36: =IF(AF36=0,0,(AF36*((LOG(AF36))/LOG(2)))) -> 0 | AI36: =N36 -> 22212 | AJ36: =COUNTIF(L95:L123,AI36) -> 0 | AK36: =AJ36/(AL4-AJ25) -> 0 | AL36: =IF(AK36=0,0,(AK36*((LOG(AK36))/LOG(2)))) -> 0 | AN36: =N36 -> 22212 | AO36: =COUNTIF(L124:L153,AN36) -> 0 | AP36: =AO36/(AQ4-AO25) -> 0 | AQ36: =IF(AP36=0,0,(AP36*((LOG(AP36))/LOG(2)))) -> 0 | AS36: =N36 -> 22212 | AT36: =COUNTIF(L154:L182,AS36) -> 0 | AU36: =AT36/(AV4-AT25) -> 0 | AV36: =IF(AU36=0,0,(AU36*((LOG(AU36))/LOG(2)))) -> 0
A37: 12 | B37: 4445 | C37: 13 | D37: 4451 | E37: 24 | F37: 4468 | G37: 23 | H37: 4484 | I37: 24 | J37: 4492 | K37: 1 | L37: 11222 | N37: 22221 | O37: =COUNTIF($L$7:$L$500,N37) -> 0 | P37: =O37/$Q$4 -> 0 | Q37: =IF(P37=0,0,(P37*((LOG(P37))/LOG(2)))) -> 0 | T37: =N37 -> 22221 | U37: =COUNTIF(L7:L35,T37) -> 0 | V37: =U37/(W4-U25) -> 0 | W37: =IF(V37=0,0,(V37*((LOG(V37))/LOG(2)))) -> 0 | Y37: =N37 -> 22221 | Z37: =COUNTIF(L36:L65,Y37) -> 0 | AA37: =Z37/(AB4-Z25) -> 0 | AB37: =IF(AA37=0,0,(AA37*((LOG(AA37))/LOG(2)))) -> 0 | AD37: =N37 -> 22221 | AE37: =COUNTIF(L66:L94,AD37) -> 0 | AF37: =AE37/(AG4-AE25) -> 0 | AG37: =IF(AF37=0,0,(AF37*((LOG(AF37))/LOG(2)))) -> 0 | AI37: =N37 -> 22221 | AJ37: =COUNTIF(L95:L123,AI37) -> 0 | AK37: =AJ37/(AL4-AJ25) -> 0 | AL37: =IF(AK37=0,0,(AK37*((LOG(AK37))/LOG(2)))) -> 0 | AN37: =N37 -> 22221 | AO37: =COUNTIF(L124:L153,AN37) -> 0 | AP37: =AO37/(AQ4-AO25) -> 0 | AQ37: =IF(AP37=0,0,(AP37*((LOG(AP37))/LOG(2)))) -> 0 | AS37: =N37 -> 22221 | AT37: =COUNTIF(L154:L182,AS37) -> 0 | AU37: =AT37/(AV4-AT25) -> 0 | AV37: =IF(AU37=0,0,(AU37*((LOG(AU37))/LOG(2)))) -> 0
A38: 12 | B38: 4601 | C38: 13 | D38: 4613 | E38: 13 | F38: 4626 | G38: 14 | H38: 4634 | I38: 24 | J38: 4669 | K38: 0 | L38: 11112 | N38: 22222 | O38: =COUNTIF($L$7:$L$500,N38) -> 2 | P38: =O38/$Q$4 -> 0.01136363636 | Q38: =IF(P38=0,0,(P38*((LOG(P38))/LOG(2)))) -> -0.07340263203 | T38: =N38 -> 22222 | U38: =COUNTIF(L7:L35,T38) -> 1 | V38: =U38/(W4-U25) -> 0.03448275862 | W38: =IF(V38=0,0,(V38*((LOG(V38))/LOG(2)))) -> -0.167516586 | Y38: =N38 -> 22222 | Z38: =COUNTIF(L36:L65,Y38) -> 1 | AA38: =Z38/(AB4-Z25) -> 0.03333333333 | AB38: =IF(AA38=0,0,(AA38*((LOG(AA38))/LOG(2)))) -> -0.1635630199 | AD38: =N38 -> 22222 | AE38: =COUNTIF(L66:L94,AD38) -> 0 | AF38: =AE38/(AG4-AE25) -> 0 | AG38: =IF(AF38=0,0,(AF38*((LOG(AF38))/LOG(2)))) -> 0 | AI38: =N38 -> 22222 | AJ38: =COUNTIF(L95:L123,AI38) -> 0 | AK38: =AJ38/(AL4-AJ25) -> 0 | AL38: =IF(AK38=0,0,(AK38*((LOG(AK38))/LOG(2)))) -> 0 | AN38: =N38 -> 22222 | AO38: =COUNTIF(L124:L153,AN38) -> 0 | AP38: =AO38/(AQ4-AO25) -> 0 | AQ38: =IF(AP38=0,0,(AP38*((LOG(AP38))/LOG(2)))) -> 0 | AS38: =N38 -> 22222 | AT38: =COUNTIF(L154:L182,AS38) -> 0 | AU38: =AT38/(AV4-AT25) -> 0 | AV38: =IF(AU38=0,0,(AU38*((LOG(AU38))/LOG(2)))) -> 0
A39: 12 | B39: 4776 | C39: 13 | D39: 4780 | E39: 13 | F39: 4789 | G39: 14 | H39: 4795 | I39: 13 | J39: 4807 | K39: 1 | L39: 11111 | P39: =SUM(P7:P38) -> 1 | Q39: =-SUM(Q7:Q38) -> 1.307717268 | V39: =SUM(V7:V38) -> 1 | W39: =-SUM(W7:W38) -> 2.356417635 | AA39: =SUM(AA7:AA38) -> 1 | AB39: =-SUM(AB7:AB38) -> 1.378613717 | AF39: =SUM(AF7:AF38) -> 1 | AG39: =-SUM(AG7:AG38) -> 1.130136319 | AK39: =SUM(AK7:AK38) -> 1 | AL39: =-SUM(AL7:AL38) -> 0.6906950556 | AP39: =SUM(AP7:AP38) -> 1 | AQ39: =-SUM(AQ7:AQ38) -> 0.4200260017 | AU39: =SUM(AU7:AU38) -> 1 | AV39: =-SUM(AV7:AV38) -> 0.2163969325
A40: 12 | B40: 4902 | C40: 13 | D40: 4907 | E40: 13 | F40: 4913 | G40: 14 | H40: 4923 | I40: 24 | J40: 4941 | K40: 0 | L40: 11112 | P40: U= | Q40: =Q39/(LOG(Q4)/LOG(2)) -> 0.1753105779 | V40: U1= | W40: =W39/(LOG(W4)/LOG(2)) -> 0.4850611061 | AA40: U2= | AB40: =AB39/(LOG(AB4)/LOG(2)) -> 0.2809546474 | AF40: U3= | AG40: =AG39/(LOG(AG4)/LOG(2)) -> 0.2326349815 | AK40: U4= | AL40: =AL39/(LOG(AL4)/LOG(2)) -> 0.1421773894 | AP40: U5= | AQ40: =AQ39/(LOG(AQ4)/LOG(2)) -> 0.08559921879 | AU40: U6= | AV40: =AV39/(LOG(AV4)/LOG(2)) -> 0.0445446231
A41: 12 | B41: 5044 | C41: 13 | D41: 5048 | E41: 13 | F41: 5054 | G41: 14 | H41: 5059 | I41: 13 | J41: 5074 | K41: 0 | L41: 11111
A42: 12 | B42: 5178 | C42: 13 | D42: 5183 | E42: 13 | F42: 5188 | G42: 14 | H42: 5194 | I42: 24 | J42: 5221 | K42: 0 | L42: 11112
A43: 12 | B43: 5323 | C43: 13 | D43: 5328 | E43: 13 | F43: 5333 | G43: 14 | H43: 5338 | I43: 13 | J43: 5345 | K43: 0 | L43: 11111 | N43: Total Target Seq
A44: 12 | B44: 5445 | C44: 13 | D44: 5450 | E44: 13 | F44: 5455 | G44: 14 | H44: 5460 | I44: 13 | J44: 5465 | K44: 1 | L44: 11111 | N44: =COUNTIF(L7:L182,G3) -> 0 | P44: 29 | Q44: 30 | R44: 29 | S44: 29 | T44: 30 | U44: 29
A45: 12 | B45: 5580 | C45: 13 | D45: 5586 | E45: 13 | F45: 5599 | G45: 14 | H45: 5604 | I45: 13 | J45: 5609 | K45: 0 | L45: 11111 | P45: % of reinforcement given in 6 equal intervals based on number of trials
A46: 12 | B46: 5713 | C46: 13 | D46: 5719 | E46: 13 | F46: 5723 | G46: 14 | H46: 5729 | I46: 24 | J46: 5744 | K46: 0 | L46: 11112 | P46: %_1 | Q46: %_2 | R46: %_3 | S46: %_4 | T46: %_5 | U46: %_6
A47: 12 | B47: 5844 | C47: 13 | D47: 5849 | E47: 13 | F47: 5854 | G47: 14 | H47: 5859 | I47: 13 | J47: 5863 | K47: 0 | L47: 11111 | O47: target sequence | P47: =$G$3 -> 21121 | Q47: =$G$3 -> 21121 | R47: =$G$3 -> 21121 | S47: =$G$3 -> 21121 | T47: =$G$3 -> 21121 | U47: =$G$3 -> 21121
A48: 12 | B48: 5971 | C48: 13 | D48: 5981 | E48: 13 | F48: 5986 | G48: 14 | H48: 5996 | I48: 13 | J48: 6001 | K48: 0 | L48: 11111 | O48: total reinforcement | P48: =U25 -> 0 | Q48: =Z25 -> 0 | R48: =AE25 -> 0 | S48: =AJ25 -> 0 | T48: =AO25 -> 0 | U48: =AT25 -> 0
A49: 12 | B49: 6103 | C49: 13 | D49: 6109 | E49: 13 | F49: 6113 | G49: 14 | H49: 6119 | I49: 13 | J49: 6123 | K49: 1 | L49: 11111 | O49: % target
A50: 12 | B50: 6218 | C50: 13 | D50: 6223 | E50: 13 | F50: 6228 | G50: 14 | H50: 6233 | I50: 13 | J50: 6238 | K50: 0 | L50: 11111 | O50: CCRF
A51: 12 | B51: 6334 | C51: 13 | D51: 6339 | E51: 13 | F51: 6344 | G51: 14 | H51: 6350 | I51: 13 | J51: 6360 | K51: 0 | L51: 11111 | O51: % CCRf
A52: 12 | B52: 6462 | C52: 13 | D52: 6467 | E52: 13 | F52: 6477 | G52: 14 | H52: 6481 | I52: 13 | J52: 6490 | K52: 0 | L52: 11111 | O52: average response rate | P52: =J35/P44 -> 145.8275862 | Q52: =(J65-J35)/Q44 -> 137.5333333 | R52: =(J94-J65)/R44 -> 133.4827586 | S52: =(J123-J94)/S44 -> 134.2068966 | T52: =(J153-J123)/T44 -> 133.6333333 | U52: =(J182-J153)/U44 -> 132.3448276
A53: 12 | B53: 6591 | C53: 13 | D53: 6596 | E53: 13 | F53: 6605 | G53: 14 | H53: 6610 | I53: 13 | J53: 6620 | K53: 0 | L53: 11111
A54: 12 | B54: 6722 | C54: 13 | D54: 6737 | E54: 13 | F54: 6742 | G54: 23 | H54: 6765 | I54: 24 | J54: 6770 | K54: 0 | L54: 11122
A55: 12 | B55: 6879 | C55: 13 | D55: 6889 | E55: 13 | F55: 6895 | G55: 14 | H55: 6902 | I55: 13 | J55: 6907 | K55: 0 | L55: 11111
A56: 21 | B56: 7022 | C56: 22 | D56: 7034 | E56: 24 | F56: 7043 | G56: 23 | H56: 7051 | I56: 24 | J56: 7059 | K56: 0 | L56: 22222
A57: 12 | B57: 7197 | C57: 13 | D57: 7213 | E57: 13 | F57: 7226 | G57: 14 | H57: 7238 | I57: 13 | J57: 7243 | K57: 0 | L57: 11111
A58: 12 | B58: 7349 | C58: 13 | D58: 7354 | E58: 13 | F58: 7359 | G58: 14 | H58: 7374 | I58: 24 | J58: 7393 | K58: 0 | L58: 11112
A59: 12 | B59: 7502 | C59: 13 | D59: 7508 | E59: 13 | F59: 7513 | G59: 14 | H59: 7519 | I59: 13 | J59: 7524 | K59: 1 | L59: 11111
A60: 12 | B60: 7628 | C60: 13 | D60: 7632 | E60: 13 | F60: 7638 | G60: 14 | H60: 7643 | I60: 13 | J60: 7655 | K60: 0 | L60: 11111
A61: 12 | B61: 7759 | C61: 13 | D61: 7773 | E61: 13 | F61: 7779 | G61: 14 | H61: 7784 | I61: 13 | J61: 7796 | K61: 0 | L61: 11111
A62: 12 | B62: 7898 | C62: 13 | D62: 7903 | E62: 13 | F62: 7910 | G62: 14 | H62: 7914 | I62: 13 | J62: 7920 | K62: 0 | L62: 11111
A63: 12 | B63: 8028 | C63: 13 | D63: 8034 | E63: 13 | F63: 8039 | G63: 14 | H63: 8043 | I63: 13 | J63: 8055 | K63: 0 | L63: 11111
A64: 12 | B64: 8157 | C64: 13 | D64: 8161 | E64: 13 | F64: 8168 | G64: 14 | H64: 8173 | I64: 13 | J64: 8177 | K64: 0 | L64: 11111
A65: 12 | B65: 8301 | C65: 13 | D65: 8307 | E65: 13 | F65: 8312 | G65: 23 | H65: 8331 | I65: 24 | J65: 8355 | K65: 0 | L65: 11122
A66: 12 | B66: 8458 | C66: 13 | D66: 8465 | E66: 13 | F66: 8469 | G66: 14 | H66: 8478 | I66: 13 | J66: 8482 | K66: 0 | L66: 11111
A67: 12 | B67: 8586 | C67: 13 | D67: 8591 | E67: 13 | F67: 8595 | G67: 14 | H67: 8600 | I67: 13 | J67: 8605 | K67: 0 | L67: 11111
A68: 12 | B68: 8706 | C68: 13 | D68: 8710 | E68: 13 | F68: 8715 | G68: 14 | H68: 8720 | I68: 13 | J68: 8725 | K68: 0 | L68: 11111
A69: 12 | B69: 8830 | C69: 13 | D69: 8841 | E69: 13 | F69: 8851 | G69: 14 | H69: 8856 | I69: 13 | J69: 8863 | K69: 0 | L69: 11111
A70: 12 | B70: 8968 | C70: 13 | D70: 8975 | E70: 13 | F70: 8980 | G70: 14 | H70: 8984 | I70: 13 | J70: 8990 | K70: 1 | L70: 11111
A71: 12 | B71: 9088 | C71: 13 | D71: 9093 | E71: 13 | F71: 9101 | G71: 14 | H71: 9105 | I71: 13 | J71: 9111 | K71: 0 | L71: 11111
A72: 12 | B72: 9208 | C72: 13 | D72: 9213 | E72: 13 | F72: 9218 | G72: 14 | H72: 9222 | I72: 13 | J72: 9230 | K72: 0 | L72: 11111
A73: 12 | B73: 9332 | C73: 13 | D73: 9338 | E73: 13 | F73: 9343 | G73: 14 | H73: 9351 | I73: 13 | J73: 9366 | K73: 0 | L73: 11111
A74: 12 | B74: 9465 | C74: 13 | D74: 9474 | E74: 13 | F74: 9478 | G74: 14 | H74: 9483 | I74: 13 | J74: 9488 | K74: 0 | L74: 11111
A75: 12 | B75: 9593 | C75: 13 | D75: 9605 | E75: 13 | F75: 9614 | G75: 14 | H75: 9620 | I75: 13 | J75: 9624 | K75: 0 | L75: 11111
A76: 12 | B76: 9726 | C76: 13 | D76: 9730 | E76: 13 | F76: 9735 | G76: 14 | H76: 9739 | I76: 13 | J76: 9751 | K76: 1 | L76: 11111
A77: 12 | B77: 9854 | C77: 13 | D77: 9859 | E77: 13 | F77: 9864 | G77: 14 | H77: 9871 | I77: 13 | J77: 9877 | K77: 1 | L77: 11111
A78: 12 | B78: 9990 | C78: 13 | D78: 9995 | E78: 24 | F78: 10021 | G78: 23 | H78: 10027 | I78: 24 | J78: 10044 | K78: 1 | L78: 11222
A79: 12 | B79: 10162 | C79: 13 | D79: 10171 | E79: 13 | F79: 10178 | G79: 14 | H79: 10189 | I79: 13 | J79: 10199 | K79: 0 | L79: 11111
A80: 12 | B80: 10300 | C80: 13 | D80: 10305 | E80: 13 | F80: 10323 | G80: 23 | H80: 10350 | I80: 24 | J80: 10371 | K80: 0 | L80: 11122
A81: 12 | B81: 10473 | C81: 13 | D81: 10477 | E81: 13 | F81: 10481 | G81: 14 | H81: 10486 | I81: 13 | J81: 10492 | K81: 0 | L81: 11111
A82: 12 | B82: 10592 | C82: 13 | D82: 10596 | E82: 13 | F82: 10601 | G82: 14 | H82: 10605 | I82: 24 | J82: 10629 | K82: 1 | L82: 11112
A83: 12 | B83: 10729 | C83: 13 | D83: 10739 | E83: 13 | F83: 10744 | G83: 14 | H83: 10757 | I83: 13 | J83: 10762 | K83: 0 | L83: 11111
A84: 12 | B84: 10861 | C84: 13 | D84: 10866 | E84: 13 | F84: 10871 | G84: 14 | H84: 10876 | I84: 13 | J84: 10884 | K84: 0 | L84: 11111
A85: 12 | B85: 10983 | C85: 13 | D85: 10988 | E85: 13 | F85: 10993 | G85: 14 | H85: 10999 | I85: 13 | J85: 11004 | K85: 0 | L85: 11111
A86: 12 | B86: 11104 | C86: 13 | D86: 11108 | E86: 13 | F86: 11113 | G86: 14 | H86: 11118 | I86: 13 | J86: 11126 | K86: 0 | L86: 11111
A87: 12 | B87: 11225 | C87: 13 | D87: 11230 | E87: 13 | F87: 11235 | G87: 14 | H87: 11239 | I87: 13 | J87: 11245 | K87: 0 | L87: 11111
A88: 12 | B88: 11344 | C88: 13 | D88: 11350 | E88: 13 | F88: 11367 | G88: 14 | H88: 11373 | I88: 13 | J88: 11379 | K88: 1 | L88: 11111
A89: 12 | B89: 11474 | C89: 13 | D89: 11479 | E89: 13 | F89: 11484 | G89: 14 | H89: 11490 | I89: 13 | J89: 11495 | K89: 0 | L89: 11111
A90: 12 | B90: 11600 | C90: 13 | D90: 11605 | E90: 13 | F90: 11610 | G90: 14 | H90: 11615 | I90: 24 | J90: 11634 | K90: 0 | L90: 11112
A91: 12 | B91: 11740 | C91: 13 | D91: 11745 | E91: 13 | F91: 11754 | G91: 14 | H91: 11759 | I91: 24 | J91: 11780 | K91: 0 | L91: 11112
A92: 12 | B92: 11903 | C92: 13 | D92: 11922 | E92: 13 | F92: 11927 | G92: 23 | H92: 11941 | I92: 24 | J92: 11949 | K92: 0 | L92: 11122
A93: 12 | B93: 12052 | C93: 13 | D93: 12057 | E93: 13 | F93: 12062 | G93: 14 | H93: 12076 | I93: 13 | J93: 12085 | K93: 0 | L93: 11111
A94: 12 | B94: 12184 | C94: 13 | D94: 12194 | E94: 13 | F94: 12198 | G94: 14 | H94: 12203 | I94: 24 | J94: 12226 | K94: 0 | L94: 11112
A95: 12 | B95: 12332 | C95: 13 | D95: 12336 | E95: 13 | F95: 12341 | G95: 14 | H95: 12346 | I95: 13 | J95: 12352 | K95: 1 | L95: 11111
A96: 12 | B96: 12448 | C96: 13 | D96: 12462 | E96: 13 | F96: 12467 | G96: 23 | H96: 12497 | I96: 24 | J96: 12504 | K96: 0 | L96: 11122
A97: 12 | B97: 12603 | C97: 13 | D97: 12607 | E97: 13 | F97: 12612 | G97: 14 | H97: 12617 | I97: 24 | J97: 12641 | K97: 0 | L97: 11112
A98: 12 | B98: 12749 | C98: 13 | D98: 12754 | E98: 13 | F98: 12763 | G98: 14 | H98: 12768 | I98: 13 | J98: 12781 | K98: 0 | L98: 11111
A99: 12 | B99: 12875 | C99: 13 | D99: 12879 | E99: 13 | F99: 12883 | G99: 14 | H99: 12887 | I99: 13 | J99: 12891 | K99: 0 | L99: 11111
A100: 12 | B100: 12990 | C100: 13 | D100: 12995 | E100: 13 | F100: 13000 | G100: 14 | H100: 13005 | I100: 13 | J100: 13010 | K100: 0 | L100: 11111
A101: 12 | B101: 13110 | C101: 13 | D101: 13114 | E101: 13 | F101: 13119 | G101: 14 | H101: 13125 | I101: 13 | J101: 13130 | K101: 0 | L101: 11111
A102: 12 | B102: 13229 | C102: 13 | D102: 13234 | E102: 13 | F102: 13239 | G102: 14 | H102: 13243 | I102: 13 | J102: 13248 | K102: 0 | L102: 11111
A103: 12 | B103: 13356 | C103: 13 | D103: 13366 | E103: 13 | F103: 13370 | G103: 23 | H103: 13386 | I103: 24 | J103: 13399 | K103: 0 | L103: 11122
A104: 12 | B104: 13511 | C104: 13 | D104: 13516 | E104: 13 | F104: 13524 | G104: 14 | H104: 13530 | I104: 13 | J104: 13539 | K104: 1 | L104: 11111
A105: 12 | B105: 13641 | C105: 13 | D105: 13646 | E105: 13 | F105: 13656 | G105: 14 | H105: 13661 | I105: 13 | J105: 13666 | K105: 0 | L105: 11111
A106: 12 | B106: 13770 | C106: 13 | D106: 13782 | E106: 13 | F106: 13788 | G106: 14 | H106: 13793 | I106: 13 | J106: 13799 | K106: 0 | L106: 11111
A107: 12 | B107: 13898 | C107: 13 | D107: 13903 | E107: 13 | F107: 13908 | G107: 14 | H107: 13914 | I107: 13 | J107: 13927 | K107: 1 | L107: 11111
A108: 12 | B108: 14020 | C108: 13 | D108: 14025 | E108: 13 | F108: 14030 | G108: 14 | H108: 14034 | I108: 13 | J108: 14039 | K108: 0 | L108: 11111
A109: 12 | B109: 14146 | C109: 13 | D109: 14152 | E109: 13 | F109: 14157 | G109: 14 | H109: 14166 | I109: 13 | J109: 14171 | K109: 0 | L109: 11111
A110: 12 | B110: 14278 | C110: 13 | D110: 14283 | E110: 13 | F110: 14288 | G110: 14 | H110: 14294 | I110: 13 | J110: 14311 | K110: 0 | L110: 11111
A111: 12 | B111: 14427 | C111: 13 | D111: 14433 | E111: 13 | F111: 14440 | G111: 14 | H111: 14452 | I111: 13 | J111: 14465 | K111: 0 | L111: 11111
A112: 12 | B112: 14575 | C112: 13 | D112: 14580 | E112: 13 | F112: 14586 | G112: 14 | H112: 14595 | I112: 13 | J112: 14600 | K112: 0 | L112: 11111
A113: 12 | B113: 14700 | C113: 13 | D113: 14706 | E113: 13 | F113: 14711 | G113: 14 | H113: 14715 | I113: 13 | J113: 14725 | K113: 0 | L113: 11111
A114: 12 | B114: 14834 | C114: 13 | D114: 14839 | E114: 13 | F114: 14844 | G114: 14 | H114: 14851 | I114: 13 | J114: 14857 | K114: 1 | L114: 11111
A115: 12 | B115: 14962 | C115: 13 | D115: 14967 | E115: 13 | F115: 14978 | G115: 14 | H115: 14994 | I115: 13 | J115: 15005 | K115: 0 | L115: 11111
A116: 12 | B116: 15113 | C116: 13 | D116: 15117 | E116: 13 | F116: 15123 | G116: 14 | H116: 15127 | I116: 13 | J116: 15135 | K116: 0 | L116: 11111
A117: 12 | B117: 15247 | C117: 13 | D117: 15251 | E117: 13 | F117: 15261 | G117: 14 | H117: 15272 | I117: 13 | J117: 15277 | K117: 0 | L117: 11111
A118: 12 | B118: 15379 | C118: 13 | D118: 15389 | E118: 13 | F118: 15395 | G118: 14 | H118: 15399 | I118: 13 | J118: 15411 | K118: 0 | L118: 11111
A119: 12 | B119: 15511 | C119: 13 | D119: 15516 | E119: 13 | F119: 15523 | G119: 14 | H119: 15533 | I119: 13 | J119: 15539 | K119: 0 | L119: 11111
A120: 12 | B120: 15647 | C120: 13 | D120: 15654 | E120: 13 | F120: 15659 | G120: 14 | H120: 15670 | I120: 13 | J120: 15674 | K120: 1 | L120: 11111
A121: 12 | B121: 15798 | C121: 13 | D121: 15803 | E121: 13 | F121: 15810 | G121: 14 | H121: 15824 | I121: 13 | J121: 15829 | K121: 1 | L121: 11111
A122: 12 | B122: 15927 | C122: 13 | D122: 15941 | E122: 13 | F122: 15947 | G122: 23 | H122: 15988 | I122: 24 | J122: 15995 | K122: 1 | L122: 11122
A123: 12 | B123: 16095 | C123: 13 | D123: 16100 | E123: 13 | F123: 16109 | G123: 14 | H123: 16114 | I123: 13 | J123: 16118 | K123: 0 | L123: 11111
A124: 12 | B124: 16220 | C124: 13 | D124: 16226 | E124: 13 | F124: 16231 | G124: 14 | H124: 16236 | I124: 13 | J124: 16241 | K124: 0 | L124: 11111
A125: 12 | B125: 16341 | C125: 13 | D125: 16345 | E125: 13 | F125: 16349 | G125: 14 | H125: 16357 | I125: 13 | J125: 16361 | K125: 1 | L125: 11111
A126: 12 | B126: 16467 | C126: 13 | D126: 16477 | E126: 13 | F126: 16482 | G126: 14 | H126: 16489 | I126: 13 | J126: 16494 | K126: 0 | L126: 11111
A127: 12 | B127: 16595 | C127: 13 | D127: 16599 | E127: 13 | F127: 16604 | G127: 14 | H127: 16609 | I127: 13 | J127: 16614 | K127: 0 | L127: 11111
A128: 12 | B128: 16711 | C128: 13 | D128: 16717 | E128: 13 | F128: 16722 | G128: 14 | H128: 16726 | I128: 13 | J128: 16730 | K128: 0 | L128: 11111
A129: 12 | B129: 16841 | C129: 13 | D129: 16849 | E129: 13 | F129: 16853 | G129: 14 | H129: 16858 | I129: 13 | J129: 16871 | K129: 0 | L129: 11111
A130: 12 | B130: 16979 | C130: 13 | D130: 16992 | E130: 13 | F130: 16998 | G130: 14 | H130: 17003 | I130: 13 | J130: 17011 | K130: 0 | L130: 11111
A131: 12 | B131: 17110 | C131: 13 | D131: 17116 | E131: 13 | F131: 17121 | G131: 14 | H131: 17125 | I131: 13 | J131: 17130 | K131: 0 | L131: 11111
A132: 12 | B132: 17230 | C132: 13 | D132: 17235 | E132: 13 | F132: 17239 | G132: 14 | H132: 17244 | I132: 13 | J132: 17252 | K132: 0 | L132: 11111
A133: 12 | B133: 17355 | C133: 13 | D133: 17361 | E133: 13 | F133: 17366 | G133: 14 | H133: 17372 | I133: 13 | J133: 17381 | K133: 1 | L133: 11111
A134: 12 | B134: 17484 | C134: 13 | D134: 17492 | E134: 13 | F134: 17498 | G134: 14 | H134: 17503 | I134: 13 | J134: 17508 | K134: 0 | L134: 11111
A135: 12 | B135: 17609 | C135: 13 | D135: 17617 | E135: 13 | F135: 17622 | G135: 14 | H135: 17626 | I135: 13 | J135: 17636 | K135: 0 | L135: 11111
A136: 12 | B136: 17741 | C136: 13 | D136: 17746 | E136: 13 | F136: 17751 | G136: 14 | H136: 17756 | I136: 13 | J136: 17762 | K136: 0 | L136: 11111
A137: 12 | B137: 17868 | C137: 13 | D137: 17874 | E137: 13 | F137: 17878 | G137: 14 | H137: 17883 | I137: 13 | J137: 17888 | K137: 0 | L137: 11111
A138: 12 | B138: 17996 | C138: 13 | D138: 18001 | E138: 13 | F138: 18013 | G138: 14 | H138: 18021 | I138: 13 | J138: 18036 | K138: 0 | L138: 11111
A139: 12 | B139: 18139 | C139: 13 | D139: 18143 | E139: 13 | F139: 18147 | G139: 14 | H139: 18158 | I139: 13 | J139: 18179 | K139: 0 | L139: 11111
A140: 12 | B140: 18279 | C140: 13 | D140: 18283 | E140: 13 | F140: 18288 | G140: 14 | H140: 18295 | I140: 13 | J140: 18300 | K140: 0 | L140: 11111
A141: 12 | B141: 18407 | C141: 13 | D141: 18411 | E141: 13 | F141: 18417 | G141: 14 | H141: 18422 | I141: 13 | J141: 18432 | K141: 0 | L141: 11111
A142: 12 | B142: 18537 | C142: 13 | D142: 18548 | E142: 13 | F142: 18565 | G142: 14 | H142: 18586 | I142: 13 | J142: 18598 | K142: 1 | L142: 11111
A143: 12 | B143: 18705 | C143: 13 | D143: 18714 | E143: 13 | F143: 18720 | G143: 14 | H143: 18734 | I143: 13 | J143: 18739 | K143: 0 | L143: 11111
A144: 12 | B144: 18842 | C144: 13 | D144: 18852 | E144: 13 | F144: 18857 | G144: 14 | H144: 18863 | I144: 13 | J144: 18874 | K144: 0 | L144: 11111
A145: 12 | B145: 18979 | C145: 13 | D145: 18983 | E145: 13 | F145: 18994 | G145: 14 | H145: 18998 | I145: 13 | J145: 19007 | K145: 1 | L145: 11111
A146: 12 | B146: 19100 | C146: 13 | D146: 19105 | E146: 13 | F146: 19118 | G146: 14 | H146: 19122 | I146: 13 | J146: 19138 | K146: 0 | L146: 11111
A147: 12 | B147: 19236 | C147: 13 | D147: 19241 | E147: 13 | F147: 19246 | G147: 14 | H147: 19258 | I147: 13 | J147: 19273 | K147: 0 | L147: 11111
A148: 12 | B148: 19380 | C148: 13 | D148: 19385 | E148: 13 | F148: 19389 | G148: 14 | H148: 19398 | I148: 13 | J148: 19403 | K148: 0 | L148: 11111
A149: 12 | B149: 19519 | C149: 13 | D149: 19532 | E149: 13 | F149: 19537 | G149: 23 | H149: 19559 | I149: 24 | J149: 19578 | K149: 1 | L149: 11122
A150: 12 | B150: 19675 | C150: 13 | D150: 19685 | E150: 13 | F150: 19690 | G150: 14 | H150: 19695 | I150: 24 | J150: 19717 | K150: 0 | L150: 11112
A151: 12 | B151: 19833 | C151: 13 | D151: 19848 | E151: 13 | F151: 19853 | G151: 14 | H151: 19868 | I151: 13 | J151: 19873 | K151: 0 | L151: 11111
A152: 12 | B152: 19973 | C152: 13 | D152: 19978 | E152: 13 | F152: 19987 | G152: 14 | H152: 19992 | I152: 13 | J152: 19996 | K152: 0 | L152: 11111
A153: 12 | B153: 20108 | C153: 13 | D153: 20113 | E153: 13 | F153: 20117 | G153: 14 | H153: 20122 | I153: 13 | J153: 20127 | K153: 0 | L153: 11111
A154: 12 | B154: 20235 | C154: 13 | D154: 20240 | E154: 13 | F154: 20255 | G154: 14 | H154: 20264 | I154: 13 | J154: 20277 | K154: 0 | L154: 11111
A155: 12 | B155: 20376 | C155: 13 | D155: 20380 | E155: 13 | F155: 20384 | G155: 14 | H155: 20389 | I155: 13 | J155: 20393 | K155: 0 | L155: 11111
A156: 12 | B156: 20498 | C156: 13 | D156: 20508 | E156: 13 | F156: 20519 | G156: 14 | H156: 20537 | I156: 13 | J156: 20541 | K156: 0 | L156: 11111
A157: 12 | B157: 20646 | C157: 13 | D157: 20651 | E157: 13 | F157: 20655 | G157: 14 | H157: 20660 | I157: 13 | J157: 20664 | K157: 1 | L157: 11111
A158: 12 | B158: 20759 | C158: 13 | D158: 20764 | E158: 13 | F158: 20768 | G158: 14 | H158: 20773 | I158: 13 | J158: 20778 | K158: 0 | L158: 11111
A159: 12 | B159: 20878 | C159: 13 | D159: 20882 | E159: 13 | F159: 20894 | G159: 14 | H159: 20902 | I159: 13 | J159: 20908 | K159: 0 | L159: 11111
A160: 12 | B160: 21023 | C160: 13 | D160: 21035 | E160: 13 | F160: 21045 | G160: 14 | H160: 21049 | I160: 13 | J160: 21053 | K160: 0 | L160: 11111
A161: 12 | B161: 21159 | C161: 13 | D161: 21164 | E161: 13 | F161: 21174 | G161: 14 | H161: 21184 | I161: 13 | J161: 21191 | K161: 1 | L161: 11111
A162: 12 | B162: 21292 | C162: 13 | D162: 21303 | E162: 13 | F162: 21307 | G162: 14 | H162: 21312 | I162: 13 | J162: 21321 | K162: 0 | L162: 11111
A163: 12 | B163: 21424 | C163: 13 | D163: 21434 | E163: 13 | F163: 21444 | G163: 14 | H163: 21455 | I163: 13 | J163: 21463 | K163: 0 | L163: 11111
A164: 12 | B164: 21574 | C164: 13 | D164: 21579 | E164: 13 | F164: 21591 | G164: 14 | H164: 21596 | I164: 13 | J164: 21601 | K164: 0 | L164: 11111
A165: 12 | B165: 21701 | C165: 13 | D165: 21706 | E165: 13 | F165: 21711 | G165: 14 | H165: 21716 | I165: 13 | J165: 21727 | K165: 1 | L165: 11111
A166: 12 | B166: 21826 | C166: 13 | D166: 21832 | E166: 13 | F166: 21842 | G166: 14 | H166: 21849 | I166: 13 | J166: 21857 | K166: 0 | L166: 11111
A167: 12 | B167: 21960 | C167: 13 | D167: 21969 | E167: 13 | F167: 21974 | G167: 14 | H167: 21981 | I167: 13 | J167: 21985 | K167: 0 | L167: 11111
A168: 12 | B168: 22092 | C168: 13 | D168: 22098 | E168: 13 | F168: 22102 | G168: 14 | H168: 22108 | I168: 13 | J168: 22114 | K168: 0 | L168: 11111
A169: 12 | B169: 22222 | C169: 13 | D169: 22227 | E169: 13 | F169: 22233 | G169: 14 | H169: 22238 | I169: 13 | J169: 22243 | K169: 0 | L169: 11111
A170: 12 | B170: 22343 | C170: 13 | D170: 22348 | E170: 13 | F170: 22353 | G170: 14 | H170: 22358 | I170: 13 | J170: 22366 | K170: 1 | L170: 11111
A171: 12 | B171: 22470 | C171: 13 | D171: 22485 | E171: 13 | F171: 22490 | G171: 23 | H171: 22513 | I171: 24 | J171: 22519 | K171: 0 | L171: 11122
A172: 12 | B172: 22624 | C172: 13 | D172: 22629 | E172: 13 | F172: 22634 | G172: 14 | H172: 22649 | I172: 13 | J172: 22654 | K172: 0 | L172: 11111
A173: 12 | B173: 22753 | C173: 13 | D173: 22757 | E173: 13 | F173: 22762 | G173: 14 | H173: 22767 | I173: 13 | J173: 22771 | K173: 0 | L173: 11111
A174: 12 | B174: 22872 | C174: 13 | D174: 22877 | E174: 13 | F174: 22887 | G174: 14 | H174: 22896 | I174: 13 | J174: 22907 | K174: 0 | L174: 11111
A175: 12 | B175: 23014 | C175: 13 | D175: 23020 | E175: 13 | F175: 23024 | G175: 14 | H175: 23046 | I175: 13 | J175: 23062 | K175: 1 | L175: 11111
A176: 12 | B176: 23161 | C176: 13 | D176: 23165 | E176: 13 | F176: 23170 | G176: 14 | H176: 23175 | I176: 13 | J176: 23190 | K176: 0 | L176: 11111
A177: 12 | B177: 23297 | C177: 13 | D177: 23302 | E177: 13 | F177: 23306 | G177: 14 | H177: 23311 | I177: 13 | J177: 23316 | K177: 1 | L177: 11111
A178: 12 | B178: 23411 | C178: 13 | D178: 23420 | E178: 13 | F178: 23425 | G178: 14 | H178: 23430 | I178: 13 | J178: 23435 | K178: 1 | L178: 11111
A179: 12 | B179: 23534 | C179: 13 | D179: 23539 | E179: 13 | F179: 23544 | G179: 14 | H179: 23550 | I179: 13 | J179: 23556 | K179: 0 | L179: 11111
A180: 12 | B180: 23662 | C180: 13 | D180: 23671 | E180: 13 | F180: 23679 | G180: 14 | H180: 23692 | I180: 13 | J180: 23711 | K180: 0 | L180: 11111
A181: 12 | B181: 23820 | C181: 13 | D181: 23827 | E181: 13 | F181: 23831 | G181: 14 | H181: 23837 | I181: 13 | J181: 23843 | K181: 0 | L181: 11111
A182: 12 | B182: 23946 | C182: 13 | D182: 23951 | E182: 13 | F182: 23956 | G182: 14 | H182: 23960 | I182: 13 | J182: 23965 | L182: 11111

Sheet !MC02A20.010
A1: Report for:!MC02A20.010
A2: Date: | B2: <date>
A3: Hen: | B3: <hen> | F3: Correct Sequence | G3: =Start!J2 -> 21121 | P3: Total Sequences in Data | Q3: =4994-COUNTBLANK(L7:L5000) -> 182 | V3: Total Sequences in Block Data | W3: =COUNTA(L7:L36) -> 30 | AA3: Total Sequences in Block Data | AB3: =COUNTA(L37:L67) -> 31 | AF3: Total Sequences in Block Data | AG3: =COUNTA(L68:L97) -> 30 | AK3: Total Sequences in Block Data | AL3: =COUNTA(L98:L127) -> 30 | AP3: Total Sequences in Block Data | AQ3: =COUNTA(L128:L158) -> 31 | AU3: Total Sequences in Block Data | AV3: =COUNTA(L159:L188) -> 30
P4: Total Sequences in Summary | Q4: =SUM(O7:O38) -> 182 | V4: Total Sequences in Block Summary | W4: =SUM(U7:U38) -> 30 | AA4: Total Sequences in Block Summary | AB4: =SUM(Z7:Z38) -> 31 | AF4: Total Sequences in Block Summary | AG4: =SUM(AE7:AE38) -> 30 | AK4: Total Sequences in Block Summary | AL4: =SUM(AJ7:AJ38) -> 30 | AP4: Total Sequences in Block Summary | AQ4: =SUM(AO7:AO38) -> 31 | AU4: Total Sequences in Block Summary | AV4: =SUM(AT7:AT38) -> 30
T5: Block 1 | Y5: Block 2 | AD5: Block 3 | AI5: Block 4 | AN5: Block 5 | AS5: Block 6
A6: Sequence Component 1 | B6: Time 1 | C6: Sequence Component 2 | D6: Time 2 | E6: Sequence Component 3 | F6: Time 3 | G6: Sequence Component 4 | H6: Time 4 | I6: Sequence Component 5 | J6: Time 5 | K6: Correct? 0=No 1=Yes | L6: Sequence | N6: Frequency | P6: Relative Frequency | Q6: Variability | T6: Frequency | V6: Relative Frequency | W6: Variability | Y6: Frequency | AA6: Relative Frequency | AB6: Variability | AD6: Frequency | AF6: Relative Frequency | AG6: Variability | AI6: Frequency | AK6: Relative Frequency | AL6: Variability | AN6: Frequency | AP6: Relative Frequency | AQ6: Variability | AS6: Frequency | AU6: Relative Frequency | AV6: Variability
A7: 12 | B7: 18 | C7: 13 | D7: 30 | E7: 13 | F7: 57 | G7: 14 | H7: 64 | I7: 13 | J7: 69 | K7: 0 | L7: 11111 | N7: 11111 | O7: =COUNTIF($L$7:$L$500,N7) -> 171 | P7: =O7/$Q$4 -> 0.9395604396 | Q7: =IF(P7=0,0,(P7*((LOG(P7))/LOG(2)))) -> -0.08450606279 | T7: =N7 -> 11111 | U7: =COUNTIF(L7:L36,T7) -> 25 | V7: =U7/(W4-U25) -> 0.8333333333 | W7: =IF(V7=0,0,(V7*((LOG(V7))/LOG(2)))) -> -0.2191953382 | Y7: =N7 -> 11111 | Z7: =COUNTIF(L37:L67,Y7) -> 30 | AA7: =Z7/(AB4-Z25) -> 0.9677419355 | AB7: =IF(AA7=0,0,(AA7*((LOG(AA7))/LOG(2)))) -> -0.04577972398 | AD7: =N7 -> 11111 | AE7: =COUNTIF(L68:L97,AD7) -> 28 | AF7: =AE7/(AG4-AE25) -> 0.9333333333 | AG7: =IF(AF7=0,0,(AF7*((LOG(AF7))/LOG(2)))) -> -0.09289996198 | AI7: =N7 -> 11111 | AJ7: =COUNTIF(L98:L127,AI7) -> 29 | AK7: =AJ7/(AL4-AJ25) -> 0.9666666667 | AL7: =IF(AK7=0,0,(AK7*((LOG(AK7))/LOG(2)))) -> -0.04727928046 | AN7: =N7 -> 11111 | AO7: =COUNTIF(L128:L158,AN7) -> 30 | AP7: =AO7/(AQ4-AO25) -> 0.9677419355 | AQ7: =IF(AP7=0,0,(AP7*((LOG(AP7))/LOG(2)))) -> -0.04577972398 | AS7: =N7 -> 11111 | AT7: =COUNTIF(L159:L188,AS7) -> 29 | AU7: =AT7/(AV4-AT25) -> 0.9666666667 | AV7: =IF(AU7=0,0,(AU7*((LOG(AU7))/LOG(2)))) -> -0.04727928046
A8: 12 | B8: 168 | C8: 13 | D8: 174 | E8: 13 | F8: 179 | G8: 14 | H8: 185 | I8: 13 | J8: 192 | K8: 0 | L8: 11111 | N8: 11112 | O8: =COUNTIF($L$7:$L$500,N8) -> 2 | P8: =O8/$Q$4 -> 0.01098901099 | Q8: =IF(P8=0,0,(P8*((LOG(P8))/LOG(2)))) -> -0.07151422682 | T8: =N8 -> 11112 | U8: =COUNTIF(L7:L36,T8) -> 1 | V8: =U8/(W4-U25) -> 0.03333333333 | W8: =IF(V8=0,0,(V8*((LOG(V8))/LOG(2)))) -> -0.1635630199 | Y8: =N8 -> 11112 | Z8: =COUNTIF(L37:L67,Y8) -> 0 | AA8: =Z8/(AB4-Z25) -> 0 | AB8: =IF(AA8=0,0,(AA8*((LOG(AA8))/LOG(2)))) -> 0 | AD8: =N8 -> 11112 | AE8: =COUNTIF(L68:L97,AD8) -> 1 | AF8: =AE8/(AG4-AE25) -> 0.03333333333 | AG8: =IF(AF8=0,0,(AF8*((LOG(AF8))/LOG(2)))) -> -0.1635630199 | AI8: =N8 -> 11112 | AJ8: =COUNTIF(L98:L127,AI8) -> 0 | AK8: =AJ8/(AL4-AJ25) -> 0 | AL8: =IF(AK8=0,0,(AK8*((LOG(AK8))/LOG(2)))) -> 0 | AN8: =N8 -> 11112 | AO8: =COUNTIF(L128:L158,AN8) -> 0 | AP8: =AO8/(AQ4-AO25) -> 0 | AQ8: =IF(AP8=0,0,(AP8*((LOG(AP8))/LOG(2)))) -> 0 | AS8: =N8 -> 11112 | AT8: =COUNTIF(L159:L188,AS8) -> 0 | AU8: =AT8/(AV4-AT25) -> 0 | AV8: =IF(AU8=0,0,(AU8*((LOG(AU8))/LOG(2)))) -> 0
A9: 12 | B9: 291 | C9: 13 | D9: 297 | E9: 13 | F9: 303 | G9: 23 | H9: 315 | I9: 24 | J9: 324 | K9: 0 | L9: 11122 | N9: 11121 | O9: =COUNTIF($L$7:$L$500,N9) -> 0 | P9: =O9/$Q$4 -> 0 | Q9: =IF(P9=0,0,(P9*((LOG(P9))/LOG(2)))) -> 0 | T9: =N9 -> 11121 | U9: =COUNTIF(L7:L36,T9) -> 0 | V9: =U9/(W4-U25) -> 0 | W9: =IF(V9=0,0,(V9*((LOG(V9))/LOG(2)))) -> 0 | Y9: =N9 -> 11121 | Z9: =COUNTIF(L37:L67,Y9) -> 0 | AA9: =Z9/(AB4-Z25) -> 0 | AB9: =IF(AA9=0,0,(AA9*((LOG(AA9))/LOG(2)))) -> 0 | AD9: =N9 -> 11121 | AE9: =COUNTIF(L68:L97,AD9) -> 0 | AF9: =AE9/(AG4-AE25) -> 0 | AG9: =IF(AF9=0,0,(AF9*((LOG(AF9))/LOG(2)))) -> 0 | AI9: =N9 -> 11121 | AJ9: =COUNTIF(L98:L127,AI9) -> 0 | AK9: =AJ9/(AL4-AJ25) -> 0 | AL9: =IF(AK9=0,0,(AK9*((LOG(AK9))/LOG(2)))) -> 0 | AN9: =N9 -> 11121 | AO9: =COUNTIF(L128:L158,AN9) -> 0 | AP9: =AO9/(AQ4-AO25) -> 0 | AQ9: =IF(AP9=0,0,(AP9*((LOG(AP9))/LOG(2)))) -> 0 | AS9: =N9 -> 11121 | AT9: =COUNTIF(L159:L188,AS9) -> 0 | AU9: =AT9/(AV4-AT25) -> 0 | AV9: =IF(AU9=0,0,(AU9*((LOG(AU9))/LOG(2)))) -> 0
A10: 12 | B10: 447 | C10: 13 | D10: 467 | E10: 13 | F10: 479 | G10: 14 | H10: 489 | I10: 13 | J10: 494 | K10: 0 | L10: 11111 | N10: 11122 | O10: =COUNTIF($L$7:$L$500,N10) -> 3 | P10: =O10/$Q$4 -> 0.01648351648 | Q10: =IF(P10=0,0,(P10*((LOG(P10))/LOG(2)))) -> -0.0976291012 | T10: =N10 -> 11122 | U10: =COUNTIF(L7:L36,T10) -> 2 | V10: =U10/(W4-U25) -> 0.06666666667 | W10: =IF(V10=0,0,(V10*((LOG(V10))/LOG(2)))) -> -0.260459373 | Y10: =N10 -> 11122 | Z10: =COUNTIF(L37:L67,Y10) -> 0 | AA10: =Z10/(AB4-Z25) -> 0 | AB10: =IF(AA10=0,0,(AA10*((LOG(AA10))/LOG(2)))) -> 0 | AD10: =N10 -> 11122 | AE10: =COUNTIF(L68:L97,AD10) -> 0 | AF10: =AE10/(AG4-AE25) -> 0 | AG10: =IF(AF10=0,0,(AF10*((LOG(AF10))/LOG(2)))) -> 0 | AI10: =N10 -> 11122 | AJ10: =COUNTIF(L98:L127,AI10) -> 0 | AK10: =AJ10/(AL4-AJ25) -> 0 | AL10: =IF(AK10=0,0,(AK10*((LOG(AK10))/LOG(2)))) -> 0 | AN10: =N10 -> 11122 | AO10: =COUNTIF(L128:L158,AN10) -> 1 | AP10: =AO10/(AQ4-AO25) -> 0.03225806452 | AQ10: =IF(AP10=0,0,(AP10*((LOG(AP10))/LOG(2)))) -> -0.1598127842 | AS10: =N10 -> 11122 | AT10: =COUNTIF(L159:L188,AS10) -> 0 | AU10: =AT10/(AV4-AT25) -> 0 | AV10: =IF(AU10=0,0,(AU10*((LOG(AU10))/LOG(2)))) -> 0
A11: 12 | B11: 595 | C11: 13 | D11: 601 | E11: 13 | F11: 609 | G11: 23 | H11: 624 | I11: 24 | J11: 633 | K11: 0 | L11: 11122 | N11: 11211 | O11: =COUNTIF($L$7:$L$500,N11) -> 0 | P11: =O11/$Q$4 -> 0 | Q11: =IF(P11=0,0,(P11*((LOG(P11))/LOG(2)))) -> 0 | T11: =N11 -> 11211 | U11: =COUNTIF(L7:L36,T11) -> 0 | V11: =U11/(W4-U25) -> 0 | W11: =IF(V11=0,0,(V11*((LOG(V11))/LOG(2)))) -> 0 | Y11: =N11 -> 11211 | Z11: =COUNTIF(L37:L67,Y11) -> 0 | AA11: =Z11/(AB4-Z25) -> 0 | AB11: =IF(AA11=0,0,(AA11*((LOG(AA11))/LOG(2)))) -> 0 | AD11: =N11 -> 11211 | AE11: =COUNTIF(L68:L97,AD11) -> 0 | AF11: =AE11/(AG4-AE25) -> 0 | AG11: =IF(AF11=0,0,(AF11*((LOG(AF11))/LOG(2)))) -> 0 | AI11: =N11 -> 11211 | AJ11: =COUNTIF(L98:L127,AI11) -> 0 | AK11: =AJ11/(AL4-AJ25) -> 0 | AL11: =IF(AK11=0,0,(AK11*((LOG(AK11))/LOG(2)))) -> 0 | AN11: =N11 -> 11211 | AO11: =COUNTIF(L128:L158,AN11) -> 0 | AP11: =AO11/(AQ4-AO25) -> 0 | AQ11: =IF(AP11=0,0,(AP11*((LOG(AP11))/LOG(2)))) -> 0 | AS11: =N11 -> 11211 | AT11: =COUNTIF(L159:L188,AS11) -> 0 | AU11: =AT11/(AV4-AT25) -> 0 | AV11: =IF(AU11=0,0,(AU11*((LOG(AU11))/LOG(2)))) -> 0
A12: 12 | B12: 742 | C12: 13 | D12: 765 | E12: 13 | F12: 772 | G12: 14 | H12: 783 | I12: 13 | J12: 788 | K12: 1 | L12: 11111 | N12: 11212 | O12: =COUNTIF($L$7:$L$500,N12) -> 0 | P12: =O12/$Q$4 -> 0 | Q12: =IF(P12=0,0,(P12*((LOG(P12))/LOG(2)))) -> 0 | T12: =N12 -> 11212 | U12: =COUNTIF(L7:L36,T12) -> 0 | V12: =U12/(W4-U25) -> 0 | W12: =IF(V12=0,0,(V12*((LOG(V12))/LOG(2)))) -> 0 | Y12: =N12 -> 11212 | Z12: =COUNTIF(L37:L67,Y12) -> 0 | AA12: =Z12/(AB4-Z25) -> 0 | AB12: =IF(AA12=0,0,(AA12*((LOG(AA12))/LOG(2)))) -> 0 | AD12: =N12 -> 11212 | AE12: =COUNTIF(L68:L97,AD12) -> 0 | AF12: =AE12/(AG4-AE25) -> 0 | AG12: =IF(AF12=0,0,(AF12*((LOG(AF12))/LOG(2)))) -> 0 | AI12: =N12 -> 11212 | AJ12: =COUNTIF(L98:L127,AI12) -> 0 | AK12: =AJ12/(AL4-AJ25) -> 0 | AL12: =IF(AK12=0,0,(AK12*((LOG(AK12))/LOG(2)))) -> 0 | AN12: =N12 -> 11212 | AO12: =COUNTIF(L128:L158,AN12) -> 0 | AP12: =AO12/(AQ4-AO25) -> 0 | AQ12: =IF(AP12=0,0,(AP12*((LOG(AP12))/LOG(2)))) -> 0 | AS12: =N12 -> 11212 | AT12: =COUNTIF(L159:L188,AS12) -> 0 | AU12: =AT12/(AV4-AT25) -> 0 | AV12: =IF(AU12=0,0,(AU12*((LOG(AU12))/LOG(2)))) -> 0
A13: 12 | B13: 886 | C13: 13 | D13: 896 | E13: 24 | F13: 912 | G13: 23 | H13: 918 | I13: 24 | J13: 924 | K13: 0 | L13: 11222 | N13: 11221 | O13: =COUNTIF($L$7:$L$500,N13) -> 1 | P13: =O13/$Q$4 -> 0.005494505495 | Q13: =IF(P13=0,0,(P13*((LOG(P13))/LOG(2)))) -> -0.0412516189 | T13: =N13 -> 11221 | U13: =COUNTIF(L7:L36,T13) -> 1 | V13: =U13/(W4-U25) -> 0.03333333333 | W13: =IF(V13=0,0,(V13*((LOG(V13))/LOG(2)))) -> -0.1635630199 | Y13: =N13 -> 11221 | Z13: =COUNTIF(L37:L67,Y13) -> 0 | AA13: =Z13/(AB4-Z25) -> 0 | AB13: =IF(AA13=0,0,(AA13*((LOG(AA13))/LOG(2)))) -> 0 | AD13: =N13 -> 11221 | AE13: =COUNTIF(L68:L97,AD13) -> 0 | AF13: =AE13/(AG4-AE25) -> 0 | AG13: =IF(AF13=0,0,(AF13*((LOG(AF13))/LOG(2)))) -> 0 | AI13: =N13 -> 11221 | AJ13: =COUNTIF(L98:L127,AI13) -> 0 | AK13: =AJ13/(AL4-AJ25) -> 0 | AL13: =IF(AK13=0,0,(AK13*((LOG(AK13))/LOG(2)))) -> 0 | AN13: =N13 -> 11221 | AO13: =COUNTIF(L128:L158,AN13) -> 0 | AP13: =AO13/(AQ4-AO25) -> 0 | AQ13: =IF(AP13=0,0,(AP13*((LOG(AP13))/LOG(2)))) -> 0 | AS13: =N13 -> 11221 | AT13: =COUNTIF(L159:L188,AS13) -> 0 | AU13: =AT13/(AV4-AT25) -> 0 | AV13: =IF(AU13=0,0,(AU13*((LOG(AU13))/LOG(2)))) -> 0
A14: 12 | B14: 1025 | C14: 13 | D14: 1040 | E14: 24 | F14: 1055 | G14: 23 | H14: 1063 | I14: 13 | J14: 1083 | K14: 0 | L14: 11221 | N14: 11222 | O14: =COUNTIF($L$7:$L$500,N14) -> 3 | P14: =O14/$Q$4 -> 0.01648351648 | Q14: =IF(P14=0,0,(P14*((LOG(P14))/LOG(2)))) -> -0.0976291012 | T14: =N14 -> 11222 | U14: =COUNTIF(L7:L36,T14) -> 1 | V14: =U14/(W4-U25) -> 0.03333333333 | W14: =IF(V14=0,0,(V14*((LOG(V14))/LOG(2)))) -> -0.1635630199 | Y14: =N14 -> 11222 | Z14: =COUNTIF(L37:L67,Y14) -> 1 | AA14: =Z14/(AB4-Z25) -> 0.03225806452 | AB14: =IF(AA14=0,0,(AA14*((LOG(AA14))/LOG(2)))) -> -0.1598127842 | AD14: =N14 -> 11222 | AE14: =COUNTIF(L68:L97,AD14) -> 0 | AF14: =AE14/(AG4-AE25) -> 0 | AG14: =IF(AF14=0,0,(AF14*((LOG(AF14))/LOG(2)))) -> 0 | AI14: =N14 -> 11222 | AJ14: =COUNTIF(L98:L127,AI14) -> 1 | AK14: =AJ14/(AL4-AJ25) -> 0.03333333333 | AL14: =IF(AK14=0,0,(AK14*((LOG(AK14))/LOG(2)))) -> -0.1635630199 | AN14: =N14 -> 11222 | AO14: =COUNTIF(L128:L158,AN14) -> 0 | AP14: =AO14/(AQ4-AO25) -> 0 | AQ14: =IF(AP14=0,0,(AP14*((LOG(AP14))/LOG(2)))) -> 0 | AS14: =N14 -> 11222 | AT14: =COUNTIF(L159:L188,AS14) -> 0 | AU14: =AT14/(AV4-AT25) -> 0 | AV14: =IF(AU14=0,0,(AU14*((LOG(AU14))/LOG(2)))) -> 0
A15: 12 | B15: 1186 | C15: 13 | D15: 1196 | E15: 13 | F15: 1201 | G15: 14 | H15: 1207 | I15: 13 | J15: 1216 | K15: 0 | L15: 11111 | N15: 12111 | O15: =COUNTIF($L$7:$L$500,N15) -> 0 | P15: =O15/$Q$4 -> 0 | Q15: =IF(P15=0,0,(P15*((LOG(P15))/LOG(2)))) -> 0 | T15: =N15 -> 12111 | U15: =COUNTIF(L7:L36,T15) -> 0 | V15: =U15/(W4-U25) -> 0 | W15: =IF(V15=0,0,(V15*((LOG(V15))/LOG(2)))) -> 0 | Y15: =N15 -> 12111 | Z15: =COUNTIF(L37:L67,Y15) -> 0 | AA15: =Z15/(AB4-Z25) -> 0 | AB15: =IF(AA15=0,0,(AA15*((LOG(AA15))/LOG(2)))) -> 0 | AD15: =N15 -> 12111 | AE15: =COUNTIF(L68:L97,AD15) -> 0 | AF15: =AE15/(AG4-AE25) -> 0 | AG15: =IF(AF15=0,0,(AF15*((LOG(AF15))/LOG(2)))) -> 0 | AI15: =N15 -> 12111 | AJ15: =COUNTIF(L98:L127,AI15) -> 0 | AK15: =AJ15/(AL4-AJ25) -> 0 | AL15: =IF(AK15=0,0,(AK15*((LOG(AK15))/LOG(2)))) -> 0 | AN15: =N15 -> 12111 | AO15: =COUNTIF(L128:L158,AN15) -> 0 | AP15: =AO15/(AQ4-AO25) -> 0 | AQ15: =IF(AP15=0,0,(AP15*((LOG(AP15))/LOG(2)))) -> 0 | AS15: =N15 -> 12111 | AT15: =COUNTIF(L159:L188,AS15) -> 0 | AU15: =AT15/(AV4-AT25) -> 0 | AV15: =IF(AU15=0,0,(AU15*((LOG(AU15))/LOG(2)))) -> 0
A16: 12 | B16: 1322 | C16: 13 | D16: 1327 | E16: 13 | F16: 1332 | G16: 14 | H16: 1341 | I16: 24 | J16: 1357 | K16: 0 | L16: 11112 | N16: 12112 | O16: =COUNTIF($L$7:$L$500,N16) -> 0 | P16: =O16/$Q$4 -> 0 | Q16: =IF(P16=0,0,(P16*((LOG(P16))/LOG(2)))) -> 0 | T16: =N16 -> 12112 | U16: =COUNTIF(L7:L36,T16) -> 0 | V16: =U16/(W4-U25) -> 0 | W16: =IF(V16=0,0,(V16*((LOG(V16))/LOG(2)))) -> 0 | Y16: =N16 -> 12112 | Z16: =COUNTIF(L37:L67,Y16) -> 0 | AA16: =Z16/(AB4-Z25) -> 0 | AB16: =IF(AA16=0,0,(AA16*((LOG(AA16))/LOG(2)))) -> 0 | AD16: =N16 -> 12112 | AE16: =COUNTIF(L68:L97,AD16) -> 0 | AF16: =AE16/(AG4-AE25) -> 0 | AG16: =IF(AF16=0,0,(AF16*((LOG(AF16))/LOG(2)))) -> 0 | AI16: =N16 -> 12112 | AJ16: =COUNTIF(L98:L127,AI16) -> 0 | AK16: =AJ16/(AL4-AJ25) -> 0 | AL16: =IF(AK16=0,0,(AK16*((LOG(AK16))/LOG(2)))) -> 0 | AN16: =N16 -> 12112 | AO16: =COUNTIF(L128:L158,AN16) -> 0 | AP16: =AO16/(AQ4-AO25) -> 0 | AQ16: =IF(AP16=0,0,(AP16*((LOG(AP16))/LOG(2)))) -> 0 | AS16: =N16 -> 12112 | AT16: =COUNTIF(L159:L188,AS16) -> 0 | AU16: =AT16/(AV4-AT25) -> 0 | AV16: =IF(AU16=0,0,(AU16*((LOG(AU16))/LOG(2)))) -> 0
A17: 12 | B17: 1458 | C17: 13 | D17: 1462 | E17: 13 | F17: 1468 | G17: 14 | H17: 1473 | I17: 13 | J17: 1480 | K17: 0 | L17: 11111 | N17: 12121 | O17: =COUNTIF($L$7:$L$500,N17) -> 0 | P17: =O17/$Q$4 -> 0 | Q17: =IF(P17=0,0,(P17*((LOG(P17))/LOG(2)))) -> 0 | T17: =N17 -> 12121 | U17: =COUNTIF(L7:L36,T17) -> 0 | V17: =U17/(W4-U25) -> 0 | W17: =IF(V17=0,0,(V17*((LOG(V17))/LOG(2)))) -> 0 | Y17: =N17 -> 12121 | Z17: =COUNTIF(L37:L67,Y17) -> 0 | AA17: =Z17/(AB4-Z25) -> 0 | AB17: =IF(AA17=0,0,(AA17*((LOG(AA17))/LOG(2)))) -> 0 | AD17: =N17 -> 12121 | AE17: =COUNTIF(L68:L97,AD17) -> 0 | AF17: =AE17/(AG4-AE25) -> 0 | AG17: =IF(AF17=0,0,(AF17*((LOG(AF17))/LOG(2)))) -> 0 | AI17: =N17 -> 12121 | AJ17: =COUNTIF(L98:L127,AI17) -> 0 | AK17: =AJ17/(AL4-AJ25) -> 0 | AL17: =IF(AK17=0,0,(AK17*((LOG(AK17))/LOG(2)))) -> 0 | AN17: =N17 -> 12121 | AO17: =COUNTIF(L128:L158,AN17) -> 0 | AP17: =AO17/(AQ4-AO25) -> 0 | AQ17: =IF(AP17=0,0,(AP17*((LOG(AP17))/LOG(2)))) -> 0 | AS17: =N17 -> 12121 | AT17: =COUNTIF(L159:L188,AS17) -> 0 | AU17: =AT17/(AV4-AT25) -> 0 | AV17: =IF(AU17=0,0,(AU17*((LOG(AU17))/LOG(2)))) -> 0
A18: 12 | B18: 1600 | C18: 13 | D18: 1614 | E18: 13 | F18: 1619 | G18: 14 | H18: 1628 | I18: 13 | J18: 1633 | K18: 0 | L18: 11111 | N18: 12122 | O18: =COUNTIF($L$7:$L$500,N18) -> 0 | P18: =O18/$Q$4 -> 0 | Q18: =IF(P18=0,0,(P18*((LOG(P18))/LOG(2)))) -> 0 | T18: =N18 -> 12122 | U18: =COUNTIF(L7:L36,T18) -> 0 | V18: =U18/(W4-U25) -> 0 | W18: =IF(V18=0,0,(V18*((LOG(V18))/LOG(2)))) -> 0 | Y18: =N18 -> 12122 | Z18: =COUNTIF(L37:L67,Y18) -> 0 | AA18: =Z18/(AB4-Z25) -> 0 | AB18: =IF(AA18=0,0,(AA18*((LOG(AA18))/LOG(2)))) -> 0 | AD18: =N18 -> 12122 | AE18: =COUNTIF(L68:L97,AD18) -> 0 | AF18: =AE18/(AG4-AE25) -> 0 | AG18: =IF(AF18=0,0,(AF18*((LOG(AF18))/LOG(2)))) -> 0 | AI18: =N18 -> 12122 | AJ18: =COUNTIF(L98:L127,AI18) -> 0 | AK18: =AJ18/(AL4-AJ25) -> 0 | AL18: =IF(AK18=0,0,(AK18*((LOG(AK18))/LOG(2)))) -> 0 | AN18: =N18 -> 12122 | AO18: =COUNTIF(L128:L158,AN18) -> 0 | AP18: =AO18/(AQ4-AO25) -> 0 | AQ18: =IF(AP18=0,0,(AP18*((LOG(AP18))/LOG(2)))) -> 0 | AS18: =N18 -> 12122 | AT18: =COUNTIF(L159:L188,AS18) -> 0 | AU18: =AT18/(AV4-AT25) -> 0 | AV18: =IF(AU18=0,0,(AU18*((LOG(AU18))/LOG(2)))) -> 0
A19: 12 | B19: 1732 | C19: 13 | D19: 1737 | E19: 13 | F19: 1741 | G19: 14 | H19: 1752 | I19: 13 | J19: 1758 | K19: 0 | L19: 11111 | N19: 12211 | O19: =COUNTIF($L$7:$L$500,N19) -> 0 | P19: =O19/$Q$4 -> 0 | Q19: =IF(P19=0,0,(P19*((LOG(P19))/LOG(2)))) -> 0 | T19: =N19 -> 12211 | U19: =COUNTIF(L7:L36,T19) -> 0 | V19: =U19/(W4-U25) -> 0 | W19: =IF(V19=0,0,(V19*((LOG(V19))/LOG(2)))) -> 0 | Y19: =N19 -> 12211 | Z19: =COUNTIF(L37:L67,Y19) -> 0 | AA19: =Z19/(AB4-Z25) -> 0 | AB19: =IF(AA19=0,0,(AA19*((LOG(AA19))/LOG(2)))) -> 0 | AD19: =N19 -> 12211 | AE19: =COUNTIF(L68:L97,AD19) -> 0 | AF19: =AE19/(AG4-AE25) -> 0 | AG19: =IF(AF19=0,0,(AF19*((LOG(AF19))/LOG(2)))) -> 0 | AI19: =N19 -> 12211 | AJ19: =COUNTIF(L98:L127,AI19) -> 0 | AK19: =AJ19/(AL4-AJ25) -> 0 | AL19: =IF(AK19=0,0,(AK19*((LOG(AK19))/LOG(2)))) -> 0 | AN19: =N19 -> 12211 | AO19: =COUNTIF(L128:L158,AN19) -> 0 | AP19: =AO19/(AQ4-AO25) -> 0 | AQ19: =IF(AP19=0,0,(AP19*((LOG(AP19))/LOG(2)))) -> 0 | AS19: =N19 -> 12211 | AT19: =COUNTIF(L159:L188,AS19) -> 0 | AU19: =AT19/(AV4-AT25) -> 0 | AV19: =IF(AU19=0,0,(AU19*((LOG(AU19))/LOG(2)))) -> 0
A20: 12 | B20: 1858 | C20: 13 | D20: 1862 | E20: 13 | F20: 1867 | G20: 14 | H20: 1872 | I20: 13 | J20: 1878 | K20: 1 | L20: 11111 | N20: 12212 | O20: =COUNTIF($L$7:$L$500,N20) -> 0 | P20: =O20/$Q$4 -> 0 | Q20: =IF(P20=0,0,(P20*((LOG(P20))/LOG(2)))) -> 0 | T20: =N20 -> 12212 | U20: =COUNTIF(L7:L36,T20) -> 0 | V20: =U20/(W4-U25) -> 0 | W20: =IF(V20=0,0,(V20*((LOG(V20))/LOG(2)))) -> 0 | Y20: =N20 -> 12212 | Z20: =COUNTIF(L37:L67,Y20) -> 0 | AA20: =Z20/(AB4-Z25) -> 0 | AB20: =IF(AA20=0,0,(AA20*((LOG(AA20))/LOG(2)))) -> 0 | AD20: =N20 -> 12212 | AE20: =COUNTIF(L68:L97,AD20) -> 0 | AF20: =AE20/(AG4-AE25) -> 0 | AG20: =IF(AF20=0,0,(AF20*((LOG(AF20))/LOG(2)))) -> 0 | AI20: =N20 -> 12212 | AJ20: =COUNTIF(L98:L127,AI20) -> 0 | AK20: =AJ20/(AL4-AJ25) -> 0 | AL20: =IF(AK20=0,0,(AK20*((LOG(AK20))/LOG(2)))) -> 0 | AN20: =N20 -> 12212 | AO20: =COUNTIF(L128:L158,AN20) -> 0 | AP20: =AO20/(AQ4-AO25) -> 0 | AQ20: =IF(AP20=0,0,(AP20*((LOG(AP20))/LOG(2)))) -> 0 | AS20: =N20 -> 12212 | AT20: =COUNTIF(L159:L188,AS20) -> 0 | AU20: =AT20/(AV4-AT25) -> 0 | AV20: =IF(AU20=0,0,(AU20*((LOG(AU20))/LOG(2)))) -> 0
A21: 12 | B21: 1973 | C21: 13 | D21: 1978 | E21: 13 | F21: 1989 | G21: 14 | H21: 2001 | I21: 13 | J21: 2010 | K21: 1 | L21: 11111 | N21: 12221 | O21: =COUNTIF($L$7:$L$500,N21) -> 0 | P21: =O21/$Q$4 -> 0 | Q21: =IF(P21=0,0,(P21*((LOG(P21))/LOG(2)))) -> 0 | T21: =N21 -> 12221 | U21: =COUNTIF(L7:L36,T21) -> 0 | V21: =U21/(W4-U25) -> 0 | W21: =IF(V21=0,0,(V21*((LOG(V21))/LOG(2)))) -> 0 | Y21: =N21 -> 12221 | Z21: =COUNTIF(L37:L67,Y21) -> 0 | AA21: =Z21/(AB4-Z25) -> 0 | AB21: =IF(AA21=0,0,(AA21*((LOG(AA21))/LOG(2)))) -> 0 | AD21: =N21 -> 12221 | AE21: =COUNTIF(L68:L97,AD21) -> 0 | AF21: =AE21/(AG4-AE25) -> 0 | AG21: =IF(AF21=0,0,(AF21*((LOG(AF21))/LOG(2)))) -> 0 | AI21: =N21 -> 12221 | AJ21: =COUNTIF(L98:L127,AI21) -> 0 | AK21: =AJ21/(AL4-AJ25) -> 0 | AL21: =IF(AK21=0,0,(AK21*((LOG(AK21))/LOG(2)))) -> 0 | AN21: =N21 -> 12221 | AO21: =COUNTIF(L128:L158,AN21) -> 0 | AP21: =AO21/(AQ4-AO25) -> 0 | AQ21: =IF(AP21=0,0,(AP21*((LOG(AP21))/LOG(2)))) -> 0 | AS21: =N21 -> 12221 | AT21: =COUNTIF(L159:L188,AS21) -> 0 | AU21: =AT21/(AV4-AT25) -> 0 | AV21: =IF(AU21=0,0,(AU21*((LOG(AU21))/LOG(2)))) -> 0
A22: 12 | B22: 2109 | C22: 13 | D22: 2114 | E22: 13 | F22: 2119 | G22: 14 | H22: 2125 | I22: 13 | J22: 2130 | K22: 0 | L22: 11111 | N22: 12222 | O22: =COUNTIF($L$7:$L$500,N22) -> 0 | P22: =O22/$Q$4 -> 0 | Q22: =IF(P22=0,0,(P22*((LOG(P22))/LOG(2)))) -> 0 | T22: =N22 -> 12222 | U22: =COUNTIF(L7:L36,T22) -> 0 | V22: =U22/(W4-U25) -> 0 | W22: =IF(V22=0,0,(V22*((LOG(V22))/LOG(2)))) -> 0 | Y22: =N22 -> 12222 | Z22: =COUNTIF(L37:L67,Y22) -> 0 | AA22: =Z22/(AB4-Z25) -> 0 | AB22: =IF(AA22=0,0,(AA22*((LOG(AA22))/LOG(2)))) -> 0 | AD22: =N22 -> 12222 | AE22: =COUNTIF(L68:L97,AD22) -> 0 | AF22: =AE22/(AG4-AE25) -> 0 | AG22: =IF(AF22=0,0,(AF22*((LOG(AF22))/LOG(2)))) -> 0 | AI22: =N22 -> 12222 | AJ22: =COUNTIF(L98:L127,AI22) -> 0 | AK22: =AJ22/(AL4-AJ25) -> 0 | AL22: =IF(AK22=0,0,(AK22*((LOG(AK22))/LOG(2)))) -> 0 | AN22: =N22 -> 12222 | AO22: =COUNTIF(L128:L158,AN22) -> 0 | AP22: =AO22/(AQ4-AO25) -> 0 | AQ22: =IF(AP22=0,0,(AP22*((LOG(AP22))/LOG(2)))) -> 0 | AS22: =N22 -> 12222 | AT22: =COUNTIF(L159:L188,AS22) -> 0 | AU22: =AT22/(AV4-AT25) -> 0 | AV22: =IF(AU22=0,0,(AU22*((LOG(AU22))/LOG(2)))) -> 0
A23: 12 | B23: 2244 | C23: 13 | D23: 2249 | E23: 13 | F23: 2254 | G23: 14 | H23: 2259 | I23: 13 | J23: 2264 | K23: 0 | L23: 11111 | N23: 21111 | O23: =COUNTIF($L$7:$L$500,N23) -> 0 | P23: =O23/$Q$4 -> 0 | Q23: =IF(P23=0,0,(P23*((LOG(P23))/LOG(2)))) -> 0 | T23: =N23 -> 21111 | U23: =COUNTIF(L7:L36,T23) -> 0 | V23: =U23/(W4-U25) -> 0 | W23: =IF(V23=0,0,(V23*((LOG(V23))/LOG(2)))) -> 0 | Y23: =N23 -> 21111 | Z23: =COUNTIF(L37:L67,Y23) -> 0 | AA23: =Z23/(AB4-Z25) -> 0 | AB23: =IF(AA23=0,0,(AA23*((LOG(AA23))/LOG(2)))) -> 0 | AD23: =N23 -> 21111 | AE23: =COUNTIF(L68:L97,AD23) -> 0 | AF23: =AE23/(AG4-AE25) -> 0 | AG23: =IF(AF23=0,0,(AF23*((LOG(AF23))/LOG(2)))) -> 0 | AI23: =N23 -> 21111 | AJ23: =COUNTIF(L98:L127,AI23) -> 0 | AK23: =AJ23/(AL4-AJ25) -> 0 | AL23: =IF(AK23=0,0,(AK23*((LOG(AK23))/LOG(2)))) -> 0 | AN23: =N23 -> 21111 | AO23: =COUNTIF(L128:L158,AN23) -> 0 | AP23: =AO23/(AQ4-AO25) -> 0 | AQ23: =IF(AP23=0,0,(AP23*((LOG(AP23))/LOG(2)))) -> 0 | AS23: =N23 -> 21111 | AT23: =COUNTIF(L159:L188,AS23) -> 0 | AU23: =AT23/(AV4-AT25) -> 0 | AV23: =IF(AU23=0,0,(AU23*((LOG(AU23))/LOG(2)))) -> 0
A24: 12 | B24: 2375 | C24: 13 | D24: 2381 | E24: 13 | F24: 2387 | G24: 14 | H24: 2393 | I24: 13 | J24: 2398 | K24: 0 | L24: 11111 | N24: 21112 | O24: =COUNTIF($L$7:$L$500,N24) -> 0 | P24: =O24/$Q$4 -> 0 | Q24: =IF(P24=0,0,(P24*((LOG(P24))/LOG(2)))) -> 0 | T24: =N24 -> 21112 | U24: =COUNTIF(L7:L36,T24) -> 0 | V24: =U24/(W4-U25) -> 0 | W24: =IF(V24=0,0,(V24*((LOG(V24))/LOG(2)))) -> 0 | Y24: =N24 -> 21112 | Z24: =COUNTIF(L37:L67,Y24) -> 0 | AA24: =Z24/(AB4-Z25) -> 0 | AB24: =IF(AA24=0,0,(AA24*((LOG(AA24))/LOG(2)))) -> 0 | AD24: =N24 -> 21112 | AE24: =COUNTIF(L68:L97,AD24) -> 0 | AF24: =AE24/(AG4-AE25) -> 0 | AG24: =IF(AF24=0,0,(AF24*((LOG(AF24))/LOG(2)))) -> 0 | AI24: =N24 -> 21112 | AJ24: =COUNTIF(L98:L127,AI24) -> 0 | AK24: =AJ24/(AL4-AJ25) -> 0 | AL24: =IF(AK24=0,0,(AK24*((LOG(AK24))/LOG(2)))) -> 0 | AN24: =N24 -> 21112 | AO24: =COUNTIF(L128:L158,AN24) -> 0 | AP24: =AO24/(AQ4-AO25) -> 0 | AQ24: =IF(AP24=0,0,(AP24*((LOG(AP24))/LOG(2)))) -> 0 | AS24: =N24 -> 21112 | AT24: =COUNTIF(L159:L188,AS24) -> 0 | AU24: =AT24/(AV4-AT25) -> 0 | AV24: =IF(AU24=0,0,(AU24*((LOG(AU24))/LOG(2)))) -> 0
A25: 12 | B25: 2502 | C25: 13 | D25: 2507 | E25: 13 | F25: 2512 | G25: 14 | H25: 2518 | I25: 13 | J25: 2523 | K25: 0 | L25: 11111 | N25: 21121 | O25: =COUNTIF($L$7:$L$500,N25) -> 0 | P25: =O25/$Q$4 -> 0 | Q25: =IF(P25=0,0,(P25*((LOG(P25))/LOG(2)))) -> 0 | T25: =N25 -> 21121 | U25: =COUNTIF(L7:L36,T25) -> 0 | Y25: =N25 -> 21121 | Z25: =COUNTIF(L37:L67,Y25) -> 0 | AD25: =N25 -> 21121 | AE25: =COUNTIF(L68:L97,AD25) -> 0 | AI25: =N25 -> 21121 | AJ25: =COUNTIF(L98:L127,AI25) -> 0 | AN25: =N25 -> 21121 | AO25: =COUNTIF(L128:L158,AN25) -> 0 | AS25: =N25 -> 21121 | AT25: =COUNTIF(L159:L188,AS25) -> 0
A26: 12 | B26: 2625 | C26: 13 | D26: 2630 | E26: 13 | F26: 2634 | G26: 14 | H26: 2639 | I26: 13 | J26: 2643 | K26: 1 | L26: 11111 | N26: 21122 | O26: =COUNTIF($L$7:$L$500,N26) -> 0 | P26: =O26/$Q$4 -> 0 | Q26: =IF(P26=0,0,(P26*((LOG(P26))/LOG(2)))) -> 0 | T26: =N26 -> 21122 | U26: =COUNTIF(L7:L36,T26) -> 0 | V26: =U26/(W4-U25) -> 0 | W26: =IF(V26=0,0,(V26*((LOG(V26))/LOG(2)))) -> 0 | Y26: =N26 -> 21122 | Z26: =COUNTIF(L37:L67,Y26) -> 0 | AA26: =Z26/(AB4-Z25) -> 0 | AB26: =IF(AA26=0,0,(AA26*((LOG(AA26))/LOG(2)))) -> 0 | AD26: =N26 -> 21122 | AE26: =COUNTIF(L68:L97,AD26) -> 0 | AF26: =AE26/(AG4-AE25) -> 0 | AG26: =IF(AF26=0,0,(AF26*((LOG(AF26))/LOG(2)))) -> 0 | AI26: =N26 -> 21122 | AJ26: =COUNTIF(L98:L127,AI26) -> 0 | AK26: =AJ26/(AL4-AJ25) -> 0 | AL26: =IF(AK26=0,0,(AK26*((LOG(AK26))/LOG(2)))) -> 0 | AN26: =N26 -> 21122 | AO26: =COUNTIF(L128:L158,AN26) -> 0 | AP26: =AO26/(AQ4-AO25) -> 0 | AQ26: =IF(AP26=0,0,(AP26*((LOG(AP26))/LOG(2)))) -> 0 | AS26: =N26 -> 21122 | AT26: =COUNTIF(L159:L188,AS26) -> 0 | AU26: =AT26/(AV4-AT25) -> 0 | AV26: =IF(AU26=0,0,(AU26*((LOG(AU26))/LOG(2)))) -> 0
A27: 12 | B27: 2738 | C27: 13 | D27: 2742 | E27: 13 | F27: 2747 | G27: 14 | H27: 2754 | I27: 13 | J27: 2759 | K27: 1 | L27: 11111 | N27: 21211 | O27: =COUNTIF($L$7:$L$500,N27) -> 0 | P27: =O27/$Q$4 -> 0 | Q27: =IF(P27=0,0,(P27*((LOG(P27))/LOG(2)))) -> 0 | T27: =N27 -> 21211 | U27: =COUNTIF(L7:L36,T27) -> 0 | V27: =U27/(W4-U25) -> 0 | W27: =IF(V27=0,0,(V27*((LOG(V27))/LOG(2)))) -> 0 | Y27: =N27 -> 21211 | Z27: =COUNTIF(L37:L67,Y27) -> 0 | AA27: =Z27/(AB4-Z25) -> 0 | AB27: =IF(AA27=0,0,(AA27*((LOG(AA27))/LOG(2)))) -> 0 | AD27: =N27 -> 21211 | AE27: =COUNTIF(L68:L97,AD27) -> 0 | AF27: =AE27/(AG4-AE25) -> 0 | AG27: =IF(AF27=0,0,(AF27*((LOG(AF27))/LOG(2)))) -> 0 | AI27: =N27 -> 21211 | AJ27: =COUNTIF(L98:L127,AI27) -> 0 | AK27: =AJ27/(AL4-AJ25) -> 0 | AL27: =IF(AK27=0,0,(AK27*((LOG(AK27))/LOG(2)))) -> 0 | AN27: =N27 -> 21211 | AO27: =COUNTIF(L128:L158,AN27) -> 0 | AP27: =AO27/(AQ4-AO25) -> 0 | AQ27: =IF(AP27=0,0,(AP27*((LOG(AP27))/LOG(2)))) -> 0 | AS27: =N27 -> 21211 | AT27: =COUNTIF(L159:L188,AS27) -> 0 | AU27: =AT27/(AV4-AT25) -> 0 | AV27: =IF(AU27=0,0,(AU27*((LOG(AU27))/LOG(2)))) -> 0
A28: 12 | B28: 2854 | C28: 13 | D28: 2860 | E28: 13 | F28: 2865 | G28: 14 | H28: 2869 | I28: 13 | J28: 2874 | K28: 1 | L28: 11111 | N28: 21212 | O28: =COUNTIF($L$7:$L$500,N28) -> 0 | P28: =O28/$Q$4 -> 0 | Q28: =IF(P28=0,0,(P28*((LOG(P28))/LOG(2)))) -> 0 | T28: =N28 -> 21212 | U28: =COUNTIF(L7:L36,T28) -> 0 | V28: =U28/(W4-U25) -> 0 | W28: =IF(V28=0,0,(V28*((LOG(V28))/LOG(2)))) -> 0 | Y28: =N28 -> 21212 | Z28: =COUNTIF(L37:L67,Y28) -> 0 | AA28: =Z28/(AB4-Z25) -> 0 | AB28: =IF(AA28=0,0,(AA28*((LOG(AA28))/LOG(2)))) -> 0 | AD28: =N28 -> 21212 | AE28: =COUNTIF(L68:L97,AD28) -> 0 | AF28: =AE28/(AG4-AE25) -> 0 | AG28: =IF(AF28=0,0,(AF28*((LOG(AF28))/LOG(2)))) -> 0 | AI28: =N28 -> 21212 | AJ28: =COUNTIF(L98:L127,AI28) -> 0 | AK28: =AJ28/(AL4-AJ25) -> 0 | AL28: =IF(AK28=0,0,(AK28*((LOG(AK28))/LOG(2)))) -> 0 | AN28: =N28 -> 21212 | AO28: =COUNTIF(L128:L158,AN28) -> 0 | AP28: =AO28/(AQ4-AO25) -> 0 | AQ28: =IF(AP28=0,0,(AP28*((LOG(AP28))/LOG(2)))) -> 0 | AS28: =N28 -> 21212 | AT28: =COUNTIF(L159:L188,AS28) -> 0 | AU28: =AT28/(AV4-AT25) -> 0 | AV28: =IF(AU28=0,0,(AU28*((LOG(AU28))/LOG(2)))) -> 0
A29: 12 | B29: 2973 | C29: 13 | D29: 2984 | E29: 13 | F29: 2988 | G29: 14 | H29: 2994 | I29: 13 | J29: 2999 | K29: 0 | L29: 11111 | N29: 21221 | O29: =COUNTIF($L$7:$L$500,N29) -> 0 | P29: =O29/$Q$4 -> 0 | Q29: =IF(P29=0,0,(P29*((LOG(P29))/LOG(2)))) -> 0 | T29: =N29 -> 21221 | U29: =COUNTIF(L7:L36,T29) -> 0 | V29: =U29/(W4-U25) -> 0 | W29: =IF(V29=0,0,(V29*((LOG(V29))/LOG(2)))) -> 0 | Y29: =N29 -> 21221 | Z29: =COUNTIF(L37:L67,Y29) -> 0 | AA29: =Z29/(AB4-Z25) -> 0 | AB29: =IF(AA29=0,0,(AA29*((LOG(AA29))/LOG(2)))) -> 0 | AD29: =N29 -> 21221 | AE29: =COUNTIF(L68:L97,AD29) -> 0 | AF29: =AE29/(AG4-AE25) -> 0 | AG29: =IF(AF29=0,0,(AF29*((LOG(AF29))/LOG(2)))) -> 0 | AI29: =N29 -> 21221 | AJ29: =COUNTIF(L98:L127,AI29) -> 0 | AK29: =AJ29/(AL4-AJ25) -> 0 | AL29: =IF(AK29=0,0,(AK29*((LOG(AK29))/LOG(2)))) -> 0 | AN29: =N29 -> 21221 | AO29: =COUNTIF(L128:L158,AN29) -> 0 | AP29: =AO29/(AQ4-AO25) -> 0 | AQ29: =IF(AP29=0,0,(AP29*((LOG(AP29))/LOG(2)))) -> 0 | AS29: =N29 -> 21221 | AT29: =COUNTIF(L159:L188,AS29) -> 0 | AU29: =AT29/(AV4-AT25) -> 0 | AV29: =IF(AU29=0,0,(AU29*((LOG(AU29))/LOG(2)))) -> 0
A30: 12 | B30: 3105 | C30: 13 | D30: 3110 | E30: 13 | F30: 3120 | G30: 14 | H30: 3126 | I30: 13 | J30: 3131 | K30: 0 | L30: 11111 | N30: 21222 | O30: =COUNTIF($L$7:$L$500,N30) -> 0 | P30: =O30/$Q$4 -> 0 | Q30: =IF(P30=0,0,(P30*((LOG(P30))/LOG(2)))) -> 0 | T30: =N30 -> 21222 | U30: =COUNTIF(L7:L36,T30) -> 0 | V30: =U30/(W4-U25) -> 0 | W30: =IF(V30=0,0,(V30*((LOG(V30))/LOG(2)))) -> 0 | Y30: =N30 -> 21222 | Z30: =COUNTIF(L37:L67,Y30) -> 0 | AA30: =Z30/(AB4-Z25) -> 0 | AB30: =IF(AA30=0,0,(AA30*((LOG(AA30))/LOG(2)))) -> 0 | AD30: =N30 -> 21222 | AE30: =COUNTIF(L68:L97,AD30) -> 0 | AF30: =AE30/(AG4-AE25) -> 0 | AG30: =IF(AF30=0,0,(AF30*((LOG(AF30))/LOG(2)))) -> 0 | AI30: =N30 -> 21222 | AJ30: =COUNTIF(L98:L127,AI30) -> 0 | AK30: =AJ30/(AL4-AJ25) -> 0 | AL30: =IF(AK30=0,0,(AK30*((LOG(AK30))/LOG(2)))) -> 0 | AN30: =N30 -> 21222 | AO30: =COUNTIF(L128:L158,AN30) -> 0 | AP30: =AO30/(AQ4-AO25) -> 0 | AQ30: =IF(AP30=0,0,(AP30*((LOG(AP30))/LOG(2)))) -> 0 | AS30: =N30 -> 21222 | AT30: =COUNTIF(L159:L188,AS30) -> 0 | AU30: =AT30/(AV4-AT25) -> 0 | AV30: =IF(AU30=0,0,(AU30*((LOG(AU30))/LOG(2)))) -> 0
A31: 12 | B31: 3231 | C31: 13 | D31: 3235 | E31: 13 | F31: 3240 | G31: 14 | H31: 3246 | I31: 13 | J31: 3250 | K31: 0 | L31: 11111 | N31: 22111 | O31: =COUNTIF($L$7:$L$500,N31) -> 0 | P31: =O31/$Q$4 -> 0 | Q31: =IF(P31=0,0,(P31*((LOG(P31))/LOG(2)))) -> 0 | T31: =N31 -> 22111 | U31: =COUNTIF(L7:L36,T31) -> 0 | V31: =U31/(W4-U25) -> 0 | W31: =IF(V31=0,0,(V31*((LOG(V31))/LOG(2)))) -> 0 | Y31: =N31 -> 22111 | Z31: =COUNTIF(L37:L67,Y31) -> 0 | AA31: =Z31/(AB4-Z25) -> 0 | AB31: =IF(AA31=0,0,(AA31*((LOG(AA31))/LOG(2)))) -> 0 | AD31: =N31 -> 22111 | AE31: =COUNTIF(L68:L97,AD31) -> 0 | AF31: =AE31/(AG4-AE25) -> 0 | AG31: =IF(AF31=0,0,(AF31*((LOG(AF31))/LOG(2)))) -> 0 | AI31: =N31 -> 22111 | AJ31: =COUNTIF(L98:L127,AI31) -> 0 | AK31: =AJ31/(AL4-AJ25) -> 0 | AL31: =IF(AK31=0,0,(AK31*((LOG(AK31))/LOG(2)))) -> 0 | AN31: =N31 -> 22111 | AO31: =COUNTIF(L128:L158,AN31) -> 0 | AP31: =AO31/(AQ4-AO25) -> 0 | AQ31: =IF(AP31=0,0,(AP31*((LOG(AP31))/LOG(2)))) -> 0 | AS31: =N31 -> 22111 | AT31: =COUNTIF(L159:L188,AS31) -> 0 | AU31: =AT31/(AV4-AT25) -> 0 | AV31: =IF(AU31=0,0,(AU31*((LOG(AU31))/LOG(2)))) -> 0
A32: 12 | B32: 3353 | C32: 13 | D32: 3357 | E32: 13 | F32: 3362 | G32: 14 | H32: 3367 | I32: 13 | J32: 3371 | K32: 0 | L32: 11111 | N32: 22112 | O32: =COUNTIF($L$7:$L$500,N32) -> 0 | P32: =O32/$Q$4 -> 0 | Q32: =IF(P32=0,0,(P32*((LOG(P32))/LOG(2)))) -> 0 | T32: =N32 -> 22112 | U32: =COUNTIF(L7:L36,T32) -> 0 | V32: =U32/(W4-U25) -> 0 | W32: =IF(V32=0,0,(V32*((LOG(V32))/LOG(2)))) -> 0 | Y32: =N32 -> 22112 | Z32: =COUNTIF(L37:L67,Y32) -> 0 | AA32: =Z32/(AB4-Z25) -> 0 | AB32: =IF(AA32=0,0,(AA32*((LOG(AA32))/LOG(2)))) -> 0 | AD32: =N32 -> 22112 | AE32: =COUNTIF(L68:L97,AD32) -> 0 | AF32: =AE32/(AG4-AE25) -> 0 | AG32: =IF(AF32=0,0,(AF32*((LOG(AF32))/LOG(2)))) -> 0 | AI32: =N32 -> 22112 | AJ32: =COUNTIF(L98:L127,AI32) -> 0 | AK32: =AJ32/(AL4-AJ25) -> 0 | AL32: =IF(AK32=0,0,(AK32*((LOG(AK32))/LOG(2)))) -> 0 | AN32: =N32 -> 22112 | AO32: =COUNTIF(L128:L158,AN32) -> 0 | AP32: =AO32/(AQ4-AO25) -> 0 | AQ32: =IF(AP32=0,0,(AP32*((LOG(AP32))/LOG(2)))) -> 0 | AS32: =N32 -> 22112 | AT32: =COUNTIF(L159:L188,AS32) -> 0 | AU32: =AT32/(AV4-AT25) -> 0 | AV32: =IF(AU32=0,0,(AU32*((LOG(AU32))/LOG(2)))) -> 0
A33: 12 | B33: 3471 | C33: 13 | D33: 3480 | E33: 13 | F33: 3488 | G33: 14 | H33: 3500 | I33: 13 | J33: 3505 | K33: 0 | L33: 11111 | N33: 22121 | O33: =COUNTIF($L$7:$L$500,N33) -> 0 | P33: =O33/$Q$4 -> 0 | Q33: =IF(P33=0,0,(P33*((LOG(P33))/LOG(2)))) -> 0 | T33: =N33 -> 22121 | U33: =COUNTIF(L7:L36,T33) -> 0 | V33: =U33/(W4-U25) -> 0 | W33: =IF(V33=0,0,(V33*((LOG(V33))/LOG(2)))) -> 0 | Y33: =N33 -> 22121 | Z33: =COUNTIF(L37:L67,Y33) -> 0 | AA33: =Z33/(AB4-Z25) -> 0 | AB33: =IF(AA33=0,0,(AA33*((LOG(AA33))/LOG(2)))) -> 0 | AD33: =N33 -> 22121 | AE33: =COUNTIF(L68:L97,AD33) -> 0 | AF33: =AE33/(AG4-AE25) -> 0 | AG33: =IF(AF33=0,0,(AF33*((LOG(AF33))/LOG(2)))) -> 0 | AI33: =N33 -> 22121 | AJ33: =COUNTIF(L98:L127,AI33) -> 0 | AK33: =AJ33/(AL4-AJ25) -> 0 | AL33: =IF(AK33=0,0,(AK33*((LOG(AK33))/LOG(2)))) -> 0 | AN33: =N33 -> 22121 | AO33: =COUNTIF(L128:L158,AN33) -> 0 | AP33: =AO33/(AQ4-AO25) -> 0 | AQ33: =IF(AP33=0,0,(AP33*((LOG(AP33))/LOG(2)))) -> 0 | AS33: =N33 -> 22121 | AT33: =COUNTIF(L159:L188,AS33) -> 0 | AU33: =AT33/(AV4-AT25) -> 0 | AV33: =IF(AU33=0,0,(AU33*((LOG(AU33))/LOG(2)))) -> 0
A34: 12 | B34: 3628 | C34: 13 | D34: 3633 | E34: 13 | F34: 3637 | G34: 14 | H34: 3644 | I34: 13 | J34: 3650 | K34: 0 | L34: 11111 | N34: 22122 | O34: =COUNTIF($L$7:$L$500,N34) -> 0 | P34: =O34/$Q$4 -> 0 | Q34: =IF(P34=0,0,(P34*((LOG(P34))/LOG(2)))) -> 0 | T34: =N34 -> 22122 | U34: =COUNTIF(L7:L36,T34) -> 0 | V34: =U34/(W4-U25) -> 0 | W34: =IF(V34=0,0,(V34*((LOG(V34))/LOG(2)))) -> 0 | Y34: =N34 -> 22122 | Z34: =COUNTIF(L37:L67,Y34) -> 0 | AA34: =Z34/(AB4-Z25) -> 0 | AB34: =IF(AA34=0,0,(AA34*((LOG(AA34))/LOG(2)))) -> 0 | AD34: =N34 -> 22122 | AE34: =COUNTIF(L68:L97,AD34) -> 0 | AF34: =AE34/(AG4-AE25) -> 0 | AG34: =IF(AF34=0,0,(AF34*((LOG(AF34))/LOG(2)))) -> 0 | AI34: =N34 -> 22122 | AJ34: =COUNTIF(L98:L127,AI34) -> 0 | AK34: =AJ34/(AL4-AJ25) -> 0 | AL34: =IF(AK34=0,0,(AK34*((LOG(AK34))/LOG(2)))) -> 0 | AN34: =N34 -> 22122 | AO34: =COUNTIF(L128:L158,AN34) -> 0 | AP34: =AO34/(AQ4-AO25) -> 0 | AQ34: =IF(AP34=0,0,(AP34*((LOG(AP34))/LOG(2)))) -> 0 | AS34: =N34 -> 22122 | AT34: =COUNTIF(L159:L188,AS34) -> 0 | AU34: =AT34/(AV4-AT25) -> 0 | AV34: =IF(AU34=0,0,(AU34*((LOG(AU34))/LOG(2)))) -> 0
A35: 12 | B35: 3760 | C35: 13 | D35: 3771 | E35: 13 | F35: 3776 | G35: 14 | H35: 3782 | I35: 13 | J35: 3787 | K35: 0 | L35: 11111 | N35: 22211 | O35: =COUNTIF($L$7:$L$500,N35) -> 0 | P35: =O35/$Q$4 -> 0 | Q35: =IF(P35=0,0,(P35*((LOG(P35))/LOG(2)))) -> 0 | T35: =N35 -> 22211 | U35: =COUNTIF(L7:L36,T35) -> 0 | V35: =U35/(W4-U25) -> 0 | W35: =IF(V35=0,0,(V35*((LOG(V35))/LOG(2)))) -> 0 | Y35: =N35 -> 22211 | Z35: =COUNTIF(L37:L67,Y35) -> 0 | AA35: =Z35/(AB4-Z25) -> 0 | AB35: =IF(AA35=0,0,(AA35*((LOG(AA35))/LOG(2)))) -> 0 | AD35: =N35 -> 22211 | AE35: =COUNTIF(L68:L97,AD35) -> 0 | AF35: =AE35/(AG4-AE25) -> 0 | AG35: =IF(AF35=0,0,(AF35*((LOG(AF35))/LOG(2)))) -> 0 | AI35: =N35 -> 22211 | AJ35: =COUNTIF(L98:L127,AI35) -> 0 | AK35: =AJ35/(AL4-AJ25) -> 0 | AL35: =IF(AK35=0,0,(AK35*((LOG(AK35))/LOG(2)))) -> 0 | AN35: =N35 -> 22211 | AO35: =COUNTIF(L128:L158,AN35) -> 0 | AP35: =AO35/(AQ4-AO25) -> 0 | AQ35: =IF(AP35=0,0,(AP35*((LOG(AP35))/LOG(2)))) -> 0 | AS35: =N35 -> 22211 | AT35: =COUNTIF(L159:L188,AS35) -> 0 | AU35: =AT35/(AV4-AT25) -> 0 | AV35: =IF(AU35=0,0,(AU35*((LOG(AU35))/LOG(2)))) -> 0
A36: 12 | B36: 3891 | C36: 13 | D36: 3897 | E36: 13 | F36: 3901 | G36: 14 | H36: 3907 | I36: 13 | J36: 3911 | K36: 1 | L36: 11111 | N36: 22212 | O36: =COUNTIF($L$7:$L$500,N36) -> 0 | P36: =O36/$Q$4 -> 0 | Q36: =IF(P36=0,0,(P36*((LOG(P36))/LOG(2)))) -> 0 | T36: =N36 -> 22212 | U36: =COUNTIF(L7:L36,T36) -> 0 | V36: =U36/(W4-U25) -> 0 | W36: =IF(V36=0,0,(V36*((LOG(V36))/LOG(2)))) -> 0 | Y36: =N36 -> 22212 | Z36: =COUNTIF(L37:L67,Y36) -> 0 | AA36: =Z36/(AB4-Z25) -> 0 | AB36: =IF(AA36=0,0,(AA36*((LOG(AA36))/LOG(2)))) -> 0 | AD36: =N36 -> 22212 | AE36: =COUNTIF(L68:L97,AD36) -> 0 | AF36: =AE36/(AG4-AE25) -> 0 | AG36: =IF(AF36=0,0,(AF36*((LOG(AF36))/LOG(2)))) -> 0 | AI36: =N36 -> 22212 | AJ36: =COUNTIF(L98:L127,AI36) -> 0 | AK36: =AJ36/(AL4-AJ25) -> 0 | AL36: =IF(AK36=0,0,(AK36*((LOG(AK36))/LOG(2)))) -> 0 | AN36: =N36 -> 22212 | AO36: =COUNTIF(L128:L158,AN36) -> 0 | AP36: =AO36/(AQ4-AO25) -> 0 | AQ36: =IF(AP36=0,0,(AP36*((LOG(AP36))/LOG(2)))) -> 0 | AS36: =N36 -> 22212 | AT36: =COUNTIF(L159:L188,AS36) -> 0 | AU36: =AT36/(AV4-AT25) -> 0 | AV36: =IF(AU36=0,0,(AU36*((LOG(AU36))/LOG(2)))) -> 0
A37: 12 | B37: 4011 | C37: 13 | D37: 4017 | E37: 13 | F37: 4026 | G37: 14 | H37: 4031 | I37: 13 | J37: 4036 | K37: 0 | L37: 11111 | N37: 22221 | O37: =COUNTIF($L$7:$L$500,N37) -> 0 | P37: =O37/$Q$4 -> 0 | Q37: =IF(P37=0,0,(P37*((LOG(P37))/LOG(2)))) -> 0 | T37: =N37 -> 22221 | U37: =COUNTIF(L7:L36,T37) -> 0 | V37: =U37/(W4-U25) -> 0 | W37: =IF(V37=0,0,(V37*((LOG(V37))/LOG(2)))) -> 0 | Y37: =N37 -> 22221 | Z37: =COUNTIF(L37:L67,Y37) -> 0 | AA37: =Z37/(AB4-Z25) -> 0 | AB37: =IF(AA37=0,0,(AA37*((LOG(AA37))/LOG(2)))) -> 0 | AD37: =N37 -> 22221 | AE37: =COUNTIF(L68:L97,AD37) -> 0 | AF37: =AE37/(AG4-AE25) -> 0 | AG37: =IF(AF37=0,0,(AF37*((LOG(AF37))/LOG(2)))) -> 0 | AI37: =N37 -> 22221 | AJ37: =COUNTIF(L98:L127,AI37) -> 0 | AK37: =AJ37/(AL4-AJ25) -> 0 | AL37: =IF(AK37=0,0,(AK37*((LOG(AK37))/LOG(2)))) -> 0 | AN37: =N37 -> 22221 | AO37: =COUNTIF(L128:L158,AN37) -> 0 | AP37: =AO37/(AQ4-AO25) -> 0 | AQ37: =IF(AP37=0,0,(AP37*((LOG(AP37))/LOG(2)))) -> 0 | AS37: =N37 -> 22221 | AT37: =COUNTIF(L159:L188,AS37) -> 0 | AU37: =AT37/(AV4-AT25) -> 0 | AV37: =IF(AU37=0,0,(AU37*((LOG(AU37))/LOG(2)))) -> 0
A38: 12 | B38: 4135 | C38: 13 | D38: 4140 | E38: 13 | F38: 4147 | G38: 14 | H38: 4153 | I38: 13 | J38: 4158 | K38: 0 | L38: 11111 | N38: 22222 | O38: =COUNTIF($L$7:$L$500,N38) -> 2 | P38: =O38/$Q$4 -> 0.01098901099 | Q38: =IF(P38=0,0,(P38*((LOG(P38))/LOG(2)))) -> -0.07151422682 | T38: =N38 -> 22222 | U38: =COUNTIF(L7:L36,T38) -> 0 | V38: =U38/(W4-U25) -> 0 | W38: =IF(V38=0,0,(V38*((LOG(V38))/LOG(2)))) -> 0 | Y38: =N38 -> 22222 | Z38: =COUNTIF(L37:L67,Y38) -> 0 | AA38: =Z38/(AB4-Z25) -> 0 | AB38: =IF(AA38=0,0,(AA38*((LOG(AA38))/LOG(2)))) -> 0 | AD38: =N38 -> 22222 | AE38: =COUNTIF(L68:L97,AD38) -> 1 | AF38: =AE38/(AG4-AE25) -> 0.03333333333 | AG38: =IF(AF38=0,0,(AF38*((LOG(AF38))/LOG(2)))) -> -0.1635630199 | AI38: =N38 -> 22222 | AJ38: =COUNTIF(L98:L127,AI38) -> 0 | AK38: =AJ38/(AL4-AJ25) -> 0 | AL38: =IF(AK38=0,0,(AK38*((LOG(AK38))/LOG(2)))) -> 0 | AN38: =N38 -> 22222 | AO38: =COUNTIF(L128:L158,AN38) -> 0 | AP38: =AO38/(AQ4-AO25) -> 0 | AQ38: =IF(AP38=0,0,(AP38*((LOG(AP38))/LOG(2)))) -> 0 | AS38: =N38 -> 22222 | AT38: =COUNTIF(L159:L188,AS38) -> 1 | AU38: =AT38/(AV4-AT25) -> 0.03333333333 | AV38: =IF(AU38=0,0,(AU38*((LOG(AU38))/LOG(2)))) -> -0.1635630199
A39: 12 | B39: 4267 | C39: 13 | D39: 4272 | E39: 13 | F39: 4285 | G39: 14 | H39: 4292 | I39: 13 | J39: 4297 | K39: 0 | L39: 11111 | P39: =SUM(P7:P38) -> 1 | Q39: =-SUM(Q7:Q38) -> 0.4640443377 | V39: =SUM(V7:V38) -> 1 | W39: =-SUM(W7:W38) -> 0.9703437708 | AA39: =SUM(AA7:AA38) -> 1 | AB39: =-SUM(AB7:AB38) -> 0.2055925082 | AF39: =SUM(AF7:AF38) -> 1 | AG39: =-SUM(AG7:AG38) -> 0.4200260017 | AK39: =SUM(AK7:AK38) -> 1 | AL39: =-SUM(AL7:AL38) -> 0.2108423003 | AP39: =SUM(AP7:AP38) -> 1 | AQ39: =-SUM(AQ7:AQ38) -> 0.2055925082 | AU39: =SUM(AU7:AU38) -> 1 | AV39: =-SUM(AV7:AV38) -> 0.2108423003
A40: 12 | B40: 4404 | C40: 13 | D40: 4408 | E40: 13 | F40: 4412 | G40: 14 | H40: 4417 | I40: 13 | J40: 4422 | K40: 0 | L40: 11111 | P40: U= | Q40: =Q39/(LOG(Q4)/LOG(2)) -> 0.06180834186 | V40: U1= | W40: =W39/(LOG(W4)/LOG(2)) -> 0.1977512545 | AA40: U2= | AB40: =AB39/(LOG(AB4)/LOG(2)) -> 0.04149865999 | AF40: U3= | AG40: =AG39/(LOG(AG4)/LOG(2)) -> 0.08559921879 | AK40: U4= | AL40: =AL39/(LOG(AL4)/LOG(2)) -> 0.04296861652 | AP40: U5= | AQ40: =AQ39/(LOG(AQ4)/LOG(2)) -> 0.04149865999 | AU40: U6= | AV40: =AV39/(LOG(AV4)/LOG(2)) -> 0.04296861652
A41: 12 | B41: 4521 | C41: 13 | D41: 4527 | E41: 13 | F41: 4533 | G41: 14 | H41: 4539 | I41: 13 | J41: 4545 | K41: 0 | L41: 11111
A42: 12 | B42: 4647 | C42: 13 | D42: 4651 | E42: 13 | F42: 4656 | G42: 14 | H42: 4662 | I42: 13 | J42: 4667 | K42: 0 | L42: 11111
A43: 12 | B43: 4767 | C43: 13 | D43: 4772 | E43: 13 | F43: 4778 | G43: 14 | H43: 4783 | I43: 13 | J43: 4787 | K43: 0 | L43: 11111 | N43: Total Target Seq
A44: 12 | B44: 4890 | C44: 13 | D44: 4895 | E44: 13 | F44: 4902 | G44: 14 | H44: 4907 | I44: 13 | J44: 4914 | K44: 0 | L44: 11111 | N44: =COUNTIF(L7:L188,G3) -> 0 | P44: 30 | Q44: 31 | R44: 30 | S44: 30 | T44: 31 | U44: 30
A45: 12 | B45: 5015 | C45: 13 | D45: 5021 | E45: 13 | F45: 5026 | G45: 14 | H45: 5030 | I45: 13 | J45: 5035 | K45: 0 | L45: 11111 | P45: % of reinforcement given in 6 equal intervals based on number of trials
A46: 12 | B46: 5148 | C46: 13 | D46: 5159 | E46: 13 | F46: 5165 | G46: 14 | H46: 5174 | I46: 13 | J46: 5179 | K46: 0 | L46: 11111 | P46: %_1 | Q46: %_2 | R46: %_3 | S46: %_4 | T46: %_5 | U46: %_6
A47: 12 | B47: 5284 | C47: 13 | D47: 5288 | E47: 13 | F47: 5292 | G47: 14 | H47: 5297 | I47: 13 | J47: 5303 | K47: 1 | L47: 11111 | O47: target sequence | P47: =$G$3 -> 21121 | Q47: =$G$3 -> 21121 | R47: =$G$3 -> 21121 | S47: =$G$3 -> 21121 | T47: =$G$3 -> 21121 | U47: =$G$3 -> 21121
A48: 12 | B48: 5411 | C48: 13 | D48: 5422 | E48: 13 | F48: 5427 | G48: 14 | H48: 5432 | I48: 13 | J48: 5437 | K48: 0 | L48: 11111 | O48: total reinforcement | P48: =U25 -> 0 | Q48: =Z25 -> 0 | R48: =AE25 -> 0 | S48: =AJ25 -> 0 | T48: =AO25 -> 0 | U48: =AT25 -> 0
A49: 12 | B49: 5540 | C49: 13 | D49: 5544 | E49: 13 | F49: 5549 | G49: 14 | H49: 5554 | I49: 13 | J49: 5561 | K49: 0 | L49: 11111 | O49: % target
A50: 12 | B50: 5660 | C50: 13 | D50: 5665 | E50: 13 | F50: 5669 | G50: 14 | H50: 5674 | I50: 13 | J50: 5678 | K50: 1 | L50: 11111 | O50: CCRF
A51: 12 | B51: 5773 | C51: 13 | D51: 5777 | E51: 13 | F51: 5782 | G51: 14 | H51: 5786 | I51: 13 | J51: 5792 | K51: 0 | L51: 11111 | O51: % CCRf
A52: 12 | B52: 5900 | C52: 13 | D52: 5905 | E52: 13 | F52: 5913 | G52: 14 | H52: 5927 | I52: 13 | J52: 5935 | K52: 0 | L52: 11111 | O52: average response rate | P52: =J36/P44 -> 130.3666667 | Q52: =(J67-J36)/Q44 -> 128.2903226 | R52: =(J97-J67)/R44 -> 127.5666667 | S52: =(J127-J97)/S44 -> 130.9666667 | T52: =(J158-J127)/T44 -> 133.3548387 | U52: =(J188-J158)/U44 -> 137.9333333
A53: 12 | B53: 6039 | C53: 13 | D53: 6043 | E53: 13 | F53: 6048 | G53: 14 | H53: 6061 | I53: 13 | J53: 6073 | K53: 0 | L53: 11111
A54: 12 | B54: 6172 | C54: 13 | D54: 6178 | E54: 13 | F54: 6183 | G54: 14 | H54: 6188 | I54: 13 | J54: 6194 | K54: 0 | L54: 11111
A55: 12 | B55: 6299 | C55: 13 | D55: 6304 | E55: 13 | F55: 6308 | G55: 14 | H55: 6313 | I55: 13 | J55: 6318 | K55: 0 | L55: 11111
A56: 12 | B56: 6429 | C56: 13 | D56: 6437 | E56: 13 | F56: 6442 | G56: 14 | H56: 6449 | I56: 13 | J56: 6454 | K56: 0 | L56: 11111
A57: 12 | B57: 6558 | C57: 13 | D57: 6564 | E57: 13 | F57: 6568 | G57: 14 | H57: 6577 | I57: 13 | J57: 6586 | K57: 0 | L57: 11111
A58: 12 | B58: 6686 | C58: 13 | D58: 6691 | E58: 13 | F58: 6697 | G58: 14 | H58: 6701 | I58: 13 | J58: 6712 | K58: 0 | L58: 11111
A59: 12 | B59: 6812 | C59: 13 | D59: 6817 | E59: 13 | F59: 6822 | G59: 14 | H59: 6827 | I59: 13 | J59: 6841 | K59: 0 | L59: 11111
A60: 12 | B60: 6943 | C60: 13 | D60: 6948 | E60: 13 | F60: 6953 | G60: 14 | H60: 6958 | I60: 13 | J60: 6963 | K60: 0 | L60: 11111
A61: 12 | B61: 7063 | C61: 13 | D61: 7067 | E61: 13 | F61: 7075 | G61: 14 | H61: 7079 | I61: 13 | J61: 7083 | K61: 0 | L61: 11111
A62: 12 | B62: 7186 | C62: 13 | D62: 7191 | E62: 13 | F62: 7197 | G62: 14 | H62: 7201 | I62: 13 | J62: 7210 | K62: 1 | L62: 11111
A63: 12 | B63: 7317 | C63: 13 | D63: 7322 | E63: 24 | F63: 7349 | G63: 23 | H63: 7354 | I63: 24 | J63: 7365 | K63: 0 | L63: 11222
A64: 12 | B64: 7467 | C64: 13 | D64: 7473 | E64: 13 | F64: 7478 | G64: 14 | H64: 7484 | I64: 13 | J64: 7489 | K64: 0 | L64: 11111
A65: 12 | B65: 7587 | C65: 13 | D65: 7592 | E65: 13 | F65: 7596 | G65: 14 | H65: 7600 | I65: 13 | J65: 7607 | K65: 0 | L65: 11111
A66: 12 | B66: 7713 | C66: 13 | D66: 7719 | E66: 13 | F66: 7725 | G66: 14 | H66: 7730 | I66: 13 | J66: 7738 | K66: 0 | L66: 11111
A67: 12 | B67: 7853 | C67: 13 | D67: 7870 | E67: 13 | F67: 7875 | G67: 14 | H67: 7880 | I67: 13 | J67: 7888 | K67: 0 | L67: 11111
A68: 12 | B68: 7988 | C68: 13 | D68: 7993 | E68: 13 | F68: 7998 | G68: 14 | H68: 8002 | I68: 13 | J68: 8012 | K68: 1 | L68: 11111
A69: 12 | B69: 8115 | C69: 13 | D69: 8125 | E69: 13 | F69: 8130 | G69: 14 | H69: 8140 | I69: 24 | J69: 8161 | K69: 0 | L69: 11112
A70: 12 | B70: 8262 | C70: 13 | D70: 8267 | E70: 13 | F70: 8271 | G70: 14 | H70: 8276 | I70: 13 | J70: 8280 | K70: 0 | L70: 11111
A71: 12 | B71: 8392 | C71: 13 | D71: 8397 | E71: 13 | F71: 8402 | G71: 14 | H71: 8408 | I71: 13 | J71: 8413 | K71: 0 | L71: 11111
A72: 12 | B72: 8517 | C72: 13 | D72: 8522 | E72: 13 | F72: 8527 | G72: 14 | H72: 8532 | I72: 13 | J72: 8538 | K72: 0 | L72: 11111
A73: 21 | B73: 8645 | C73: 22 | D73: 8654 | E73: 24 | F73: 8658 | G73: 23 | H73: 8666 | I73: 24 | J73: 8673 | K73: 1 | L73: 22222
A74: 12 | B74: 8770 | C74: 13 | D74: 8775 | E74: 13 | F74: 8780 | G74: 14 | H74: 8784 | I74: 13 | J74: 8793 | K74: 0 | L74: 11111
A75: 12 | B75: 8912 | C75: 13 | D75: 8917 | E75: 13 | F75: 8922 | G75: 14 | H75: 8928 | I75: 13 | J75: 8935 | K75: 0 | L75: 11111
A76: 12 | B76: 9035 | C76: 13 | D76: 9039 | E76: 13 | F76: 9044 | G76: 14 | H76: 9051 | I76: 13 | J76: 9060 | K76: 0 | L76: 11111
A77: 12 | B77: 9165 | C77: 13 | D77: 9169 | E77: 13 | F77: 9174 | G77: 14 | H77: 9180 | I77: 13 | J77: 9188 | K77: 0 | L77: 11111
A78: 12 | B78: 9288 | C78: 13 | D78: 9293 | E78: 13 | F78: 9297 | G78: 14 | H78: 9302 | I78: 13 | J78: 9306 | K78: 1 | L78: 11111
A79: 12 | B79: 9407 | C79: 13 | D79: 9411 | E79: 13 | F79: 9417 | G79: 14 | H79: 9421 | I79: 13 | J79: 9429 | K79: 0 | L79: 11111
A80: 12 | B80: 9527 | C80: 13 | D80: 9532 | E80: 13 | F80: 9536 | G80: 14 | H80: 9540 | I80: 13 | J80: 9545 | K80: 0 | L80: 11111
A81: 12 | B81: 9649 | C81: 13 | D81: 9654 | E81: 13 | F81: 9660 | G81: 14 | H81: 9664 | I81: 13 | J81: 9670 | K81: 0 | L81: 11111
A82: 12 | B82: 9770 | C82: 13 | D82: 9775 | E82: 13 | F82: 9780 | G82: 14 | H82: 9784 | I82: 13 | J82: 9792 | K82: 1 | L82: 11111
A83: 12 | B83: 9886 | C83: 13 | D83: 9890 | E83: 13 | F83: 9894 | G83: 14 | H83: 9900 | I83: 13 | J83: 9905 | K83: 0 | L83: 11111
A84: 12 | B84: 10022 | C84: 13 | D84: 10027 | E84: 13 | F84: 10032 | G84: 14 | H84: 10039 | I84: 13 | J84: 10046 | K84: 0 | L84: 11111
A85: 12 | B85: 10145 | C85: 13 | D85: 10149 | E85: 13 | F85: 10153 | G85: 14 | H85: 10157 | I85: 13 | J85: 10162 | K85: 0 | L85: 11111
A86: 12 | B86: 10262 | C86: 13 | D86: 10267 | E86: 13 | F86: 10276 | G86: 14 | H86: 10286 | I86: 13 | J86: 10292 | K86: 0 | L86: 11111
A87: 12 | B87: 10398 | C87: 13 | D87: 10411 | E87: 13 | F87: 10416 | G87: 14 | H87: 10422 | I87: 13 | J87: 10428 | K87: 0 | L87: 11111
A88: 12 | B88: 10535 | C88: 13 | D88: 10543 | E88: 13 | F88: 10548 | G88: 14 | H88: 10553 | I88: 13 | J88: 10563 | K88: 1 | L88: 11111
A89: 12 | B89: 10662 | C89: 13 | D89: 10668 | E89: 13 | F89: 10673 | G89: 14 | H89: 10678 | I89: 13 | J89: 10683 | K89: 0 | L89: 11111
A90: 12 | B90: 10790 | C90: 13 | D90: 10795 | E90: 13 | F90: 10801 | G90: 14 | H90: 10805 | I90: 13 | J90: 10811 | K90: 0 | L90: 11111
A91: 12 | B91: 10913 | C91: 13 | D91: 10917 | E91: 13 | F91: 10922 | G91: 14 | H91: 10927 | I91: 13 | J91: 10931 | K91: 0 | L91: 11111
A92: 12 | B92: 11038 | C92: 13 | D92: 11048 | E92: 13 | F92: 11054 | G92: 14 | H92: 11064 | I92: 13 | J92: 11068 | K92: 1 | L92: 11111
A93: 12 | B93: 11166 | C93: 13 | D93: 11175 | E93: 13 | F93: 11180 | G93: 14 | H93: 11189 | I93: 13 | J93: 11194 | K93: 0 | L93: 11111
A94: 12 | B94: 11300 | C94: 13 | D94: 11315 | E94: 13 | F94: 11321 | G94: 14 | H94: 11327 | I94: 13 | J94: 11332 | K94: 0 | L94: 11111
A95: 12 | B95: 11440 | C95: 13 | D95: 11449 | E95: 13 | F95: 11455 | G95: 14 | H95: 11464 | I95: 13 | J95: 11469 | K95: 0 | L95: 11111
A96: 12 | B96: 11573 | C96: 13 | D96: 11578 | E96: 13 | F96: 11583 | G96: 14 | H96: 11588 | I96: 13 | J96: 11592 | K96: 0 | L96: 11111
A97: 12 | B97: 11696 | C97: 13 | D97: 11701 | E97: 13 | F97: 11705 | G97: 14 | H97: 11710 | I97: 13 | J97: 11715 | K97: 0 | L97: 11111
A98: 12 | B98: 11815 | C98: 13 | D98: 11825 | E98: 13 | F98: 11830 | G98: 14 | H98: 11835 | I98: 13 | J98: 11839 | K98: 0 | L98: 11111
A99: 12 | B99: 11939 | C99: 13 | D99: 11944 | E99: 13 | F99: 11948 | G99: 14 | H99: 11958 | I99: 13 | J99: 11963 | K99: 1 | L99: 11111
A100: 12 | B100: 12067 | C100: 13 | D100: 12082 | E100: 24 | F100: 12105 | G100: 23 | H100: 12115 | I100: 24 | J100: 12125 | K100: 0 | L100: 11222
A101: 12 | B101: 12227 | C101: 13 | D101: 12232 | E101: 13 | F101: 12237 | G101: 14 | H101: 12242 | I101: 13 | J101: 12246 | K101: 0 | L101: 11111
A102: 12 | B102: 12345 | C102: 13 | D102: 12350 | E102: 13 | F102: 12359 | G102: 14 | H102: 12364 | I102: 13 | J102: 12369 | K102: 0 | L102: 11111
A103: 12 | B103: 12476 | C103: 13 | D103: 12481 | E103: 13 | F103: 12486 | G103: 14 | H103: 12491 | I103: 13 | J103: 12502 | K103: 0 | L103: 11111
A104: 12 | B104: 12602 | C104: 13 | D104: 12606 | E104: 13 | F104: 12612 | G104: 14 | H104: 12616 | I104: 13 | J104: 12622 | K104: 0 | L104: 11111
A105: 12 | B105: 12729 | C105: 13 | D105: 12738 | E105: 13 | F105: 12743 | G105: 14 | H105: 12756 | I105: 13 | J105: 12761 | K105: 0 | L105: 11111
A106: 12 | B106: 12864 | C106: 13 | D106: 12869 | E106: 13 | F106: 12874 | G106: 14 | H106: 12878 | I106: 13 | J106: 12883 | K106: 0 | L106: 11111
A107: 12 | B107: 12991 | C107: 13 | D107: 12999 | E107: 13 | F107: 13005 | G107: 14 | H107: 13009 | I107: 13 | J107: 13015 | K107: 1 | L107: 11111
A108: 12 | B108: 13111 | C108: 13 | D108: 13121 | E108: 13 | F108: 13130 | G108: 14 | H108: 13135 | I108: 13 | J108: 13149 | K108: 0 | L108: 11111
A109: 12 | B109: 13252 | C109: 13 | D109: 13263 | E109: 13 | F109: 13268 | G109: 14 | H109: 13273 | I109: 13 | J109: 13278 | K109: 1 | L109: 11111
A110: 12 | B110: 13375 | C110: 13 | D110: 13382 | E110: 13 | F110: 13392 | G110: 14 | H110: 13398 | I110: 13 | J110: 13411 | K110: 0 | L110: 11111
A111: 12 | B111: 13514 | C111: 13 | D111: 13519 | E111: 13 | F111: 13524 | G111: 14 | H111: 13528 | I111: 13 | J111: 13533 | K111: 0 | L111: 11111
A112: 12 | B112: 13634 | C112: 13 | D112: 13643 | E112: 13 | F112: 13652 | G112: 14 | H112: 13658 | I112: 13 | J112: 13664 | K112: 1 | L112: 11111
A113: 12 | B113: 13768 | C113: 13 | D113: 13772 | E113: 13 | F113: 13782 | G113: 14 | H113: 13795 | I113: 13 | J113: 13804 | K113: 0 | L113: 11111
A114: 12 | B114: 13912 | C114: 13 | D114: 13917 | E114: 13 | F114: 13927 | G114: 14 | H114: 13939 | I114: 13 | J114: 13948 | K114: 0 | L114: 11111
A115: 12 | B115: 14063 | C115: 13 | D115: 14068 | E115: 13 | F115: 14086 | G115: 14 | H115: 14090 | I115: 13 | J115: 14102 | K115: 0 | L115: 11111
A116: 12 | B116: 14204 | C116: 13 | D116: 14208 | E116: 13 | F116: 14218 | G116: 14 | H116: 14223 | I116: 13 | J116: 14228 | K116: 0 | L116: 11111
A117: 12 | B117: 14331 | C117: 13 | D117: 14341 | E117: 13 | F117: 14347 | G117: 14 | H117: 14352 | I117: 13 | J117: 14357 | K117: 0 | L117: 11111
A118: 12 | B118: 14456 | C118: 13 | D118: 14461 | E118: 13 | F118: 14466 | G118: 14 | H118: 14470 | I118: 13 | J118: 14475 | K118: 0 | L118: 11111
A119: 12 | B119: 14577 | C119: 13 | D119: 14581 | E119: 13 | F119: 14586 | G119: 14 | H119: 14590 | I119: 13 | J119: 14596 | K119: 1 | L119: 11111
A120: 12 | B120: 14697 | C120: 13 | D120: 14703 | E120: 13 | F120: 14708 | G120: 14 | H120: 14713 | I120: 13 | J120: 14719 | K120: 0 | L120: 11111
A121: 12 | B121: 14824 | C121: 13 | D121: 14829 | E121: 13 | F121: 14839 | G121: 14 | H121: 14844 | I121: 13 | J121: 14861 | K121: 0 | L121: 11111
A122: 12 | B122: 14968 | C122: 13 | D122: 14973 | E122: 13 | F122: 14979 | G122: 14 | H122: 14994 | I122: 13 | J122: 15003 | K122: 0 | L122: 11111
A123: 12 | B123: 15105 | C123: 13 | D123: 15116 | E123: 13 | F123: 15122 | G123: 14 | H123: 15126 | I123: 13 | J123: 15131 | K123: 0 | L123: 11111
A124: 12 | B124: 15234 | C124: 13 | D124: 15240 | E124: 13 | F124: 15245 | G124: 14 | H124: 15256 | I124: 13 | J124: 15261 | K124: 0 | L124: 11111
A125: 12 | B125: 15363 | C125: 13 | D125: 15367 | E125: 13 | F125: 15371 | G125: 14 | H125: 15380 | I125: 13 | J125: 15391 | K125: 0 | L125: 11111
A126: 12 | B126: 15493 | C126: 13 | D126: 15498 | E126: 13 | F126: 15503 | G126: 14 | H126: 15508 | I126: 13 | J126: 15512 | K126: 0 | L126: 11111
A127: 12 | B127: 15615 | C127: 13 | D127: 15620 | E127: 13 | F127: 15626 | G127: 14 | H127: 15637 | I127: 13 | J127: 15644 | K127: 1 | L127: 11111
A128: 12 | B128: 15740 | C128: 13 | D128: 15760 | E128: 13 | F128: 15766 | G128: 14 | H128: 15776 | I128: 13 | J128: 15781 | K128: 0 | L128: 11111
A129: 12 | B129: 15885 | C129: 13 | D129: 15890 | E129: 13 | F129: 15894 | G129: 14 | H129: 15898 | I129: 13 | J129: 15903 | K129: 0 | L129: 11111
A130: 12 | B130: 16003 | C130: 13 | D130: 16012 | E130: 13 | F130: 16017 | G130: 14 | H130: 16022 | I130: 13 | J130: 16031 | K130: 0 | L130: 11111
A131: 12 | B131: 16134 | C131: 13 | D131: 16139 | E131: 13 | F131: 16144 | G131: 14 | H131: 16148 | I131: 13 | J131: 16153 | K131: 0 | L131: 11111
A132: 12 | B132: 16266 | C132: 13 | D132: 16276 | E132: 13 | F132: 16284 | G132: 14 | H132: 16296 | I132: 13 | J132: 16305 | K132: 0 | L132: 11111
A133: 12 | B133: 16403 | C133: 13 | D133: 16407 | E133: 13 | F133: 16411 | G133: 14 | H133: 16415 | I133: 13 | J133: 16419 | K133: 1 | L133: 11111
A134: 12 | B134: 16521 | C134: 13 | D134: 16549 | E134: 13 | F134: 16555 | G134: 14 | H134: 16571 | I134: 13 | J134: 16583 | K134: 0 | L134: 11111
A135: 12 | B135: 16692 | C135: 13 | D135: 16701 | E135: 13 | F135: 16706 | G135: 14 | H135: 16711 | I135: 13 | J135: 16720 | K135: 0 | L135: 11111
A136: 12 | B136: 16824 | C136: 13 | D136: 16829 | E136: 13 | F136: 16834 | G136: 14 | H136: 16843 | I136: 13 | J136: 16848 | K136: 0 | L136: 11111
A137: 12 | B137: 16958 | C137: 13 | D137: 16969 | E137: 13 | F137: 16974 | G137: 14 | H137: 16980 | I137: 13 | J137: 16984 | K137: 0 | L137: 11111
A138: 12 | B138: 17079 | C138: 13 | D138: 17088 | E138: 13 | F138: 17093 | G138: 14 | H138: 17097 | I138: 13 | J138: 17102 | K138: 0 | L138: 11111
A139: 12 | B139: 17206 | C139: 13 | D139: 17211 | E139: 13 | F139: 17220 | G139: 14 | H139: 17229 | I139: 13 | J139: 17234 | K139: 0 | L139: 11111
A140: 12 | B140: 17328 | C140: 13 | D140: 17332 | E140: 13 | F140: 17341 | G140: 14 | H140: 17350 | I140: 13 | J140: 17359 | K140: 0 | L140: 11111
A141: 12 | B141: 17458 | C141: 13 | D141: 17462 | E141: 13 | F141: 17467 | G141: 14 | H141: 17471 | I141: 13 | J141: 17480 | K141: 0 | L141: 11111
A142: 12 | B142: 17586 | C142: 13 | D142: 17591 | E142: 13 | F142: 17596 | G142: 14 | H142: 17605 | I142: 13 | J142: 17612 | K142: 1 | L142: 11111
A143: 12 | B143: 17726 | C143: 13 | D143: 17737 | E143: 13 | F143: 17742 | G143: 14 | H143: 17747 | I143: 13 | J143: 17757 | K143: 0 | L143: 11111
A144: 12 | B144: 17850 | C144: 13 | D144: 17859 | E144: 13 | F144: 17864 | G144: 14 | H144: 17868 | I144: 13 | J144: 17877 | K144: 0 | L144: 11111
A145: 12 | B145: 17978 | C145: 13 | D145: 17982 | E145: 13 | F145: 17986 | G145: 14 | H145: 17991 | I145: 13 | J145: 17995 | K145: 0 | L145: 11111
A146: 12 | B146: 18101 | C146: 13 | D146: 18106 | E146: 13 | F146: 18111 | G146: 14 | H146: 18115 | I146: 13 | J146: 18120 | K146: 0 | L146: 11111
A147: 12 | B147: 18229 | C147: 13 | D147: 18234 | E147: 13 | F147: 18247 | G147: 14 | H147: 18257 | I147: 13 | J147: 18262 | K147: 0 | L147: 11111
A148: 12 | B148: 18360 | C148: 13 | D148: 18365 | E148: 13 | F148: 18370 | G148: 14 | H148: 18375 | I148: 13 | J148: 18384 | K148: 0 | L148: 11111
A149: 12 | B149: 18489 | C149: 13 | D149: 18498 | E149: 13 | F149: 18508 | G149: 14 | H149: 18515 | I149: 13 | J149: 18524 | K149: 0 | L149: 11111
A150: 12 | B150: 18628 | C150: 13 | D150: 18633 | E150: 13 | F150: 18638 | G150: 14 | H150: 18643 | I150: 13 | J150: 18648 | K150: 0 | L150: 11111
A151: 12 | B151: 18754 | C151: 13 | D151: 18758 | E151: 13 | F151: 18764 | G151: 14 | H151: 18768 | I151: 13 | J151: 18779 | K151: 0 | L151: 11111
A152: 12 | B152: 18879 | C152: 13 | D152: 18892 | E152: 13 | F152: 18901 | G152: 14 | H152: 18905 | I152: 13 | J152: 18912 | K152: 0 | L152: 11111
A153: 12 | B153: 19024 | C153: 13 | D153: 19028 | E153: 13 | F153: 19033 | G153: 14 | H153: 19038 | I153: 13 | J153: 19043 | K153: 1 | L153: 11111
A154: 12 | B154: 19144 | C154: 13 | D154: 19165 | E154: 13 | F154: 19170 | G154: 23 | H154: 19210 | I154: 24 | J154: 19243 | K154: 0 | L154: 11122
A155: 12 | B155: 19351 | C155: 13 | D155: 19364 | E155: 13 | F155: 19368 | G155: 14 | H155: 19374 | I155: 13 | J155: 19383 | K155: 0 | L155: 11111
A156: 12 | B156: 19477 | C156: 13 | D156: 19489 | E156: 13 | F156: 19495 | G156: 14 | H156: 19499 | I156: 13 | J156: 19504 | K156: 0 | L156: 11111
A157: 12 | B157: 19603 | C157: 13 | D157: 19607 | E157: 13 | F157: 19612 | G157: 14 | H157: 19617 | I157: 13 | J157: 19622 | K157: 0 | L157: 11111
A158: 12 | B158: 19738 | C158: 13 | D158: 19743 | E158: 13 | F158: 19759 | G158: 14 | H158: 19766 | I158: 13 | J158: 19778 | K158: 0 | L158: 11111
A159: 12 | B159: 19882 | C159: 13 | D159: 19886 | E159: 13 | F159: 19890 | G159: 14 | H159: 19900 | I159: 13 | J159: 19905 | K159: 0 | L159: 11111
A160: 12 | B160: 20008 | C160: 13 | D160: 20025 | E160: 13 | F160: 20030 | G160: 14 | H160: 20035 | I160: 13 | J160: 20042 | K160: 0 | L160: 11111
A161: 12 | B161: 20149 | C161: 13 | D161: 20154 | E161: 13 | F161: 20167 | G161: 14 | H161: 20180 | I161: 13 | J161: 20188 | K161: 0 | L161: 11111
A162: 21 | B162: 20302 | C162: 22 | D162: 20310 | E162: 24 | F162: 20319 | G162: 23 | H162: 20328 | I162: 24 | J162: 20337 | K162: 0 | L162: 22222
A163: 12 | B163: 20456 | C163: 13 | D163: 20469 | E163: 13 | F163: 20475 | G163: 14 | H163: 20483 | I163: 13 | J163: 20493 | K163: 1 | L163: 11111
A164: 12 | B164: 20608 | C164: 13 | D164: 20615 | E164: 13 | F164: 20622 | G164: 14 | H164: 20627 | I164: 13 | J164: 20643 | K164: 0 | L164: 11111
A165: 12 | B165: 20748 | C165: 13 | D165: 20757 | E165: 13 | F165: 20766 | G165: 14 | H165: 20774 | I165: 13 | J165: 20786 | K165: 1 | L165: 11111
A166: 12 | B166: 20892 | C166: 13 | D166: 20902 | E166: 13 | F166: 20912 | G166: 14 | H166: 20916 | I166: 13 | J166: 20926 | K166: 1 | L166: 11111
A167: 12 | B167: 21033 | C167: 13 | D167: 21038 | E167: 13 | F167: 21046 | G167: 14 | H167: 21055 | I167: 13 | J167: 21060 | K167: 0 | L167: 11111
A168: 12 | B168: 21165 | C168: 13 | D168: 21180 | E168: 13 | F168: 21184 | G168: 14 | H168: 21196 | I168: 13 | J168: 21205 | K168: 0 | L168: 11111
A169: 12 | B169: 21311 | C169: 13 | D169: 21316 | E169: 13 | F169: 21326 | G169: 14 | H169: 21331 | I169: 13 | J169: 21346 | K169: 1 | L169: 11111
A170: 12 | B170: 21445 | C170: 13 | D170: 21449 | E170: 13 | F170: 21454 | G170: 14 | H170: 21459 | I170: 13 | J170: 21464 | K170: 1 | L170: 11111
A171: 12 | B171: 21581 | C171: 13 | D171: 21600 | E171: 13 | F171: 21608 | G171: 14 | H171: 21616 | I171: 13 | J171: 21621 | K171: 0 | L171: 11111
A172: 12 | B172: 21726 | C172: 13 | D172: 21734 | E172: 13 | F172: 21739 | G172: 14 | H172: 21744 | I172: 13 | J172: 21752 | K172: 0 | L172: 11111
A173: 12 | B173: 21852 | C173: 13 | D173: 21856 | E173: 13 | F173: 21861 | G173: 14 | H173: 21865 | I173: 13 | J173: 21870 | K173: 1 | L173: 11111
A174: 12 | B174: 21976 | C174: 13 | D174: 21980 | E174: 13 | F174: 21990 | G174: 14 | H174: 21999 | I174: 13 | J174: 22014 | K174: 0 | L174: 11111
A175: 12 | B175: 22129 | C175: 13 | D175: 22138 | E175: 13 | F175: 22147 | G175: 14 | H175: 22160 | I175: 13 | J175: 22166 | K175: 0 | L175: 11111
A176: 12 | B176: 22275 | C176: 13 | D176: 22284 | E176: 13 | F176: 22292 | G176: 14 | H176: 22303 | I176: 13 | J176: 22309 | K176: 0 | L176: 11111
A177: 12 | B177: 22420 | C177: 13 | D177: 22425 | E177: 13 | F177: 22429 | G177: 14 | H177: 22434 | I177: 13 | J177: 22439 | K177: 1 | L177: 11111
A178: 12 | B178: 22540 | C178: 13 | D178: 22559 | E178: 13 | F178: 22565 | G178: 14 | H178: 22573 | I178: 13 | J178: 22590 | K178: 0 | L178: 11111
A179: 12 | B179: 22691 | C179: 13 | D179: 22700 | E179: 13 | F179: 22713 | G179: 14 | H179: 22725 | I179: 13 | J179: 22730 | K179: 0 | L179: 11111
A180: 12 | B180: 22835 | C180: 13 | D180: 22844 | E180: 13 | F180: 22850 | G180: 14 | H180: 22859 | I180: 13 | J180: 22865 | K180: 0 | L180: 11111
A181: 12 | B181: 22970 | C181: 13 | D181: 22974 | E181: 13 | F181: 22979 | G181: 14 | H181: 22984 | I181: 13 | J181: 22989 | K181: 1 | L181: 11111
A182: 12 | B182: 23093 | C182: 13 | D182: 23098 | E182: 13 | F182: 23103 | G182: 14 | H182: 23109 | I182: 13 | J182: 23114 | K182: 1 | L182: 11111
A183: 12 | B183: 23213 | C183: 13 | D183: 23218 | E183: 13 | F183: 23226 | G183: 14 | H183: 23236 | I183: 13 | J183: 23242 | K183: 0 | L183: 11111
A184: 12 | B184: 23336 | C184: 13 | D184: 23341 | E184: 13 | F184: 23345 | G184: 14 | H184: 23350 | I184: 13 | J184: 23355 | K184: 0 | L184: 11111
A185: 12 | B185: 23459 | C185: 13 | D185: 23469 | E185: 13 | F185: 23477 | G185: 14 | H185: 23483 | I185: 13 | J185: 23499 | K185: 0 | L185: 11111
A186: 12 | B186: 23603 | C186: 13 | D186: 23617 | E186: 13 | F186: 23622 | G186: 14 | H186: 23627 | I186: 13 | J186: 23633 | K186: 0 | L186: 11111
A187: 12 | B187: 23734 | C187: 13 | D187: 23739 | E187: 13 | F187: 23743 | G187: 14 | H187: 23748 | I187: 13 | J187: 23752 | K187: 1 | L187: 11111
A188: 12 | B188: 23858 | C188: 13 | D188: 23889 | E188: 13 | F188: 23898 | G188: 14 | H188: 23908 | I188: 13 | J188: 23916 | L188: 11111

Sheet !MC03810.010
A1: Report for:!MC03810.010
A2: Date: | B2: <date>
A3: Hen: | B3: <hen> | F3: Correct Sequence | G3: =Start!J2 -> 21121 | P3: Total Sequences in Data | Q3: =4994-COUNTBLANK(L7:L5000) -> 179 | V3: Total Sequences in Block Data | W3: =COUNTA(L7:L36) -> 30 | AA3: Total Sequences in Block Data | AB3: =COUNTA(L37:L66) -> 30 | AF3: Total Sequences in Block Data | AG3: =COUNTA(L67:L95) -> 29 | AK3: Total Sequences in Block Data | AL3: =COUNTA(L96:L125) -> 30 | AP3: Total Sequences in Block Data | AQ3: =COUNTA(L126:L155) -> 30 | AU3: Total Sequences in Block Data | AV3: =COUNTA(L156:L185) -> 30
P4: Total Sequences in Summary | Q4: =SUM(O7:O38) -> 179 | V4: Total Sequences in Block Summary | W4: =SUM(U7:U38) -> 30 | AA4: Total Sequences in Block Summary | AB4: =SUM(Z7:Z38) -> 30 | AF4: Total Sequences in Block Summary | AG4: =SUM(AE7:AE38) -> 29 | AK4: Total Sequences in Block Summary | AL4: =SUM(AJ7:AJ38) -> 30 | AP4: Total Sequences in Block Summary | AQ4: =SUM(AO7:AO38) -> 30 | AU4: Total Sequences in Block Summary | AV4: =SUM(AT7:AT38) -> 30
T5: Block 1 | Y5: Block 2 | AD5: Block 3 | AI5: Block 4 | AN5: Block 5 | AS5: Block 6
A6: Sequence Component 1 | B6: Time 1 | C6: Sequence Component 2 | D6: Time 2 | E6: Sequence Component 3 | F6: Time 3 | G6: Sequence Component 4 | H6: Time 4 | I6: Sequence Component 5 | J6: Time 5 | K6: Correct? 0=No 1=Yes | L6: Sequence | N6: Frequency | P6: Relative Frequency | Q6: Variability | T6: Frequency | V6: Relative Frequency | W6: Variability | Y6: Frequency | AA6: Relative Frequency | AB6: Variability | AD6: Frequency | AF6: Relative Frequency | AG6: Variability | AI6: Frequency | AK6: Relative Frequency | AL6: Variability | AN6: Frequency | AP6: Relative Frequency | AQ6: Variability | AS6: Frequency | AU6: Relative Frequency | AV6: Variability
A7: 21 | B7: 26 | C7: 11 | D7: 43 | E7: 11 | F7: 49 | G7: 12 | H7: 56 | I7: 24 | J7: 71 | K7: 0 | L7: 21112 | N7: 11111 | O7: =COUNTIF($L$7:$L$500,N7) -> 164 | P7: =O7/$Q$4 -> 0.9162011173 | Q7: =IF(P7=0,0,(P7*((LOG(P7))/LOG(2)))) -> -0.1156830096 | T7: =N7 -> 11111 | U7: =COUNTIF(L7:L36,T7) -> 28 | V7: =U7/(W4-U25) -> 0.9333333333 | W7: =IF(V7=0,0,(V7*((LOG(V7))/LOG(2)))) -> -0.09289996198 | Y7: =N7 -> 11111 | Z7: =COUNTIF(L37:L66,Y7) -> 29 | AA7: =Z7/(AB4-Z25) -> 0.9666666667 | AB7: =IF(AA7=0,0,(AA7*((LOG(AA7))/LOG(2)))) -> -0.04727928046 | AD7: =N7 -> 11111 | AE7: =COUNTIF(L67:L95,AD7) -> 26 | AF7: =AE7/(AG4-AE25) -> 0.8965517241 | AG7: =IF(AF7=0,0,(AF7*((LOG(AF7))/LOG(2)))) -> -0.1412439035 | AI7: =N7 -> 11111 | AJ7: =COUNTIF(L96:L125,AI7) -> 29 | AK7: =AJ7/(AL4-AJ25) -> 0.9666666667 | AL7: =IF(AK7=0,0,(AK7*((LOG(AK7))/LOG(2)))) -> -0.04727928046 | AN7: =N7 -> 11111 | AO7: =COUNTIF(L126:L155,AN7) -> 28 | AP7: =AO7/(AQ4-AO25) -> 0.9333333333 | AQ7: =IF(AP7=0,0,(AP7*((LOG(AP7))/LOG(2)))) -> -0.09289996198 | AS7: =N7 -> 11111 | AT7: =COUNTIF(L156:L185,AS7) -> 24 | AU7: =AT7/(AV4-AT25) -> 0.8 | AV7: =IF(AU7=0,0,(AU7*((LOG(AU7))/LOG(2)))) -> -0.2575424759
A8: 12 | B8: 166 | C8: 13 | D8: 176 | E8: 13 | F8: 182 | G8: 14 | H8: 187 | I8: 13 | J8: 192 | K8: 0 | L8: 11111 | N8: 11112 | O8: =COUNTIF($L$7:$L$500,N8) -> 1 | P8: =O8/$Q$4 -> 0.005586592179 | Q8: =IF(P8=0,0,(P8*((LOG(P8))/LOG(2)))) -> -0.04180902669 | T8: =N8 -> 11112 | U8: =COUNTIF(L7:L36,T8) -> 1 | V8: =U8/(W4-U25) -> 0.03333333333 | W8: =IF(V8=0,0,(V8*((LOG(V8))/LOG(2)))) -> -0.1635630199 | Y8: =N8 -> 11112 | Z8: =COUNTIF(L37:L66,Y8) -> 0 | AA8: =Z8/(AB4-Z25) -> 0 | AB8: =IF(AA8=0,0,(AA8*((LOG(AA8))/LOG(2)))) -> 0 | AD8: =N8 -> 11112 | AE8: =COUNTIF(L67:L95,AD8) -> 0 | AF8: =AE8/(AG4-AE25) -> 0 | AG8: =IF(AF8=0,0,(AF8*((LOG(AF8))/LOG(2)))) -> 0 | AI8: =N8 -> 11112 | AJ8: =COUNTIF(L96:L125,AI8) -> 0 | AK8: =AJ8/(AL4-AJ25) -> 0 | AL8: =IF(AK8=0,0,(AK8*((LOG(AK8))/LOG(2)))) -> 0 | AN8: =N8 -> 11112 | AO8: =COUNTIF(L126:L155,AN8) -> 0 | AP8: =AO8/(AQ4-AO25) -> 0 | AQ8: =IF(AP8=0,0,(AP8*((LOG(AP8))/LOG(2)))) -> 0 | AS8: =N8 -> 11112 | AT8: =COUNTIF(L156:L185,AS8) -> 0 | AU8: =AT8/(AV4-AT25) -> 0 | AV8: =IF(AU8=0,0,(AU8*((LOG(AU8))/LOG(2)))) -> 0
A9: 12 | B9: 295 | C9: 13 | D9: 300 | E9: 13 | F9: 306 | G9: 14 | H9: 311 | I9: 13 | J9: 317 | K9: 0 | L9: 11111 | N9: 11121 | O9: =COUNTIF($L$7:$L$500,N9) -> 0 | P9: =O9/$Q$4 -> 0 | Q9: =IF(P9=0,0,(P9*((LOG(P9))/LOG(2)))) -> 0 | T9: =N9 -> 11121 | U9: =COUNTIF(L7:L36,T9) -> 0 | V9: =U9/(W4-U25) -> 0 | W9: =IF(V9=0,0,(V9*((LOG(V9))/LOG(2)))) -> 0 | Y9: =N9 -> 11121 | Z9: =COUNTIF(L37:L66,Y9) -> 0 | AA9: =Z9/(AB4-Z25) -> 0 | AB9: =IF(AA9=0,0,(AA9*((LOG(AA9))/LOG(2)))) -> 0 | AD9: =N9 -> 11121 | AE9: =COUNTIF(L67:L95,AD9) -> 0 | AF9: =AE9/(AG4-AE25) -> 0 | AG9: =IF(AF9=0,0,(AF9*((LOG(AF9))/LOG(2)))) -> 0 | AI9: =N9 -> 11121 | AJ9: =COUNTIF(L96:L125,AI9) -> 0 | AK9: =AJ9/(AL4-AJ25) -> 0 | AL9: =IF(AK9=0,0,(AK9*((LOG(AK9))/LOG(2)))) -> 0 | AN9: =N9 -> 11121 | AO9: =COUNTIF(L126:L155,AN9) -> 0 | AP9: =AO9/(AQ4-AO25) -> 0 | AQ9: =IF(AP9=0,0,(AP9*((LOG(AP9))/LOG(2)))) -> 0 | AS9: =N9 -> 11121 | AT9: =COUNTIF(L156:L185,AS9) -> 0 | AU9: =AT9/(AV4-AT25) -> 0 | AV9: =IF(AU9=0,0,(AU9*((LOG(AU9))/LOG(2)))) -> 0
A10: 12 | B10: 417 | C10: 13 | D10: 422 | E10: 13 | F10: 427 | G10: 14 | H10: 437 | I10: 13 | J10: 441 | K10: 1 | L10: 11111 | N10: 11122 | O10: =COUNTIF($L$7:$L$500,N10) -> 1 | P10: =O10/$Q$4 -> 0.005586592179 | Q10: =IF(P10=0,0,(P10*((LOG(P10))/LOG(2)))) -> -0.04180902669 | T10: =N10 -> 11122 | U10: =COUNTIF(L7:L36,T10) -> 0 | V10: =U10/(W4-U25) -> 0 | W10: =IF(V10=0,0,(V10*((LOG(V10))/LOG(2)))) -> 0 | Y10: =N10 -> 11122 | Z10: =COUNTIF(L37:L66,Y10) -> 0 | AA10: =Z10/(AB4-Z25) -> 0 | AB10: =IF(AA10=0,0,(AA10*((LOG(AA10))/LOG(2)))) -> 0 | AD10: =N10 -> 11122 | AE10: =COUNTIF(L67:L95,AD10) -> 1 | AF10: =AE10/(AG4-AE25) -> 0.03448275862 | AG10: =IF(AF10=0,0,(AF10*((LOG(AF10))/LOG(2)))) -> -0.167516586 | AI10: =N10 -> 11122 | AJ10: =COUNTIF(L96:L125,AI10) -> 0 | AK10: =AJ10/(AL4-AJ25) -> 0 | AL10: =IF(AK10=0,0,(AK10*((LOG(AK10))/LOG(2)))) -> 0 | AN10: =N10 -> 11122 | AO10: =COUNTIF(L126:L155,AN10) -> 0 | AP10: =AO10/(AQ4-AO25) -> 0 | AQ10: =IF(AP10=0,0,(AP10*((LOG(AP10))/LOG(2)))) -> 0 | AS10: =N10 -> 11122 | AT10: =COUNTIF(L156:L185,AS10) -> 0 | AU10: =AT10/(AV4-AT25) -> 0 | AV10: =IF(AU10=0,0,(AU10*((LOG(AU10))/LOG(2)))) -> 0
A11: 12 | B11: 539 | C11: 13 | D11: 549 | E11: 13 | F11: 555 | G11: 14 | H11: 577 | I11: 13 | J11: 587 | K11: 1 | L11: 11111 | N11: 11211 | O11: =COUNTIF($L$7:$L$500,N11) -> 0 | P11: =O11/$Q$4 -> 0 | Q11: =IF(P11=0,0,(P11*((LOG(P11))/LOG(2)))) -> 0 | T11: =N11 -> 11211 | U11: =COUNTIF(L7:L36,T11) -> 0 | V11: =U11/(W4-U25) -> 0 | W11: =IF(V11=0,0,(V11*((LOG(V11))/LOG(2)))) -> 0 | Y11: =N11 -> 11211 | Z11: =COUNTIF(L37:L66,Y11) -> 0 | AA11: =Z11/(AB4-Z25) -> 0 | AB11: =IF(AA11=0,0,(AA11*((LOG(AA11))/LOG(2)))) -> 0 | AD11: =N11 -> 11211 | AE11: =COUNTIF(L67:L95,AD11) -> 0 | AF11: =AE11/(AG4-AE25) -> 0 | AG11: =IF(AF11=0,0,(AF11*((LOG(AF11))/LOG(2)))) -> 0 | AI11: =N11 -> 11211 | AJ11: =COUNTIF(L96:L125,AI11) -> 0 | AK11: =AJ11/(AL4-AJ25) -> 0 | AL11: =IF(AK11=0,0,(AK11*((LOG(AK11))/LOG(2)))) -> 0 | AN11: =N11 -> 11211 | AO11: =COUNTIF(L126:L155,AN11) -> 0 | AP11: =AO11/(AQ4-AO25) -> 0 | AQ11: =IF(AP11=0,0,(AP11*((LOG(AP11))/LOG(2)))) -> 0 | AS11: =N11 -> 11211 | AT11: =COUNTIF(L156:L185,AS11) -> 0 | AU11: =AT11/(AV4-AT25) -> 0 | AV11: =IF(AU11=0,0,(AU11*((LOG(AU11))/LOG(2)))) -> 0
A12: 12 | B12: 686 | C12: 13 | D12: 693 | E12: 13 | F12: 698 | G12: 14 | H12: 704 | I12: 24 | J12: 728 | K12: 0 | L12: 11112 | N12: 11212 | O12: =COUNTIF($L$7:$L$500,N12) -> 0 | P12: =O12/$Q$4 -> 0 | Q12: =IF(P12=0,0,(P12*((LOG(P12))/LOG(2)))) -> 0 | T12: =N12 -> 11212 | U12: =COUNTIF(L7:L36,T12) -> 0 | V12: =U12/(W4-U25) -> 0 | W12: =IF(V12=0,0,(V12*((LOG(V12))/LOG(2)))) -> 0 | Y12: =N12 -> 11212 | Z12: =COUNTIF(L37:L66,Y12) -> 0 | AA12: =Z12/(AB4-Z25) -> 0 | AB12: =IF(AA12=0,0,(AA12*((LOG(AA12))/LOG(2)))) -> 0 | AD12: =N12 -> 11212 | AE12: =COUNTIF(L67:L95,AD12) -> 0 | AF12: =AE12/(AG4-AE25) -> 0 | AG12: =IF(AF12=0,0,(AF12*((LOG(AF12))/LOG(2)))) -> 0 | AI12: =N12 -> 11212 | AJ12: =COUNTIF(L96:L125,AI12) -> 0 | AK12: =AJ12/(AL4-AJ25) -> 0 | AL12: =IF(AK12=0,0,(AK12*((LOG(AK12))/LOG(2)))) -> 0 | AN12: =N12 -> 11212 | AO12: =COUNTIF(L126:L155,AN12) -> 0 | AP12: =AO12/(AQ4-AO25) -> 0 | AQ12: =IF(AP12=0,0,(AP12*((LOG(AP12))/LOG(2)))) -> 0 | AS12: =N12 -> 11212 | AT12: =COUNTIF(L156:L185,AS12) -> 0 | AU12: =AT12/(AV4-AT25) -> 0 | AV12: =IF(AU12=0,0,(AU12*((LOG(AU12))/LOG(2)))) -> 0
A13: 12 | B13: 829 | C13: 13 | D13: 839 | E13: 13 | F13: 844 | G13: 14 | H13: 850 | I13: 13 | J13: 855 | K13: 0 | L13: 11111 | N13: 11221 | O13: =COUNTIF($L$7:$L$500,N13) -> 0 | P13: =O13/$Q$4 -> 0 | Q13: =IF(P13=0,0,(P13*((LOG(P13))/LOG(2)))) -> 0 | T13: =N13 -> 11221 | U13: =COUNTIF(L7:L36,T13) -> 0 | V13: =U13/(W4-U25) -> 0 | W13: =IF(V13=0,0,(V13*((LOG(V13))/LOG(2)))) -> 0 | Y13: =N13 -> 11221 | Z13: =COUNTIF(L37:L66,Y13) -> 0 | AA13: =Z13/(AB4-Z25) -> 0 | AB13: =IF(AA13=0,0,(AA13*((LOG(AA13))/LOG(2)))) -> 0 | AD13: =N13 -> 11221 | AE13: =COUNTIF(L67:L95,AD13) -> 0 | AF13: =AE13/(AG4-AE25) -> 0 | AG13: =IF(AF13=0,0,(AF13*((LOG(AF13))/LOG(2)))) -> 0 | AI13: =N13 -> 11221 | AJ13: =COUNTIF(L96:L125,AI13) -> 0 | AK13: =AJ13/(AL4-AJ25) -> 0 | AL13: =IF(AK13=0,0,(AK13*((LOG(AK13))/LOG(2)))) -> 0 | AN13: =N13 -> 11221 | AO13: =COUNTIF(L126:L155,AN13) -> 0 | AP13: =AO13/(AQ4-AO25) -> 0 | AQ13: =IF(AP13=0,0,(AP13*((LOG(AP13))/LOG(2)))) -> 0 | AS13: =N13 -> 11221 | AT13: =COUNTIF(L156:L185,AS13) -> 0 | AU13: =AT13/(AV4-AT25) -> 0 | AV13: =IF(AU13=0,0,(AU13*((LOG(AU13))/LOG(2)))) -> 0
A14: 12 | B14: 963 | C14: 13 | D14: 971 | E14: 13 | F14: 975 | G14: 14 | H14: 980 | I14: 13 | J14: 985 | K14: 0 | L14: 11111 | N14: 11222 | O14: =COUNTIF($L$7:$L$500,N14) -> 1 | P14: =O14/$Q$4 -> 0.005586592179 | Q14: =IF(P14=0,0,(P14*((LOG(P14))/LOG(2)))) -> -0.04180902669 | T14: =N14 -> 11222 | U14: =COUNTIF(L7:L36,T14) -> 0 | V14: =U14/(W4-U25) -> 0 | W14: =IF(V14=0,0,(V14*((LOG(V14))/LOG(2)))) -> 0 | Y14: =N14 -> 11222 | Z14: =COUNTIF(L37:L66,Y14) -> 0 | AA14: =Z14/(AB4-Z25) -> 0 | AB14: =IF(AA14=0,0,(AA14*((LOG(AA14))/LOG(2)))) -> 0 | AD14: =N14 -> 11222 | AE14: =COUNTIF(L67:L95,AD14) -> 1 | AF14: =AE14/(AG4-AE25) -> 0.03448275862 | AG14: =IF(AF14=0,0,(AF14*((LOG(AF14))/LOG(2)))) -> -0.167516586 | AI14: =N14 -> 11222 | AJ14: =COUNTIF(L96:L125,AI14) -> 0 | AK14: =AJ14/(AL4-AJ25) -> 0 | AL14: =IF(AK14=0,0,(AK14*((LOG(AK14))/LOG(2)))) -> 0 | AN14: =N14 -> 11222 | AO14: =COUNTIF(L126:L155,AN14) -> 0 | AP14: =AO14/(AQ4-AO25) -> 0 | AQ14: =IF(AP14=0,0,(AP14*((LOG(AP14))/LOG(2)))) -> 0 | AS14: =N14 -> 11222 | AT14: =COUNTIF(L156:L185,AS14) -> 0 | AU14: =AT14/(AV4-AT25) -> 0 | AV14: =IF(AU14=0,0,(AU14*((LOG(AU14))/LOG(2)))) -> 0
A15: 12 | B15: 1101 | C15: 13 | D15: 1114 | E15: 13 | F15: 1122 | G15: 14 | H15: 1127 | I15: 13 | J15: 1136 | K15: 0 | L15: 11111 | N15: 12111 | O15: =COUNTIF($L$7:$L$500,N15) -> 0 | P15: =O15/$Q$4 -> 0 | Q15: =IF(P15=0,0,(P15*((LOG(P15))/LOG(2)))) -> 0 | T15: =N15 -> 12111 | U15: =COUNTIF(L7:L36,T15) -> 0 | V15: =U15/(W4-U25) -> 0 | W15: =IF(V15=0,0,(V15*((LOG(V15))/LOG(2)))) -> 0 | Y15: =N15 -> 12111 | Z15: =COUNTIF(L37:L66,Y15) -> 0 | AA15: =Z15/(AB4-Z25) -> 0 | AB15: =IF(AA15=0,0,(AA15*((LOG(AA15))/LOG(2)))) -> 0 | AD15: =N15 -> 12111 | AE15: =COUNTIF(L67:L95,AD15) -> 0 | AF15: =AE15/(AG4-AE25) -> 0 | AG15: =IF(AF15=0,0,(AF15*((LOG(AF15))/LOG(2)))) -> 0 | AI15: =N15 -> 12111 | AJ15: =COUNTIF(L96:L125,AI15) -> 0 | AK15: =AJ15/(AL4-AJ25) -> 0 | AL15: =IF(AK15=0,0,(AK15*((LOG(AK15))/LOG(2)))) -> 0 | AN15: =N15 -> 12111 | AO15: =COUNTIF(L126:L155,AN15) -> 0 | AP15: =AO15/(AQ4-AO25) -> 0 | AQ15: =IF(AP15=0,0,(AP15*((LOG(AP15))/LOG(2)))) -> 0 | AS15: =N15 -> 12111 | AT15: =COUNTIF(L156:L185,AS15) -> 0 | AU15: =AT15/(AV4-AT25) -> 0 | AV15: =IF(AU15=0,0,(AU15*((LOG(AU15))/LOG(2)))) -> 0
A16: 12 | B16: 1237 | C16: 13 | D16: 1242 | E16: 13 | F16: 1251 | G16: 14 | H16: 1255 | I16: 13 | J16: 1260 | K16: 1 | L16: 11111 | N16: 12112 | O16: =COUNTIF($L$7:$L$500,N16) -> 0 | P16: =O16/$Q$4 -> 0 | Q16: =IF(P16=0,0,(P16*((LOG(P16))/LOG(2)))) -> 0 | T16: =N16 -> 12112 | U16: =COUNTIF(L7:L36,T16) -> 0 | V16: =U16/(W4-U25) -> 0 | W16: =IF(V16=0,0,(V16*((LOG(V16))/LOG(2)))) -> 0 | Y16: =N16 -> 12112 | Z16: =COUNTIF(L37:L66,Y16) -> 0 | AA16: =Z16/(AB4-Z25) -> 0 | AB16: =IF(AA16=0,0,(AA16*((LOG(AA16))/LOG(2)))) -> 0 | AD16: =N16 -> 12112 | AE16: =COUNTIF(L67:L95,AD16) -> 0 | AF16: =AE16/(AG4-AE25) -> 0 | AG16: =IF(AF16=0,0,(AF16*((LOG(AF16))/LOG(2)))) -> 0 | AI16: =N16 -> 12112 | AJ16: =COUNTIF(L96:L125,AI16) -> 0 | AK16: =AJ16/(AL4-AJ25) -> 0 | AL16: =IF(AK16=0,0,(AK16*((LOG(AK16))/LOG(2)))) -> 0 | AN16: =N16 -> 12112 | AO16: =COUNTIF(L126:L155,AN16) -> 0 | AP16: =AO16/(AQ4-AO25) -> 0 | AQ16: =IF(AP16=0,0,(AP16*((LOG(AP16))/LOG(2)))) -> 0 | AS16: =N16 -> 12112 | AT16: =COUNTIF(L156:L185,AS16) -> 0 | AU16: =AT16/(AV4-AT25) -> 0 | AV16: =IF(AU16=0,0,(AU16*((LOG(AU16))/LOG(2)))) -> 0
A17: 12 | B17: 1368 | C17: 13 | D17: 1375 | E17: 13 | F17: 1383 | G17: 14 | H17: 1395 | I17: 13 | J17: 1400 | K17: 0 | L17: 11111 | N17: 12121 | O17: =COUNTIF($L$7:$L$500,N17) -> 0 | P17: =O17/$Q$4 -> 0 | Q17: =IF(P17=0,0,(P17*((LOG(P17))/LOG(2)))) -> 0 | T17: =N17 -> 12121 | U17: =COUNTIF(L7:L36,T17) -> 0 | V17: =U17/(W4-U25) -> 0 | W17: =IF(V17=0,0,(V17*((LOG(V17))/LOG(2)))) -> 0 | Y17: =N17 -> 12121 | Z17: =COUNTIF(L37:L66,Y17) -> 0 | AA17: =Z17/(AB4-Z25) -> 0 | AB17: =IF(AA17=0,0,(AA17*((LOG(AA17))/LOG(2)))) -> 0 | AD17: =N17 -> 12121 | AE17: =COUNTIF(L67:L95,AD17) -> 0 | AF17: =AE17/(AG4-AE25) -> 0 | AG17: =IF(AF17=0,0,(AF17*((LOG(AF17))/LOG(2)))) -> 0 | AI17: =N17 -> 12121 | AJ17: =COUNTIF(L96:L125,AI17) -> 0 | AK17: =AJ17/(AL4-AJ25) -> 0 | AL17: =IF(AK17=0,0,(AK17*((LOG(AK17))/LOG(2)))) -> 0 | AN17: =N17 -> 12121 | AO17: =COUNTIF(L126:L155,AN17) -> 0 | AP17: =AO17/(AQ4-AO25) -> 0 | AQ17: =IF(AP17=0,0,(AP17*((LOG(AP17))/LOG(2)))) -> 0 | AS17: =N17 -> 12121 | AT17: =COUNTIF(L156:L185,AS17) -> 0 | AU17: =AT17/(AV4-AT25) -> 0 | AV17: =IF(AU17=0,0,(AU17*((LOG(AU17))/LOG(2)))) -> 0
A18: 12 | B18: 1500 | C18: 13 | D18: 1504 | E18: 13 | F18: 1511 | G18: 14 | H18: 1520 | I18: 13 | J18: 1524 | K18: 0 | L18: 11111 | N18: 12122 | O18: =COUNTIF($L$7:$L$500,N18) -> 0 | P18: =O18/$Q$4 -> 0 | Q18: =IF(P18=0,0,(P18*((LOG(P18))/LOG(2)))) -> 0 | T18: =N18 -> 12122 | U18: =COUNTIF(L7:L36,T18) -> 0 | V18: =U18/(W4-U25) -> 0 | W18: =IF(V18=0,0,(V18*((LOG(V18))/LOG(2)))) -> 0 | Y18: =N18 -> 12122 | Z18: =COUNTIF(L37:L66,Y18) -> 0 | AA18: =Z18/(AB4-Z25) -> 0 | AB18: =IF(AA18=0,0,(AA18*((LOG(AA18))/LOG(2)))) -> 0 | AD18: =N18 -> 12122 | AE18: =COUNTIF(L67:L95,AD18) -> 0 | AF18: =AE18/(AG4-AE25) -> 0 | AG18: =IF(AF18=0,0,(AF18*((LOG(AF18))/LOG(2)))) -> 0 | AI18: =N18 -> 12122 | AJ18: =COUNTIF(L96:L125,AI18) -> 0 | AK18: =AJ18/(AL4-AJ25) -> 0 | AL18: =IF(AK18=0,0,(AK18*((LOG(AK18))/LOG(2)))) -> 0 | AN18: =N18 -> 12122 | AO18: =COUNTIF(L126:L155,AN18) -> 0 | AP18: =AO18/(AQ4-AO25) -> 0 | AQ18: =IF(AP18=0,0,(AP18*((LOG(AP18))/LOG(2)))) -> 0 | AS18: =N18 -> 12122 | AT18: =COUNTIF(L156:L185,AS18) -> 0 | AU18: =AT18/(AV4-AT25) -> 0 | AV18: =IF(AU18=0,0,(AU18*((LOG(AU18))/LOG(2)))) -> 0
A19: 12 | B19: 1627 | C19: 13 | D19: 1631 | E19: 13 | F19: 1636 | G19: 14 | H19: 1640 | I19: 13 | J19: 1644 | K19: 0 | L19: 11111 | N19: 12211 | O19: =COUNTIF($L$7:$L$500,N19) -> 0 | P19: =O19/$Q$4 -> 0 | Q19: =IF(P19=0,0,(P19*((LOG(P19))/LOG(2)))) -> 0 | T19: =N19 -> 12211 | U19: =COUNTIF(L7:L36,T19) -> 0 | V19: =U19/(W4-U25) -> 0 | W19: =IF(V19=0,0,(V19*((LOG(V19))/LOG(2)))) -> 0 | Y19: =N19 -> 12211 | Z19: =COUNTIF(L37:L66,Y19) -> 0 | AA19: =Z19/(AB4-Z25) -> 0 | AB19: =IF(AA19=0,0,(AA19*((LOG(AA19))/LOG(2)))) -> 0 | AD19: =N19 -> 12211 | AE19: =COUNTIF(L67:L95,AD19) -> 0 | AF19: =AE19/(AG4-AE25) -> 0 | AG19: =IF(AF19=0,0,(AF19*((LOG(AF19))/LOG(2)))) -> 0 | AI19: =N19 -> 12211 | AJ19: =COUNTIF(L96:L125,AI19) -> 0 | AK19: =AJ19/(AL4-AJ25) -> 0 | AL19: =IF(AK19=0,0,(AK19*((LOG(AK19))/LOG(2)))) -> 0 | AN19: =N19 -> 12211 | AO19: =COUNTIF(L126:L155,AN19) -> 0 | AP19: =AO19/(AQ4-AO25) -> 0 | AQ19: =IF(AP19=0,0,(AP19*((LOG(AP19))/LOG(2)))) -> 0 | AS19: =N19 -> 12211 | AT19: =COUNTIF(L156:L185,AS19) -> 0 | AU19: =AT19/(AV4-AT25) -> 0 | AV19: =IF(AU19=0,0,(AU19*((LOG(AU19))/LOG(2)))) -> 0
A20: 12 | B20: 1749 | C20: 13 | D20: 1759 | E20: 13 | F20: 1763 | G20: 14 | H20: 1768 | I20: 13 | J20: 1773 | K20: 0 | L20: 11111 | N20: 12212 | O20: =COUNTIF($L$7:$L$500,N20) -> 0 | P20: =O20/$Q$4 -> 0 | Q20: =IF(P20=0,0,(P20*((LOG(P20))/LOG(2)))) -> 0 | T20: =N20 -> 12212 | U20: =COUNTIF(L7:L36,T20) -> 0 | V20: =U20/(W4-U25) -> 0 | W20: =IF(V20=0,0,(V20*((LOG(V20))/LOG(2)))) -> 0 | Y20: =N20 -> 12212 | Z20: =COUNTIF(L37:L66,Y20) -> 0 | AA20: =Z20/(AB4-Z25) -> 0 | AB20: =IF(AA20=0,0,(AA20*((LOG(AA20))/LOG(2)))) -> 0 | AD20: =N20 -> 12212 | AE20: =COUNTIF(L67:L95,AD20) -> 0 | AF20: =AE20/(AG4-AE25) -> 0 | AG20: =IF(AF20=0,0,(AF20*((LOG(AF20))/LOG(2)))) -> 0 | AI20: =N20 -> 12212 | AJ20: =COUNTIF(L96:L125,AI20) -> 0 | AK20: =AJ20/(AL4-AJ25) -> 0 | AL20: =IF(AK20=0,0,(AK20*((LOG(AK20))/LOG(2)))) -> 0 | AN20: =N20 -> 12212 | AO20: =COUNTIF(L126:L155,AN20) -> 0 | AP20: =AO20/(AQ4-AO25) -> 0 | AQ20: =IF(AP20=0,0,(AP20*((LOG(AP20))/LOG(2)))) -> 0 | AS20: =N20 -> 12212 | AT20: =COUNTIF(L156:L185,AS20) -> 0 | AU20: =AT20/(AV4-AT25) -> 0 | AV20: =IF(AU20=0,0,(AU20*((LOG(AU20))/LOG(2)))) -> 0
A21: 12 | B21: 1873 | C21: 13 | D21: 1877 | E21: 13 | F21: 1882 | G21: 14 | H21: 1887 | I21: 13 | J21: 1891 | K21: 0 | L21: 11111 | N21: 12221 | O21: =COUNTIF($L$7:$L$500,N21) -> 0 | P21: =O21/$Q$4 -> 0 | Q21: =IF(P21=0,0,(P21*((LOG(P21))/LOG(2)))) -> 0 | T21: =N21 -> 12221 | U21: =COUNTIF(L7:L36,T21) -> 0 | V21: =U21/(W4-U25) -> 0 | W21: =IF(V21=0,0,(V21*((LOG(V21))/LOG(2)))) -> 0 | Y21: =N21 -> 12221 | Z21: =COUNTIF(L37:L66,Y21) -> 0 | AA21: =Z21/(AB4-Z25) -> 0 | AB21: =IF(AA21=0,0,(AA21*((LOG(AA21))/LOG(2)))) -> 0 | AD21: =N21 -> 12221 | AE21: =COUNTIF(L67:L95,AD21) -> 0 | AF21: =AE21/(AG4-AE25) -> 0 | AG21: =IF(AF21=0,0,(AF21*((LOG(AF21))/LOG(2)))) -> 0 | AI21: =N21 -> 12221 | AJ21: =COUNTIF(L96:L125,AI21) -> 0 | AK21: =AJ21/(AL4-AJ25) -> 0 | AL21: =IF(AK21=0,0,(AK21*((LOG(AK21))/LOG(2)))) -> 0 | AN21: =N21 -> 12221 | AO21: =COUNTIF(L126:L155,AN21) -> 0 | AP21: =AO21/(AQ4-AO25) -> 0 | AQ21: =IF(AP21=0,0,(AP21*((LOG(AP21))/LOG(2)))) -> 0 | AS21: =N21 -> 12221 | AT21: =COUNTIF(L156:L185,AS21) -> 0 | AU21: =AT21/(AV4-AT25) -> 0 | AV21: =IF(AU21=0,0,(AU21*((LOG(AU21))/LOG(2)))) -> 0
A22: 12 | B22: 1994 | C22: 13 | D22: 1999 | E22: 13 | F22: 2004 | G22: 14 | H22: 2008 | I22: 13 | J22: 2013 | K22: 1 | L22: 11111 | N22: 12222 | O22: =COUNTIF($L$7:$L$500,N22) -> 3 | P22: =O22/$Q$4 -> 0.01675977654 | Q22: =IF(P22=0,0,(P22*((LOG(P22))/LOG(2)))) -> -0.09886346274 | T22: =N22 -> 12222 | U22: =COUNTIF(L7:L36,T22) -> 0 | V22: =U22/(W4-U25) -> 0 | W22: =IF(V22=0,0,(V22*((LOG(V22))/LOG(2)))) -> 0 | Y22: =N22 -> 12222 | Z22: =COUNTIF(L37:L66,Y22) -> 1 | AA22: =Z22/(AB4-Z25) -> 0.03333333333 | AB22: =IF(AA22=0,0,(AA22*((LOG(AA22))/LOG(2)))) -> -0.1635630199 | AD22: =N22 -> 12222 | AE22: =COUNTIF(L67:L95,AD22) -> 0 | AF22: =AE22/(AG4-AE25) -> 0 | AG22: =IF(AF22=0,0,(AF22*((LOG(AF22))/LOG(2)))) -> 0 | AI22: =N22 -> 12222 | AJ22: =COUNTIF(L96:L125,AI22) -> 1 | AK22: =AJ22/(AL4-AJ25) -> 0.03333333333 | AL22: =IF(AK22=0,0,(AK22*((LOG(AK22))/LOG(2)))) -> -0.1635630199 | AN22: =N22 -> 12222 | AO22: =COUNTIF(L126:L155,AN22) -> 0 | AP22: =AO22/(AQ4-AO25) -> 0 | AQ22: =IF(AP22=0,0,(AP22*((LOG(AP22))/LOG(2)))) -> 0 | AS22: =N22 -> 12222 | AT22: =COUNTIF(L156:L185,AS22) -> 1 | AU22: =AT22/(AV4-AT25) -> 0.03333333333 | AV22: =IF(AU22=0,0,(AU22*((LOG(AU22))/LOG(2)))) -> -0.1635630199
A23: 12 | B23: 2126 | C23: 13 | D23: 2132 | E23: 13 | F23: 2136 | G23: 14 | H23: 2142 | I23: 13 | J23: 2148 | K23: 1 | L23: 11111 | N23: 21111 | O23: =COUNTIF($L$7:$L$500,N23) -> 0 | P23: =O23/$Q$4 -> 0 | Q23: =IF(P23=0,0,(P23*((LOG(P23))/LOG(2)))) -> 0 | T23: =N23 -> 21111 | U23: =COUNTIF(L7:L36,T23) -> 0 | V23: =U23/(W4-U25) -> 0 | W23: =IF(V23=0,0,(V23*((LOG(V23))/LOG(2)))) -> 0 | Y23: =N23 -> 21111 | Z23: =COUNTIF(L37:L66,Y23) -> 0 | AA23: =Z23/(AB4-Z25) -> 0 | AB23: =IF(AA23=0,0,(AA23*((LOG(AA23))/LOG(2)))) -> 0 | AD23: =N23 -> 21111 | AE23: =COUNTIF(L67:L95,AD23) -> 0 | AF23: =AE23/(AG4-AE25) -> 0 | AG23: =IF(AF23=0,0,(AF23*((LOG(AF23))/LOG(2)))) -> 0 | AI23: =N23 -> 21111 | AJ23: =COUNTIF(L96:L125,AI23) -> 0 | AK23: =AJ23/(AL4-AJ25) -> 0 | AL23: =IF(AK23=0,0,(AK23*((LOG(AK23))/LOG(2)))) -> 0 | AN23: =N23 -> 21111 | AO23: =COUNTIF(L126:L155,AN23) -> 0 | AP23: =AO23/(AQ4-AO25) -> 0 | AQ23: =IF(AP23=0,0,(AP23*((LOG(AP23))/LOG(2)))) -> 0 | AS23: =N23 -> 21111 | AT23: =COUNTIF(L156:L185,AS23) -> 0 | AU23: =AT23/(AV4-AT25) -> 0 | AV23: =IF(AU23=0,0,(AU23*((LOG(AU23))/LOG(2)))) -> 0
A24: 12 | B24: 2248 | C24: 13 | D24: 2256 | E24: 13 | F24: 2264 | G24: 14 | H24: 2269 | I24: 13 | J24: 2276 | K24: 0 | L24: 11111 | N24: 21112 | O24: =COUNTIF($L$7:$L$500,N24) -> 1 | P24: =O24/$Q$4 -> 0.005586592179 | Q24: =IF(P24=0,0,(P24*((LOG(P24))/LOG(2)))) -> -0.04180902669 | T24: =N24 -> 21112 | U24: =COUNTIF(L7:L36,T24) -> 1 | V24: =U24/(W4-U25) -> 0.03333333333 | W24: =IF(V24=0,0,(V24*((LOG(V24))/LOG(2)))) -> -0.1635630199 | Y24: =N24 -> 21112 | Z24: =COUNTIF(L37:L66,Y24) -> 0 | AA24: =Z24/(AB4-Z25) -> 0 | AB24: =IF(AA24=0,0,(AA24*((LOG(AA24))/LOG(2)))) -> 0 | AD24: =N24 -> 21112 | AE24: =COUNTIF(L67:L95,AD24) -> 0 | AF24: =AE24/(AG4-AE25) -> 0 | AG24: =IF(AF24=0,0,(AF24*((LOG(AF24))/LOG(2)))) -> 0 | AI24: =N24 -> 21112 | AJ24: =COUNTIF(L96:L125,AI24) -> 0 | AK24: =AJ24/(AL4-AJ25) -> 0 | AL24: =IF(AK24=0,0,(AK24*((LOG(AK24))/LOG(2)))) -> 0 | AN24: =N24 -> 21112 | AO24: =COUNTIF(L126:L155,AN24) -> 0 | AP24: =AO24/(AQ4-AO25) -> 0 | AQ24: =IF(AP24=0,0,(AP24*((LOG(AP24))/LOG(2)))) -> 0 | AS24: =N24 -> 21112 | AT24: =COUNTIF(L156:L185,AS24) -> 0 | AU24: =AT24/(AV4-AT25) -> 0 | AV24: =IF(AU24=0,0,(AU24*((LOG(AU24))/LOG(2)))) -> 0
A25: 12 | B25: 2382 | C25: 13 | D25: 2387 | E25: 13 | F25: 2392 | G25: 14 | H25: 2399 | I25: 13 | J25: 2403 | K25: 0 | L25: 11111 | N25: 21121 | O25: =COUNTIF($L$7:$L$500,N25) -> 0 | P25: =O25/$Q$4 -> 0 | Q25: =IF(P25=0,0,(P25*((LOG(P25))/LOG(2)))) -> 0 | T25: =N25 -> 21121 | U25: =COUNTIF(L7:L36,T25) -> 0 | Y25: =N25 -> 21121 | Z25: =COUNTIF(L37:L66,Y25) -> 0 | AD25: =N25 -> 21121 | AE25: =COUNTIF(L67:L95,AD25) -> 0 | AI25: =N25 -> 21121 | AJ25: =COUNTIF(L96:L125,AI25) -> 0 | AN25: =N25 -> 21121 | AO25: =COUNTIF(L126:L155,AN25) -> 0 | AS25: =N25 -> 21121 | AT25: =COUNTIF(L156:L185,AS25) -> 0
A26: 12 | B26: 2503 | C26: 13 | D26: 2508 | E26: 13 | F26: 2515 | G26: 14 | H26: 2519 | I26: 13 | J26: 2529 | K26: 0 | L26: 11111 | N26: 21122 | O26: =COUNTIF($L$7:$L$500,N26) -> 0 | P26: =O26/$Q$4 -> 0 | Q26: =IF(P26=0,0,(P26*((LOG(P26))/LOG(2)))) -> 0 | T26: =N26 -> 21122 | U26: =COUNTIF(L7:L36,T26) -> 0 | V26: =U26/(W4-U25) -> 0 | W26: =IF(V26=0,0,(V26*((LOG(V26))/LOG(2)))) -> 0 | Y26: =N26 -> 21122 | Z26: =COUNTIF(L37:L66,Y26) -> 0 | AA26: =Z26/(AB4-Z25) -> 0 | AB26: =IF(AA26=0,0,(AA26*((LOG(AA26))/LOG(2)))) -> 0 | AD26: =N26 -> 21122 | AE26: =COUNTIF(L67:L95,AD26) -> 0 | AF26: =AE26/(AG4-AE25) -> 0 | AG26: =IF(AF26=0,0,(AF26*((LOG(AF26))/LOG(2)))) -> 0 | AI26: =N26 -> 21122 | AJ26: =COUNTIF(L96:L125,AI26) -> 0 | AK26: =AJ26/(AL4-AJ25) -> 0 | AL26: =IF(AK26=0,0,(AK26*((LOG(AK26))/LOG(2)))) -> 0 | AN26: =N26 -> 21122 | AO26: =COUNTIF(L126:L155,AN26) -> 0 | AP26: =AO26/(AQ4-AO25) -> 0 | AQ26: =IF(AP26=0,0,(AP26*((LOG(AP26))/LOG(2)))) -> 0 | AS26: =N26 -> 21122 | AT26: =COUNTIF(L156:L185,AS26) -> 0 | AU26: =AT26/(AV4-AT25) -> 0 | AV26: =IF(AU26=0,0,(AU26*((LOG(AU26))/LOG(2)))) -> 0
A27: 12 | B27: 2631 | C27: 13 | D27: 2635 | E27: 13 | F27: 2640 | G27: 14 | H27: 2645 | I27: 13 | J27: 2650 | K27: 0 | L27: 11111 | N27: 21211 | O27: =COUNTIF($L$7:$L$500,N27) -> 0 | P27: =O27/$Q$4 -> 0 | Q27: =IF(P27=0,0,(P27*((LOG(P27))/LOG(2)))) -> 0 | T27: =N27 -> 21211 | U27: =COUNTIF(L7:L36,T27) -> 0 | V27: =U27/(W4-U25) -> 0 | W27: =IF(V27=0,0,(V27*((LOG(V27))/LOG(2)))) -> 0 | Y27: =N27 -> 21211 | Z27: =COUNTIF(L37:L66,Y27) -> 0 | AA27: =Z27/(AB4-Z25) -> 0 | AB27: =IF(AA27=0,0,(AA27*((LOG(AA27))/LOG(2)))) -> 0 | AD27: =N27 -> 21211 | AE27: =COUNTIF(L67:L95,AD27) -> 0 | AF27: =AE27/(AG4-AE25) -> 0 | AG27: =IF(AF27=0,0,(AF27*((LOG(AF27))/LOG(2)))) -> 0 | AI27: =N27 -> 21211 | AJ27: =COUNTIF(L96:L125,AI27) -> 0 | AK27: =AJ27/(AL4-AJ25) -> 0 | AL27: =IF(AK27=0,0,(AK27*((LOG(AK27))/LOG(2)))) -> 0 | AN27: =N27 -> 21211 | AO27: =COUNTIF(L126:L155,AN27) -> 0 | AP27: =AO27/(AQ4-AO25) -> 0 | AQ27: =IF(AP27=0,0,(AP27*((LOG(AP27))/LOG(2)))) -> 0 | AS27: =N27 -> 21211 | AT27: =COUNTIF(L156:L185,AS27) -> 0 | AU27: =AT27/(AV4-AT25) -> 0 | AV27: =IF(AU27=0,0,(AU27*((LOG(AU27))/LOG(2)))) -> 0
A28: 12 | B28: 2752 | C28: 13 | D28: 2756 | E28: 13 | F28: 2762 | G28: 14 | H28: 2766 | I28: 13 | J28: 2771 | K28: 0 | L28: 11111 | N28: 21212 | O28: =COUNTIF($L$7:$L$500,N28) -> 0 | P28: =O28/$Q$4 -> 0 | Q28: =IF(P28=0,0,(P28*((LOG(P28))/LOG(2)))) -> 0 | T28: =N28 -> 21212 | U28: =COUNTIF(L7:L36,T28) -> 0 | V28: =U28/(W4-U25) -> 0 | W28: =IF(V28=0,0,(V28*((LOG(V28))/LOG(2)))) -> 0 | Y28: =N28 -> 21212 | Z28: =COUNTIF(L37:L66,Y28) -> 0 | AA28: =Z28/(AB4-Z25) -> 0 | AB28: =IF(AA28=0,0,(AA28*((LOG(AA28))/LOG(2)))) -> 0 | AD28: =N28 -> 21212 | AE28: =COUNTIF(L67:L95,AD28) -> 0 | AF28: =AE28/(AG4-AE25) -> 0 | AG28: =IF(AF28=0,0,(AF28*((LOG(AF28))/LOG(2)))) -> 0 | AI28: =N28 -> 21212 | AJ28: =COUNTIF(L96:L125,AI28) -> 0 | AK28: =AJ28/(AL4-AJ25) -> 0 | AL28: =IF(AK28=0,0,(AK28*((LOG(AK28))/LOG(2)))) -> 0 | AN28: =N28 -> 21212 | AO28: =COUNTIF(L126:L155,AN28) -> 0 | AP28: =AO28/(AQ4-AO25) -> 0 | AQ28: =IF(AP28=0,0,(AP28*((LOG(AP28))/LOG(2)))) -> 0 | AS28: =N28 -> 21212 | AT28: =COUNTIF(L156:L185,AS28) -> 0 | AU28: =AT28/(AV4-AT25) -> 0 | AV28: =IF(AU28=0,0,(AU28*((LOG(AU28))/LOG(2)))) -> 0
A29: 12 | B29: 2871 | C29: 13 | D29: 2875 | E29: 13 | F29: 2879 | G29: 14 | H29: 2884 | I29: 13 | J29: 2893 | K29: 1 | L29: 11111 | N29: 21221 | O29: =COUNTIF($L$7:$L$500,N29) -> 0 | P29: =O29/$Q$4 -> 0 | Q29: =IF(P29=0,0,(P29*((LOG(P29))/LOG(2)))) -> 0 | T29: =N29 -> 21221 | U29: =COUNTIF(L7:L36,T29) -> 0 | V29: =U29/(W4-U25) -> 0 | W29: =IF(V29=0,0,(V29*((LOG(V29))/LOG(2)))) -> 0 | Y29: =N29 -> 21221 | Z29: =COUNTIF(L37:L66,Y29) -> 0 | AA29: =Z29/(AB4-Z25) -> 0 | AB29: =IF(AA29=0,0,(AA29*((LOG(AA29))/LOG(2)))) -> 0 | AD29: =N29 -> 21221 | AE29: =COUNTIF(L67:L95,AD29) -> 0 | AF29: =AE29/(AG4-AE25) -> 0 | AG29: =IF(AF29=0,0,(AF29*((LOG(AF29))/LOG(2)))) -> 0 | AI29: =N29 -> 21221 | AJ29: =COUNTIF(L96:L125,AI29) -> 0 | AK29: =AJ29/(AL4-AJ25) -> 0 | AL29: =IF(AK29=0,0,(AK29*((LOG(AK29))/LOG(2)))) -> 0 | AN29: =N29 -> 21221 | AO29: =COUNTIF(L126:L155,AN29) -> 0 | AP29: =AO29/(AQ4-AO25) -> 0 | AQ29: =IF(AP29=0,0,(AP29*((LOG(AP29))/LOG(2)))) -> 0 | AS29: =N29 -> 21221 | AT29: =COUNTIF(L156:L185,AS29) -> 0 | AU29: =AT29/(AV4-AT25) -> 0 | AV29: =IF(AU29=0,0,(AU29*((LOG(AU29))/LOG(2)))) -> 0
A30: 12 | B30: 2987 | C30: 13 | D30: 2992 | E30: 13 | F30: 2998 | G30: 14 | H30: 3002 | I30: 13 | J30: 3010 | K30: 0 | L30: 11111 | N30: 21222 | O30: =COUNTIF($L$7:$L$500,N30) -> 0 | P30: =O30/$Q$4 -> 0 | Q30: =IF(P30=0,0,(P30*((LOG(P30))/LOG(2)))) -> 0 | T30: =N30 -> 21222 | U30: =COUNTIF(L7:L36,T30) -> 0 | V30: =U30/(W4-U25) -> 0 | W30: =IF(V30=0,0,(V30*((LOG(V30))/LOG(2)))) -> 0 | Y30: =N30 -> 21222 | Z30: =COUNTIF(L37:L66,Y30) -> 0 | AA30: =Z30/(AB4-Z25) -> 0 | AB30: =IF(AA30=0,0,(AA30*((LOG(AA30))/LOG(2)))) -> 0 | AD30: =N30 -> 21222 | AE30: =COUNTIF(L67:L95,AD30) -> 0 | AF30: =AE30/(AG4-AE25) -> 0 | AG30: =IF(AF30=0,0,(AF30*((LOG(AF30))/LOG(2)))) -> 0 | AI30: =N30 -> 21222 | AJ30: =COUNTIF(L96:L125,AI30) -> 0 | AK30: =AJ30/(AL4-AJ25) -> 0 | AL30: =IF(AK30=0,0,(AK30*((LOG(AK30))/LOG(2)))) -> 0 | AN30: =N30 -> 21222 | AO30: =COUNTIF(L126:L155,AN30) -> 0 | AP30: =AO30/(AQ4-AO25) -> 0 | AQ30: =IF(AP30=0,0,(AP30*((LOG(AP30))/LOG(2)))) -> 0 | AS30: =N30 -> 21222 | AT30: =COUNTIF(L156:L185,AS30) -> 0 | AU30: =AT30/(AV4-AT25) -> 0 | AV30: =IF(AU30=0,0,(AU30*((LOG(AU30))/LOG(2)))) -> 0
A31: 12 | B31: 3109 | C31: 13 | D31: 3113 | E31: 13 | F31: 3118 | G31: 14 | H31: 3122 | I31: 13 | J31: 3127 | K31: 0 | L31: 11111 | N31: 22111 | O31: =COUNTIF($L$7:$L$500,N31) -> 0 | P31: =O31/$Q$4 -> 0 | Q31: =IF(P31=0,0,(P31*((LOG(P31))/LOG(2)))) -> 0 | T31: =N31 -> 22111 | U31: =COUNTIF(L7:L36,T31) -> 0 | V31: =U31/(W4-U25) -> 0 | W31: =IF(V31=0,0,(V31*((LOG(V31))/LOG(2)))) -> 0 | Y31: =N31 -> 22111 | Z31: =COUNTIF(L37:L66,Y31) -> 0 | AA31: =Z31/(AB4-Z25) -> 0 | AB31: =IF(AA31=0,0,(AA31*((LOG(AA31))/LOG(2)))) -> 0 | AD31: =N31 -> 22111 | AE31: =COUNTIF(L67:L95,AD31) -> 0 | AF31: =AE31/(AG4-AE25) -> 0 | AG31: =IF(AF31=0,0,(AF31*((LOG(AF31))/LOG(2)))) -> 0 | AI31: =N31 -> 22111 | AJ31: =COUNTIF(L96:L125,AI31) -> 0 | AK31: =AJ31/(AL4-AJ25) -> 0 | AL31: =IF(AK31=0,0,(AK31*((LOG(AK31))/LOG(2)))) -> 0 | AN31: =N31 -> 22111 | AO31: =COUNTIF(L126:L155,AN31) -> 0 | AP31: =AO31/(AQ4-AO25) -> 0 | AQ31: =IF(AP31=0,0,(AP31*((LOG(AP31))/LOG(2)))) -> 0 | AS31: =N31 -> 22111 | AT31: =COUNTIF(L156:L185,AS31) -> 0 | AU31: =AT31/(AV4-AT25) -> 0 | AV31: =IF(AU31=0,0,(AU31*((LOG(AU31))/LOG(2)))) -> 0
A32: 12 | B32: 3233 | C32: 13 | D32: 3237 | E32: 13 | F32: 3249 | G32: 14 | H32: 3253 | I32: 13 | J32: 3258 | K32: 0 | L32: 11111 | N32: 22112 | O32: =COUNTIF($L$7:$L$500,N32) -> 0 | P32: =O32/$Q$4 -> 0 | Q32: =IF(P32=0,0,(P32*((LOG(P32))/LOG(2)))) -> 0 | T32: =N32 -> 22112 | U32: =COUNTIF(L7:L36,T32) -> 0 | V32: =U32/(W4-U25) -> 0 | W32: =IF(V32=0,0,(V32*((LOG(V32))/LOG(2)))) -> 0 | Y32: =N32 -> 22112 | Z32: =COUNTIF(L37:L66,Y32) -> 0 | AA32: =Z32/(AB4-Z25) -> 0 | AB32: =IF(AA32=0,0,(AA32*((LOG(AA32))/LOG(2)))) -> 0 | AD32: =N32 -> 22112 | AE32: =COUNTIF(L67:L95,AD32) -> 0 | AF32: =AE32/(AG4-AE25) -> 0 | AG32: =IF(AF32=0,0,(AF32*((LOG(AF32))/LOG(2)))) -> 0 | AI32: =N32 -> 22112 | AJ32: =COUNTIF(L96:L125,AI32) -> 0 | AK32: =AJ32/(AL4-AJ25) -> 0 | AL32: =IF(AK32=0,0,(AK32*((LOG(AK32))/LOG(2)))) -> 0 | AN32: =N32 -> 22112 | AO32: =COUNTIF(L126:L155,AN32) -> 0 | AP32: =AO32/(AQ4-AO25) -> 0 | AQ32: =IF(AP32=0,0,(AP32*((LOG(AP32))/LOG(2)))) -> 0 | AS32: =N32 -> 22112 | AT32: =COUNTIF(L156:L185,AS32) -> 0 | AU32: =AT32/(AV4-AT25) -> 0 | AV32: =IF(AU32=0,0,(AU32*((LOG(AU32))/LOG(2)))) -> 0
A33: 12 | B33: 3356 | C33: 13 | D33: 3364 | E33: 13 | F33: 3368 | G33: 14 | H33: 3376 | I33: 13 | J33: 3381 | K33: 0 | L33: 11111 | N33: 22121 | O33: =COUNTIF($L$7:$L$500,N33) -> 0 | P33: =O33/$Q$4 -> 0 | Q33: =IF(P33=0,0,(P33*((LOG(P33))/LOG(2)))) -> 0 | T33: =N33 -> 22121 | U33: =COUNTIF(L7:L36,T33) -> 0 | V33: =U33/(W4-U25) -> 0 | W33: =IF(V33=0,0,(V33*((LOG(V33))/LOG(2)))) -> 0 | Y33: =N33 -> 22121 | Z33: =COUNTIF(L37:L66,Y33) -> 0 | AA33: =Z33/(AB4-Z25) -> 0 | AB33: =IF(AA33=0,0,(AA33*((LOG(AA33))/LOG(2)))) -> 0 | AD33: =N33 -> 22121 | AE33: =COUNTIF(L67:L95,AD33) -> 0 | AF33: =AE33/(AG4-AE25) -> 0 | AG33: =IF(AF33=0,0,(AF33*((LOG(AF33))/LOG(2)))) -> 0 | AI33: =N33 -> 22121 | AJ33: =COUNTIF(L96:L125,AI33) -> 0 | AK33: =AJ33/(AL4-AJ25) -> 0 | AL33: =IF(AK33=0,0,(AK33*((LOG(AK33))/LOG(2)))) -> 0 | AN33: =N33 -> 22121 | AO33: =COUNTIF(L126:L155,AN33) -> 0 | AP33: =AO33/(AQ4-AO25) -> 0 | AQ33: =IF(AP33=0,0,(AP33*((LOG(AP33))/LOG(2)))) -> 0 | AS33: =N33 -> 22121 | AT33: =COUNTIF(L156:L185,AS33) -> 0 | AU33: =AT33/(AV4-AT25) -> 0 | AV33: =IF(AU33=0,0,(AU33*((LOG(AU33))/LOG(2)))) -> 0
A34: 12 | B34: 3478 | C34: 13 | D34: 3482 | E34: 13 | F34: 3486 | G34: 14 | H34: 3490 | I34: 13 | J34: 3496 | K34: 1 | L34: 11111 | N34: 22122 | O34: =COUNTIF($L$7:$L$500,N34) -> 0 | P34: =O34/$Q$4 -> 0 | Q34: =IF(P34=0,0,(P34*((LOG(P34))/LOG(2)))) -> 0 | T34: =N34 -> 22122 | U34: =COUNTIF(L7:L36,T34) -> 0 | V34: =U34/(W4-U25) -> 0 | W34: =IF(V34=0,0,(V34*((LOG(V34))/LOG(2)))) -> 0 | Y34: =N34 -> 22122 | Z34: =COUNTIF(L37:L66,Y34) -> 0 | AA34: =Z34/(AB4-Z25) -> 0 | AB34: =IF(AA34=0,0,(AA34*((LOG(AA34))/LOG(2)))) -> 0 | AD34: =N34 -> 22122 | AE34: =COUNTIF(L67:L95,AD34) -> 0 | AF34: =AE34/(AG4-AE25) -> 0 | AG34: =IF(AF34=0,0,(AF34*((LOG(AF34))/LOG(2)))) -> 0 | AI34: =N34 -> 22122 | AJ34: =COUNTIF(L96:L125,AI34) -> 0 | AK34: =AJ34/(AL4-AJ25) -> 0 | AL34: =IF(AK34=0,0,(AK34*((LOG(AK34))/LOG(2)))) -> 0 | AN34: =N34 -> 22122 | AO34: =COUNTIF(L126:L155,AN34) -> 0 | AP34: =AO34/(AQ4-AO25) -> 0 | AQ34: =IF(AP34=0,0,(AP34*((LOG(AP34))/LOG(2)))) -> 0 | AS34: =N34 -> 22122 | AT34: =COUNTIF(L156:L185,AS34) -> 0 | AU34: =AT34/(AV4-AT25) -> 0 | AV34: =IF(AU34=0,0,(AU34*((LOG(AU34))/LOG(2)))) -> 0
A35: 12 | B35: 3590 | C35: 13 | D35: 3594 | E35: 13 | F35: 3608 | G35: 14 | H35: 3613 | I35: 13 | J35: 3621 | K35: 0 | L35: 11111 | N35: 22211 | O35: =COUNTIF($L$7:$L$500,N35) -> 0 | P35: =O35/$Q$4 -> 0 | Q35: =IF(P35=0,0,(P35*((LOG(P35))/LOG(2)))) -> 0 | T35: =N35 -> 22211 | U35: =COUNTIF(L7:L36,T35) -> 0 | V35: =U35/(W4-U25) -> 0 | W35: =IF(V35=0,0,(V35*((LOG(V35))/LOG(2)))) -> 0 | Y35: =N35 -> 22211 | Z35: =COUNTIF(L37:L66,Y35) -> 0 | AA35: =Z35/(AB4-Z25) -> 0 | AB35: =IF(AA35=0,0,(AA35*((LOG(AA35))/LOG(2)))) -> 0 | AD35: =N35 -> 22211 | AE35: =COUNTIF(L67:L95,AD35) -> 0 | AF35: =AE35/(AG4-AE25) -> 0 | AG35: =IF(AF35=0,0,(AF35*((LOG(AF35))/LOG(2)))) -> 0 | AI35: =N35 -> 22211 | AJ35: =COUNTIF(L96:L125,AI35) -> 0 | AK35: =AJ35/(AL4-AJ25) -> 0 | AL35: =IF(AK35=0,0,(AK35*((LOG(AK35))/LOG(2)))) -> 0 | AN35: =N35 -> 22211 | AO35: =COUNTIF(L126:L155,AN35) -> 0 | AP35: =AO35/(AQ4-AO25) -> 0 | AQ35: =IF(AP35=0,0,(AP35*((LOG(AP35))/LOG(2)))) -> 0 | AS35: =N35 -> 22211 | AT35: =COUNTIF(L156:L185,AS35) -> 0 | AU35: =AT35/(AV4-AT25) -> 0 | AV35: =IF(AU35=0,0,(AU35*((LOG(AU35))/LOG(2)))) -> 0
A36: 12 | B36: 3729 | C36: 13 | D36: 3735 | E36: 13 | F36: 3740 | G36: 14 | H36: 3745 | I36: 13 | J36: 3751 | K36: 0 | L36: 11111 | N36: 22212 | O36: =COUNTIF($L$7:$L$500,N36) -> 0 | P36: =O36/$Q$4 -> 0 | Q36: =IF(P36=0,0,(P36*((LOG(P36))/LOG(2)))) -> 0 | T36: =N36 -> 22212 | U36: =COUNTIF(L7:L36,T36) -> 0 | V36: =U36/(W4-U25) -> 0 | W36: =IF(V36=0,0,(V36*((LOG(V36))/LOG(2)))) -> 0 | Y36: =N36 -> 22212 | Z36: =COUNTIF(L37:L66,Y36) -> 0 | AA36: =Z36/(AB4-Z25) -> 0 | AB36: =IF(AA36=0,0,(AA36*((LOG(AA36))/LOG(2)))) -> 0 | AD36: =N36 -> 22212 | AE36: =COUNTIF(L67:L95,AD36) -> 0 | AF36: =AE36/(AG4-AE25) -> 0 | AG36: =IF(AF36=0,0,(AF36*((LOG(AF36))/LOG(2)))) -> 0 | AI36: =N36 -> 22212 | AJ36: =COUNTIF(L96:L125,AI36) -> 0 | AK36: =AJ36/(AL4-AJ25) -> 0 | AL36: =IF(AK36=0,0,(AK36*((LOG(AK36))/LOG(2)))) -> 0 | AN36: =N36 -> 22212 | AO36: =COUNTIF(L126:L155,AN36) -> 0 | AP36: =AO36/(AQ4-AO25) -> 0 | AQ36: =IF(AP36=0,0,(AP36*((LOG(AP36))/LOG(2)))) -> 0 | AS36: =N36 -> 22212 | AT36: =COUNTIF(L156:L185,AS36) -> 0 | AU36: =AT36/(AV4-AT25) -> 0 | AV36: =IF(AU36=0,0,(AU36*((LOG(AU36))/LOG(2)))) -> 0
A37: 12 | B37: 3850 | C37: 13 | D37: 3855 | E37: 13 | F37: 3860 | G37: 14 | H37: 3864 | I37: 13 | J37: 3872 | K37: 1 | L37: 11111 | N37: 22221 | O37: =COUNTIF($L$7:$L$500,N37) -> 0 | P37: =O37/$Q$4 -> 0 | Q37: =IF(P37=0,0,(P37*((LOG(P37))/LOG(2)))) -> 0 | T37: =N37 -> 22221 | U37: =COUNTIF(L7:L36,T37) -> 0 | V37: =U37/(W4-U25) -> 0 | W37: =IF(V37=0,0,(V37*((LOG(V37))/LOG(2)))) -> 0 | Y37: =N37 -> 22221 | Z37: =COUNTIF(L37:L66,Y37) -> 0 | AA37: =Z37/(AB4-Z25) -> 0 | AB37: =IF(AA37=0,0,(AA37*((LOG(AA37))/LOG(2)))) -> 0 | AD37: =N37 -> 22221 | AE37: =COUNTIF(L67:L95,AD37) -> 0 | AF37: =AE37/(AG4-AE25) -> 0 | AG37: =IF(AF37=0,0,(AF37*((LOG(AF37))/LOG(2)))) -> 0 | AI37: =N37 -> 22221 | AJ37: =COUNTIF(L96:L125,AI37) -> 0 | AK37: =AJ37/(AL4-AJ25) -> 0 | AL37: =IF(AK37=0,0,(AK37*((LOG(AK37))/LOG(2)))) -> 0 | AN37: =N37 -> 22221 | AO37: =COUNTIF(L126:L155,AN37) -> 0 | AP37: =AO37/(AQ4-AO25) -> 0 | AQ37: =IF(AP37=0,0,(AP37*((LOG(AP37))/LOG(2)))) -> 0 | AS37: =N37 -> 22221 | AT37: =COUNTIF(L156:L185,AS37) -> 0 | AU37: =AT37/(AV4-AT25) -> 0 | AV37: =IF(AU37=0,0,(AU37*((LOG(AU37))/LOG(2)))) -> 0
A38: 12 | B38: 3971 | C38: 13 | D38: 3975 | E38: 13 | F38: 3979 | G38: 14 | H38: 3984 | I38: 13 | J38: 3995 | K38: 0 | L38: 11111 | N38: 22222 | O38: =COUNTIF($L$7:$L$500,N38) -> 8 | P38: =O38/$Q$4 -> 0.04469273743 | Q38: =IF(P38=0,0,(P38*((LOG(P38))/LOG(2)))) -> -0.2003940012 | T38: =N38 -> 22222 | U38: =COUNTIF(L7:L36,T38) -> 0 | V38: =U38/(W4-U25) -> 0 | W38: =IF(V38=0,0,(V38*((LOG(V38))/LOG(2)))) -> 0 | Y38: =N38 -> 22222 | Z38: =COUNTIF(L37:L66,Y38) -> 0 | AA38: =Z38/(AB4-Z25) -> 0 | AB38: =IF(AA38=0,0,(AA38*((LOG(AA38))/LOG(2)))) -> 0 | AD38: =N38 -> 22222 | AE38: =COUNTIF(L67:L95,AD38) -> 1 | AF38: =AE38/(AG4-AE25) -> 0.03448275862 | AG38: =IF(AF38=0,0,(AF38*((LOG(AF38))/LOG(2)))) -> -0.167516586 | AI38: =N38 -> 22222 | AJ38: =COUNTIF(L96:L125,AI38) -> 0 | AK38: =AJ38/(AL4-AJ25) -> 0 | AL38: =IF(AK38=0,0,(AK38*((LOG(AK38))/LOG(2)))) -> 0 | AN38: =N38 -> 22222 | AO38: =COUNTIF(L126:L155,AN38) -> 2 | AP38: =AO38/(AQ4-AO25) -> 0.06666666667 | AQ38: =IF(AP38=0,0,(AP38*((LOG(AP38))/LOG(2)))) -> -0.260459373 | AS38: =N38 -> 22222 | AT38: =COUNTIF(L156:L185,AS38) -> 5 | AU38: =AT38/(AV4-AT25) -> 0.1666666667 | AV38: =IF(AU38=0,0,(AU38*((LOG(AU38))/LOG(2)))) -> -0.4308270835
A39: 12 | B39: 4099 | C39: 13 | D39: 4103 | E39: 13 | F39: 4107 | G39: 14 | H39: 4117 | I39: 13 | J39: 4123 | K39: 0 | L39: 11111 | P39: =SUM(P7:P38) -> 1 | Q39: =-SUM(Q7:Q38) -> 0.5821765803 | V39: =SUM(V7:V38) -> 1 | W39: =-SUM(W7:W38) -> 0.4200260017 | AA39: =SUM(AA7:AA38) -> 1 | AB39: =-SUM(AB7:AB38) -> 0.2108423003 | AF39: =SUM(AF7:AF38) -> 1 | AG39: =-SUM(AG7:AG38) -> 0.6437936616 | AK39: =SUM(AK7:AK38) -> 1 | AL39: =-SUM(AL7:AL38) -> 0.2108423003 | AP39: =SUM(AP7:AP38) -> 1 | AQ39: =-SUM(AQ7:AQ38) -> 0.353359335 | AU39: =SUM(AU7:AU38) -> 1 | AV39: =-SUM(AV7:AV38) -> 0.8519325792
A40: 12 | B40: 4224 | C40: 13 | D40: 4229 | E40: 13 | F40: 4233 | G40: 14 | H40: 4238 | I40: 13 | J40: 4242 | K40: 0 | L40: 11111 | P40: U= | Q40: =Q39/(LOG(Q4)/LOG(2)) -> 0.07779140984 | V40: U1= | W40: =W39/(LOG(W4)/LOG(2)) -> 0.08559921879 | AA40: U2= | AB40: =AB39/(LOG(AB4)/LOG(2)) -> 0.04296861652 | AF40: U3= | AG40: =AG39/(LOG(AG4)/LOG(2)) -> 0.132522886 | AK40: U4= | AL40: =AL39/(LOG(AL4)/LOG(2)) -> 0.04296861652 | AP40: U5= | AQ40: =AQ39/(LOG(AQ4)/LOG(2)) -> 0.07201288232 | AU40: U6= | AV40: =AV39/(LOG(AV4)/LOG(2)) -> 0.1736196401
A41: 12 | B41: 4347 | C41: 13 | D41: 4351 | E41: 13 | F41: 4356 | G41: 14 | H41: 4362 | I41: 13 | J41: 4367 | K41: 0 | L41: 11111
A42: 12 | B42: 4471 | C42: 13 | D42: 4475 | E42: 13 | F42: 4480 | G42: 14 | H42: 4486 | I42: 13 | J42: 4490 | K42: 0 | L42: 11111
A43: 12 | B43: 4597 | C43: 13 | D43: 4602 | E43: 13 | F43: 4614 | G43: 14 | H43: 4619 | I43: 13 | J43: 4628 | K43: 1 | L43: 11111 | N43: Total Target Seq
A44: 12 | B44: 4724 | C44: 13 | D44: 4732 | E44: 13 | F44: 4738 | G44: 14 | H44: 4750 | I44: 13 | J44: 4754 | K44: 0 | L44: 11111 | N44: =COUNTIF(L7:L185,G3) -> 0 | P44: 30 | Q44: 30 | R44: 29 | S44: 30 | T44: 30 | U44: 30
A45: 12 | B45: 4861 | C45: 13 | D45: 4875 | E45: 13 | F45: 4885 | G45: 14 | H45: 4890 | I45: 13 | J45: 4896 | K45: 0 | L45: 11111 | P45: % of reinforcement given in 6 equal intervals based on number of trials
A46: 12 | B46: 4997 | C46: 13 | D46: 5001 | E46: 13 | F46: 5005 | G46: 14 | H46: 5009 | I46: 13 | J46: 5015 | K46: 0 | L46: 11111 | P46: %_1 | Q46: %_2 | R46: %_3 | S46: %_4 | T46: %_5 | U46: %_6
A47: 12 | B47: 5116 | C47: 13 | D47: 5125 | E47: 13 | F47: 5134 | G47: 14 | H47: 5150 | I47: 13 | J47: 5164 | K47: 1 | L47: 11111 | O47: target sequence | P47: =$G$3 -> 21121 | Q47: =$G$3 -> 21121 | R47: =$G$3 -> 21121 | S47: =$G$3 -> 21121 | T47: =$G$3 -> 21121 | U47: =$G$3 -> 21121
A48: 12 | B48: 5259 | C48: 13 | D48: 5273 | E48: 13 | F48: 5284 | G48: 14 | H48: 5288 | I48: 13 | J48: 5296 | K48: 0 | L48: 11111 | O48: total reinforcement | P48: =U25 -> 0 | Q48: =Z25 -> 0 | R48: =AE25 -> 0 | S48: =AJ25 -> 0 | T48: =AO25 -> 0 | U48: =AT25 -> 0
A49: 12 | B49: 5397 | C49: 13 | D49: 5402 | E49: 13 | F49: 5407 | G49: 14 | H49: 5411 | I49: 13 | J49: 5415 | K49: 0 | L49: 11111 | O49: % target
A50: 12 | B50: 5519 | C50: 13 | D50: 5528 | E50: 13 | F50: 5532 | G50: 14 | H50: 5537 | I50: 13 | J50: 5541 | K50: 0 | L50: 11111 | O50: CCRF
A51: 12 | B51: 5641 | C51: 13 | D51: 5646 | E51: 13 | F51: 5650 | G51: 14 | H51: 5656 | I51: 13 | J51: 5661 | K51: 0 | L51: 11111 | O51: % CCRf
A52: 12 | B52: 5762 | C52: 13 | D52: 5767 | E52: 13 | F52: 5771 | G52: 14 | H52: 5775 | I52: 13 | J52: 5784 | K52: 0 | L52: 11111 | O52: average response rate | P52: =J36/P44 -> 125.0333333 | Q52: =(J66-J36)/Q44 -> 128.4 | R52: =(J95-J66)/R44 -> 131.6896552 | S52: =(J125-J95)/S44 -> 141.1 | T52: =(J155-J125)/T44 -> 135.3 | U52: =(J185-J155)/U44 -> 140.4333333
A53: 12 | B53: 5884 | C53: 13 | D53: 5890 | E53: 13 | F53: 5894 | G53: 14 | H53: 5898 | I53: 13 | J53: 5903 | K53: 0 | L53: 11111
A54: 12 | B54: 6005 | C54: 13 | D54: 6009 | E54: 13 | F54: 6014 | G54: 14 | H54: 6018 | I54: 13 | J54: 6022 | K54: 0 | L54: 11111
A55: 12 | B55: 6122 | C55: 13 | D55: 6128 | E55: 13 | F55: 6132 | G55: 14 | H55: 6137 | I55: 13 | J55: 6142 | K55: 1 | L55: 11111
A56: 12 | B56: 6260 | C56: 24 | D56: 6285 | E56: 24 | F56: 6298 | G56: 23 | H56: 6310 | I56: 24 | J56: 6319 | K56: 0 | L56: 12222
A57: 12 | B57: 6425 | C57: 13 | D57: 6438 | E57: 13 | F57: 6442 | G57: 14 | H57: 6454 | I57: 13 | J57: 6459 | K57: 0 | L57: 11111
A58: 12 | B58: 6563 | C58: 13 | D58: 6568 | E58: 13 | F58: 6573 | G58: 14 | H58: 6577 | I58: 13 | J58: 6582 | K58: 0 | L58: 11111
A59: 12 | B59: 6683 | C59: 13 | D59: 6687 | E59: 13 | F59: 6695 | G59: 14 | H59: 6700 | I59: 13 | J59: 6704 | K59: 0 | L59: 11111
A60: 12 | B60: 6806 | C60: 13 | D60: 6810 | E60: 13 | F60: 6814 | G60: 14 | H60: 6819 | I60: 13 | J60: 6824 | K60: 0 | L60: 11111
A61: 12 | B61: 6929 | C61: 13 | D61: 6938 | E61: 13 | F61: 6943 | G61: 14 | H61: 6951 | I61: 13 | J61: 6955 | K61: 0 | L61: 11111
A62: 12 | B62: 7070 | C62: 13 | D62: 7080 | E62: 13 | F62: 7085 | G62: 14 | H62: 7091 | I62: 13 | J62: 7095 | K62: 1 | L62: 11111
A63: 12 | B63: 7188 | C63: 13 | D63: 7214 | E63: 13 | F63: 7219 | G63: 14 | H63: 7224 | I63: 13 | J63: 7229 | K63: 0 | L63: 11111
A64: 12 | B64: 7327 | C64: 13 | D64: 7331 | E64: 13 | F64: 7343 | G64: 14 | H64: 7348 | I64: 13 | J64: 7356 | K64: 0 | L64: 11111
A65: 12 | B65: 7455 | C65: 13 | D65: 7464 | E65: 13 | F65: 7474 | G65: 14 | H65: 7479 | I65: 13 | J65: 7484 | K65: 0 | L65: 11111
A66: 12 | B66: 7583 | C66: 13 | D66: 7587 | E66: 13 | F66: 7595 | G66: 14 | H66: 7599 | I66: 13 | J66: 7603 | K66: 0 | L66: 11111
A67: 12 | B67: 7703 | C67: 13 | D67: 7707 | E67: 13 | F67: 7711 | G67: 14 | H67: 7715 | I67: 13 | J67: 7719 | K67: 0 | L67: 11111
A68: 12 | B68: 7826 | C68: 13 | D68: 7830 | E68: 13 | F68: 7834 | G68: 14 | H68: 7842 | I68: 13 | J68: 7846 | K68: 0 | L68: 11111
A69: 12 | B69: 7946 | C69: 13 | D69: 7955 | E69: 13 | F69: 7959 | G69: 14 | H69: 7964 | I69: 13 | J69: 7968 | K69: 0 | L69: 11111
A70: 12 | B70: 8068 | C70: 13 | D70: 8080 | E70: 13 | F70: 8085 | G70: 23 | H70: 8107 | I70: 24 | J70: 8116 | K70: 0 | L70: 11122
A71: 12 | B71: 8216 | C71: 13 | D71: 8220 | E71: 13 | F71: 8228 | G71: 14 | H71: 8232 | I71: 13 | J71: 8237 | K71: 1 | L71: 11111
A72: 12 | B72: 8342 | C72: 13 | D72: 8362 | E72: 13 | F72: 8367 | G72: 14 | H72: 8373 | I72: 13 | J72: 8385 | K72: 0 | L72: 11111
A73: 12 | B73: 8495 | C73: 13 | D73: 8517 | E73: 13 | F73: 8527 | G73: 14 | H73: 8531 | I73: 13 | J73: 8539 | K73: 0 | L73: 11111
A74: 12 | B74: 8646 | C74: 13 | D74: 8660 | E74: 13 | F74: 8665 | G74: 14 | H74: 8669 | I74: 13 | J74: 8677 | K74: 0 | L74: 11111
A75: 12 | B75: 8782 | C75: 13 | D75: 8786 | E75: 13 | F75: 8791 | G75: 14 | H75: 8796 | I75: 13 | J75: 8801 | K75: 0 | L75: 11111
A76: 12 | B76: 8916 | C76: 13 | D76: 8923 | E76: 24 | F76: 8942 | G76: 23 | H76: 8948 | I76: 24 | J76: 8956 | K76: 0 | L76: 11222
A77: 12 | B77: 9055 | C77: 13 | D77: 9059 | E77: 13 | F77: 9066 | G77: 14 | H77: 9071 | I77: 13 | J77: 9083 | K77: 0 | L77: 11111
A78: 12 | B78: 9179 | C78: 13 | D78: 9183 | E78: 13 | F78: 9197 | G78: 14 | H78: 9206 | I78: 13 | J78: 9212 | K78: 0 | L78: 11111
A79: 12 | B79: 9317 | C79: 13 | D79: 9322 | E79: 13 | F79: 9327 | G79: 14 | H79: 9331 | I79: 13 | J79: 9340 | K79: 1 | L79: 11111
A80: 12 | B80: 9440 | C80: 13 | D80: 9453 | E80: 13 | F80: 9457 | G80: 14 | H80: 9468 | I80: 13 | J80: 9475 | K80: 0 | L80: 11111
A81: 12 | B81: 9576 | C81: 13 | D81: 9581 | E81: 13 | F81: 9589 | G81: 14 | H81: 9599 | I81: 13 | J81: 9603 | K81: 0 | L81: 11111
A82: 12 | B82: 9705 | C82: 13 | D82: 9709 | E82: 13 | F82: 9713 | G82: 14 | H82: 9721 | I82: 13 | J82: 9729 | K82: 0 | L82: 11111
A83: 12 | B83: 9832 | C83: 13 | D83: 9837 | E83: 13 | F83: 9841 | G83: 14 | H83: 9846 | I83: 13 | J83: 9851 | K83: 0 | L83: 11111
A84: 12 | B84: 9950 | C84: 13 | D84: 9955 | E84: 13 | F84: 9959 | G84: 14 | H84: 9963 | I84: 13 | J84: 9967 | K84: 0 | L84: 11111
A85: 12 | B85: 10071 | C85: 13 | D85: 10075 | E85: 13 | F85: 10080 | G85: 14 | H85: 10084 | I85: 13 | J85: 10089 | K85: 0 | L85: 11111
A86: 12 | B86: 10199 | C86: 13 | D86: 10203 | E86: 13 | F86: 10209 | G86: 14 | H86: 10213 | I86: 13 | J86: 10221 | K86: 0 | L86: 11111
A87: 12 | B87: 10324 | C87: 13 | D87: 10329 | E87: 13 | F87: 10334 | G87: 14 | H87: 10339 | I87: 13 | J87: 10343 | K87: 0 | L87: 11111
A88: 12 | B88: 10449 | C88: 13 | D88: 10454 | E88: 13 | F88: 10458 | G88: 14 | H88: 10473 | I88: 13 | J88: 10478 | K88: 0 | L88: 11111
A89: 12 | B89: 10585 | C89: 13 | D89: 10594 | E89: 13 | F89: 10598 | G89: 14 | H89: 10603 | I89: 13 | J89: 10611 | K89: 0 | L89: 11111
A90: 12 | B90: 10716 | C90: 13 | D90: 10721 | E90: 13 | F90: 10725 | G90: 14 | H90: 10734 | I90: 13 | J90: 10739 | K90: 1 | L90: 11111
A91: 21 | B91: 10891 | C91: 22 | D91: 10895 | E91: 24 | F91: 10900 | G91: 23 | H91: 10907 | I91: 24 | J91: 10916 | K91: 0 | L91: 22222
A92: 12 | B92: 11027 | C92: 13 | D92: 11033 | E92: 13 | F92: 11042 | G92: 14 | H92: 11047 | I92: 13 | J92: 11053 | K92: 0 | L92: 11111
A93: 12 | B93: 11152 | C93: 13 | D93: 11159 | E93: 13 | F93: 11164 | G93: 14 | H93: 11168 | I93: 13 | J93: 11172 | K93: 0 | L93: 11111
A94: 12 | B94: 11279 | C94: 13 | D94: 11283 | E94: 13 | F94: 11290 | G94: 14 | H94: 11295 | I94: 13 | J94: 11304 | K94: 0 | L94: 11111
A95: 12 | B95: 11405 | C95: 13 | D95: 11409 | E95: 13 | F95: 11413 | G95: 14 | H95: 11418 | I95: 13 | J95: 11422 | K95: 0 | L95: 11111
A96: 12 | B96: 11527 | C96: 13 | D96: 11531 | E96: 13 | F96: 11535 | G96: 14 | H96: 11539 | I96: 13 | J96: 11544 | K96: 0 | L96: 11111
A97: 12 | B97: 11651 | C97: 13 | D97: 11660 | E97: 13 | F97: 11667 | G97: 14 | H97: 11671 | I97: 13 | J97: 11676 | K97: 0 | L97: 11111
A98: 12 | B98: 11783 | C98: 13 | D98: 11787 | E98: 13 | F98: 11794 | G98: 14 | H98: 11799 | I98: 13 | J98: 11803 | K98: 0 | L98: 11111
A99: 12 | B99: 11913 | C99: 13 | D99: 11922 | E99: 13 | F99: 11932 | G99: 14 | H99: 11937 | I99: 13 | J99: 11950 | K99: 0 | L99: 11111
A100: 12 | B100: 12058 | C100: 13 | D100: 12062 | E100: 13 | F100: 12067 | G100: 14 | H100: 12071 | I100: 13 | J100: 12076 | K100: 0 | L100: 11111
A101: 12 | B101: 12181 | C101: 13 | D101: 12189 | E101: 13 | F101: 12194 | G101: 14 | H101: 12203 | I101: 13 | J101: 12212 | K101: 1 | L101: 11111
A102: 12 | B102: 12335 | C102: 13 | D102: 12344 | E102: 13 | F102: 12354 | G102: 14 | H102: 12358 | I102: 13 | J102: 12367 | K102: 0 | L102: 11111
A103: 12 | B103: 12476 | C103: 13 | D103: 12481 | E103: 13 | F103: 12490 | G103: 14 | H103: 12503 | I103: 13 | J103: 12511 | K103: 0 | L103: 11111
A104: 12 | B104: 12615 | C104: 13 | D104: 12620 | E104: 13 | F104: 12624 | G104: 14 | H104: 12628 | I104: 13 | J104: 12637 | K104: 1 | L104: 11111
A105: 12 | B105: 12757 | C105: 13 | D105: 12764 | E105: 13 | F105: 12769 | G105: 14 | H105: 12774 | I105: 13 | J105: 12791 | K105: 0 | L105: 11111
A106: 12 | B106: 12903 | C106: 13 | D106: 12920 | E106: 13 | F106: 12929 | G106: 14 | H106: 12935 | I106: 13 | J106: 12940 | K106: 0 | L106: 11111
A107: 12 | B107: 13044 | C107: 13 | D107: 13049 | E107: 13 | F107: 13054 | G107: 14 | H107: 13059 | I107: 13 | J107: 13064 | K107: 0 | L107: 11111
A108: 12 | B108: 13163 | C108: 13 | D108: 13167 | E108: 13 | F108: 13171 | G108: 14 | H108: 13176 | I108: 13 | J108: 13180 | K108: 1 | L108: 11111
A109: 12 | B109: 13299 | C109: 13 | D109: 13304 | E109: 13 | F109: 13314 | G109: 14 | H109: 13326 | I109: 13 | J109: 13338 | K109: 1 | L109: 11111
A110: 12 | B110: 13528 | C110: 13 | D110: 13543 | E110: 13 | F110: 13548 | G110: 14 | H110: 13561 | I110: 13 | J110: 13565 | K110: 0 | L110: 11111
A111: 12 | B111: 13689 | C111: 24 | D111: 13713 | E111: 24 | F111: 13757 | G111: 23 | H111: 13762 | I111: 24 | J111: 13769 | K111: 1 | L111: 12222
A112: 12 | B112: 13869 | C112: 13 | D112: 13877 | E112: 13 | F112: 13886 | G112: 14 | H112: 13891 | I112: 13 | J112: 13895 | K112: 0 | L112: 11111
A113: 12 | B113: 14009 | C113: 13 | D113: 14021 | E113: 13 | F113: 14026 | G113: 14 | H113: 14030 | I113: 13 | J113: 14035 | K113: 0 | L113: 11111
A114: 12 | B114: 14146 | C114: 13 | D114: 14150 | E114: 13 | F114: 14158 | G114: 14 | H114: 14163 | I114: 13 | J114: 14167 | K114: 0 | L114: 11111
A115: 12 | B115: 14270 | C115: 13 | D115: 14275 | E115: 13 | F115: 14279 | G115: 14 | H115: 14285 | I115: 13 | J115: 14290 | K115: 0 | L115: 11111
A116: 12 | B116: 14396 | C116: 13 | D116: 14401 | E116: 13 | F116: 14406 | G116: 14 | H116: 14411 | I116: 13 | J116: 14416 | K116: 0 | L116: 11111
A117: 12 | B117: 14532 | C117: 13 | D117: 14541 | E117: 13 | F117: 14546 | G117: 14 | H117: 14558 | I117: 13 | J117: 14563 | K117: 0 | L117: 11111
A118: 12 | B118: 14663 | C118: 13 | D118: 14667 | E118: 13 | F118: 14671 | G118: 14 | H118: 14675 | I118: 13 | J118: 14680 | K118: 0 | L118: 11111
A119: 12 | B119: 14797 | C119: 13 | D119: 14808 | E119: 13 | F119: 14812 | G119: 14 | H119: 14825 | I119: 13 | J119: 14830 | K119: 1 | L119: 11111
A120: 12 | B120: 14940 | C120: 13 | D120: 14953 | E120: 13 | F120: 14963 | G120: 14 | H120: 14969 | I120: 13 | J120: 14983 | K120: 1 | L120: 11111
A121: 12 | B121: 15094 | C121: 13 | D121: 15106 | E121: 13 | F121: 15113 | G121: 14 | H121: 15118 | I121: 13 | J121: 15130 | K121: 0 | L121: 11111
A122: 12 | B122: 15231 | C122: 13 | D122: 15238 | E122: 13 | F122: 15245 | G122: 14 | H122: 15249 | I122: 13 | J122: 15258 | K122: 0 | L122: 11111
A123: 12 | B123: 15364 | C123: 13 | D123: 15373 | E123: 13 | F123: 15377 | G123: 14 | H123: 15385 | I123: 13 | J123: 15390 | K123: 1 | L123: 11111
A124: 12 | B124: 15495 | C124: 13 | D124: 15499 | E124: 13 | F124: 15503 | G124: 14 | H124: 15515 | I124: 13 | J124: 15523 | K124: 0 | L124: 11111
A125: 12 | B125: 15633 | C125: 13 | D125: 15637 | E125: 13 | F125: 15642 | G125: 14 | H125: 15650 | I125: 13 | J125: 15655 | K125: 1 | L125: 11111
A126: 12 | B126: 15754 | C126: 13 | D126: 15758 | E126: 13 | F126: 15767 | G126: 14 | H126: 15781 | I126: 13 | J126: 15785 | K126: 0 | L126: 11111
A127: 12 | B127: 15889 | C127: 13 | D127: 15894 | E127: 13 | F127: 15903 | G127: 14 | H127: 15907 | I127: 13 | J127: 15914 | K127: 0 | L127: 11111
A128: 12 | B128: 16017 | C128: 13 | D128: 16028 | E128: 13 | F128: 16037 | G128: 14 | H128: 16049 | I128: 13 | J128: 16053 | K128: 0 | L128: 11111
A129: 12 | B129: 16153 | C129: 13 | D129: 16157 | E129: 13 | F129: 16161 | G129: 14 | H129: 16169 | I129: 13 | J129: 16179 | K129: 1 | L129: 11111
A130: 12 | B130: 16293 | C130: 13 | D130: 16297 | E130: 13 | F130: 16315 | G130: 14 | H130: 16322 | I130: 13 | J130: 16327 | K130: 0 | L130: 11111
A131: 12 | B131: 16433 | C131: 13 | D131: 16441 | E131: 13 | F131: 16450 | G131: 14 | H131: 16463 | I131: 13 | J131: 16468 | K131: 0 | L131: 11111
A132: 12 | B132: 16581 | C132: 13 | D132: 16590 | E132: 13 | F132: 16595 | G132: 14 | H132: 16600 | I132: 13 | J132: 16604 | K132: 0 | L132: 11111
A133: 12 | B133: 16707 | C133: 13 | D133: 16711 | E133: 13 | F133: 16715 | G133: 14 | H133: 16720 | I133: 13 | J133: 16725 | K133: 1 | L133: 11111
A134: 12 | B134: 16834 | C134: 13 | D134: 16838 | E134: 13 | F134: 16843 | G134: 14 | H134: 16852 | I134: 13 | J134: 16857 | K134: 0 | L134: 11111
A135: 12 | B135: 16974 | C135: 13 | D135: 16993 | E135: 13 | F135: 17006 | G135: 14 | H135: 17019 | I135: 13 | J135: 17027 | K135: 0 | L135: 11111
A136: 12 | B136: 17136 | C136: 13 | D136: 17140 | E136: 13 | F136: 17150 | G136: 14 | H136: 17155 | I136: 13 | J136: 17160 | K136: 0 | L136: 11111
A137: 12 | B137: 17267 | C137: 13 | D137: 17278 | E137: 13 | F137: 17282 | G137: 14 | H137: 17287 | I137: 13 | J137: 17296 | K137: 1 | L137: 11111
A138: 21 | B138: 17414 | C138: 22 | D138: 17427 | E138: 24 | F138: 17432 | G138: 23 | H138: 17437 | I138: 24 | J138: 17448 | K138: 0 | L138: 22222
A139: 12 | B139: 17551 | C139: 13 | D139: 17556 | E139: 13 | F139: 17563 | G139: 14 | H139: 17570 | I139: 13 | J139: 17576 | K139: 0 | L139: 11111
A140: 12 | B140: 17679 | C140: 13 | D140: 17687 | E140: 13 | F140: 17695 | G140: 14 | H140: 17699 | I140: 13 | J140: 17707 | K140: 0 | L140: 11111
A141: 12 | B141: 17813 | C141: 13 | D141: 17818 | E141: 13 | F141: 17822 | G141: 14 | H141: 17826 | I141: 13 | J141: 17832 | K141: 0 | L141: 11111
A142: 12 | B142: 17936 | C142: 13 | D142: 17945 | E142: 13 | F142: 17950 | G142: 14 | H142: 17957 | I142: 13 | J142: 17963 | K142: 0 | L142: 11111
A143: 12 | B143: 18080 | C143: 13 | D143: 18093 | E143: 13 | F143: 18107 | G143: 14 | H143: 18111 | I143: 13 | J143: 18116 | K143: 1 | L143: 11111
A144: 21 | B144: 18235 | C144: 22 | D144: 18240 | E144: 24 | F144: 18245 | G144: 23 | H144: 18253 | I144: 24 | J144: 18260 | K144: 0 | L144: 22222
A145: 12 | B145: 18376 | C145: 13 | D145: 18380 | E145: 13 | F145: 18384 | G145: 14 | H145: 18389 | I145: 13 | J145: 18396 | K145: 0 | L145: 11111
A146: 12 | B146: 18504 | C146: 13 | D146: 18508 | E146: 13 | F146: 18513 | G146: 14 | H146: 18517 | I146: 13 | J146: 18522 | K146: 0 | L146: 11111
A147: 12 | B147: 18634 | C147: 13 | D147: 18638 | E147: 13 | F147: 18652 | G147: 14 | H147: 18656 | I147: 13 | J147: 18660 | K147: 0 | L147: 11111
A148: 12 | B148: 18767 | C148: 13 | D148: 18771 | E148: 13 | F148: 18775 | G148: 14 | H148: 18781 | I148: 13 | J148: 18789 | K148: 0 | L148: 11111
A149: 12 | B149: 18895 | C149: 13 | D149: 18899 | E149: 13 | F149: 18903 | G149: 14 | H149: 18907 | I149: 13 | J149: 18913 | K149: 1 | L149: 11111
A150: 12 | B150: 19021 | C150: 13 | D150: 19028 | E150: 13 | F150: 19033 | G150: 14 | H150: 19037 | I150: 13 | J150: 19045 | K150: 0 | L150: 11111
A151: 12 | B151: 19149 | C151: 13 | D151: 19154 | E151: 13 | F151: 19158 | G151: 14 | H151: 19163 | I151: 13 | J151: 19186 | K151: 0 | L151: 11111
A152: 12 | B152: 19307 | C152: 13 | D152: 19321 | E152: 13 | F152: 19326 | G152: 14 | H152: 19334 | I152: 13 | J152: 19338 | K152: 0 | L152: 11111
A153: 12 | B153: 19436 | C153: 13 | D153: 19440 | E153: 13 | F153: 19452 | G153: 14 | H153: 19456 | I153: 13 | J153: 19467 | K153: 0 | L153: 11111
A154: 12 | B154: 19568 | C154: 13 | D154: 19578 | E154: 13 | F154: 19582 | G154: 14 | H154: 19586 | I154: 13 | J154: 19591 | K154: 0 | L154: 11111
A155: 12 | B155: 19689 | C155: 13 | D155: 19693 | E155: 13 | F155: 19697 | G155: 14 | H155: 19709 | I155: 13 | J155: 19714 | K155: 0 | L155: 11111
A156: 12 | B156: 19818 | C156: 13 | D156: 19822 | E156: 13 | F156: 19827 | G156: 14 | H156: 19831 | I156: 13 | J156: 19839 | K156: 0 | L156: 11111
A157: 12 | B157: 19964 | C157: 13 | D157: 19973 | E157: 13 | F157: 19987 | G157: 14 | H157: 19992 | I157: 13 | J157: 20003 | K157: 1 | L157: 11111
A158: 12 | B158: 20102 | C158: 13 | D158: 20110 | E158: 13 | F158: 20114 | G158: 14 | H158: 20125 | I158: 13 | J158: 20129 | K158: 1 | L158: 11111
A159: 12 | B159: 20233 | C159: 13 | D159: 20243 | E159: 13 | F159: 20247 | G159: 14 | H159: 20252 | I159: 13 | J159: 20264 | K159: 0 | L159: 11111
A160: 12 | B160: 20369 | C160: 13 | D160: 20374 | E160: 13 | F160: 20379 | G160: 14 | H160: 20387 | I160: 13 | J160: 20395 | K160: 0 | L160: 11111
A161: 12 | B161: 20497 | C161: 13 | D161: 20504 | E161: 13 | F161: 20509 | G161: 14 | H161: 20512 | I161: 13 | J161: 20517 | K161: 0 | L161: 11111
A162: 12 | B162: 20625 | C162: 13 | D162: 20629 | E162: 13 | F162: 20634 | G162: 14 | H162: 20646 | I162: 13 | J162: 20654 | K162: 0 | L162: 11111
A163: 21 | B163: 20774 | C163: 22 | D163: 20778 | E163: 24 | F163: 20784 | G163: 23 | H163: 20788 | I163: 24 | J163: 20794 | K163: 0 | L163: 22222
A164: 21 | B164: 20907 | C164: 22 | D164: 20915 | E164: 24 | F164: 20927 | G164: 23 | H164: 20935 | I164: 24 | J164: 20943 | K164: 0 | L164: 22222
A165: 12 | B165: 21053 | C165: 13 | D165: 21061 | E165: 13 | F165: 21065 | G165: 14 | H165: 21079 | I165: 13 | J165: 21092 | K165: 0 | L165: 11111
A166: 12 | B166: 21217 | C166: 13 | D166: 21229 | E166: 13 | F166: 21233 | G166: 14 | H166: 21242 | I166: 13 | J166: 21251 | K166: 1 | L166: 11111
A167: 12 | B167: 21354 | C167: 24 | D167: 21375 | E167: 24 | F167: 21384 | G167: 23 | H167: 21392 | I167: 24 | J167: 21406 | K167: 0 | L167: 12222
A168: 12 | B168: 21531 | C168: 13 | D168: 21541 | E168: 13 | F168: 21554 | G168: 14 | H168: 21559 | I168: 13 | J168: 21570 | K168: 0 | L168: 11111
A169: 12 | B169: 21677 | C169: 13 | D169: 21681 | E169: 13 | F169: 21685 | G169: 14 | H169: 21689 | I169: 13 | J169: 21694 | K169: 0 | L169: 11111
A170: 21 | B170: 21800 | C170: 22 | D170: 21804 | E170: 24 | F170: 21810 | G170: 23 | H170: 21818 | I170: 24 | J170: 21824 | K170: 0 | L170: 22222
A171: 12 | B171: 21928 | C171: 13 | D171: 21939 | E171: 13 | F171: 21946 | G171: 14 | H171: 21951 | I171: 13 | J171: 21964 | K171: 0 | L171: 11111
A172: 12 | B172: 22072 | C172: 13 | D172: 22076 | E172: 13 | F172: 22084 | G172: 14 | H172: 22089 | I172: 13 | J172: 22093 | K172: 0 | L172: 11111
A173: 12 | B173: 22200 | C173: 13 | D173: 22209 | E173: 13 | F173: 22213 | G173: 14 | H173: 22228 | I173: 13 | J173: 22232 | K173: 0 | L173: 11111
A174: 21 | B174: 22346 | C174: 22 | D174: 22350 | E174: 24 | F174: 22355 | G174: 23 | H174: 22362 | I174: 24 | J174: 22369 | K174: 0 | L174: 22222
A175: 12 | B175: 22471 | C175: 13 | D175: 22479 | E175: 13 | F175: 22484 | G175: 14 | H175: 22488 | I175: 13 | J175: 22503 | K175: 0 | L175: 11111
A176: 12 | B176: 22618 | C176: 13 | D176: 22623 | E176: 13 | F176: 22628 | G176: 14 | H176: 22637 | I176: 13 | J176: 22642 | K176: 1 | L176: 11111
A177: 21 | B177: 22783 | C177: 22 | D177: 22787 | E177: 24 | F177: 22791 | G177: 23 | H177: 22805 | I177: 24 | J177: 22810 | K177: 0 | L177: 22222
A178: 12 | B178: 22931 | C178: 13 | D178: 22945 | E178: 13 | F178: 22952 | G178: 14 | H178: 22960 | I178: 13 | J178: 22968 | K178: 0 | L178: 11111
A179: 12 | B179: 23081 | C179: 13 | D179: 23086 | E179: 13 | F179: 23090 | G179: 14 | H179: 23095 | I179: 13 | J179: 23112 | K179: 0 | L179: 11111
A180: 12 | B180: 23214 | C180: 13 | D180: 23219 | E180: 13 | F180: 23223 | G180: 14 | H180: 23230 | I180: 13 | J180: 23236 | K180: 0 | L180: 11111
A181: 12 | B181: 23344 | C181: 13 | D181: 23351 | E181: 13 | F181: 23361 | G181: 14 | H181: 23366 | I181: 13 | J181: 23378 | K181: 1 | L181: 11111
A182: 12 | B182: 23492 | C182: 13 | D182: 23500 | E182: 13 | F182: 23518 | G182: 14 | H182: 23524 | I182: 13 | J182: 23532 | K182: 0 | L182: 11111
A183: 12 | B183: 23656 | C183: 13 | D183: 23661 | E183: 13 | F183: 23667 | G183: 14 | H183: 23676 | I183: 13 | J183: 23685 | K183: 0 | L183: 11111
A184: 12 | B184: 23790 | C184: 13 | D184: 23795 | E184: 13 | F184: 23800 | G184: 14 | H184: 23804 | I184: 13 | J184: 23809 | K184: 0 | L184: 11111
A185: 12 | B185: 23910 | C185: 13 | D185: 23914 | E185: 13 | F185: 23918 | G185: 14 | H185: 23922 | I185: 13 | J185: 23927 | L185: 11111

Sheet !MC04A00.010
A1: Report for:!MC04A00.010
A2: Date: | B2: <date>
A3: Hen: | B3: <hen> | F3: Correct Sequence | G3: =Start!J2 -> 21121 | P3: Total Sequences in Data | Q3: =4994-COUNTBLANK(L7:L5000) -> 179 | V3: Total Sequences in Block Data | W3: =COUNTA(L7:L36) -> 30 | AA3: Total Sequences in Block Data | AB3: =COUNTA(L37:L66) -> 30 | AF3: Total Sequences in Block Data | AG3: =COUNTA(L67:L95) -> 29 | AK3: Total Sequences in Block Data | AL3: =COUNTA(L96:L125) -> 30 | AP3: Total Sequences in Block Data | AQ3: =COUNTA(L126:L155) -> 30 | AU3: Total Sequences in Block Data | AV3: =COUNTA(L156:L185) -> 30
P4: Total Sequences in Summary | Q4: =SUM(O7:O38) -> 179 | V4: Total Sequences in Block Summary | W4: =SUM(U7:U38) -> 30 | AA4: Total Sequences in Block Summary | AB4: =SUM(Z7:Z38) -> 30 | AF4: Total Sequences in Block Summary | AG4: =SUM(AE7:AE38) -> 29 | AK4: Total Sequences in Block Summary | AL4: =SUM(AJ7:AJ38) -> 30 | AP4: Total Sequences in Block Summary | AQ4: =SUM(AO7:AO38) -> 30 | AU4: Total Sequences in Block Summary | AV4: =SUM(AT7:AT38) -> 30
T5: Block 1 | Y5: Block 2 | AD5: Block 3 | AI5: Block 4 | AN5: Block 5 | AS5: Block 6
A6: Sequence Component 1 | B6: Time 1 | C6: Sequence Component 2 | D6: Time 2 | E6: Sequence Component 3 | F6: Time 3 | G6: Sequence Component 4 | H6: Time 4 | I6: Sequence Component 5 | J6: Time 5 | K6: Correct? 0=No 1=Yes | L6: Sequence | N6: Frequency | P6: Relative Frequency | Q6: Variability | T6: Frequency | V6: Relative Frequency | W6: Variability | Y6: Frequency | AA6: Relative Frequency | AB6: Variability | AD6: Frequency | AF6: Relative Frequency | AG6: Variability | AI6: Frequency | AK6: Relative Frequency | AL6: Variability | AN6: Frequency | AP6: Relative Frequency | AQ6: Variability | AS6: Frequency | AU6: Relative Frequency | AV6: Variability
A7: 12 | B7: 35 | C7: 13 | D7: 41 | E7: 13 | F7: 46 | G7: 14 | H7: 52 | I7: 13 | J7: 58 | K7: 0 | L7: 11111 | N7: 11111 | O7: =COUNTIF($L$7:$L$500,N7) -> 170 | P7: =O7/$Q$4 -> 0.9497206704 | Q7: =IF(P7=0,0,(P7*((LOG(P7))/LOG(2)))) -> -0.07068281001 | T7: =N7 -> 11111 | U7: =COUNTIF(L7:L36,T7) -> 29 | V7: =U7/(W4-U25) -> 0.9666666667 | W7: =IF(V7=0,0,(V7*((LOG(V7))/LOG(2)))) -> -0.04727928046 | Y7: =N7 -> 11111 | Z7: =COUNTIF(L37:L66,Y7) -> 30 | AA7: =Z7/(AB4-Z25) -> 1 | AB7: =IF(AA7=0,0,(AA7*((LOG(AA7))/LOG(2)))) -> 0 | AD7: =N7 -> 11111 | AE7: =COUNTIF(L67:L95,AD7) -> 26 | AF7: =AE7/(AG4-AE25) -> 0.8965517241 | AG7: =IF(AF7=0,0,(AF7*((LOG(AF7))/LOG(2)))) -> -0.1412439035 | AI7: =N7 -> 11111 | AJ7: =COUNTIF(L96:L125,AI7) -> 28 | AK7: =AJ7/(AL4-AJ25) -> 0.9333333333 | AL7: =IF(AK7=0,0,(AK7*((LOG(AK7))/LOG(2)))) -> -0.09289996198 | AN7: =N7 -> 11111 | AO7: =COUNTIF(L126:L155,AN7) -> 29 | AP7: =AO7/(AQ4-AO25) -> 0.9666666667 | AQ7: =IF(AP7=0,0,(AP7*((LOG(AP7))/LOG(2)))) -> -0.04727928046 | AS7: =N7 -> 11111 | AT7: =COUNTIF(L156:L185,AS7) -> 28 | AU7: =AT7/(AV4-AT25) -> 0.9333333333 | AV7: =IF(AU7=0,0,(AU7*((LOG(AU7))/LOG(2)))) -> -0.09289996198
A8: 12 | B8: 183 | C8: 13 | D8: 189 | E8: 13 | F8: 194 | G8: 14 | H8: 200 | I8: 13 | J8: 209 | K8: 0 | L8: 11111 | N8: 11112 | O8: =COUNTIF($L$7:$L$500,N8) -> 2 | P8: =O8/$Q$4 -> 0.01117318436 | Q8: =IF(P8=0,0,(P8*((LOG(P8))/LOG(2)))) -> -0.07244486902 | T8: =N8 -> 11112 | U8: =COUNTIF(L7:L36,T8) -> 0 | V8: =U8/(W4-U25) -> 0 | W8: =IF(V8=0,0,(V8*((LOG(V8))/LOG(2)))) -> 0 | Y8: =N8 -> 11112 | Z8: =COUNTIF(L37:L66,Y8) -> 0 | AA8: =Z8/(AB4-Z25) -> 0 | AB8: =IF(AA8=0,0,(AA8*((LOG(AA8))/LOG(2)))) -> 0 | AD8: =N8 -> 11112 | AE8: =COUNTIF(L67:L95,AD8) -> 0 | AF8: =AE8/(AG4-AE25) -> 0 | AG8: =IF(AF8=0,0,(AF8*((LOG(AF8))/LOG(2)))) -> 0 | AI8: =N8 -> 11112 | AJ8: =COUNTIF(L96:L125,AI8) -> 1 | AK8: =AJ8/(AL4-AJ25) -> 0.03333333333 | AL8: =IF(AK8=0,0,(AK8*((LOG(AK8))/LOG(2)))) -> -0.1635630199 | AN8: =N8 -> 11112 | AO8: =COUNTIF(L126:L155,AN8) -> 0 | AP8: =AO8/(AQ4-AO25) -> 0 | AQ8: =IF(AP8=0,0,(AP8*((LOG(AP8))/LOG(2)))) -> 0 | AS8: =N8 -> 11112 | AT8: =COUNTIF(L156:L185,AS8) -> 1 | AU8: =AT8/(AV4-AT25) -> 0.03333333333 | AV8: =IF(AU8=0,0,(AU8*((LOG(AU8))/LOG(2)))) -> -0.1635630199
A9: 12 | B9: 311 | C9: 13 | D9: 315 | E9: 13 | F9: 320 | G9: 14 | H9: 325 | I9: 13 | J9: 333 | K9: 1 | L9: 11111 | N9: 11121 | O9: =COUNTIF($L$7:$L$500,N9) -> 0 | P9: =O9/$Q$4 -> 0 | Q9: =IF(P9=0,0,(P9*((LOG(P9))/LOG(2)))) -> 0 | T9: =N9 -> 11121 | U9: =COUNTIF(L7:L36,T9) -> 0 | V9: =U9/(W4-U25) -> 0 | W9: =IF(V9=0,0,(V9*((LOG(V9))/LOG(2)))) -> 0 | Y9: =N9 -> 11121 | Z9: =COUNTIF(L37:L66,Y9) -> 0 | AA9: =Z9/(AB4-Z25) -> 0 | AB9: =IF(AA9=0,0,(AA9*((LOG(AA9))/LOG(2)))) -> 0 | AD9: =N9 -> 11121 | AE9: =COUNTIF(L67:L95,AD9) -> 0 | AF9: =AE9/(AG4-AE25) -> 0 | AG9: =IF(AF9=0,0,(AF9*((LOG(AF9))/LOG(2)))) -> 0 | AI9: =N9 -> 11121 | AJ9: =COUNTIF(L96:L125,AI9) -> 0 | AK9: =AJ9/(AL4-AJ25) -> 0 | AL9: =IF(AK9=0,0,(AK9*((LOG(AK9))/LOG(2)))) -> 0 | AN9: =N9 -> 11121 | AO9: =COUNTIF(L126:L155,AN9) -> 0 | AP9: =AO9/(AQ4-AO25) -> 0 | AQ9: =IF(AP9=0,0,(AP9*((LOG(AP9))/LOG(2)))) -> 0 | AS9: =N9 -> 11121 | AT9: =COUNTIF(L156:L185,AS9) -> 0 | AU9: =AT9/(AV4-AT25) -> 0 | AV9: =IF(AU9=0,0,(AU9*((LOG(AU9))/LOG(2)))) -> 0
A10: 12 | B10: 429 | C10: 13 | D10: 437 | E10: 13 | F10: 459 | G10: 14 | H10: 465 | I10: 13 | J10: 470 | K10: 0 | L10: 11111 | N10: 11122 | O10: =COUNTIF($L$7:$L$500,N10) -> 2 | P10: =O10/$Q$4 -> 0.01117318436 | Q10: =IF(P10=0,0,(P10*((LOG(P10))/LOG(2)))) -> -0.07244486902 | T10: =N10 -> 11122 | U10: =COUNTIF(L7:L36,T10) -> 1 | V10: =U10/(W4-U25) -> 0.03333333333 | W10: =IF(V10=0,0,(V10*((LOG(V10))/LOG(2)))) -> -0.1635630199 | Y10: =N10 -> 11122 | Z10: =COUNTIF(L37:L66,Y10) -> 0 | AA10: =Z10/(AB4-Z25) -> 0 | AB10: =IF(AA10=0,0,(AA10*((LOG(AA10))/LOG(2)))) -> 0 | AD10: =N10 -> 11122 | AE10: =COUNTIF(L67:L95,AD10) -> 1 | AF10: =AE10/(AG4-AE25) -> 0.03448275862 | AG10: =IF(AF10=0,0,(AF10*((LOG(AF10))/LOG(2)))) -> -0.167516586 | AI10: =N10 -> 11122 | AJ10: =COUNTIF(L96:L125,AI10) -> 0 | AK10: =AJ10/(AL4-AJ25) -> 0 | AL10: =IF(AK10=0,0,(AK10*((LOG(AK10))/LOG(2)))) -> 0 | AN10: =N10 -> 11122 | AO10: =COUNTIF(L126:L155,AN10) -> 0 | AP10: =AO10/(AQ4-AO25) -> 0 | AQ10: =IF(AP10=0,0,(AP10*((LOG(AP10))/LOG(2)))) -> 0 | AS10: =N10 -> 11122 | AT10: =COUNTIF(L156:L185,AS10) -> 0 | AU10: =AT10/(AV4-AT25) -> 0 | AV10: =IF(AU10=0,0,(AU10*((LOG(AU10))/LOG(2)))) -> 0
A11: 12 | B11: 569 | C11: 13 | D11: 574 | E11: 13 | F11: 579 | G11: 14 | H11: 584 | I11: 13 | J11: 589 | K11: 0 | L11: 11111 | N11: 11211 | O11: =COUNTIF($L$7:$L$500,N11) -> 0 | P11: =O11/$Q$4 -> 0 | Q11: =IF(P11=0,0,(P11*((LOG(P11))/LOG(2)))) -> 0 | T11: =N11 -> 11211 | U11: =COUNTIF(L7:L36,T11) -> 0 | V11: =U11/(W4-U25) -> 0 | W11: =IF(V11=0,0,(V11*((LOG(V11))/LOG(2)))) -> 0 | Y11: =N11 -> 11211 | Z11: =COUNTIF(L37:L66,Y11) -> 0 | AA11: =Z11/(AB4-Z25) -> 0 | AB11: =IF(AA11=0,0,(AA11*((LOG(AA11))/LOG(2)))) -> 0 | AD11: =N11 -> 11211 | AE11: =COUNTIF(L67:L95,AD11) -> 0 | AF11: =AE11/(AG4-AE25) -> 0 | AG11: =IF(AF11=0,0,(AF11*((LOG(AF11))/LOG(2)))) -> 0 | AI11: =N11 -> 11211 | AJ11: =COUNTIF(L96:L125,AI11) -> 0 | AK11: =AJ11/(AL4-AJ25) -> 0 | AL11: =IF(AK11=0,0,(AK11*((LOG(AK11))/LOG(2)))) -> 0 | AN11: =N11 -> 11211 | AO11: =COUNTIF(L126:L155,AN11) -> 0 | AP11: =AO11/(AQ4-AO25) -> 0 | AQ11: =IF(AP11=0,0,(AP11*((LOG(AP11))/LOG(2)))) -> 0 | AS11: =N11 -> 11211 | AT11: =COUNTIF(L156:L185,AS11) -> 0 | AU11: =AT11/(AV4-AT25) -> 0 | AV11: =IF(AU11=0,0,(AU11*((LOG(AU11))/LOG(2)))) -> 0
A12: 12 | B12: 691 | C12: 13 | D12: 696 | E12: 13 | F12: 701 | G12: 14 | H12: 706 | I12: 13 | J12: 711 | K12: 0 | L12: 11111 | N12: 11212 | O12: =COUNTIF($L$7:$L$500,N12) -> 0 | P12: =O12/$Q$4 -> 0 | Q12: =IF(P12=0,0,(P12*((LOG(P12))/LOG(2)))) -> 0 | T12: =N12 -> 11212 | U12: =COUNTIF(L7:L36,T12) -> 0 | V12: =U12/(W4-U25) -> 0 | W12: =IF(V12=0,0,(V12*((LOG(V12))/LOG(2)))) -> 0 | Y12: =N12 -> 11212 | Z12: =COUNTIF(L37:L66,Y12) -> 0 | AA12: =Z12/(AB4-Z25) -> 0 | AB12: =IF(AA12=0,0,(AA12*((LOG(AA12))/LOG(2)))) -> 0 | AD12: =N12 -> 11212 | AE12: =COUNTIF(L67:L95,AD12) -> 0 | AF12: =AE12/(AG4-AE25) -> 0 | AG12: =IF(AF12=0,0,(AF12*((LOG(AF12))/LOG(2)))) -> 0 | AI12: =N12 -> 11212 | AJ12: =COUNTIF(L96:L125,AI12) -> 0 | AK12: =AJ12/(AL4-AJ25) -> 0 | AL12: =IF(AK12=0,0,(AK12*((LOG(AK12))/LOG(2)))) -> 0 | AN12: =N12 -> 11212 | AO12: =COUNTIF(L126:L155,AN12) -> 0 | AP12: =AO12/(AQ4-AO25) -> 0 | AQ12: =IF(AP12=0,0,(AP12*((LOG(AP12))/LOG(2)))) -> 0 | AS12: =N12 -> 11212 | AT12: =COUNTIF(L156:L185,AS12) -> 0 | AU12: =AT12/(AV4-AT25) -> 0 | AV12: =IF(AU12=0,0,(AU12*((LOG(AU12))/LOG(2)))) -> 0
A13: 12 | B13: 811 | C13: 13 | D13: 820 | E13: 13 | F13: 825 | G13: 14 | H13: 831 | I13: 13 | J13: 837 | K13: 0 | L13: 11111 | N13: 11221 | O13: =COUNTIF($L$7:$L$500,N13) -> 0 | P13: =O13/$Q$4 -> 0 | Q13: =IF(P13=0,0,(P13*((LOG(P13))/LOG(2)))) -> 0 | T13: =N13 -> 11221 | U13: =COUNTIF(L7:L36,T13) -> 0 | V13: =U13/(W4-U25) -> 0 | W13: =IF(V13=0,0,(V13*((LOG(V13))/LOG(2)))) -> 0 | Y13: =N13 -> 11221 | Z13: =COUNTIF(L37:L66,Y13) -> 0 | AA13: =Z13/(AB4-Z25) -> 0 | AB13: =IF(AA13=0,0,(AA13*((LOG(AA13))/LOG(2)))) -> 0 | AD13: =N13 -> 11221 | AE13: =COUNTIF(L67:L95,AD13) -> 0 | AF13: =AE13/(AG4-AE25) -> 0 | AG13: =IF(AF13=0,0,(AF13*((LOG(AF13))/LOG(2)))) -> 0 | AI13: =N13 -> 11221 | AJ13: =COUNTIF(L96:L125,AI13) -> 0 | AK13: =AJ13/(AL4-AJ25) -> 0 | AL13: =IF(AK13=0,0,(AK13*((LOG(AK13))/LOG(2)))) -> 0 | AN13: =N13 -> 11221 | AO13: =COUNTIF(L126:L155,AN13) -> 0 | AP13: =AO13/(AQ4-AO25) -> 0 | AQ13: =IF(AP13=0,0,(AP13*((LOG(AP13))/LOG(2)))) -> 0 | AS13: =N13 -> 11221 | AT13: =COUNTIF(L156:L185,AS13) -> 0 | AU13: =AT13/(AV4-AT25) -> 0 | AV13: =IF(AU13=0,0,(AU13*((LOG(AU13))/LOG(2)))) -> 0
A14: 12 | B14: 947 | C14: 13 | D14: 952 | E14: 13 | F14: 957 | G14: 14 | H14: 963 | I14: 13 | J14: 969 | K14: 0 | L14: 11111 | N14: 11222 | O14: =COUNTIF($L$7:$L$500,N14) -> 1 | P14: =O14/$Q$4 -> 0.005586592179 | Q14: =IF(P14=0,0,(P14*((LOG(P14))/LOG(2)))) -> -0.04180902669 | T14: =N14 -> 11222 | U14: =COUNTIF(L7:L36,T14) -> 0 | V14: =U14/(W4-U25) -> 0 | W14: =IF(V14=0,0,(V14*((LOG(V14))/LOG(2)))) -> 0 | Y14: =N14 -> 11222 | Z14: =COUNTIF(L37:L66,Y14) -> 0 | AA14: =Z14/(AB4-Z25) -> 0 | AB14: =IF(AA14=0,0,(AA14*((LOG(AA14))/LOG(2)))) -> 0 | AD14: =N14 -> 11222 | AE14: =COUNTIF(L67:L95,AD14) -> 0 | AF14: =AE14/(AG4-AE25) -> 0 | AG14: =IF(AF14=0,0,(AF14*((LOG(AF14))/LOG(2)))) -> 0 | AI14: =N14 -> 11222 | AJ14: =COUNTIF(L96:L125,AI14) -> 1 | AK14: =AJ14/(AL4-AJ25) -> 0.03333333333 | AL14: =IF(AK14=0,0,(AK14*((LOG(AK14))/LOG(2)))) -> -0.1635630199 | AN14: =N14 -> 11222 | AO14: =COUNTIF(L126:L155,AN14) -> 0 | AP14: =AO14/(AQ4-AO25) -> 0 | AQ14: =IF(AP14=0,0,(AP14*((LOG(AP14))/LOG(2)))) -> 0 | AS14: =N14 -> 11222 | AT14: =COUNTIF(L156:L185,AS14) -> 0 | AU14: =AT14/(AV4-AT25) -> 0 | AV14: =IF(AU14=0,0,(AU14*((LOG(AU14))/LOG(2)))) -> 0
A15: 12 | B15: 1077 | C15: 13 | D15: 1086 | E15: 13 | F15: 1094 | G15: 14 | H15: 1101 | I15: 13 | J15: 1105 | K15: 1 | L15: 11111 | N15: 12111 | O15: =COUNTIF($L$7:$L$500,N15) -> 0 | P15: =O15/$Q$4 -> 0 | Q15: =IF(P15=0,0,(P15*((LOG(P15))/LOG(2)))) -> 0 | T15: =N15 -> 12111 | U15: =COUNTIF(L7:L36,T15) -> 0 | V15: =U15/(W4-U25) -> 0 | W15: =IF(V15=0,0,(V15*((LOG(V15))/LOG(2)))) -> 0 | Y15: =N15 -> 12111 | Z15: =COUNTIF(L37:L66,Y15) -> 0 | AA15: =Z15/(AB4-Z25) -> 0 | AB15: =IF(AA15=0,0,(AA15*((LOG(AA15))/LOG(2)))) -> 0 | AD15: =N15 -> 12111 | AE15: =COUNTIF(L67:L95,AD15) -> 0 | AF15: =AE15/(AG4-AE25) -> 0 | AG15: =IF(AF15=0,0,(AF15*((LOG(AF15))/LOG(2)))) -> 0 | AI15: =N15 -> 12111 | AJ15: =COUNTIF(L96:L125,AI15) -> 0 | AK15: =AJ15/(AL4-AJ25) -> 0 | AL15: =IF(AK15=0,0,(AK15*((LOG(AK15))/LOG(2)))) -> 0 | AN15: =N15 -> 12111 | AO15: =COUNTIF(L126:L155,AN15) -> 0 | AP15: =AO15/(AQ4-AO25) -> 0 | AQ15: =IF(AP15=0,0,(AP15*((LOG(AP15))/LOG(2)))) -> 0 | AS15: =N15 -> 12111 | AT15: =COUNTIF(L156:L185,AS15) -> 0 | AU15: =AT15/(AV4-AT25) -> 0 | AV15: =IF(AU15=0,0,(AU15*((LOG(AU15))/LOG(2)))) -> 0
A16: 12 | B16: 1209 | C16: 13 | D16: 1213 | E16: 13 | F16: 1218 | G16: 14 | H16: 1222 | I16: 13 | J16: 1227 | K16: 0 | L16: 11111 | N16: 12112 | O16: =COUNTIF($L$7:$L$500,N16) -> 0 | P16: =O16/$Q$4 -> 0 | Q16: =IF(P16=0,0,(P16*((LOG(P16))/LOG(2)))) -> 0 | T16: =N16 -> 12112 | U16: =COUNTIF(L7:L36,T16) -> 0 | V16: =U16/(W4-U25) -> 0 | W16: =IF(V16=0,0,(V16*((LOG(V16))/LOG(2)))) -> 0 | Y16: =N16 -> 12112 | Z16: =COUNTIF(L37:L66,Y16) -> 0 | AA16: =Z16/(AB4-Z25) -> 0 | AB16: =IF(AA16=0,0,(AA16*((LOG(AA16))/LOG(2)))) -> 0 | AD16: =N16 -> 12112 | AE16: =COUNTIF(L67:L95,AD16) -> 0 | AF16: =AE16/(AG4-AE25) -> 0 | AG16: =IF(AF16=0,0,(AF16*((LOG(AF16))/LOG(2)))) -> 0 | AI16: =N16 -> 12112 | AJ16: =COUNTIF(L96:L125,AI16) -> 0 | AK16: =AJ16/(AL4-AJ25) -> 0 | AL16: =IF(AK16=0,0,(AK16*((LOG(AK16))/LOG(2)))) -> 0 | AN16: =N16 -> 12112 | AO16: =COUNTIF(L126:L155,AN16) -> 0 | AP16: =AO16/(AQ4-AO25) -> 0 | AQ16: =IF(AP16=0,0,(AP16*((LOG(AP16))/LOG(2)))) -> 0 | AS16: =N16 -> 12112 | AT16: =COUNTIF(L156:L185,AS16) -> 0 | AU16: =AT16/(AV4-AT25) -> 0 | AV16: =IF(AU16=0,0,(AU16*((LOG(AU16))/LOG(2)))) -> 0
A17: 12 | B17: 1326 | C17: 13 | D17: 1331 | E17: 13 | F17: 1336 | G17: 14 | H17: 1341 | I17: 13 | J17: 1347 | K17: 0 | L17: 11111 | N17: 12121 | O17: =COUNTIF($L$7:$L$500,N17) -> 0 | P17: =O17/$Q$4 -> 0 | Q17: =IF(P17=0,0,(P17*((LOG(P17))/LOG(2)))) -> 0 | T17: =N17 -> 12121 | U17: =COUNTIF(L7:L36,T17) -> 0 | V17: =U17/(W4-U25) -> 0 | W17: =IF(V17=0,0,(V17*((LOG(V17))/LOG(2)))) -> 0 | Y17: =N17 -> 12121 | Z17: =COUNTIF(L37:L66,Y17) -> 0 | AA17: =Z17/(AB4-Z25) -> 0 | AB17: =IF(AA17=0,0,(AA17*((LOG(AA17))/LOG(2)))) -> 0 | AD17: =N17 -> 12121 | AE17: =COUNTIF(L67:L95,AD17) -> 0 | AF17: =AE17/(AG4-AE25) -> 0 | AG17: =IF(AF17=0,0,(AF17*((LOG(AF17))/LOG(2)))) -> 0 | AI17: =N17 -> 12121 | AJ17: =COUNTIF(L96:L125,AI17) -> 0 | AK17: =AJ17/(AL4-AJ25) -> 0 | AL17: =IF(AK17=0,0,(AK17*((LOG(AK17))/LOG(2)))) -> 0 | AN17: =N17 -> 12121 | AO17: =COUNTIF(L126:L155,AN17) -> 0 | AP17: =AO17/(AQ4-AO25) -> 0 | AQ17: =IF(AP17=0,0,(AP17*((LOG(AP17))/LOG(2)))) -> 0 | AS17: =N17 -> 12121 | AT17: =COUNTIF(L156:L185,AS17) -> 0 | AU17: =AT17/(AV4-AT25) -> 0 | AV17: =IF(AU17=0,0,(AU17*((LOG(AU17))/LOG(2)))) -> 0
A18: 12 | B18: 1451 | C18: 13 | D18: 1460 | E18: 13 | F18: 1466 | G18: 14 | H18: 1471 | I18: 13 | J18: 1476 | K18: 1 | L18: 11111 | N18: 12122 | O18: =COUNTIF($L$7:$L$500,N18) -> 0 | P18: =O18/$Q$4 -> 0 | Q18: =IF(P18=0,0,(P18*((LOG(P18))/LOG(2)))) -> 0 | T18: =N18 -> 12122 | U18: =COUNTIF(L7:L36,T18) -> 0 | V18: =U18/(W4-U25) -> 0 | W18: =IF(V18=0,0,(V18*((LOG(V18))/LOG(2)))) -> 0 | Y18: =N18 -> 12122 | Z18: =COUNTIF(L37:L66,Y18) -> 0 | AA18: =Z18/(AB4-Z25) -> 0 | AB18: =IF(AA18=0,0,(AA18*((LOG(AA18))/LOG(2)))) -> 0 | AD18: =N18 -> 12122 | AE18: =COUNTIF(L67:L95,AD18) -> 0 | AF18: =AE18/(AG4-AE25) -> 0 | AG18: =IF(AF18=0,0,(AF18*((LOG(AF18))/LOG(2)))) -> 0 | AI18: =N18 -> 12122 | AJ18: =COUNTIF(L96:L125,AI18) -> 0 | AK18: =AJ18/(AL4-AJ25) -> 0 | AL18: =IF(AK18=0,0,(AK18*((LOG(AK18))/LOG(2)))) -> 0 | AN18: =N18 -> 12122 | AO18: =COUNTIF(L126:L155,AN18) -> 0 | AP18: =AO18/(AQ4-AO25) -> 0 | AQ18: =IF(AP18=0,0,(AP18*((LOG(AP18))/LOG(2)))) -> 0 | AS18: =N18 -> 12122 | AT18: =COUNTIF(L156:L185,AS18) -> 0 | AU18: =AT18/(AV4-AT25) -> 0 | AV18: =IF(AU18=0,0,(AU18*((LOG(AU18))/LOG(2)))) -> 0
A19: 12 | B19: 1572 | C19: 13 | D19: 1577 | E19: 13 | F19: 1582 | G19: 14 | H19: 1586 | I19: 13 | J19: 1592 | K19: 0 | L19: 11111 | N19: 12211 | O19: =COUNTIF($L$7:$L$500,N19) -> 0 | P19: =O19/$Q$4 -> 0 | Q19: =IF(P19=0,0,(P19*((LOG(P19))/LOG(2)))) -> 0 | T19: =N19 -> 12211 | U19: =COUNTIF(L7:L36,T19) -> 0 | V19: =U19/(W4-U25) -> 0 | W19: =IF(V19=0,0,(V19*((LOG(V19))/LOG(2)))) -> 0 | Y19: =N19 -> 12211 | Z19: =COUNTIF(L37:L66,Y19) -> 0 | AA19: =Z19/(AB4-Z25) -> 0 | AB19: =IF(AA19=0,0,(AA19*((LOG(AA19))/LOG(2)))) -> 0 | AD19: =N19 -> 12211 | AE19: =COUNTIF(L67:L95,AD19) -> 0 | AF19: =AE19/(AG4-AE25) -> 0 | AG19: =IF(AF19=0,0,(AF19*((LOG(AF19))/LOG(2)))) -> 0 | AI19: =N19 -> 12211 | AJ19: =COUNTIF(L96:L125,AI19) -> 0 | AK19: =AJ19/(AL4-AJ25) -> 0 | AL19: =IF(AK19=0,0,(AK19*((LOG(AK19))/LOG(2)))) -> 0 | AN19: =N19 -> 12211 | AO19: =COUNTIF(L126:L155,AN19) -> 0 | AP19: =AO19/(AQ4-AO25) -> 0 | AQ19: =IF(AP19=0,0,(AP19*((LOG(AP19))/LOG(2)))) -> 0 | AS19: =N19 -> 12211 | AT19: =COUNTIF(L156:L185,AS19) -> 0 | AU19: =AT19/(AV4-AT25) -> 0 | AV19: =IF(AU19=0,0,(AU19*((LOG(AU19))/LOG(2)))) -> 0
A20: 12 | B20: 1707 | C20: 13 | D20: 1712 | E20: 13 | F20: 1718 | G20: 14 | H20: 1724 | I20: 13 | J20: 1729 | K20: 0 | L20: 11111 | N20: 12212 | O20: =COUNTIF($L$7:$L$500,N20) -> 0 | P20: =O20/$Q$4 -> 0 | Q20: =IF(P20=0,0,(P20*((LOG(P20))/LOG(2)))) -> 0 | T20: =N20 -> 12212 | U20: =COUNTIF(L7:L36,T20) -> 0 | V20: =U20/(W4-U25) -> 0 | W20: =IF(V20=0,0,(V20*((LOG(V20))/LOG(2)))) -> 0 | Y20: =N20 -> 12212 | Z20: =COUNTIF(L37:L66,Y20) -> 0 | AA20: =Z20/(AB4-Z25) -> 0 | AB20: =IF(AA20=0,0,(AA20*((LOG(AA20))/LOG(2)))) -> 0 | AD20: =N20 -> 12212 | AE20: =COUNTIF(L67:L95,AD20) -> 0 | AF20: =AE20/(AG4-AE25) -> 0 | AG20: =IF(AF20=0,0,(AF20*((LOG(AF20))/LOG(2)))) -> 0 | AI20: =N20 -> 12212 | AJ20: =COUNTIF(L96:L125,AI20) -> 0 | AK20: =AJ20/(AL4-AJ25) -> 0 | AL20: =IF(AK20=0,0,(AK20*((LOG(AK20))/LOG(2)))) -> 0 | AN20: =N20 -> 12212 | AO20: =COUNTIF(L126:L155,AN20) -> 0 | AP20: =AO20/(AQ4-AO25) -> 0 | AQ20: =IF(AP20=0,0,(AP20*((LOG(AP20))/LOG(2)))) -> 0 | AS20: =N20 -> 12212 | AT20: =COUNTIF(L156:L185,AS20) -> 0 | AU20: =AT20/(AV4-AT25) -> 0 | AV20: =IF(AU20=0,0,(AU20*((LOG(AU20))/LOG(2)))) -> 0
A21: 12 | B21: 1835 | C21: 13 | D21: 1840 | E21: 13 | F21: 1845 | G21: 14 | H21: 1850 | I21: 13 | J21: 1855 | K21: 0 | L21: 11111 | N21: 12221 | O21: =COUNTIF($L$7:$L$500,N21) -> 0 | P21: =O21/$Q$4 -> 0 | Q21: =IF(P21=0,0,(P21*((LOG(P21))/LOG(2)))) -> 0 | T21: =N21 -> 12221 | U21: =COUNTIF(L7:L36,T21) -> 0 | V21: =U21/(W4-U25) -> 0 | W21: =IF(V21=0,0,(V21*((LOG(V21))/LOG(2)))) -> 0 | Y21: =N21 -> 12221 | Z21: =COUNTIF(L37:L66,Y21) -> 0 | AA21: =Z21/(AB4-Z25) -> 0 | AB21: =IF(AA21=0,0,(AA21*((LOG(AA21))/LOG(2)))) -> 0 | AD21: =N21 -> 12221 | AE21: =COUNTIF(L67:L95,AD21) -> 0 | AF21: =AE21/(AG4-AE25) -> 0 | AG21: =IF(AF21=0,0,(AF21*((LOG(AF21))/LOG(2)))) -> 0 | AI21: =N21 -> 12221 | AJ21: =COUNTIF(L96:L125,AI21) -> 0 | AK21: =AJ21/(AL4-AJ25) -> 0 | AL21: =IF(AK21=0,0,(AK21*((LOG(AK21))/LOG(2)))) -> 0 | AN21: =N21 -> 12221 | AO21: =COUNTIF(L126:L155,AN21) -> 0 | AP21: =AO21/(AQ4-AO25) -> 0 | AQ21: =IF(AP21=0,0,(AP21*((LOG(AP21))/LOG(2)))) -> 0 | AS21: =N21 -> 12221 | AT21: =COUNTIF(L156:L185,AS21) -> 0 | AU21: =AT21/(AV4-AT25) -> 0 | AV21: =IF(AU21=0,0,(AU21*((LOG(AU21))/LOG(2)))) -> 0
A22: 12 | B22: 1964 | C22: 13 | D22: 1979 | E22: 13 | F22: 1984 | G22: 14 | H22: 1990 | I22: 13 | J22: 1995 | K22: 0 | L22: 11111 | N22: 12222 | O22: =COUNTIF($L$7:$L$500,N22) -> 3 | P22: =O22/$Q$4 -> 0.01675977654 | Q22: =IF(P22=0,0,(P22*((LOG(P22))/LOG(2)))) -> -0.09886346274 | T22: =N22 -> 12222 | U22: =COUNTIF(L7:L36,T22) -> 0 | V22: =U22/(W4-U25) -> 0 | W22: =IF(V22=0,0,(V22*((LOG(V22))/LOG(2)))) -> 0 | Y22: =N22 -> 12222 | Z22: =COUNTIF(L37:L66,Y22) -> 0 | AA22: =Z22/(AB4-Z25) -> 0 | AB22: =IF(AA22=0,0,(AA22*((LOG(AA22))/LOG(2)))) -> 0 | AD22: =N22 -> 12222 | AE22: =COUNTIF(L67:L95,AD22) -> 2 | AF22: =AE22/(AG4-AE25) -> 0.06896551724 | AG22: =IF(AF22=0,0,(AF22*((LOG(AF22))/LOG(2)))) -> -0.2660676548 | AI22: =N22 -> 12222 | AJ22: =COUNTIF(L96:L125,AI22) -> 0 | AK22: =AJ22/(AL4-AJ25) -> 0 | AL22: =IF(AK22=0,0,(AK22*((LOG(AK22))/LOG(2)))) -> 0 | AN22: =N22 -> 12222 | AO22: =COUNTIF(L126:L155,AN22) -> 1 | AP22: =AO22/(AQ4-AO25) -> 0.03333333333 | AQ22: =IF(AP22=0,0,(AP22*((LOG(AP22))/LOG(2)))) -> -0.1635630199 | AS22: =N22 -> 12222 | AT22: =COUNTIF(L156:L185,AS22) -> 0 | AU22: =AT22/(AV4-AT25) -> 0 | AV22: =IF(AU22=0,0,(AU22*((LOG(AU22))/LOG(2)))) -> 0
A23: 12 | B23: 2109 | C23: 13 | D23: 2113 | E23: 13 | F23: 2119 | G23: 14 | H23: 2123 | I23: 13 | J23: 2129 | K23: 1 | L23: 11111 | N23: 21111 | O23: =COUNTIF($L$7:$L$500,N23) -> 0 | P23: =O23/$Q$4 -> 0 | Q23: =IF(P23=0,0,(P23*((LOG(P23))/LOG(2)))) -> 0 | T23: =N23 -> 21111 | U23: =COUNTIF(L7:L36,T23) -> 0 | V23: =U23/(W4-U25) -> 0 | W23: =IF(V23=0,0,(V23*((LOG(V23))/LOG(2)))) -> 0 | Y23: =N23 -> 21111 | Z23: =COUNTIF(L37:L66,Y23) -> 0 | AA23: =Z23/(AB4-Z25) -> 0 | AB23: =IF(AA23=0,0,(AA23*((LOG(AA23))/LOG(2)))) -> 0 | AD23: =N23 -> 21111 | AE23: =COUNTIF(L67:L95,AD23) -> 0 | AF23: =AE23/(AG4-AE25) -> 0 | AG23: =IF(AF23=0,0,(AF23*((LOG(AF23))/LOG(2)))) -> 0 | AI23: =N23 -> 21111 | AJ23: =COUNTIF(L96:L125,AI23) -> 0 | AK23: =AJ23/(AL4-AJ25) -> 0 | AL23: =IF(AK23=0,0,(AK23*((LOG(AK23))/LOG(2)))) -> 0 | AN23: =N23 -> 21111 | AO23: =COUNTIF(L126:L155,AN23) -> 0 | AP23: =AO23/(AQ4-AO25) -> 0 | AQ23: =IF(AP23=0,0,(AP23*((LOG(AP23))/LOG(2)))) -> 0 | AS23: =N23 -> 21111 | AT23: =COUNTIF(L156:L185,AS23) -> 0 | AU23: =AT23/(AV4-AT25) -> 0 | AV23: =IF(AU23=0,0,(AU23*((LOG(AU23))/LOG(2)))) -> 0
A24: 12 | B24: 2268 | C24: 13 | D24: 2273 | E24: 13 | F24: 2290 | G24: 14 | H24: 2302 | I24: 13 | J24: 2307 | K24: 0 | L24: 11111 | N24: 21112 | O24: =COUNTIF($L$7:$L$500,N24) -> 0 | P24: =O24/$Q$4 -> 0 | Q24: =IF(P24=0,0,(P24*((LOG(P24))/LOG(2)))) -> 0 | T24: =N24 -> 21112 | U24: =COUNTIF(L7:L36,T24) -> 0 | V24: =U24/(W4-U25) -> 0 | W24: =IF(V24=0,0,(V24*((LOG(V24))/LOG(2)))) -> 0 | Y24: =N24 -> 21112 | Z24: =COUNTIF(L37:L66,Y24) -> 0 | AA24: =Z24/(AB4-Z25) -> 0 | AB24: =IF(AA24=0,0,(AA24*((LOG(AA24))/LOG(2)))) -> 0 | AD24: =N24 -> 21112 | AE24: =COUNTIF(L67:L95,AD24) -> 0 | AF24: =AE24/(AG4-AE25) -> 0 | AG24: =IF(AF24=0,0,(AF24*((LOG(AF24))/LOG(2)))) -> 0 | AI24: =N24 -> 21112 | AJ24: =COUNTIF(L96:L125,AI24) -> 0 | AK24: =AJ24/(AL4-AJ25) -> 0 | AL24: =IF(AK24=0,0,(AK24*((LOG(AK24))/LOG(2)))) -> 0 | AN24: =N24 -> 21112 | AO24: =COUNTIF(L126:L155,AN24) -> 0 | AP24: =AO24/(AQ4-AO25) -> 0 | AQ24: =IF(AP24=0,0,(AP24*((LOG(AP24))/LOG(2)))) -> 0 | AS24: =N24 -> 21112 | AT24: =COUNTIF(L156:L185,AS24) -> 0 | AU24: =AT24/(AV4-AT25) -> 0 | AV24: =IF(AU24=0,0,(AU24*((LOG(AU24))/LOG(2)))) -> 0
A25: 12 | B25: 2414 | C25: 13 | D25: 2419 | E25: 13 | F25: 2424 | G25: 14 | H25: 2429 | I25: 13 | J25: 2435 | K25: 0 | L25: 11111 | N25: 21121 | O25: =COUNTIF($L$7:$L$500,N25) -> 0 | P25: =O25/$Q$4 -> 0 | Q25: =IF(P25=0,0,(P25*((LOG(P25))/LOG(2)))) -> 0 | T25: =N25 -> 21121 | U25: =COUNTIF(L7:L36,T25) -> 0 | Y25: =N25 -> 21121 | Z25: =COUNTIF(L37:L66,Y25) -> 0 | AD25: =N25 -> 21121 | AE25: =COUNTIF(L67:L95,AD25) -> 0 | AI25: =N25 -> 21121 | AJ25: =COUNTIF(L96:L125,AI25) -> 0 | AN25: =N25 -> 21121 | AO25: =COUNTIF(L126:L155,AN25) -> 0 | AS25: =N25 -> 21121 | AT25: =COUNTIF(L156:L185,AS25) -> 0
A26: 12 | B26: 2535 | C26: 13 | D26: 2539 | E26: 13 | F26: 2544 | G26: 14 | H26: 2548 | I26: 13 | J26: 2554 | K26: 0 | L26: 11111 | N26: 21122 | O26: =COUNTIF($L$7:$L$500,N26) -> 0 | P26: =O26/$Q$4 -> 0 | Q26: =IF(P26=0,0,(P26*((LOG(P26))/LOG(2)))) -> 0 | T26: =N26 -> 21122 | U26: =COUNTIF(L7:L36,T26) -> 0 | V26: =U26/(W4-U25) -> 0 | W26: =IF(V26=0,0,(V26*((LOG(V26))/LOG(2)))) -> 0 | Y26: =N26 -> 21122 | Z26: =COUNTIF(L37:L66,Y26) -> 0 | AA26: =Z26/(AB4-Z25) -> 0 | AB26: =IF(AA26=0,0,(AA26*((LOG(AA26))/LOG(2)))) -> 0 | AD26: =N26 -> 21122 | AE26: =COUNTIF(L67:L95,AD26) -> 0 | AF26: =AE26/(AG4-AE25) -> 0 | AG26: =IF(AF26=0,0,(AF26*((LOG(AF26))/LOG(2)))) -> 0 | AI26: =N26 -> 21122 | AJ26: =COUNTIF(L96:L125,AI26) -> 0 | AK26: =AJ26/(AL4-AJ25) -> 0 | AL26: =IF(AK26=0,0,(AK26*((LOG(AK26))/LOG(2)))) -> 0 | AN26: =N26 -> 21122 | AO26: =COUNTIF(L126:L155,AN26) -> 0 | AP26: =AO26/(AQ4-AO25) -> 0 | AQ26: =IF(AP26=0,0,(AP26*((LOG(AP26))/LOG(2)))) -> 0 | AS26: =N26 -> 21122 | AT26: =COUNTIF(L156:L185,AS26) -> 0 | AU26: =AT26/(AV4-AT25) -> 0 | AV26: =IF(AU26=0,0,(AU26*((LOG(AU26))/LOG(2)))) -> 0
A27: 12 | B27: 2655 | C27: 13 | D27: 2659 | E27: 13 | F27: 2664 | G27: 14 | H27: 2669 | I27: 13 | J27: 2674 | K27: 1 | L27: 11111 | N27: 21211 | O27: =COUNTIF($L$7:$L$500,N27) -> 0 | P27: =O27/$Q$4 -> 0 | Q27: =IF(P27=0,0,(P27*((LOG(P27))/LOG(2)))) -> 0 | T27: =N27 -> 21211 | U27: =COUNTIF(L7:L36,T27) -> 0 | V27: =U27/(W4-U25) -> 0 | W27: =IF(V27=0,0,(V27*((LOG(V27))/LOG(2)))) -> 0 | Y27: =N27 -> 21211 | Z27: =COUNTIF(L37:L66,Y27) -> 0 | AA27: =Z27/(AB4-Z25) -> 0 | AB27: =IF(AA27=0,0,(AA27*((LOG(AA27))/LOG(2)))) -> 0 | AD27: =N27 -> 21211 | AE27: =COUNTIF(L67:L95,AD27) -> 0 | AF27: =AE27/(AG4-AE25) -> 0 | AG27: =IF(AF27=0,0,(AF27*((LOG(AF27))/LOG(2)))) -> 0 | AI27: =N27 -> 21211 | AJ27: =COUNTIF(L96:L125,AI27) -> 0 | AK27: =AJ27/(AL4-AJ25) -> 0 | AL27: =IF(AK27=0,0,(AK27*((LOG(AK27))/LOG(2)))) -> 0 | AN27: =N27 -> 21211 | AO27: =COUNTIF(L126:L155,AN27) -> 0 | AP27: =AO27/(AQ4-AO25) -> 0 | AQ27: =IF(AP27=0,0,(AP27*((LOG(AP27))/LOG(2)))) -> 0 | AS27: =N27 -> 21211 | AT27: =COUNTIF(L156:L185,AS27) -> 0 | AU27: =AT27/(AV4-AT25) -> 0 | AV27: =IF(AU27=0,0,(AU27*((LOG(AU27))/LOG(2)))) -> 0
A28: 12 | B28: 2780 | C28: 13 | D28: 2784 | E28: 13 | F28: 2790 | G28: 14 | H28: 2794 | I28: 13 | J28: 2799 | K28: 0 | L28: 11111 | N28: 21212 | O28: =COUNTIF($L$7:$L$500,N28) -> 0 | P28: =O28/$Q$4 -> 0 | Q28: =IF(P28=0,0,(P28*((LOG(P28))/LOG(2)))) -> 0 | T28: =N28 -> 21212 | U28: =COUNTIF(L7:L36,T28) -> 0 | V28: =U28/(W4-U25) -> 0 | W28: =IF(V28=0,0,(V28*((LOG(V28))/LOG(2)))) -> 0 | Y28: =N28 -> 21212 | Z28: =COUNTIF(L37:L66,Y28) -> 0 | AA28: =Z28/(AB4-Z25) -> 0 | AB28: =IF(AA28=0,0,(AA28*((LOG(AA28))/LOG(2)))) -> 0 | AD28: =N28 -> 21212 | AE28: =COUNTIF(L67:L95,AD28) -> 0 | AF28: =AE28/(AG4-AE25) -> 0 | AG28: =IF(AF28=0,0,(AF28*((LOG(AF28))/LOG(2)))) -> 0 | AI28: =N28 -> 21212 | AJ28: =COUNTIF(L96:L125,AI28) -> 0 | AK28: =AJ28/(AL4-AJ25) -> 0 | AL28: =IF(AK28=0,0,(AK28*((LOG(AK28))/LOG(2)))) -> 0 | AN28: =N28 -> 21212 | AO28: =COUNTIF(L126:L155,AN28) -> 0 | AP28: =AO28/(AQ4-AO25) -> 0 | AQ28: =IF(AP28=0,0,(AP28*((LOG(AP28))/LOG(2)))) -> 0 | AS28: =N28 -> 21212 | AT28: =COUNTIF(L156:L185,AS28) -> 0 | AU28: =AT28/(AV4-AT25) -> 0 | AV28: =IF(AU28=0,0,(AU28*((LOG(AU28))/LOG(2)))) -> 0
A29: 12 | B29: 2899 | C29: 13 | D29: 2904 | E29: 13 | F29: 2909 | G29: 14 | H29: 2914 | I29: 13 | J29: 2918 | K29: 0 | L29: 11111 | N29: 21221 | O29: =COUNTIF($L$7:$L$500,N29) -> 0 | P29: =O29/$Q$4 -> 0 | Q29: =IF(P29=0,0,(P29*((LOG(P29))/LOG(2)))) -> 0 | T29: =N29 -> 21221 | U29: =COUNTIF(L7:L36,T29) -> 0 | V29: =U29/(W4-U25) -> 0 | W29: =IF(V29=0,0,(V29*((LOG(V29))/LOG(2)))) -> 0 | Y29: =N29 -> 21221 | Z29: =COUNTIF(L37:L66,Y29) -> 0 | AA29: =Z29/(AB4-Z25) -> 0 | AB29: =IF(AA29=0,0,(AA29*((LOG(AA29))/LOG(2)))) -> 0 | AD29: =N29 -> 21221 | AE29: =COUNTIF(L67:L95,AD29) -> 0 | AF29: =AE29/(AG4-AE25) -> 0 | AG29: =IF(AF29=0,0,(AF29*((LOG(AF29))/LOG(2)))) -> 0 | AI29: =N29 -> 21221 | AJ29: =COUNTIF(L96:L125,AI29) -> 0 | AK29: =AJ29/(AL4-AJ25) -> 0 | AL29: =IF(AK29=0,0,(AK29*((LOG(AK29))/LOG(2)))) -> 0 | AN29: =N29 -> 21221 | AO29: =COUNTIF(L126:L155,AN29) -> 0 | AP29: =AO29/(AQ4-AO25) -> 0 | AQ29: =IF(AP29=0,0,(AP29*((LOG(AP29))/LOG(2)))) -> 0 | AS29: =N29 -> 21221 | AT29: =COUNTIF(L156:L185,AS29) -> 0 | AU29: =AT29/(AV4-AT25) -> 0 | AV29: =IF(AU29=0,0,(AU29*((LOG(AU29))/LOG(2)))) -> 0
A30: 12 | B30: 3015 | C30: 13 | D30: 3035 | E30: 13 | F30: 3047 | G30: 14 | H30: 3064 | I30: 13 | J30: 3080 | K30: 0 | L30: 11111 | N30: 21222 | O30: =COUNTIF($L$7:$L$500,N30) -> 0 | P30: =O30/$Q$4 -> 0 | Q30: =IF(P30=0,0,(P30*((LOG(P30))/LOG(2)))) -> 0 | T30: =N30 -> 21222 | U30: =COUNTIF(L7:L36,T30) -> 0 | V30: =U30/(W4-U25) -> 0 | W30: =IF(V30=0,0,(V30*((LOG(V30))/LOG(2)))) -> 0 | Y30: =N30 -> 21222 | Z30: =COUNTIF(L37:L66,Y30) -> 0 | AA30: =Z30/(AB4-Z25) -> 0 | AB30: =IF(AA30=0,0,(AA30*((LOG(AA30))/LOG(2)))) -> 0 | AD30: =N30 -> 21222 | AE30: =COUNTIF(L67:L95,AD30) -> 0 | AF30: =AE30/(AG4-AE25) -> 0 | AG30: =IF(AF30=0,0,(AF30*((LOG(AF30))/LOG(2)))) -> 0 | AI30: =N30 -> 21222 | AJ30: =COUNTIF(L96:L125,AI30) -> 0 | AK30: =AJ30/(AL4-AJ25) -> 0 | AL30: =IF(AK30=0,0,(AK30*((LOG(AK30))/LOG(2)))) -> 0 | AN30: =N30 -> 21222 | AO30: =COUNTIF(L126:L155,AN30) -> 0 | AP30: =AO30/(AQ4-AO25) -> 0 | AQ30: =IF(AP30=0,0,(AP30*((LOG(AP30))/LOG(2)))) -> 0 | AS30: =N30 -> 21222 | AT30: =COUNTIF(L156:L185,AS30) -> 0 | AU30: =AT30/(AV4-AT25) -> 0 | AV30: =IF(AU30=0,0,(AU30*((LOG(AU30))/LOG(2)))) -> 0
A31: 12 | B31: 3181 | C31: 13 | D31: 3191 | E31: 13 | F31: 3196 | G31: 14 | H31: 3201 | I31: 13 | J31: 3206 | K31: 0 | L31: 11111 | N31: 22111 | O31: =COUNTIF($L$7:$L$500,N31) -> 0 | P31: =O31/$Q$4 -> 0 | Q31: =IF(P31=0,0,(P31*((LOG(P31))/LOG(2)))) -> 0 | T31: =N31 -> 22111 | U31: =COUNTIF(L7:L36,T31) -> 0 | V31: =U31/(W4-U25) -> 0 | W31: =IF(V31=0,0,(V31*((LOG(V31))/LOG(2)))) -> 0 | Y31: =N31 -> 22111 | Z31: =COUNTIF(L37:L66,Y31) -> 0 | AA31: =Z31/(AB4-Z25) -> 0 | AB31: =IF(AA31=0,0,(AA31*((LOG(AA31))/LOG(2)))) -> 0 | AD31: =N31 -> 22111 | AE31: =COUNTIF(L67:L95,AD31) -> 0 | AF31: =AE31/(AG4-AE25) -> 0 | AG31: =IF(AF31=0,0,(AF31*((LOG(AF31))/LOG(2)))) -> 0 | AI31: =N31 -> 22111 | AJ31: =COUNTIF(L96:L125,AI31) -> 0 | AK31: =AJ31/(AL4-AJ25) -> 0 | AL31: =IF(AK31=0,0,(AK31*((LOG(AK31))/LOG(2)))) -> 0 | AN31: =N31 -> 22111 | AO31: =COUNTIF(L126:L155,AN31) -> 0 | AP31: =AO31/(AQ4-AO25) -> 0 | AQ31: =IF(AP31=0,0,(AP31*((LOG(AP31))/LOG(2)))) -> 0 | AS31: =N31 -> 22111 | AT31: =COUNTIF(L156:L185,AS31) -> 0 | AU31: =AT31/(AV4-AT25) -> 0 | AV31: =IF(AU31=0,0,(AU31*((LOG(AU31))/LOG(2)))) -> 0
A32: 12 | B32: 3299 | C32: 13 | D32: 3315 | E32: 13 | F32: 3319 | G32: 14 | H32: 3324 | I32: 13 | J32: 3329 | K32: 0 | L32: 11111 | N32: 22112 | O32: =COUNTIF($L$7:$L$500,N32) -> 0 | P32: =O32/$Q$4 -> 0 | Q32: =IF(P32=0,0,(P32*((LOG(P32))/LOG(2)))) -> 0 | T32: =N32 -> 22112 | U32: =COUNTIF(L7:L36,T32) -> 0 | V32: =U32/(W4-U25) -> 0 | W32: =IF(V32=0,0,(V32*((LOG(V32))/LOG(2)))) -> 0 | Y32: =N32 -> 22112 | Z32: =COUNTIF(L37:L66,Y32) -> 0 | AA32: =Z32/(AB4-Z25) -> 0 | AB32: =IF(AA32=0,0,(AA32*((LOG(AA32))/LOG(2)))) -> 0 | AD32: =N32 -> 22112 | AE32: =COUNTIF(L67:L95,AD32) -> 0 | AF32: =AE32/(AG4-AE25) -> 0 | AG32: =IF(AF32=0,0,(AF32*((LOG(AF32))/LOG(2)))) -> 0 | AI32: =N32 -> 22112 | AJ32: =COUNTIF(L96:L125,AI32) -> 0 | AK32: =AJ32/(AL4-AJ25) -> 0 | AL32: =IF(AK32=0,0,(AK32*((LOG(AK32))/LOG(2)))) -> 0 | AN32: =N32 -> 22112 | AO32: =COUNTIF(L126:L155,AN32) -> 0 | AP32: =AO32/(AQ4-AO25) -> 0 | AQ32: =IF(AP32=0,0,(AP32*((LOG(AP32))/LOG(2)))) -> 0 | AS32: =N32 -> 22112 | AT32: =COUNTIF(L156:L185,AS32) -> 0 | AU32: =AT32/(AV4-AT25) -> 0 | AV32: =IF(AU32=0,0,(AU32*((LOG(AU32))/LOG(2)))) -> 0
A33: 12 | B33: 3438 | C33: 13 | D33: 3442 | E33: 13 | F33: 3448 | G33: 14 | H33: 3452 | I33: 13 | J33: 3457 | K33: 1 | L33: 11111 | N33: 22121 | O33: =COUNTIF($L$7:$L$500,N33) -> 0 | P33: =O33/$Q$4 -> 0 | Q33: =IF(P33=0,0,(P33*((LOG(P33))/LOG(2)))) -> 0 | T33: =N33 -> 22121 | U33: =COUNTIF(L7:L36,T33) -> 0 | V33: =U33/(W4-U25) -> 0 | W33: =IF(V33=0,0,(V33*((LOG(V33))/LOG(2)))) -> 0 | Y33: =N33 -> 22121 | Z33: =COUNTIF(L37:L66,Y33) -> 0 | AA33: =Z33/(AB4-Z25) -> 0 | AB33: =IF(AA33=0,0,(AA33*((LOG(AA33))/LOG(2)))) -> 0 | AD33: =N33 -> 22121 | AE33: =COUNTIF(L67:L95,AD33) -> 0 | AF33: =AE33/(AG4-AE25) -> 0 | AG33: =IF(AF33=0,0,(AF33*((LOG(AF33))/LOG(2)))) -> 0 | AI33: =N33 -> 22121 | AJ33: =COUNTIF(L96:L125,AI33) -> 0 | AK33: =AJ33/(AL4-AJ25) -> 0 | AL33: =IF(AK33=0,0,(AK33*((LOG(AK33))/LOG(2)))) -> 0 | AN33: =N33 -> 22121 | AO33: =COUNTIF(L126:L155,AN33) -> 0 | AP33: =AO33/(AQ4-AO25) -> 0 | AQ33: =IF(AP33=0,0,(AP33*((LOG(AP33))/LOG(2)))) -> 0 | AS33: =N33 -> 22121 | AT33: =COUNTIF(L156:L185,AS33) -> 0 | AU33: =AT33/(AV4-AT25) -> 0 | AV33: =IF(AU33=0,0,(AU33*((LOG(AU33))/LOG(2)))) -> 0
A34: 12 | B34: 3557 | C34: 13 | D34: 3572 | E34: 13 | F34: 3577 | G34: 23 | H34: 3610 | I34: 24 | J34: 3632 | K34: 0 | L34: 11122 | N34: 22122 | O34: =COUNTIF($L$7:$L$500,N34) -> 0 | P34: =O34/$Q$4 -> 0 | Q34: =IF(P34=0,0,(P34*((LOG(P34))/LOG(2)))) -> 0 | T34: =N34 -> 22122 | U34: =COUNTIF(L7:L36,T34) -> 0 | V34: =U34/(W4-U25) -> 0 | W34: =IF(V34=0,0,(V34*((LOG(V34))/LOG(2)))) -> 0 | Y34: =N34 -> 22122 | Z34: =COUNTIF(L37:L66,Y34) -> 0 | AA34: =Z34/(AB4-Z25) -> 0 | AB34: =IF(AA34=0,0,(AA34*((LOG(AA34))/LOG(2)))) -> 0 | AD34: =N34 -> 22122 | AE34: =COUNTIF(L67:L95,AD34) -> 0 | AF34: =AE34/(AG4-AE25) -> 0 | AG34: =IF(AF34=0,0,(AF34*((LOG(AF34))/LOG(2)))) -> 0 | AI34: =N34 -> 22122 | AJ34: =COUNTIF(L96:L125,AI34) -> 0 | AK34: =AJ34/(AL4-AJ25) -> 0 | AL34: =IF(AK34=0,0,(AK34*((LOG(AK34))/LOG(2)))) -> 0 | AN34: =N34 -> 22122 | AO34: =COUNTIF(L126:L155,AN34) -> 0 | AP34: =AO34/(AQ4-AO25) -> 0 | AQ34: =IF(AP34=0,0,(AP34*((LOG(AP34))/LOG(2)))) -> 0 | AS34: =N34 -> 22122 | AT34: =COUNTIF(L156:L185,AS34) -> 0 | AU34: =AT34/(AV4-AT25) -> 0 | AV34: =IF(AU34=0,0,(AU34*((LOG(AU34))/LOG(2)))) -> 0
A35: 12 | B35: 3735 | C35: 13 | D35: 3739 | E35: 13 | F35: 3744 | G35: 14 | H35: 3748 | I35: 13 | J35: 3752 | K35: 0 | L35: 11111 | N35: 22211 | O35: =COUNTIF($L$7:$L$500,N35) -> 0 | P35: =O35/$Q$4 -> 0 | Q35: =IF(P35=0,0,(P35*((LOG(P35))/LOG(2)))) -> 0 | T35: =N35 -> 22211 | U35: =COUNTIF(L7:L36,T35) -> 0 | V35: =U35/(W4-U25) -> 0 | W35: =IF(V35=0,0,(V35*((LOG(V35))/LOG(2)))) -> 0 | Y35: =N35 -> 22211 | Z35: =COUNTIF(L37:L66,Y35) -> 0 | AA35: =Z35/(AB4-Z25) -> 0 | AB35: =IF(AA35=0,0,(AA35*((LOG(AA35))/LOG(2)))) -> 0 | AD35: =N35 -> 22211 | AE35: =COUNTIF(L67:L95,AD35) -> 0 | AF35: =AE35/(AG4-AE25) -> 0 | AG35: =IF(AF35=0,0,(AF35*((LOG(AF35))/LOG(2)))) -> 0 | AI35: =N35 -> 22211 | AJ35: =COUNTIF(L96:L125,AI35) -> 0 | AK35: =AJ35/(AL4-AJ25) -> 0 | AL35: =IF(AK35=0,0,(AK35*((LOG(AK35))/LOG(2)))) -> 0 | AN35: =N35 -> 22211 | AO35: =COUNTIF(L126:L155,AN35) -> 0 | AP35: =AO35/(AQ4-AO25) -> 0 | AQ35: =IF(AP35=0,0,(AP35*((LOG(AP35))/LOG(2)))) -> 0 | AS35: =N35 -> 22211 | AT35: =COUNTIF(L156:L185,AS35) -> 0 | AU35: =AT35/(AV4-AT25) -> 0 | AV35: =IF(AU35=0,0,(AU35*((LOG(AU35))/LOG(2)))) -> 0
A36: 12 | B36: 3856 | C36: 13 | D36: 3861 | E36: 13 | F36: 3865 | G36: 14 | H36: 3870 | I36: 13 | J36: 3874 | K36: 0 | L36: 11111 | N36: 22212 | O36: =COUNTIF($L$7:$L$500,N36) -> 0 | P36: =O36/$Q$4 -> 0 | Q36: =IF(P36=0,0,(P36*((LOG(P36))/LOG(2)))) -> 0 | T36: =N36 -> 22212 | U36: =COUNTIF(L7:L36,T36) -> 0 | V36: =U36/(W4-U25) -> 0 | W36: =IF(V36=0,0,(V36*((LOG(V36))/LOG(2)))) -> 0 | Y36: =N36 -> 22212 | Z36: =COUNTIF(L37:L66,Y36) -> 0 | AA36: =Z36/(AB4-Z25) -> 0 | AB36: =IF(AA36=0,0,(AA36*((LOG(AA36))/LOG(2)))) -> 0 | AD36: =N36 -> 22212 | AE36: =COUNTIF(L67:L95,AD36) -> 0 | AF36: =AE36/(AG4-AE25) -> 0 | AG36: =IF(AF36=0,0,(AF36*((LOG(AF36))/LOG(2)))) -> 0 | AI36: =N36 -> 22212 | AJ36: =COUNTIF(L96:L125,AI36) -> 0 | AK36: =AJ36/(AL4-AJ25) -> 0 | AL36: =IF(AK36=0,0,(AK36*((LOG(AK36))/LOG(2)))) -> 0 | AN36: =N36 -> 22212 | AO36: =COUNTIF(L126:L155,AN36) -> 0 | AP36: =AO36/(AQ4-AO25) -> 0 | AQ36: =IF(AP36=0,0,(AP36*((LOG(AP36))/LOG(2)))) -> 0 | AS36: =N36 -> 22212 | AT36: =COUNTIF(L156:L185,AS36) -> 0 | AU36: =AT36/(AV4-AT25) -> 0 | AV36: =IF(AU36=0,0,(AU36*((LOG(AU36))/LOG(2)))) -> 0
A37: 12 | B37: 3983 | C37: 13 | D37: 3988 | E37: 13 | F37: 3992 | G37: 14 | H37: 3997 | I37: 13 | J37: 4001 | K37: 1 | L37: 11111 | N37: 22221 | O37: =COUNTIF($L$7:$L$500,N37) -> 0 | P37: =O37/$Q$4 -> 0 | Q37: =IF(P37=0,0,(P37*((LOG(P37))/LOG(2)))) -> 0 | T37: =N37 -> 22221 | U37: =COUNTIF(L7:L36,T37) -> 0 | V37: =U37/(W4-U25) -> 0 | W37: =IF(V37=0,0,(V37*((LOG(V37))/LOG(2)))) -> 0 | Y37: =N37 -> 22221 | Z37: =COUNTIF(L37:L66,Y37) -> 0 | AA37: =Z37/(AB4-Z25) -> 0 | AB37: =IF(AA37=0,0,(AA37*((LOG(AA37))/LOG(2)))) -> 0 | AD37: =N37 -> 22221 | AE37: =COUNTIF(L67:L95,AD37) -> 0 | AF37: =AE37/(AG4-AE25) -> 0 | AG37: =IF(AF37=0,0,(AF37*((LOG(AF37))/LOG(2)))) -> 0 | AI37: =N37 -> 22221 | AJ37: =COUNTIF(L96:L125,AI37) -> 0 | AK37: =AJ37/(AL4-AJ25) -> 0 | AL37: =IF(AK37=0,0,(AK37*((LOG(AK37))/LOG(2)))) -> 0 | AN37: =N37 -> 22221 | AO37: =COUNTIF(L126:L155,AN37) -> 0 | AP37: =AO37/(AQ4-AO25) -> 0 | AQ37: =IF(AP37=0,0,(AP37*((LOG(AP37))/LOG(2)))) -> 0 | AS37: =N37 -> 22221 | AT37: =COUNTIF(L156:L185,AS37) -> 0 | AU37: =AT37/(AV4-AT25) -> 0 | AV37: =IF(AU37=0,0,(AU37*((LOG(AU37))/LOG(2)))) -> 0
A38: 12 | B38: 4103 | C38: 13 | D38: 4108 | E38: 13 | F38: 4113 | G38: 14 | H38: 4127 | I38: 13 | J38: 4133 | K38: 0 | L38: 11111 | N38: 22222 | O38: =COUNTIF($L$7:$L$500,N38) -> 1 | P38: =O38/$Q$4 -> 0.005586592179 | Q38: =IF(P38=0,0,(P38*((LOG(P38))/LOG(2)))) -> -0.04180902669 | T38: =N38 -> 22222 | U38: =COUNTIF(L7:L36,T38) -> 0 | V38: =U38/(W4-U25) -> 0 | W38: =IF(V38=0,0,(V38*((LOG(V38))/LOG(2)))) -> 0 | Y38: =N38 -> 22222 | Z38: =COUNTIF(L37:L66,Y38) -> 0 | AA38: =Z38/(AB4-Z25) -> 0 | AB38: =IF(AA38=0,0,(AA38*((LOG(AA38))/LOG(2)))) -> 0 | AD38: =N38 -> 22222 | AE38: =COUNTIF(L67:L95,AD38) -> 0 | AF38: =AE38/(AG4-AE25) -> 0 | AG38: =IF(AF38=0,0,(AF38*((LOG(AF38))/LOG(2)))) -> 0 | AI38: =N38 -> 22222 | AJ38: =COUNTIF(L96:L125,AI38) -> 0 | AK38: =AJ38/(AL4-AJ25) -> 0 | AL38: =IF(AK38=0,0,(AK38*((LOG(AK38))/LOG(2)))) -> 0 | AN38: =N38 -> 22222 | AO38: =COUNTIF(L126:L155,AN38) -> 0 | AP38: =AO38/(AQ4-AO25) -> 0 | AQ38: =IF(AP38=0,0,(AP38*((LOG(AP38))/LOG(2)))) -> 0 | AS38: =N38 -> 22222 | AT38: =COUNTIF(L156:L185,AS38) -> 1 | AU38: =AT38/(AV4-AT25) -> 0.03333333333 | AV38: =IF(AU38=0,0,(AU38*((LOG(AU38))/LOG(2)))) -> -0.1635630199
A39: 12 | B39: 4233 | C39: 13 | D39: 4238 | E39: 13 | F39: 4243 | G39: 14 | H39: 4247 | I39: 13 | J39: 4252 | K39: 0 | L39: 11111 | P39: =SUM(P7:P38) -> 1 | Q39: =-SUM(Q7:Q38) -> 0.3980540642 | V39: =SUM(V7:V38) -> 1 | W39: =-SUM(W7:W38) -> 0.2108423003 | AA39: =SUM(AA7:AA38) -> 1 | AB39: =-SUM(AB7:AB38) -> 0 | AF39: =SUM(AF7:AF38) -> 1 | AG39: =-SUM(AG7:AG38) -> 0.5748281444 | AK39: =SUM(AK7:AK38) -> 1 | AL39: =-SUM(AL7:AL38) -> 0.4200260017 | AP39: =SUM(AP7:AP38) -> 1 | AQ39: =-SUM(AQ7:AQ38) -> 0.2108423003 | AU39: =SUM(AU7:AU38) -> 1 | AV39: =-SUM(AV7:AV38) -> 0.4200260017
A40: 12 | B40: 4358 | C40: 13 | D40: 4363 | E40: 13 | F40: 4368 | G40: 14 | H40: 4373 | I40: 13 | J40: 4378 | K40: 0 | L40: 11111 | P40: U= | Q40: =Q39/(LOG(Q4)/LOG(2)) -> 0.05318865082 | V40: U1= | W40: =W39/(LOG(W4)/LOG(2)) -> 0.04296861652 | AA40: U2= | AB40: =AB39/(LOG(AB4)/LOG(2)) -> 0 | AF40: U3= | AG40: =AG39/(LOG(AG4)/LOG(2)) -> 0.1183265527 | AK40: U4= | AL40: =AL39/(LOG(AL4)/LOG(2)) -> 0.08559921879 | AP40: U5= | AQ40: =AQ39/(LOG(AQ4)/LOG(2)) -> 0.04296861652 | AU40: U6= | AV40: =AV39/(LOG(AV4)/LOG(2)) -> 0.08559921879
A41: 12 | B41: 4495 | C41: 13 | D41: 4500 | E41: 13 | F41: 4506 | G41: 14 | H41: 4511 | I41: 13 | J41: 4516 | K41: 0 | L41: 11111
A42: 12 | B42: 4619 | C42: 13 | D42: 4624 | E42: 13 | F42: 4628 | G42: 14 | H42: 4633 | I42: 13 | J42: 4639 | K42: 0 | L42: 11111
A43: 12 | B43: 4738 | C43: 13 | D43: 4742 | E43: 13 | F43: 4746 | G43: 14 | H43: 4751 | I43: 13 | J43: 4755 | K43: 0 | L43: 11111 | N43: Total Target Seq
A44: 12 | B44: 4860 | C44: 13 | D44: 4864 | E44: 13 | F44: 4869 | G44: 14 | H44: 4875 | I44: 13 | J44: 4891 | K44: 1 | L44: 11111 | N44: =COUNTIF(L7:L185,G3) -> 0 | P44: 30 | Q44: 30 | R44: 29 | S44: 30 | T44: 30 | U44: 30
A45: 12 | B45: 5018 | C45: 13 | D45: 5027 | E45: 13 | F45: 5032 | G45: 14 | H45: 5037 | I45: 13 | J45: 5043 | K45: 0 | L45: 11111 | P45: % of reinforcement given in 6 equal intervals based on number of trials
A46: 12 | B46: 5147 | C46: 13 | D46: 5152 | E46: 13 | F46: 5156 | G46: 14 | H46: 5161 | I46: 13 | J46: 5166 | K46: 0 | L46: 11111 | P46: %_1 | Q46: %_2 | R46: %_3 | S46: %_4 | T46: %_5 | U46: %_6
A47: 12 | B47: 5266 | C47: 13 | D47: 5270 | E47: 13 | F47: 5277 | G47: 14 | H47: 5285 | I47: 13 | J47: 5290 | K47: 0 | L47: 11111 | O47: target sequence | P47: =$G$3 -> 21121 | Q47: =$G$3 -> 21121 | R47: =$G$3 -> 21121 | S47: =$G$3 -> 21121 | T47: =$G$3 -> 21121 | U47: =$G$3 -> 21121
A48: 12 | B48: 5396 | C48: 13 | D48: 5400 | E48: 13 | F48: 5405 | G48: 14 | H48: 5411 | I48: 13 | J48: 5415 | K48: 0 | L48: 11111 | O48: total reinforcement | P48: =U25 -> 0 | Q48: =Z25 -> 0 | R48: =AE25 -> 0 | S48: =AJ25 -> 0 | T48: =AO25 -> 0 | U48: =AT25 -> 0
A49: 12 | B49: 5525 | C49: 13 | D49: 5534 | E49: 13 | F49: 5538 | G49: 14 | H49: 5552 | I49: 13 | J49: 5566 | K49: 0 | L49: 11111 | O49: % target
A50: 12 | B50: 5666 | C50: 13 | D50: 5671 | E50: 13 | F50: 5676 | G50: 14 | H50: 5680 | I50: 13 | J50: 5685 | K50: 0 | L50: 11111 | O50: CCRF
A51: 12 | B51: 5796 | C51: 13 | D51: 5800 | E51: 13 | F51: 5804 | G51: 14 | H51: 5809 | I51: 13 | J51: 5814 | K51: 0 | L51: 11111 | O51: % CCRf
A52: 12 | B52: 5915 | C52: 13 | D52: 5920 | E52: 13 | F52: 5924 | G52: 14 | H52: 5929 | I52: 13 | J52: 5934 | K52: 1 | L52: 11111 | O52: average response rate | P52: =J36/P44 -> 129.1333333 | Q52: =(J66-J36)/Q44 -> 129.3666667 | R52: =(J95-J66)/R44 -> 134.2413793 | S52: =(J125-J95)/S44 -> 135.0333333 | T52: =(J155-J125)/T44 -> 134.9333333 | U52: =(J185-J155)/U44 -> 139.3666667
A53: 12 | B53: 6048 | C53: 13 | D53: 6058 | E53: 13 | F53: 6062 | G53: 14 | H53: 6069 | I53: 13 | J53: 6078 | K53: 1 | L53: 11111
A54: 12 | B54: 6176 | C54: 13 | D54: 6190 | E54: 13 | F54: 6195 | G54: 14 | H54: 6200 | I54: 13 | J54: 6205 | K54: 1 | L54: 11111
A55: 12 | B55: 6305 | C55: 13 | D55: 6313 | E55: 13 | F55: 6317 | G55: 14 | H55: 6322 | I55: 13 | J55: 6327 | K55: 0 | L55: 11111
A56: 12 | B56: 6431 | C56: 13 | D56: 6435 | E56: 13 | F56: 6440 | G56: 14 | H56: 6444 | I56: 13 | J56: 6449 | K56: 1 | L56: 11111
A57: 12 | B57: 6559 | C57: 13 | D57: 6564 | E57: 13 | F57: 6569 | G57: 14 | H57: 6573 | I57: 13 | J57: 6589 | K57: 0 | L57: 11111
A58: 12 | B58: 6689 | C58: 13 | D58: 6693 | E58: 13 | F58: 6697 | G58: 14 | H58: 6702 | I58: 13 | J58: 6706 | K58: 0 | L58: 11111
A59: 12 | B59: 6806 | C59: 13 | D59: 6810 | E59: 13 | F59: 6815 | G59: 14 | H59: 6820 | I59: 13 | J59: 6825 | K59: 0 | L59: 11111
A60: 12 | B60: 6933 | C60: 13 | D60: 6938 | E60: 13 | F60: 6943 | G60: 14 | H60: 6947 | I60: 13 | J60: 6957 | K60: 0 | L60: 11111
A61: 12 | B61: 7069 | C61: 13 | D61: 7073 | E61: 13 | F61: 7082 | G61: 14 | H61: 7091 | I61: 13 | J61: 7098 | K61: 1 | L61: 11111
A62: 12 | B62: 7198 | C62: 13 | D62: 7207 | E62: 13 | F62: 7211 | G62: 14 | H62: 7224 | I62: 13 | J62: 7232 | K62: 0 | L62: 11111
A63: 12 | B63: 7331 | C63: 13 | D63: 7335 | E63: 13 | F63: 7339 | G63: 14 | H63: 7347 | I63: 13 | J63: 7352 | K63: 0 | L63: 11111
A64: 12 | B64: 7461 | C64: 13 | D64: 7466 | E64: 13 | F64: 7475 | G64: 14 | H64: 7481 | I64: 13 | J64: 7486 | K64: 0 | L64: 11111
A65: 12 | B65: 7606 | C65: 13 | D65: 7614 | E65: 13 | F65: 7622 | G65: 14 | H65: 7627 | I65: 13 | J65: 7632 | K65: 0 | L65: 11111
A66: 12 | B66: 7733 | C66: 13 | D66: 7737 | E66: 13 | F66: 7742 | G66: 14 | H66: 7746 | I66: 13 | J66: 7755 | K66: 0 | L66: 11111
A67: 12 | B67: 7858 | C67: 13 | D67: 7863 | E67: 13 | F67: 7868 | G67: 14 | H67: 7873 | I67: 13 | J67: 7887 | K67: 0 | L67: 11111
A68: 12 | B68: 7992 | C68: 13 | D68: 7996 | E68: 13 | F68: 8010 | G68: 14 | H68: 8022 | I68: 13 | J68: 8027 | K68: 0 | L68: 11111
A69: 12 | B69: 8135 | C69: 13 | D69: 8145 | E69: 13 | F69: 8155 | G69: 23 | H69: 8177 | I69: 24 | J69: 8204 | K69: 1 | L69: 11122
A70: 12 | B70: 8311 | C70: 13 | D70: 8316 | E70: 13 | F70: 8327 | G70: 14 | H70: 8331 | I70: 13 | J70: 8341 | K70: 0 | L70: 11111
A71: 12 | B71: 8443 | C71: 13 | D71: 8452 | E71: 13 | F71: 8461 | G71: 14 | H71: 8466 | I71: 13 | J71: 8482 | K71: 0 | L71: 11111
A72: 12 | B72: 8589 | C72: 13 | D72: 8593 | E72: 13 | F72: 8602 | G72: 14 | H72: 8606 | I72: 13 | J72: 8620 | K72: 0 | L72: 11111
A73: 12 | B73: 8732 | C73: 24 | D73: 8742 | E73: 24 | F73: 8750 | G73: 23 | H73: 8755 | I73: 24 | J73: 8759 | K73: 0 | L73: 12222
A74: 12 | B74: 8860 | C74: 13 | D74: 8865 | E74: 13 | F74: 8870 | G74: 14 | H74: 8874 | I74: 13 | J74: 8879 | K74: 0 | L74: 11111
A75: 12 | B75: 8980 | C75: 13 | D75: 8984 | E75: 13 | F75: 8988 | G75: 14 | H75: 8993 | I75: 13 | J75: 8997 | K75: 0 | L75: 11111
A76: 12 | B76: 9101 | C76: 13 | D76: 9109 | E76: 13 | F76: 9118 | G76: 14 | H76: 9125 | I76: 13 | J76: 9134 | K76: 0 | L76: 11111
A77: 12 | B77: 9239 | C77: 13 | D77: 9243 | E77: 13 | F77: 9247 | G77: 14 | H77: 9251 | I77: 13 | J77: 9256 | K77: 0 | L77: 11111
A78: 12 | B78: 9362 | C78: 13 | D78: 9366 | E78: 13 | F78: 9371 | G78: 14 | H78: 9376 | I78: 13 | J78: 9380 | K78: 0 | L78: 11111
A79: 12 | B79: 9485 | C79: 13 | D79: 9489 | E79: 13 | F79: 9493 | G79: 14 | H79: 9498 | I79: 13 | J79: 9502 | K79: 0 | L79: 11111
A80: 12 | B80: 9602 | C80: 13 | D80: 9607 | E80: 13 | F80: 9612 | G80: 14 | H80: 9616 | I80: 13 | J80: 9621 | K80: 1 | L80: 11111
A81: 12 | B81: 9722 | C81: 13 | D81: 9726 | E81: 13 | F81: 9731 | G81: 14 | H81: 9736 | I81: 13 | J81: 9740 | K81: 0 | L81: 11111
A82: 12 | B82: 9844 | C82: 13 | D82: 9848 | E82: 13 | F82: 9852 | G82: 14 | H82: 9856 | I82: 13 | J82: 9861 | K82: 0 | L82: 11111
A83: 12 | B83: 9966 | C83: 13 | D83: 9970 | E83: 13 | F83: 9974 | G83: 14 | H83: 9987 | I83: 13 | J83: 10000 | K83: 0 | L83: 11111
A84: 12 | B84: 10110 | C84: 13 | D84: 10119 | E84: 13 | F84: 10127 | G84: 14 | H84: 10140 | I84: 13 | J84: 10148 | K84: 0 | L84: 11111
A85: 12 | B85: 10251 | C85: 13 | D85: 10265 | E85: 13 | F85: 10278 | G85: 14 | H85: 10287 | I85: 13 | J85: 10293 | K85: 0 | L85: 11111
A86: 12 | B86: 10397 | C86: 13 | D86: 10404 | E86: 13 | F86: 10409 | G86: 14 | H86: 10413 | I86: 13 | J86: 10418 | K86: 1 | L86: 11111
A87: 12 | B87: 10535 | C87: 24 | D87: 10560 | E87: 24 | F87: 10568 | G87: 23 | H87: 10587 | I87: 24 | J87: 10603 | K87: 0 | L87: 12222
A88: 12 | B88: 10732 | C88: 13 | D88: 10736 | E88: 13 | F88: 10754 | G88: 14 | H88: 10763 | I88: 13 | J88: 10773 | K88: 0 | L88: 11111
A89: 12 | B89: 10875 | C89: 13 | D89: 10879 | E89: 13 | F89: 10884 | G89: 14 | H89: 10888 | I89: 13 | J89: 10897 | K89: 0 | L89: 11111
A90: 12 | B90: 10997 | C90: 13 | D90: 11001 | E90: 13 | F90: 11005 | G90: 14 | H90: 11009 | I90: 13 | J90: 11013 | K90: 0 | L90: 11111
A91: 12 | B91: 11114 | C91: 13 | D91: 11117 | E91: 13 | F91: 11121 | G91: 14 | H91: 11128 | I91: 13 | J91: 11132 | K91: 1 | L91: 11111
A92: 12 | B92: 11230 | C92: 13 | D92: 11234 | E92: 13 | F92: 11238 | G92: 14 | H92: 11243 | I92: 13 | J92: 11248 | K92: 0 | L92: 11111
A93: 12 | B93: 11360 | C93: 13 | D93: 11364 | E93: 13 | F93: 11369 | G93: 14 | H93: 11373 | I93: 13 | J93: 11382 | K93: 0 | L93: 11111
A94: 12 | B94: 11483 | C94: 13 | D94: 11488 | E94: 13 | F94: 11493 | G94: 14 | H94: 11506 | I94: 13 | J94: 11510 | K94: 0 | L94: 11111
A95: 12 | B95: 11624 | C95: 13 | D95: 11629 | E95: 13 | F95: 11634 | G95: 14 | H95: 11639 | I95: 13 | J95: 11648 | K95: 0 | L95: 11111
A96: 12 | B96: 11748 | C96: 13 | D96: 11757 | E96: 13 | F96: 11762 | G96: 14 | H96: 11767 | I96: 13 | J96: 11773 | K96: 0 | L96: 11111
A97: 12 | B97: 11875 | C97: 13 | D97: 11883 | E97: 13 | F97: 11887 | G97: 14 | H97: 11891 | I97: 13 | J97: 11895 | K97: 0 | L97: 11111
A98: 12 | B98: 11996 | C98: 13 | D98: 12000 | E98: 13 | F98: 12004 | G98: 14 | H98: 12008 | I98: 13 | J98: 12016 | K98: 0 | L98: 11111
A99: 12 | B99: 12127 | C99: 13 | D99: 12132 | E99: 13 | F99: 12136 | G99: 14 | H99: 12144 | I99: 13 | J99: 12162 | K99: 0 | L99: 11111
A100: 12 | B100: 12274 | C100: 13 | D100: 12279 | E100: 13 | F100: 12283 | G100: 14 | H100: 12296 | I100: 13 | J100: 12301 | K100: 1 | L100: 11111
A101: 12 | B101: 12400 | C101: 13 | D101: 12404 | E101: 13 | F101: 12408 | G101: 14 | H101: 12412 | I101: 13 | J101: 12421 | K101: 0 | L101: 11111
A102: 12 | B102: 12522 | C102: 13 | D102: 12526 | E102: 13 | F102: 12531 | G102: 14 | H102: 12536 | I102: 13 | J102: 12544 | K102: 0 | L102: 11111
A103: 12 | B103: 12656 | C103: 13 | D103: 12660 | E103: 13 | F103: 12664 | G103: 14 | H103: 12668 | I103: 13 | J103: 12672 | K103: 0 | L103: 11111
A104: 12 | B104: 12782 | C104: 13 | D104: 12787 | E104: 13 | F104: 12791 | G104: 14 | H104: 12800 | I104: 13 | J104: 12808 | K104: 0 | L104: 11111
A105: 12 | B105: 12915 | C105: 13 | D105: 12919 | E105: 13 | F105: 12923 | G105: 14 | H105: 12928 | I105: 13 | J105: 12937 | K105: 0 | L105: 11111
A106: 12 | B106: 13045 | C106: 13 | D106: 13049 | E106: 13 | F106: 13054 | G106: 14 | H106: 13059 | I106: 13 | J106: 13068 | K106: 0 | L106: 11111
A107: 12 | B107: 13177 | C107: 13 | D107: 13181 | E107: 13 | F107: 13193 | G107: 14 | H107: 13198 | I107: 13 | J107: 13207 | K107: 0 | L107: 11111
A108: 12 | B108: 13316 | C108: 13 | D108: 13320 | E108: 13 | F108: 13331 | G108: 14 | H108: 13338 | I108: 13 | J108: 13343 | K108: 0 | L108: 11111
A109: 12 | B109: 13457 | C109: 13 | D109: 13461 | E109: 13 | F109: 13466 | G109: 14 | H109: 13478 | I109: 13 | J109: 13488 | K109: 0 | L109: 11111
A110: 12 | B110: 13599 | C110: 13 | D110: 13603 | E110: 13 | F110: 13608 | G110: 14 | H110: 13613 | I110: 13 | J110: 13617 | K110: 0 | L110: 11111
A111: 12 | B111: 13733 | C111: 13 | D111: 13743 | E111: 13 | F111: 13747 | G111: 14 | H111: 13751 | I111: 13 | J111: 13755 | K111: 1 | L111: 11111
A112: 12 | B112: 13864 | C112: 13 | D112: 13877 | E112: 13 | F112: 13881 | G112: 14 | H112: 13886 | I112: 13 | J112: 13895 | K112: 0 | L112: 11111
A113: 12 | B113: 14004 | C113: 13 | D113: 14008 | E113: 13 | F113: 14012 | G113: 14 | H113: 14020 | I113: 13 | J113: 14025 | K113: 0 | L113: 11111
A114: 12 | B114: 14131 | C114: 13 | D114: 14146 | E114: 13 | F114: 14150 | G114: 14 | H114: 14155 | I114: 13 | J114: 14161 | K114: 1 | L114: 11111
A115: 12 | B115: 14270 | C115: 13 | D115: 14274 | E115: 24 | F115: 14300 | G115: 23 | H115: 14308 | I115: 24 | J115: 14322 | K115: 0 | L115: 11222
A116: 12 | B116: 14435 | C116: 13 | D116: 14439 | E116: 13 | F116: 14444 | G116: 14 | H116: 14448 | I116: 13 | J116: 14452 | K116: 0 | L116: 11111
A117: 12 | B117: 14557 | C117: 13 | D117: 14571 | E117: 13 | F117: 14577 | G117: 14 | H117: 14581 | I117: 13 | J117: 14596 | K117: 0 | L117: 11111
A118: 12 | B118: 14708 | C118: 13 | D118: 14712 | E118: 13 | F118: 14717 | G118: 14 | H118: 14721 | I118: 13 | J118: 14731 | K118: 1 | L118: 11111
A119: 12 | B119: 14842 | C119: 13 | D119: 14847 | E119: 13 | F119: 14852 | G119: 14 | H119: 14859 | I119: 24 | J119: 14882 | K119: 1 | L119: 11112
A120: 12 | B120: 14984 | C120: 13 | D120: 14993 | E120: 13 | F120: 15003 | G120: 14 | H120: 15008 | I120: 13 | J120: 15026 | K120: 1 | L120: 11111
A121: 12 | B121: 15154 | C121: 13 | D121: 15159 | E121: 13 | F121: 15164 | G121: 14 | H121: 15168 | I121: 13 | J121: 15177 | K121: 0 | L121: 11111
A122: 12 | B122: 15286 | C122: 13 | D122: 15291 | E122: 13 | F122: 15295 | G122: 14 | H122: 15299 | I122: 13 | J122: 15308 | K122: 0 | L122: 11111
A123: 12 | B123: 15417 | C123: 13 | D123: 15421 | E123: 13 | F123: 15426 | G123: 14 | H123: 15435 | I123: 13 | J123: 15440 | K123: 0 | L123: 11111
A124: 12 | B124: 15546 | C124: 13 | D124: 15551 | E124: 13 | F124: 15555 | G124: 14 | H124: 15559 | I124: 13 | J124: 15568 | K124: 0 | L124: 11111
A125: 12 | B125: 15673 | C125: 13 | D125: 15677 | E125: 13 | F125: 15681 | G125: 14 | H125: 15686 | I125: 13 | J125: 15699 | K125: 0 | L125: 11111
A126: 12 | B126: 15804 | C126: 13 | D126: 15808 | E126: 13 | F126: 15817 | G126: 14 | H126: 15826 | I126: 13 | J126: 15831 | K126: 1 | L126: 11111
A127: 12 | B127: 15944 | C127: 13 | D127: 15957 | E127: 13 | F127: 15967 | G127: 14 | H127: 15972 | I127: 13 | J127: 15977 | K127: 0 | L127: 11111
A128: 12 | B128: 16088 | C128: 13 | D128: 16093 | E128: 13 | F128: 16098 | G128: 14 | H128: 16103 | I128: 13 | J128: 16108 | K128: 0 | L128: 11111
A129: 12 | B129: 16211 | C129: 13 | D129: 16216 | E129: 13 | F129: 16221 | G129: 14 | H129: 16225 | I129: 13 | J129: 16235 | K129: 0 | L129: 11111
A130: 12 | B130: 16342 | C130: 13 | D130: 16346 | E130: 13 | F130: 16351 | G130: 14 | H130: 16356 | I130: 13 | J130: 16365 | K130: 1 | L130: 11111
A131: 12 | B131: 16482 | C131: 13 | D131: 16490 | E131: 13 | F131: 16495 | G131: 14 | H131: 16499 | I131: 13 | J131: 16509 | K131: 0 | L131: 11111
A132: 12 | B132: 16609 | C132: 13 | D132: 16613 | E132: 13 | F132: 16617 | G132: 14 | H132: 16621 | I132: 13 | J132: 16626 | K132: 0 | L132: 11111
A133: 12 | B133: 16731 | C133: 13 | D133: 16735 | E133: 13 | F133: 16743 | G133: 14 | H133: 16748 | I133: 13 | J133: 16753 | K133: 0 | L133: 11111
A134: 12 | B134: 16852 | C134: 13 | D134: 16860 | E134: 13 | F134: 16865 | G134: 14 | H134: 16869 | I134: 13 | J134: 16873 | K134: 0 | L134: 11111
A135: 12 | B135: 16980 | C135: 13 | D135: 16985 | E135: 13 | F135: 16989 | G135: 14 | H135: 16994 | I135: 13 | J135: 16998 | K135: 0 | L135: 11111
A136: 12 | B136: 17108 | C136: 13 | D136: 17112 | E136: 13 | F136: 17116 | G136: 14 | H136: 17125 | I136: 13 | J136: 17130 | K136: 0 | L136: 11111
A137: 12 | B137: 17242 | C137: 13 | D137: 17250 | E137: 13 | F137: 17258 | G137: 14 | H137: 17269 | I137: 13 | J137: 17283 | K137: 0 | L137: 11111
A138: 12 | B138: 17386 | C138: 13 | D138: 17390 | E138: 13 | F138: 17395 | G138: 14 | H138: 17399 | I138: 13 | J138: 17403 | K138: 1 | L138: 11111
A139: 12 | B139: 17511 | C139: 13 | D139: 17520 | E139: 13 | F139: 17525 | G139: 14 | H139: 17536 | I139: 13 | J139: 17541 | K139: 0 | L139: 11111
A140: 12 | B140: 17655 | C140: 13 | D140: 17664 | E140: 13 | F140: 17669 | G140: 14 | H140: 17675 | I140: 13 | J140: 17688 | K140: 0 | L140: 11111
A141: 12 | B141: 17802 | C141: 13 | D141: 17810 | E141: 13 | F141: 17819 | G141: 14 | H141: 17831 | I141: 13 | J141: 17840 | K141: 0 | L141: 11111
A142: 12 | B142: 17952 | C142: 13 | D142: 17957 | E142: 13 | F142: 17961 | G142: 14 | H142: 17966 | I142: 13 | J142: 17970 | K142: 0 | L142: 11111
A143: 12 | B143: 18074 | C143: 13 | D143: 18079 | E143: 13 | F143: 18083 | G143: 14 | H143: 18087 | I143: 13 | J143: 18091 | K143: 0 | L143: 11111
A144: 12 | B144: 18202 | C144: 13 | D144: 18206 | E144: 13 | F144: 18211 | G144: 14 | H144: 18220 | I144: 13 | J144: 18225 | K144: 0 | L144: 11111
A145: 12 | B145: 18333 | C145: 13 | D145: 18341 | E145: 13 | F145: 18350 | G145: 14 | H145: 18359 | I145: 13 | J145: 18378 | K145: 1 | L145: 11111
A146: 12 | B146: 18477 | C146: 13 | D146: 18481 | E146: 13 | F146: 18494 | G146: 14 | H146: 18499 | I146: 13 | J146: 18508 | K146: 1 | L146: 11111
A147: 12 | B147: 18607 | C147: 13 | D147: 18612 | E147: 13 | F147: 18616 | G147: 14 | H147: 18642 | I147: 13 | J147: 18647 | K147: 0 | L147: 11111
A148: 12 | B148: 18755 | C148: 24 | D148: 18770 | E148: 24 | F148: 18779 | G148: 23 | H148: 18788 | I148: 24 | J148: 18821 | K148: 0 | L148: 12222
A149: 12 | B149: 18933 | C149: 13 | D149: 18937 | E149: 13 | F149: 18946 | G149: 14 | H149: 18951 | I149: 13 | J149: 18959 | K149: 0 | L149: 11111
A150: 12 | B150: 19063 | C150: 13 | D150: 19067 | E150: 13 | F150: 19075 | G150: 14 | H150: 19080 | I150: 13 | J150: 19085 | K150: 0 | L150: 11111
A151: 12 | B151: 19187 | C151: 13 | D151: 19190 | E151: 13 | F151: 19194 | G151: 14 | H151: 19200 | I151: 13 | J151: 19209 | K151: 1 | L151: 11111
A152: 12 | B152: 19315 | C152: 13 | D152: 19323 | E152: 13 | F152: 19328 | G152: 14 | H152: 19340 | I152: 13 | J152: 19345 | K152: 0 | L152: 11111
A153: 12 | B153: 19454 | C153: 13 | D153: 19458 | E153: 13 | F153: 19462 | G153: 14 | H153: 19466 | I153: 13 | J153: 19474 | K153: 0 | L153: 11111
A154: 12 | B154: 19578 | C154: 13 | D154: 19582 | E154: 13 | F154: 19590 | G154: 14 | H154: 19595 | I154: 13 | J154: 19601 | K154: 0 | L154: 11111
A155: 12 | B155: 19713 | C155: 13 | D155: 19718 | E155: 13 | F155: 19726 | G155: 14 | H155: 19739 | I155: 13 | J155: 19747 | K155: 0 | L155: 11111
A156: 12 | B156: 19854 | C156: 13 | D156: 19863 | E156: 13 | F156: 19868 | G156: 14 | H156: 19873 | I156: 13 | J156: 19879 | K156: 0 | L156: 11111
A157: 12 | B157: 19988 | C157: 13 | D157: 19997 | E157: 13 | F157: 20016 | G157: 14 | H157: 20021 | I157: 13 | J157: 20026 | K157: 0 | L157: 11111
A158: 12 | B158: 20148 | C158: 13 | D158: 20161 | E158: 13 | F158: 20173 | G158: 14 | H158: 20186 | I158: 13 | J158: 20196 | K158: 1 | L158: 11111
A159: 12 | B159: 20301 | C159: 13 | D159: 20309 | E159: 13 | F159: 20314 | G159: 14 | H159: 20321 | I159: 13 | J159: 20336 | K159: 0 | L159: 11111
A160: 12 | B160: 20444 | C160: 13 | D160: 20448 | E160: 13 | F160: 20453 | G160: 14 | H160: 20462 | I160: 13 | J160: 20470 | K160: 0 | L160: 11111
